Workbook

Sheet MENÙ
A1: DATI GENERALI
F3: ='iP1'!A56 -> Condomino Amministratore | L3: ='iP1'!A5 -> Condominio "PROTOTIPO"
F4: ='iP1'!A57 -> Ing. Pietro CHIEFARI | L4: ='iP1'!A6 -> Via dei MILLE 22-30-38
F5: ='iP1'!A58 -> Viale CUTURELLA, 2/D | L5: ='iP1'!A7 -> 88068 SOVERATO CZ | AE5: Codice Condominio-Esercizio
F6: ='iP1'!A59 -> 88068 - SOVERATO (CZ) | K6: =IF('iP1'!A8<>"","C.F. " & 'iP1'!A8,"") -> C.F. 80000000796 | N6: =IF('iP1'!A9<>"",'iP1'!A9,"") -> piasoft@piasoft.it | AA6: =IF('iP1'!A60<>"",'iP1'!A60,'iP1'!A61) -> cell. 328-7569407 | AE6: ='iP1'!A12 & "-" & 'iP1'!A37 -> Prototipo-2022
F8: Giornale aggiornato al 03/05/2022 | AE8: ='iP1'!A39 -> 2022-10-23
E9: FUNZIONI DI GESTIONE DEL CONDOMINIO
E57: FUNZIONI DI GESTIONE DELLA PROCEDURA
F58: GUIDE ALL'UTILIZZO | K58: DATI GENERALI | P58: ADATTAMENTO AL CONDOMINIO | U58: SCELTE UTILIZZATORE | Z58: OPERAZIONI SUL CONDOMINIO | AE58: FINE UTILIZZO PROGRAMMA

Sheet iP1 (hidden)
A1: Possono essere variati solo i valori delle celle senza sfondo colorato. | E1: 0
A2: ='iP1'!A5 -> Condominio "PROTOTIPO" | B2: DATI CONDOMINIO
A3: VALORE | B3: TIPO | C3: INDICAZIONE SUL DATO
A4: DATI GENERALI
A5: Condominio "PROTOTIPO" | B5: Testo | C5: Nome ufficiale del Condominio
A6: Via dei MILLE 22-30-38 | B6: Testo | C6: Indirizzo di Ubicazione del condominio
A7: 88068 SOVERATO CZ | B7: Testo | C7: Città
A8: 80000000796 | B8: Testo | C8: Codice Fiscale del Condominio
A9: piasoft@piasoft.it | B9: Testo | C9: Indirizzo e-mail del Condominio
B10: Testo | C10: Indirizzo pec del Condominio
B11: Testo | C11: Sito WEB
A12: Prototipo | B12: Testo | C12: Codice GOICO del Condominio (attribuito dall'utilizzatore)
A13: IT02 J076 0104 4000 0114 2786 471 | B13: Testo | C13: IBAN del conto corrente condominiale
A14: CONDOMINIO PROTOTIPO - SOVERATO | B14: Testo | C14: Intestazione del conto corrente condominiale | D14: (max 68 car.)
A15: DENOMINAZIONI DELLE TABELLE DI RIPARTIZIONE DEL CONDOMINIO | D15: NOME
A16: GENERALE | B16: Testo | C16: Tabella n. 1 - (solo i primi 12 caratteri saranno usati) | D16: Tabella A
A17: Scala A-38 | B17: Testo | C17: Tabella n. 2 - (solo i primi 12 caratteri saranno usati) | D17: Tabella B
A18: Scala B-30 | B18: Testo | C18: Tabella n. 3 - (solo i primi 12 caratteri saranno usati) | D18: Tabella C
A19: Scala C-22 | B19: Testo | C19: Tabella n. 4 - (solo i primi 12 caratteri saranno usati) | D19: Tabella D
A20: PORTICO | B20: Testo | C20: Tabella n. 5 - (solo i primi 12 caratteri saranno usati) | D20: Tabella E
A21: TUNNEL | B21: Testo | C21: Tabella n. 5 - (solo i primi 12 caratteri saranno usati) | D21: Tabella F
B22: Testo | C22: Tabella n. 7 - (solo i primi 12 caratteri saranno usati) | D22: Tabella G
B23: Testo | C23: Tabella n. 8 - (solo i primi 12 caratteri saranno usati) | D23: Tabella H
B24: Testo | C24: Tabella n. 9 - (solo i primi 12 caratteri saranno usati) | D24: Tabella I
B25: Testo | C25: Tabella n. 10 - (solo i primi 12 caratteri saranno usati) | D25: Tabella J
A26: DENOMINAZIONI DELLE GESTIONI INTEGRATE (SPECIALI E FONDI)
A27: F-LAVORI MANUTENZIONE (2013-2015) | B27: Testo | C27: Gestione Speciale e/o Fondo n. 1
B28: Testo | C28: Gestione Speciale e/o Fondo n. 2
B29: Testo | C29: Gestione Speciale e/o Fondo n. 3
B30: Testo | C30: Gestione Speciale e/o Fondo n. 4
B31: Testo | C31: Gestione Speciale e/o Fondo n. 5
A32: DATA E MODALITÀ DI APPROVAZIONE DELLE TABELLE MILLESIMALI
A33: 2016-12-16 | B33: Data | C33: Data di approvazione delle TABELLE MILLESIMALI
A34: DELIBERA ASSEMBLEARE | B34: Testo | C34: Modalità di approvazione
A36: DATI GENERALI
A37: 2022 | B37: Testo | C37: Esercizio condominiale (o anno) gestito
A38: 2022-01-05 | B38: Data | C38: Data redazione BILANCIO PREVENTIVO e PIANO DEI CONTI per l'Esercizio
A39: =IF(TODAY()>DATE(RIGHT(A40,4),MID(A40,15,2),MID(A40,12,2)),RIGHT(A40,10),TODAY()) -> 2022-10-23 | B39: Data | C39: Data alla quale sono eseguiti i calcoli dei prospetti contabili. (se la data del giorno ricade nell'esercizio la procedura pone la data del giorno, se dopo la fine dell' esercizio pone la data della fine esercizio)
A40: 01/01/2022-31/12/2022 | B40: Testo | C40: Date inizio e fine esercizio
A41: DATE di SCADENZA dei PAGAMENTI
A42: 2022-06-30 | B42: Data | C42: Conguaglio a debito per l'esercizio precedente
A43: 2022-01-10 | B43: Data | C43: 1a Rata trimestrale (di solito uguale a quella dell'esercizio precedente)
A44: 2022-04-10 | B44: Data | C44: 2a Rata trimestrale (con detrazione di 1/3 credito esercizio precedente)
A45: 2022-07-10 | B45: Data | C45: 3a Rata trimestrale (con detrazione di 1/3 credito esercizio precedente)
A46: 2022-10-10 | B46: Data | C46: 4a Rata trimestrale (con detrazione di 1/3 credito esercizio precedente)
A47: 2022-06-30 | B47: Data | C47: Data approvazione RENDICONTO esercizio precedente e BILANCIO PREVENTIVO esercizio in corso
A50: DILAZIONI concesse dall'Assemblea
A51: 90 | B51: Numero | C51: Numero di giorni di dilazione per pagamento rate
A52: 30 | B52: Numero | C52: Numero di giorni di dilazione per pagamento conguagli
A55: DATI AMMINISTRATORE
A56: Condomino Amministratore | B56: Testo | C56: Caratteristica di chi amministra, ovvero "in qualità di"
A57: Ing. Pietro CHIEFARI | B57: Testo | C57: Titolo professionale, Cognome e Nome o Ragione Sociale
A58: Viale CUTURELLA, 2/D | B58: Testo | C58: Indirizzo
A59: 88068 - SOVERATO (CZ) | B59: Testo | C59: CAP - Città -Provincia
B60: Testo | C60: Telefono
A61: cell. 328-7569407 | B61: Testo | C61: Cellulare
B62: Testo | C62: Indirizzo e-mail
B63: Testo | C63: Indirizzo pec
A64: DATI CATASTALI IMMOBILE PROPRIETÀ CONDOMINIALE
A65: SOVERATO | B65: Testo | C65: Comune
A66: VIA dei Mille 38 - S1 | B66: Testo | C66: Indirizzo - piano
A67: 2-326-99 | B67: Testo | C67: Foglio - Particella - Sub
A68: 1-A/4-2-2,0 vani | B68: Testo | C68: Zona - Categoria - Classe - Consistenza
A69: 140,99 euro | B69: Testo | C69: Rendita
A71: 0 | E71: 0

Sheet iP2 (hidden)
A1: ='iP1'!A5 -> Condominio "PROTOTIPO" | D1: ADATTAMENTO DEI PROSPETTTI AL CONDOMINIO | E1: 0
A2: I prospetti della procedura, sia di input che di output, hanno un numero massimo di righe e colonne, fissato dalla procedura stessa. In considerazione del fatto che il numero così fissato potrebbe essere sovrabbondante per il particolare condominio, la procedura automaticamente nasconde le righe e le colonne non necessarie per quel condominio, al fine di migliorare la leggibilità dei prospetti. Per farlo, utilizza i valori dei parametri forniti dall'utilizzatore nelle celle senza sfondo colorato del prospetto sottostante. I contenuti delle celle con sfondo colorato non possono essere variati così come le posizioni delle celle. Non saranno accettati valori dei parametri superiori a quelli massimi riportati nella colonna B. L'adattamento sarà fatto automaticamente dalla procedura quando si disattiva questo foglio, visualizzandone un altro.
A3: PARAMETRI DI ADATTAMENTO
A4: VALORE | B4: VALORE MAX | C4: TIPO | D4: Descrizione e indicazioni sul PARAMETRO
C5: PARAMETRI relativi al CONDOMINIO
A6: 47 | B6: 99 | C6: NUMERO | D6: Numero di UNITÀ FUNZIONALI CONDOMINIALI (UFC) costituenti il condominio
A7: 46 | B7: 99 | C7: NUMERO | D7: Numero di UNITÀ IMMOBILIARI CATASTALI (UI) costituenti il condominio
A8: 23 | B8: 99 | C8: NUMERO | D8: Numero di Condomini o proprietari di unità immobiliari catastali
A9: 4 | B9: 6 | C9: NUMERO | D9: Numero massimo di intestatari di una stessa UI (in comunione o indivisa)
A13: NUMERO di CAPITOLI e VOCI nei PIANI DEI CONTI CONDOMINIALI
A14: 10 | B14: 10 | C14: NUMERO | D14: Numero massimo di Capitoli nel piano dei conti delle USCITE
A15: 12 | B15: 15 | C15: NUMERO | D15: Numero di voci del capitolo S.01 delle USCITE
A16: 6 | B16: 10 | C16: NUMERO | D16: Numero di voci del capitolo S.02 delle USCITE
A17: 7 | B17: 10 | C17: NUMERO | D17: Numero di voci del capitolo S.03 delle USCITE
A18: 6 | B18: 10 | C18: NUMERO | D18: Numero di voci del capitolo S.04 delle USCITE
A19: 7 | B19: 10 | C19: NUMERO | D19: Numero di voci del capitolo S.05 delle USCITE
A20: 5 | B20: 5 | C20: NUMERO | D20: Numero di voci del capitolo S.06 delle USCITE
A21: 5 | B21: 5 | C21: NUMERO | D21: Numero di voci del capitolo S.07 delle USCITE
A22: 3 | B22: 5 | C22: NUMERO | D22: Numero di voci del capitolo L delle USCITE
A23: 5 | B23: 5 | C23: NUMERO | D23: Numero di voci del capitolo U delle USCITE
A25: 4 | B25: 4 | C25: NUMERO | D25: Numero massimo di Capitoli nel piano dei conti delle ENTRATE
A26: 5 | B26: 10 | C26: NUMERO | D26: Numero di voci del capitolo E delle ENTRATE
A27: 2 | B27: 5 | C27: NUMERO | D27: Numero di voci del capitolo V delle ENTRATE
A28: 0 | B28: 10 | C28: NUMERO | D28: Numero di voci del capitolo F delle Entrate (= 2 x numero FONDI SPECIALI)
A30: 4 | B30: 4 | C30: NUMERO | D30: Numero massimo di Capitoli nel piano dei conti dei CREDITI
A31: 5 | B31: 5 | C31: NUMERO | D31: Numero di voci del capitolo C.01 dei CREDITI
A32: 5 | B32: 5 | C32: NUMERO | D32: Numero di voci del capitolo C.02 dei CREDITI
A33: =A51 -> 1 | B33: 5 | C33: NUMERO | D33: Numero di voci del capitolo C.06 dei CREDITI (= numero FONDI)
A35: 4 | B35: 4 | C35: NUMERO | D35: Numero massimo di Capitoli nel piano dei conti dei DEBITI
A36: 5 | B36: 5 | C36: NUMERO | D36: Numero di voci del capitolo D.01 dei DEBITI
A37: 5 | B37: 5 | C37: NUMERO | D37: Numero di voci del capitolo D.02 dei DEBITI (sempre 5)
A38: 5 | B38: 5 | C38: NUMERO | D38: Numero di voci del capitolo D.03 dei DEBITI
C42: PARAMETRI relativi ai PROSPETTI FISCALI
A43: 150 | B43: 150 | C43: NUMERO | D43: Numero massimo di operazioni contabili con rilevanza fiscale (sempre 150)
A44: 50 | B44: 50 | C44: NUMERO | D44: Numero massimo di percipienti per i quali è dovuta la C.U. (sempre 50)
C45: PARAMETRI relativi ai PROSPETTI che riportano CREDITI e DEBITI
A46: 5 | B46: 5 | C46: NUMERO | D46: Numero esercizi precedenti con CREDITI residui in quello in corso
A47: 3 | B47: 5 | C47: NUMERO | D47: Numero esercizi precedenti con DEBITI residui in quello in corso
C50: PARAMETRI relativi alle GESTIONI SPECIALI e FONDI
A51: 1 | B51: 5 | C51: NUMERO | D51: Numero di gestioni speciali e fondi, ovvero che partecipano allo Stato Patrimoniale del condominio, anche solo per avere in comune il conto corrente.
A53: PARAMETRI relativi all'esistenza di spese personali nel Preventivo
A54: 0 | C54: NUMERO | D54: 0 - Preventivo senza spese personali --- 1 - Preventivo con spese personali
A61: 0 | E61: 0

Sheet iP3 (hidden)
A1: ='iP1'!A5 -> Condominio "PROTOTIPO" | C1: SCELTE dell'UTILIZZATORE | D1: 0
A2: È consentito immettere e/o variare solo i valori delle celle senza sfondo colorato, non è consentito spostare alcuna cella.
A3: DATO | B3: TIPO | C3: Indicazioni varie sul dato
A4: OPZIONI NELLA CREAZIONE DEI FILE PDF DELLE COMUNICAZIONI
A5: 1 | B5: Testo | C5: 0 - per creare un file della comunicazione per ogni condomino. 1 - per creare un unico file della comunicazione per tutti i condomini.
A6: 0 | B6: Testo | C6: 0 - per cancellare la cartella EXCEL utilizzata per la creazione del file PDF. 1 - per mantenere la cartella EXCEL utilizzata per la creazione del file PDF.
A7: Tabella A | B7: Testo | C7: Tabella i cui millesimi sono riportati nell'intestazione della comunicazione. (Nel caso di comunicazione generica, la comunicazione sarà redatta solo per i condomini che hanno millesimi diversi da zero nella tabella indicata.)
A8: Adobe Acrobat Reader DC | B8: Testo | C8: Programma di lettura dei PDF (Vivamente consigliato AdobeAcrobat Reader DC)
A9: 0 | B9: Testo | C9: 0 - per non riportare la data di stampa sulla copertina 1 - per riportare la data di stampa sulla copertina
A10: SOVERATO | B10: Testo | C10: Luogo della comunicazione
A11: =TODAY() -> 2022-10-23 | B11: Data | C11: Data della comunicazione. (si può porre "=OGGI()" o direttamente una data nel formato gg-mm-aaaa)
A12: TESTO sui PULSANTI dei PROMEMORIA
A13: CONSEGNE COMUNICAZ. | B13: Testo | C13: Pulsante PROMEMORIA 1 [ max. 22 caratteri]
A14: SCADENZE | B14: Testo | C14: Pulsante PROMEMORIA 2 [ max. 22 caratteri]
A17: TESTO per le INTESTAZIONI e PIÈ DI PAGINA delle PAGINE da STAMPARE
A18: Condominio "Prototipo" | B18: Testo | C18: Intestazione [compatibilmente con la larghezza della pagina]
A19: Condominio PROTOTIPO | B19: Testo | C19: Piè di pagina [compatibilmente con la larghezza della pagina]
A23: ALTRI PARAMETRI A SCELTA DALL'UTILIZZATORE
A24: 0 | B24: Testo | C24: 0 - stampa elenco condomini uso amministratore. 1 - stampa elenco condomini uso esterno.
A25: 3 | B25: Testo | C25: 1 - Stampa Tabella per condomini. 2 - Stampa Tabella per Unità Immobiliari e per Condomini. 3 - Stampa Tabella per Unità Funzionali, per Unità Immobiliari e per Condomini.
A26: 0 | B26: Testo | C26: 0 - stampa pagine interne fascicolo PDF in bianco e nero. 1 - stampa pagine interne fascicolo PDF a colori. L'opzione non è valida per il fascicolo del Bilancio Preventivo e del Rendiconto
A27: 0 | B27: Testo | C27: 0 - stampe senza riparto proprietario inquilino 1 - stampe con riparto proprietario inquilino
A28: U2022-042 | B28: Testo | C28: Numero ultima lettera-ricevuta emessa per pagamento quote condominiali. (U[anno esercizio]-[stringa di tre lettere che interpetrata come numero sarà incrementata all'emissione della successiva lettera-ricevuta])
A30: 0 | D30: 0

Sheet iCONDOMINI (hidden)
A1: Non variare le celle con sfondo colorato. I dati dei condomini devono essere riportati nelle celle senza sfondo colorato. I dati delle celle delle colonne con intestazione in rosso alla riga 10 sono necessari. | BP1: 0
A7: ='iP1'!A5 -> Condominio "PROTOTIPO"
C8: CONDOMINI | N8: 1° PROPRIETARIO o INTESTATARIO | W8: 2° PROPRIETARIO o INTESTATARIO | AF8: 3° PROPRIETARIO o INTESTATARIO | AO8: 4° PROPRIETARIO o INTESTATARIO | AX8: 5° PROPRIETARIO o INTESTATARIO | BG8: 6° PROPRIETARIO o INTESTATARIO
A9: N. | B9: DATI IDENTIFICATIVI | E9: DATI DI CONTATTO | N9: % | O9: NOME | P9: DATI FISCALI | U9: DATI DI CONTATTO | W9: % | X9: NOME | Y9: DATI FISCALI | AD9: DATI DI CONTATTO | AF9: % | AG9: NOME | AH9: DATI FISCALI | AM9: DATI DI CONTATTO | AO9: % | AP9: NOME | AQ9: DATI FISCALI | AV9: DATI DI CONTATTO | AX9: % | AY9: NOME | AZ9: DATI FISCALI | BE9: DATI DI CONTATTO | BG9: % | BH9: NOME | BI9: DATI FISCALI | BN9: DATI DI CONTATTO
B10: CODICE | C10: DENOMINAZIONE | D10: S | E10: REFERENTE | F10: INDIRIZZO | G10: CAP | H10: CITTÀ | I10: PROV. | J10: TELEFONO | K10: CELLULLARE | L10: INDIRIZZO EMAIL | M10: INDIRIZZO PEC | N10: PROP. | O10: PROPRIO o COMMERCIALE | P10: C.F. | Q10: DOMICILIO FISCALE | R10: CAP | S10: CITTÀ | T10: Prov. | U10: TEL./CELL. | V10: INDIRIZZO EMAIL | W10: PROP. | X10: PROPRIO o COMMERCIALE | Y10: C.F. | Z10: DOMICILIO FISCALE | AA10: CAP | AB10: CITTÀ | AC10: Prov. | AD10: TEL./CELL. | AE10: INDIRIZZO EMAIL | AF10: PROP. | AG10: PROPRIO o COMMERCIALE | AH10: C.F. | AI10: DOMICILIO FISCALE | AJ10: CAP | AK10: CITTÀ | AL10: Prov. | AM10: TEL./CELL. | AN10: INDIRIZZO EMAIL | AO10: PROP. | AP10: PROPRIO o COMMERCIALE | AQ10: C.F. | AR10: DOMICILIO FISCALE | AS10: CAP | AT10: CITTÀ | AU10: Prov. | AV10: TEL./CELL. | AW10: INDIRIZZO EMAIL | AX10: PROP. | AY10: PROPRIO o COMMERCIALE | AZ10: C.F. | BA10: DOMICILIO FISCALE | BB10: CAP | BC10: CITTÀ | BD10: Prov. | BE10: TEL./CELL. | BF10: INDIRIZZO EMAIL | BG10: PROP. | BH10: PROPRIO o COMMERCIALE | BI10: C.F. | BJ10: DOMICILIO FISCALE | BK10: CAP | BL10: CITTÀ | BM10: Prov. | BN10: TEL./CELL. | BO10: INDIRIZZO EMAIL
A11: 1 | B11: C01 | C11: Condomino01 | D11: M | F11: Via Corrado Alvaro trav. 4 n. 13 | G11: 89044 | H11: LOCRI | I11: RC | N11: 100 | O11: Condomino01 | Q11: Via Don Vittorio trav. 4 n. 13 | R11: 89044 | S11: LOCRI | T11: RC
A12: 2 | B12: C02 | C12: Condomino02 | D12: P | E12: CHIEFARI PIETRO | F12: Viale CUTURELLA 2/D | G12: 88068 | H12: SOVERATO | I12: CZ | N12: 25 | O12: Proprietario02_01 | Q12: Viale CUTURELLA 2/D | R12: 88068 | S12: SOVERATO | T12: CZ | W12: 25 | X12: Proprietario02_02 | Z12: Viale CUTURELLA 2/D | AA12: 88068 | AB12: SOVERATO | AC12: CZ | AF12: 25 | AG12: Proprietario02_03 | AI12: Via G. VERDI 51 | AJ12: 88060 | AK12: S.ANDREA JONIO | AL12: CZ | AO12: 25 | AP12: Proprietario02_04 | AR12: Via G. VERDI, 51 | AS12: 88060 | AT12: S.ANDREA JONIO | AU12: CZ
A13: 3 | B13: C03 | C13: Condomino03 | D13: F | F13: Via dei MILLE 86 | G13: 88068 | H13: SOVERATO | I13: CZ | N13: 100 | O13: Condomino03 | Q13: Via dei MILLE 86 | R13: 88068 | S13: SOVERATO | T13: CZ
A14: 4 | B14: C04 | C14: Condomino04 S.r.l. | D14: D | F14: Via dei MILLE 16/18 | G14: 88068 | H14: SOVERATO | I14: CZ | N14: 100 | O14: Condomino04 S.r.l. | Q14: Via dei MILLE 16/18 | R14: 88068 | S14: SOVERATO | T14: CZ
A15: 5 | B15: C05 | C15: Condomino05 | D15: T | F15: Via dei MILLE 38 | G15: 88068 | H15: SOVERATO | I15: CZ | N15: 50 | O15: Proprietario05_01 | Q15: Via dei MILLE 38 | R15: 88068 | S15: SOVERATO | T15: CZ | W15: 50 | X15: Proprietario05_02 | Z15: Via dei MILLE 38 | AA15: 88060 | AB15: SOVERATO | AC15: CZ
A16: 6 | B16: C06 | C16: Condomino06 | D16: M | F16: Via NAZIONALE 255 | G16: 88060 | H16: BADOLATO | I16: CZ | N16: 100 | O16: Condomino06 | Q16: Via NAZIONALE 255 | R16: 88060 | S16: BADOLATO | T16: CZ
A17: 7 | B17: C07 | C17: Condomino07 | D17: F | F17: Via dei MILLE 22 | G17: 88068 | H17: SOVERATO | I17: CZ | N17: 100 | O17: Condomino07 | Q17: VIA dei MILLE 22 | R17: 88068 | S17: SOVERATO | T17: CZ
A18: 8 | B18: C08 | C18: Eredi Condomino08 | D18: P | F18: Via MONTI IBLEI 1 | G18: 88068 | H18: SOVERATO | I18: CZ | N18: 50 | O18: Proprietario08_01 | Q18: Via MONTI IBLEI 1 | R18: 88068 | S18: SOVERATO | T18: CZ | W18: 50 | X18: Proprietario08_02 | Z18: VIA MONTI IBLEI 1 | AA18: 88068 | AB18: SOVERATO | AC18: CZ
A19: 9 | B19: C09 | C19: Condomino09 S.r.l. | D19: D | F19: Via dei MILLE 86 | G19: 88068 | H19: SOVERATO | I19: CZ | N19: 100 | O19: Condomino09 S.r.l. | Q19: Via dei MILLE 86 | R19: 88068 | S19: SOVERATO | T19: CZ
A20: 10 | B20: C10 | C20: Condomino10 | D20: M | F20: Via dei MILLE 22 | G20: 88068 | H20: SOVERATO | I20: CZ | N20: 100 | O20: Condomino10 | Q20: Via dei MILLE 22 | R20: 88068 | S20: SOVERATO | T20: CZ
A21: 11 | B21: C11 | C21: Condomino11 | D21: F | F21: Via SPASARI 33 | G21: 88100 | H21: CATANZARO | I21: CZ | N21: 100 | O21: Condomino11 | Q21: Via SPASARI 33 | R21: 88100 | S21: CATANZARO | T21: CZ
A22: 12 | B22: C12 | C22: Condomino12 | D22: M | F22: Via dei MILLE 30 | G22: 88068 | H22: SOVERATO | I22: CZ | N22: 100 | O22: Condomino12 | Q22: Via dei MILLE 30 | R22: 88068 | S22: SOVERATO | T22: CZ
A23: 13 | B23: C13 | C23: Condomino13 | D23: M | F23: Via dei MILLE 38 | G23: 88068 | H23: SOVERATO | I23: CZ | N23: 100 | O23: Condomino13 | Q23: Via dei MILLE 38 | R23: 88068 | S23: SOVERATO | T23: CZ
A24: 14 | B24: C14 | C24: Condomino14 | D24: M | F24: Via dei MILLE 30 | G24: 88068 | H24: SOVERATO | I24: CZ | N24: 100 | O24: Condomino14 | Q24: Via dei MILLE 30 | R24: 88068 | S24: SOVERATO | T24: CZ
A25: 15 | B25: C15 | C25: Condomino15 | D25: M | F25: Via dei MILLE 20/18 | G25: 88068 | H25: SOVERATO | I25: CZ | N25: 100 | O25: Condomino15 | Q25: Via dei MILLE 20/18 | R25: 88068 | S25: SOVERATO | T25: CZ
A26: 16 | B26: C16 | C26: Condomino16 | D26: T | F26: Via dei MILLE 30 | G26: 88068 | H26: SOVERATO | I26: CZ | N26: 50 | O26: Proprietario16_01 | Q26: Via dei MILLE 30 | R26: 88068 | S26: SOVERATO | T26: CZ | W26: 50 | X26: Proprietario16_02 | Z26: Via dei MILLE 30 | AA26: 88060 | AB26: SOVERATO | AC26: CZ
A27: 17 | B27: C17 | C27: Condomino17 | D27: R | F27: Via dei MILLE 22 | G27: 88068 | H27: SOVERATO | I27: CZ | N27: 33.33 | O27: Proprietario17_01 | Q27: Via dei MILLE 22 | R27: 88068 | S27: SOVERATO | T27: CZ | W27: 33.33 | X27: Proprietario17_02 | Z27: Via delle ALPI 30 | AA27: 88100 | AB27: CATANZARO | AC27: CZ | AF27: 33.33 | AG27: Proprietario17_03 | AI27: Via delle ALPI 22 | AJ27: 88100 | AK27: CATANZARO | AL27: CZ
A28: 18 | B28: C18 | C28: Condomino18 | D28: F | F28: Viale Bruno BUOZZI 31/A9 | G28: 00173 | H28: ROMA | I28: RM | N28: 100 | O28: Condomino18 | Q28: Viale Bruno BUOZZI 31/A9 | R28: 00173 | S28: ROMA | T28: RM
A29: 19 | B29: C19 | C29: Condomino19 | D29: M | F29: Via dei MILLE 38 | G29: 88068 | H29: SOVERATO | I29: CZ | N29: 100 | O29: Condomino19 | Q29: Via dei MILLE 38 | R29: 88068 | S29: SOVERATO | T29: CZ
A30: 20 | B30: C20 | C30: Condomino20 | D30: M | F30: Via MONTI PELORITANI 3 | G30: 88068 | H30: SOVERATO | I30: CZ | N30: 100 | O30: Condomino20 | Q30: Via MONTI PELORITANI 3 | R30: 88068 | S30: SOVERATO | T30: CZ
A31: 21 | B31: C21 | C31: Condomino21 | D31: F | F31: Via dei MILLE 30 | G31: 88068 | H31: SOVERATO | I31: CZ | N31: 100 | O31: Condomino21 | Q31: Via dei MILLE 30 | R31: 88068 | S31: SOVERATO | T31: CZ
A32: 22 | B32: C22 | C32: Condomino22 | D32: F | F32: Via dei MILLE 38 | G32: 88068 | H32: SOVERATO | I32: CZ | N32: 100 | O32: Condomino22 | Q32: Via dei MILLE 38 | R32: 88068 | S32: SOVERATO | T32: CZ
A33: 23 | B33: C23 | C33: Condomino23 | D33: M | F33: Via dei MILLE 38 | G33: 88068 | H33: SOVERATO | I33: CZ | N33: 100 | O33: Condomino23 | Q33: Via dei MILLE 38 | R33: 88068 | S33: SOVERATO | T33: CZ
A34: 24 | B34: C24
A35: 25 | B35: C25
A36: 26 | B36: C26
A37: 27 | B37: C27
A38: 28 | B38: C28
A39: 29 | B39: C29
A40: 30 | B40: C30
A41: 31 | B41: C31
A42: 32 | B42: C32
A43: 33 | B43: C33
A44: 34 | B44: C34
A45: 35 | B45: C35
A46: 36 | B46: C36
A47: 37 | B47: C37
A48: 38 | B48: C38
A49: 39 | B49: C39
A50: 40 | B50: C40
A51: 41 | B51: C41
A52: 42 | B52: C42
A53: 43 | B53: C43
A54: 44 | B54: C44
A55: 45 | B55: C45
A56: 46 | B56: C46
A57: 47 | B57: C47
A58: 48 | B58: C48
A59: 49 | B59: C49
A60: 50 | B60: C50
A61: 51 | B61: C51
A62: 52 | B62: C52
A63: 53 | B63: C53
A64: 54 | B64: C54
A65: 55 | B65: C55
A66: 56 | B66: C56
A67: 57 | B67: C57
A68: 58 | B68: C58
A69: 59 | B69: C59
A70: 60 | B70: C60
A71: 61 | B71: C61
A72: 62 | B72: C62
A73: 63 | B73: C63
A74: 64 | B74: C64
A75: 65 | B75: C65
A76: 66 | B76: C66
A77: 67 | B77: C67
A78: 68 | B78: C68
A79: 69 | B79: C69
A80: 70 | B80: C70
A81: 71 | B81: C71
A82: 72 | B82: C72
A83: 73 | B83: C73
A84: 74 | B84: C74
A85: 75 | B85: C75
A86: 76 | B86: C76
A87: 77 | B87: C77
A88: 78 | B88: C78
A89: 79 | B89: C79
A90: 80 | B90: C80
A91: 81 | B91: C81
A92: 82 | B92: C82
A93: 83 | B93: C83
A94: 84 | B94: C84
A95: 85 | B95: C85
A96: 86 | B96: C86
A97: 87 | B97: C87
A98: 88 | B98: C88
A99: 89 | B99: C89
A100: 90 | B100: C90
A101: 91 | B101: C91
A102: 92 | B102: C92
A103: 93 | B103: C93
A104: 94 | B104: C94
A105: 95 | B105: C95
A106: 96 | B106: C96
A107: 97 | B107: C97
A108: 98 | B108: C98
A109: 99 | B109: C99
A111: 0 | BP111: 0

Sheet iUF (hidden)
A1: Possono essere variati solo i valori delle celle senza sfondo colorato. I dati delle celle delle colonne con intestazione in rosso alla riga 10 sono necessari. | K1: 0
A6: ='iP1'!A5 -> Condominio "PROTOTIPO"
A7: UNITÀ FUNZIONALI
A9: IDENTIFICATIVI CONDOMINIALI | D9: UBICAZIONE REALE | J9: DESTINAZIONE
A10: n° U.F. | B10: Codice Unità Funzionale Condominiale | C10: Codice Unità Immobiliare o Catastale cui appartiene | D10: Odonimo | E10: Civico | F10: Edificio | G10: Scala | H10: Piano | I10: Interno | J10: Utilizzazione reale
A11: 1 | B11: UF01 | C11: U01 | D11: Via dei MILLE | E11: 38 | G11: A | H11: S1 | J11: GARAGE
A12: 2 | B12: UF02 | C12: U02 | D12: Via dei MILLE | E12: 38 | G12: A | H12: S1 | J12: GARAGE
A13: 3 | B13: UF03 | C13: U03 | D13: Via dei MILLE | E13: 38 | G13: A | H13: S1 | J13: GARAGE
A14: 4 | B14: UF04 | C14: U04 | D14: Via dei MILLE | E14: 38 | G14: A | H14: S1 | J14: GARAGE
A15: 5 | B15: UF05 | C15: U05 | D15: Via dei MILLE | E15: 38 | G15: A | H15: S1 | J15: GARAGE
A16: 6 | B16: UF06 | C16: U06 | D16: Via dei MILLE | E16: 38 | G16: A | H16: S1 | J16: GARAGE
A17: 7 | B17: UF07 | C17: U07 | D17: Via dei MILLE | E17: 30 | G17: B | H17: S1 | J17: GARAGE
A18: 8 | B18: UF08 | C18: U08 | D18: Via dei MILLE | E18: 30 | G18: B | H18: S1 | J18: GARAGE
A19: 9 | B19: UF09 | C19: U09 | D19: Via dei MILLE | E19: 30 | G19: B | H19: S1 | J19: GARAGE
A20: 10 | B20: UF10 | C20: U10 | D20: Via dei MILLE | E20: 30 | G20: B | H20: S1 | J20: GARAGE
A21: 11 | B21: UF11 | C21: U11 | D21: Via dei MILLE | E21: 30 | G21: B | H21: S1 | J21: GARAGE
A22: 12 | B22: UF12 | C22: U12 | D22: Via dei MILLE | E22: 30 | G22: B | H22: S1 | J22: GARAGE
A23: 13 | B23: UF13 | C23: U13 | D23: Via dei MILLE | E23: 22 | G23: C | H23: S1 | J23: GARAGE
A24: 14 | B24: UF14 | C24: U14 | D24: Via dei MILLE | E24: 22 | G24: C | H24: S1 | J24: GARAGE
A25: 15 | B25: UF15 | C25: U15 | D25: Via dei MILLE | E25: 22 | G25: C | H25: S1 | J25: GARAGE
A26: 16 | B26: UF16 | C26: U16 | D26: Via dei MILLE | E26: 22 | G26: C | H26: S1 | J26: GARAGE
A27: 17 | B27: UF17 | C27: U17 | D27: Via dei MILLE | E27: 22 | G27: C | H27: S1 | J27: GARAGE
A28: 18 | B28: UF18 | C28: U18 | D28: Via dei MILLE | E28: 38 | G28: A | H28: S1 | J28: DEPOSITO
A29: 19 | B29: UF19 | C29: U19 | D29: Via dei MILLE | E29: 38 | G29: A | H29: S1 | J29: DEPOSITO
A30: 20 | B30: UF20 | C30: U20 | D30: Via dei MILLE | E30: 30 | G30: B | H30: S1 | J30: DEPOSITO
A31: 21 | B31: UF21 | C31: U21 | D31: Via dei MILLE | E31: 30 | G31: B | H31: S1 | J31: DEPOSITO
A32: 22 | B32: UF22 | C32: U22 | D32: Via dei MILLE | E32: 22 | G32: C | H32: S1 | J32: DEPOSITO
A33: 23 | B33: UF23 | C33: U23 | D33: Via dei MILLE | E33: 22 | G33: C | H33: S1 | J33: DEPOSITO
A34: 24 | B34: UF24 | C34: U24 | D34: Via dei MILLE | E34: 38 | G34: A | H34: PT | J34: NEGOZIO
A35: 25 | B35: UF25 | C35: U25 | D35: Via dei MILLE | E35: 38 | G35: A | H35: PT | J35: NEGOZIO
A36: 26 | B36: UF26 | C36: U26 | D36: Via dei MILLE | E36: 30 | G36: B | H36: PT | J36: NEGOZIO
A37: 27 | B37: UF27 | C37: U27 | D37: Via dei MILLE | E37: 30 | G37: B | H37: PT | J37: NEGOZIO
A38: 28 | B38: UF28 | C38: U28 | D38: Via dei MILLE | E38: 22 | G38: C | H38: PT | J38: NEGOZIO
A39: 29 | B39: UF29 | C39: U29 | D39: Via dei MILLE | E39: 38 | G39: A | H39: 1 | I39: 1 | J39: APPARTAMENTO
A40: 30 | B40: UF30 | C40: U30 | D40: Via dei MILLE | E40: 38 | G40: A | H40: 1 | I40: 2 | J40: APPARTAMENTO
A41: 31 | B41: UF31 | C41: U04 | D41: Via dei MILLE | E41: 38 | G41: A | H41: 2 | I41: 3 | J41: APPARTAMENTO
A42: 32 | B42: UF32 | C42: U31 | D42: Via dei MILLE | E42: 38 | G42: A | H42: 2 | I42: 4 | J42: APPARTAMENTO
A43: 33 | B43: UF33 | C43: U32 | D43: Via dei MILLE | E43: 38 | G43: A | H43: 3 | I43: 5 | J43: APPARTAMENTO
A44: 34 | B44: UF34 | C44: U33 | D44: Via dei MILLE | E44: 38 | G44: A | H44: 3 | I44: 6 | J44: APPARTAMENTO
A45: 35 | B45: UF35 | C45: U34 | D45: Via dei MILLE | E45: 30 | G45: B | H45: 1 | I45: 1 | J45: APPARTAMENTO
A46: 36 | B46: UF36 | C46: U35 | D46: Via dei MILLE | E46: 30 | G46: B | H46: 1 | I46: 2 | J46: APPARTAMENTO
A47: 37 | B47: UF37 | C47: U36 | D47: Via dei MILLE | E47: 30 | G47: B | H47: 2 | I47: 3 | J47: APPARTAMENTO
A48: 38 | B48: UF38 | C48: U37 | D48: Via dei MILLE | E48: 30 | G48: B | H48: 2 | I48: 4 | J48: APPARTAMENTO
A49: 39 | B49: UF39 | C49: U38 | D49: Via dei MILLE | E49: 30 | G49: B | H49: 3 | I49: 5 | J49: APPARTAMENTO
A50: 40 | B50: UF40 | C50: U39 | D50: Via dei MILLE | E50: 30 | G50: B | H50: 3 | I50: 6 | J50: APPARTAMENTO
A51: 41 | B51: UF41 | C51: U40 | D51: Via dei MILLE | E51: 22 | G51: C | H51: 1 | I51: 1 | J51: APPARTAMENTO
A52: 42 | B52: UF42 | C52: U41 | D52: Via dei MILLE | E52: 22 | G52: C | H52: 1 | I52: 2 | J52: APPARTAMENTO
A53: 43 | B53: UF43 | C53: U42 | D53: Via dei MILLE | E53: 22 | G53: C | H53: 2 | I53: 3 | J53: APPARTAMENTO
A54: 44 | B54: UF44 | C54: U43 | D54: Via dei MILLE | E54: 22 | G54: C | H54: 2 | I54: 4 | J54: APPARTAMENTO
A55: 45 | B55: UF45 | C55: U44 | D55: Via dei MILLE | E55: 22 | G55: C | H55: 3 | I55: 5 | J55: APPARTAMENTO
A56: 46 | B56: UF46 | C56: U45 | D56: Via dei MILLE | E56: 38 | G56: A | H56: 4 | I56: 7 | J56: SOFFITTA
A57: 47 | B57: UF47 | C57: U46 | D57: Via dei MILLE | E57: 30 | G57: B | H57: 4 | I57: 6 | J57: SOFFITTA
A58: 48 | B58: UF48
A59: 49 | B59: UF49
A60: 50 | B60: UF50
A61: 51 | B61: UF51
A62: 52 | B62: UF52
A63: 53 | B63: UF53
A64: 54 | B64: UF54
A65: 55 | B65: UF55
A66: 56 | B66: UF56
A67: 57 | B67: UF57
A68: 58 | B68: UF58
A69: 59 | B69: UF59
A70: 60 | B70: UF60
A71: 61 | B71: UF61
A72: 62 | B72: UF62
A73: 63 | B73: UF63
A74: 64 | B74: UF64
A75: 65 | B75: UF65
A76: 66 | B76: UF66
A77: 67 | B77: UF67
A78: 68 | B78: UF68
A79: 69 | B79: UF69
A80: 70 | B80: UF70
A81: 71 | B81: UF71
A82: 72 | B82: UF72
A83: 73 | B83: UF73
A84: 74 | B84: UF74
A85: 75 | B85: UF75
A86: 76 | B86: UF76
A87: 77 | B87: UF77
A88: 78 | B88: UF78
A89: 79 | B89: UF79
A90: 80 | B90: UF80
A91: 81 | B91: UF81
A92: 82 | B92: UF82
A93: 83 | B93: UF83
A94: 84 | B94: UF84
A95: 85 | B95: UF85
A96: 86 | B96: UF86
A97: 87 | B97: UF87
A98: 88 | B98: UF88
A99: 89 | B99: UF89
A100: 90 | B100: UF90
A101: 91 | B101: UF91
A102: 92 | B102: UF92
A103: 93 | B103: UF93
A104: 94 | B104: UF94
A105: 95 | B105: UF95
A106: 96 | B106: UF96
A107: 97 | B107: UF97
A108: 98 | B108: UF98
A109: 99 | B109: UF99
A111: 0 | K111: 0

Sheet iUI (hidden)
A1: Possono essere variati solo i valori delle celle senza sfondo colorato.I dati delle celle delle colonne con intestazione in rosso alla riga 10 sono necessari. | W1: 0
A6: ='iP1'!A5 -> Condominio "PROTOTIPO"
A7: UNITÀ IMMOBILIARI o CATASTALI
A9: IDENTIFICATIVI CONDOMINIALI | D9: PROPRIETÀ | F9: IDENTIFICATIVI CATASTALI | P9: UBICAZIONE CATASTALE | V9: DESTINAZIONE CATASTALE
A10: n° U.I. | B10: Codice Unità Immobiliare o Catastale | C10: Unità Funzionali costituenti | D10: Codice Condomino Proprietario | E10: Condomino | F10: Codice Catastale Comune | G10: Foglio | H10: Particella | I10: Subalterno | J10: Zona Censuaria | K10: Categoria | L10: Classe | M10: Consistenza (vani) | N10: Consistenza (mq) | O10: Rendita (euro) | P10: Odonimo | Q10: Civico | R10: Edificio | S10: Scala | T10: Piano | U10: Interno | V10: Utilizzazione Catastale
A11: 1 | B11: U01 | C11: UF01 | D11: C19 | E11: =IF(D11<>"",IFERROR(VLOOKUP(D11,iCONDOMINI!$B$11:$C$109,2,FALSE),""),"") -> Condomino19 | F11: I872 | G11: 2 | H11: 326 | I11: 69 | J11: U | K11: C/6 | L11: 2 | N11: 25 | O11: 24.53 | P11: Via dei MILLE | T11: P1S1 | V11: GARAGE
A12: 2 | B12: U02 | C12: UF02 | D12: C22 | E12: =IF(D12<>"",IFERROR(VLOOKUP(D12,iCONDOMINI!$B$11:$C$109,2,FALSE),""),"") -> Condomino22 | F12: I872 | G12: 2 | H12: 326 | I12: 70 | J12: U | K12: C/6 | L12: 2 | N12: 25 | O12: 24.53 | P12: Via dei MILLE | T12: S1 | V12: GARAGE
A13: 3 | B13: U03 | C13: UF03 | D13: C05 | E13: =IF(D13<>"",IFERROR(VLOOKUP(D13,iCONDOMINI!$B$11:$C$109,2,FALSE),""),"") -> Condomino05 | F13: I872 | G13: 2 | H13: 326 | I13: 38 | J13: U | K13: C/6 | L13: 1 | N13: 26 | O13: 21,48 | P13: Via dei MILLE | T13: S1 | V13: GARAGE
A14: 4 | B14: U04 | C14: UF04+UF31 | D14: C20 | E14: =IF(D14<>"",IFERROR(VLOOKUP(D14,iCONDOMINI!$B$11:$C$109,2,FALSE),""),"") -> Condomino20 | F14: I872 | G14: 2 | H14: 326 | I14: 75 | J14: U | K14: A/2 | L14: U | M14: 7,5 | O14: 426.08 | P14: Via dei MILLE | T14: S1-P2 | U14: 2 | V14: ABITAZIONE
A15: 5 | B15: U05 | C15: UF05 | D15: C11 | E15: =IF(D15<>"",IFERROR(VLOOKUP(D15,iCONDOMINI!$B$11:$C$109,2,FALSE),""),"") -> Condomino11 | F15: I872 | G15: 2 | H15: 326 | I15: 40 | J15: U | K15: C/6 | L15: 1 | N15: 27 | O15: 22,31 | P15: Via dei MILLE | T15: S1 | V15: GARAGE
A16: 6 | B16: U06 | C16: UF06 | D16: C13 | E16: =IF(D16<>"",IFERROR(VLOOKUP(D16,iCONDOMINI!$B$11:$C$109,2,FALSE),""),"") -> Condomino13 | F16: I872 | G16: 2 | H16: 326 | I16: 41 | J16: U | K16: C/6 | L16: 6 | N16: 23 | O16: 45.14 | P16: Via dei MILLE | T16: S1 | V16: GARAGE
A17: 7 | B17: U07 | C17: UF07 | D17: C12 | E17: =IF(D17<>"",IFERROR(VLOOKUP(D17,iCONDOMINI!$B$11:$C$109,2,FALSE),""),"") -> Condomino12 | F17: I872 | G17: 2 | H17: 326 | I17: 42 | J17: U | K17: C/6 | L17: 1 | N17: 25 | O17: 20.66 | P17: Via dei MILLE | T17: S1 | V17: GARAGE
A18: 8 | B18: U08 | C18: UF08 | D18: C18 | E18: =IF(D18<>"",IFERROR(VLOOKUP(D18,iCONDOMINI!$B$11:$C$109,2,FALSE),""),"") -> Condomino18 | F18: I872 | G18: 2 | H18: 326 | I18: 43 | J18: U | K18: C/6 | L18: 1 | N18: 26 | O18: 21.48 | P18: Via dei MILLE | T18: S1 | V18: GARAGE
A19: 9 | B19: U09 | C19: UF09 | D19: C09 | E19: =IF(D19<>"",IFERROR(VLOOKUP(D19,iCONDOMINI!$B$11:$C$109,2,FALSE),""),"") -> Condomino09 S.r.l. | F19: I872 | G19: 2 | H19: 326 | I19: 44 | J19: U | K19: C/6 | L19: 1 | N19: 26 | O19: 21.48 | P19: Via dei MILLE | T19: S1 | V19: GARAGE
A20: 10 | B20: U10 | C20: UF10 | D20: C02 | E20: =IF(D20<>"",IFERROR(VLOOKUP(D20,iCONDOMINI!$B$11:$C$109,2,FALSE),""),"") -> Condomino02 | F20: I872 | G20: 2 | H20: 326 | I20: 45 | J20: U | K20: C/6 | L20: 1 | N20: 28 | O20: 21.48 | P20: Via DROSI, 30 | T20: S1 | V20: GARAGE
A21: 11 | B21: U11 | C21: UF11 | D21: C21 | E21: =IF(D21<>"",IFERROR(VLOOKUP(D21,iCONDOMINI!$B$11:$C$109,2,FALSE),""),"") -> Condomino21 | F21: I872 | G21: 2 | H21: 326 | I21: 46 | J21: U | K21: C/6 | L21: 1 | N21: 30 | O21: 24.79 | P21: Via dei MILLE | T21: S1 | V21: GARAGE
A22: 12 | B22: U12 | C22: UF12 | D22: C16 | E22: =IF(D22<>"",IFERROR(VLOOKUP(D22,iCONDOMINI!$B$11:$C$109,2,FALSE),""),"") -> Condomino16 | F22: I872 | G22: 2 | H22: 326 | I22: 47 | J22: U | K22: C/6 | L22: 1 | N22: 26 | O22: 21.48 | P22: Via dei MILLE | T22: S1 | V22: GARAGE
A23: 13 | B23: U13 | C23: UF13 | D23: C17 | E23: =IF(D23<>"",IFERROR(VLOOKUP(D23,iCONDOMINI!$B$11:$C$109,2,FALSE),""),"") -> Condomino17 | F23: I872 | G23: 2 | H23: 326 | I23: 48 | J23: U | K23: C/6 | L23: 1 | N23: 25 | O23: 20.66 | P23: Via dei MILLE | T23: S1 | V23: GARAGE
A24: 14 | B24: U14 | C24: UF14 | D24: C06 | E24: =IF(D24<>"",IFERROR(VLOOKUP(D24,iCONDOMINI!$B$11:$C$109,2,FALSE),""),"") -> Condomino06 | F24: I872 | G24: 2 | H24: 326 | I24: 49 | J24: U | K24: C/6 | L24: 1 | N24: 27 | O24: 22.31 | P24: Via dei MILLE | T24: S1 | V24: GARAGE
A25: 15 | B25: U15 | C25: UF15 | D25: C07 | E25: =IF(D25<>"",IFERROR(VLOOKUP(D25,iCONDOMINI!$B$11:$C$109,2,FALSE),""),"") -> Condomino07 | F25: I872 | G25: 2 | H25: 326 | I25: 50 | J25: U | K25: C/6 | L25: 7 | N25: 26 | O25: 60.43 | P25: Via dei MILLE | T25: S1 | V25: GARAGE
A26: 16 | B26: U16 | C26: UF16 | D26: C01 | E26: =IF(D26<>"",IFERROR(VLOOKUP(D26,iCONDOMINI!$B$11:$C$109,2,FALSE),""),"") -> Condomino01 | F26: I872 | G26: 2 | H26: 326 | I26: 51 | J26: U | K26: C/6 | L26: 1 | N26: 27 | O26: 22.31 | P26: Via dei MILLE | T26: S1 | V26: GARAGE
A27: 17 | B27: U17 | C27: UF17 | D27: C10 | E27: =IF(D27<>"",IFERROR(VLOOKUP(D27,iCONDOMINI!$B$11:$C$109,2,FALSE),""),"") -> Condomino10 | F27: I872 | G27: 2 | H27: 326 | I27: 64 | J27: U | K27: C/6 | N27: 104 | O27: 85.94 | P27: Via dei MILLE | T27: S1 | V27: GARAGE
A28: 18 | B28: U18 | C28: UF18 | D28: C09 | E28: =IF(D28<>"",IFERROR(VLOOKUP(D28,iCONDOMINI!$B$11:$C$109,2,FALSE),""),"") -> Condomino09 S.r.l. | F28: I872 | G28: 2 | H28: 326 | I28: 68 | J28: U | K28: C/2 | L28: 1 | N28: 84 | O28: 91.1 | P28: Via dei MILLE | T28: S1 | V28: MAGAZZINO
A29: 19 | B29: U19 | C29: UF19 | D29: C04 | E29: =IF(D29<>"",IFERROR(VLOOKUP(D29,iCONDOMINI!$B$11:$C$109,2,FALSE),""),"") -> Condomino04 S.r.l. | F29: I872 | G29: 2 | H29: 326 | I29: 29 | J29: U | K29: C/2 | L29: 1 | N29: 61 | O29: 66.16 | P29: Via dei MILLE | T29: S1 | V29: MAGAZZINO
A30: 20 | B30: U20 | C30: UF20 | D30: C04 | E30: =IF(D30<>"",IFERROR(VLOOKUP(D30,iCONDOMINI!$B$11:$C$109,2,FALSE),""),"") -> Condomino04 S.r.l. | F30: I872 | G30: 2 | H30: 326 | I30: 67 | J30: U | K30: C/2 | L30: 1 | N30: 116 | O30: 125.81 | P30: Via dei MILLE | T30: S1 | V30: MAGAZZINO
A31: 21 | B31: U21 | C31: UF21 | D31: C03 | E31: =IF(D31<>"",IFERROR(VLOOKUP(D31,iCONDOMINI!$B$11:$C$109,2,FALSE),""),"") -> Condomino03 | F31: I872 | G31: 2 | H31: 326 | I31: 66 | J31: U | K31: C/2 | L31: 1 | N31: 61 | O31: 66.16 | P31: Via dei MILLE | T31: S1 | V31: MAGAZZINO
A32: 22 | B32: U22 | C32: UF22 | D32: C03 | E32: =IF(D32<>"",IFERROR(VLOOKUP(D32,iCONDOMINI!$B$11:$C$109,2,FALSE),""),"") -> Condomino03 | F32: I872 | G32: 2 | H32: 326 | I32: 34 | J32: U | K32: C/2 | L32: 1 | N32: 86 | O32: 93.27 | P32: Via dei MILLE | T32: S1 | V32: MAGAZZINO
A33: 23 | B33: U23 | C33: UF23 | D33: C15 | E33: =IF(D33<>"",IFERROR(VLOOKUP(D33,iCONDOMINI!$B$11:$C$109,2,FALSE),""),"") -> Condomino15 | F33: I872 | G33: 2 | H33: 326 | I33: 65 | J33: U | K33: C/2 | L33: 1 | N33: 84 | O33: 91.1 | P33: Via dei MILLE | T33: S1 | V33: MAGAZZINO
A34: 24 | B34: U24 | C34: UF24 | D34: C09 | E34: =IF(D34<>"",IFERROR(VLOOKUP(D34,iCONDOMINI!$B$11:$C$109,2,FALSE),""),"") -> Condomino09 S.r.l. | F34: I872 | G34: 2 | H34: 326 | I34: 58 | J34: U | K34: C/1 | L34: 2 | N34: 116 | O34: 1102.33 | P34: Via dei MILLE | T34: PT | V34: NEGOZIO
A35: 25 | B35: U25 | C35: UF25 | D35: C13 | E35: =IF(D35<>"",IFERROR(VLOOKUP(D35,iCONDOMINI!$B$11:$C$109,2,FALSE),""),"") -> Condomino13 | F35: I872 | G35: 2 | H35: 326 | I35: 76 | J35: U | K35: A/10 | L35: U | M35: 3,5 | O35: 343.44 | P35: Via dei MILLE | T35: PT | V35: STUDIO
A36: 26 | B36: U26 | C36: UF26 | D36: C04 | E36: =IF(D36<>"",IFERROR(VLOOKUP(D36,iCONDOMINI!$B$11:$C$109,2,FALSE),""),"") -> Condomino04 S.r.l. | F36: I872 | G36: 2 | H36: 326 | I36: 60 | J36: U | K36: C/1 | L36: 2 | N36: 122 | O36: 1159.34 | P36: Via dei MILLE | Q36: 34 | T36: PT | V36: NEGOZIO
A37: 27 | B37: U27 | C37: UF27 | D37: C23 | E37: =IF(D37<>"",IFERROR(VLOOKUP(D37,iCONDOMINI!$B$11:$C$109,2,FALSE),""),"") -> Condomino23 | F37: I872 | G37: 2 | H37: 326 | I37: 61 | J37: U | K37: C/1 | L37: 2 | N37: 161 | O37: 1529.95 | P37: Via dei MILLE | T37: PT | V37: NEGOZIO
A38: 28 | B38: U28 | C38: UF28 | D38: C15 | E38: =IF(D38<>"",IFERROR(VLOOKUP(D38,iCONDOMINI!$B$11:$C$109,2,FALSE),""),"") -> Condomino15 | F38: I872 | G38: 2 | H38: 326 | I38: 62 | J38: U | K38: C/1 | L38: 2 | N38: 140 | O38: 1330.39 | P38: Via dei MILLE | T38: PT | V38: NEGOZIO
A39: 29 | B39: U29 | C39: UF29 | D39: C05 | E39: =IF(D39<>"",IFERROR(VLOOKUP(D39,iCONDOMINI!$B$11:$C$109,2,FALSE),""),"") -> Condomino05 | F39: I872 | G39: 2 | H39: 326 | I39: 7 | J39: U | K39: A/2 | L39: U | M39: 7 | O39: 397,67 | P39: Via dei MILLE | T39: P1 | U39: 1 | V39: ABITAZIONE
A40: 30 | B40: U30 | C40: UF30 | D40: C13 | E40: =IF(D40<>"",IFERROR(VLOOKUP(D40,iCONDOMINI!$B$11:$C$109,2,FALSE),""),"") -> Condomino13 | F40: I872 | G40: 2 | H40: 326 | I40: 8 | J40: U | K40: A/2 | L40: U | M40: 6,5 | O40: 369.27 | P40: Via dei MILLE | T40: P1 | U40: 2 | V40: ABITAZIONE
A41: 31 | B41: U31 | C41: UF32 | D41: C11 | E41: =IF(D41<>"",IFERROR(VLOOKUP(D41,iCONDOMINI!$B$11:$C$109,2,FALSE),""),"") -> Condomino11 | F41: I872 | G41: 2 | H41: 326 | I41: 10 | J41: U | K41: A/2 | L41: U | M41: 6 | O41: 340.86 | P41: Via dei MILLE | T41: P2 | U41: 4 | V41: ABITAZIONE
A42: 32 | B42: U32 | C42: UF33 | D42: C19 | E42: =IF(D42<>"",IFERROR(VLOOKUP(D42,iCONDOMINI!$B$11:$C$109,2,FALSE),""),"") -> Condomino19 | F42: I872 | G42: 2 | H42: 326 | I42: 79 | J42: U | K42: A/2 | L42: U | M42: 6,5 | O42: 369.27 | P42: Via dei MILLE | T42: P3-P4 | U42: 5 | V42: ABITAZIONE
A43: 33 | B43: U33 | C43: UF34 | D43: C22 | E43: =IF(D43<>"",IFERROR(VLOOKUP(D43,iCONDOMINI!$B$11:$C$109,2,FALSE),""),"") -> Condomino22 | F43: I872 | G43: 2 | H43: 326 | I43: 80 | J43: U | K43: A/3 | L43: 2 | M43: 6 | O43: 189.02 | P43: Via dei MILLE | T43: P3 | U43: 6 | V43: ABITAZIONE
A44: 34 | B44: U34 | C44: UF35 | D44: C21 | E44: =IF(D44<>"",IFERROR(VLOOKUP(D44,iCONDOMINI!$B$11:$C$109,2,FALSE),""),"") -> Condomino21 | F44: I872 | G44: 2 | H44: 326 | I44: 14 | J44: U | K44: A/2 | L44: U | M44: 6 | O44: 340.86 | P44: Via dei MILLE | T44: P1 | U44: 1 | V44: ABITAZIONE
A45: 35 | B45: U35 | C45: UF36 | D45: C18 | E45: =IF(D45<>"",IFERROR(VLOOKUP(D45,iCONDOMINI!$B$11:$C$109,2,FALSE),""),"") -> Condomino18 | F45: I872 | G45: 2 | H45: 326 | I45: 15 | J45: U | K45: A/2 | L45: U | M45: 6 | O45: 340.86 | P45: Via dei MILLE | T45: P1 | U45: 2 | V45: ABITAZIONE
A46: 36 | B46: U36 | C46: UF37 | D46: C14 | E46: =IF(D46<>"",IFERROR(VLOOKUP(D46,iCONDOMINI!$B$11:$C$109,2,FALSE),""),"") -> Condomino14 | F46: I872 | G46: 2 | H46: 326 | I46: 16 | J46: U | K46: A/2 | L46: U | M46: 5,5 | O46: 312.46 | P46: Via dei MILLE | T46: P1 | U46: 2 | V46: ABITAZIONE
A47: 37 | B47: U37 | C47: UF38 | D47: C02 | E47: =IF(D47<>"",IFERROR(VLOOKUP(D47,iCONDOMINI!$B$11:$C$109,2,FALSE),""),"") -> Condomino02 | F47: I872 | G47: 2 | H47: 326 | I47: 17 | J47: U | K47: A/3 | L47: 4 | M47: 4 | O47: 171.46 | P47: Via dei MILLE | T47: P2 | U47: 4 | V47: ABITAZIONE
A48: 38 | B48: U38 | C48: UF39 | D48: C16 | E48: =IF(D48<>"",IFERROR(VLOOKUP(D48,iCONDOMINI!$B$11:$C$109,2,FALSE),""),"") -> Condomino16 | F48: I872 | G48: 2 | H48: 326 | I48: 83 | J48: U | K48: A/2 | L48: U | M48: 6 | O48: 340.86 | P48: Via dei MILLE | T48: P3 | U48: 4 | V48: ABITAZIONE
A49: 39 | B49: U39 | C49: UF40 | D49: C12 | E49: =IF(D49<>"",IFERROR(VLOOKUP(D49,iCONDOMINI!$B$11:$C$109,2,FALSE),""),"") -> Condomino12 | F49: I872 | G49: 2 | H49: 326 | I49: 81 | J49: U | K49: A/2 | L49: U | M49: 6 | O49: 340.86 | P49: Via dei MILLE | T49: P3-P4 | U49: 6 | V49: ABITAZIONE
A50: 40 | B50: U40 | C50: UF41 | D50: C06 | E50: =IF(D50<>"",IFERROR(VLOOKUP(D50,iCONDOMINI!$B$11:$C$109,2,FALSE),""),"") -> Condomino06 | F50: I872 | G50: 2 | H50: 326 | I50: 21 | J50: U | K50: A/2 | L50: U | M50: 6 | O50: 340.86 | P50: Via dei MILLE | T50: P1 | U50: 1 | V50: ABITAZIONE
A51: 41 | B51: U41 | C51: UF42 | D51: C07 | E51: =IF(D51<>"",IFERROR(VLOOKUP(D51,iCONDOMINI!$B$11:$C$109,2,FALSE),""),"") -> Condomino07 | F51: I872 | G51: 2 | H51: 326 | I51: 22 | J51: U | K51: A/2 | L51: U | M51: 7 | O51: 397.67 | P51: Via dei MILLE | Q51: snc | T51: P1 | U51: 4 | V51: ABITAZIONE
A52: 42 | B52: U42 | C52: UF43 | D52: C17 | E52: =IF(D52<>"",IFERROR(VLOOKUP(D52,iCONDOMINI!$B$11:$C$109,2,FALSE),""),"") -> Condomino17 | F52: I872 | G52: 2 | H52: 326 | I52: 23 | J52: U | K52: A/1 | L52: U | M52: 6 | O52: 557.77 | P52: Via dei MILLE | T52: P2 | U52: 3 | V52: ABITAZIONE
A53: 43 | B53: U43 | C53: UF44 | D53: C01 | E53: =IF(D53<>"",IFERROR(VLOOKUP(D53,iCONDOMINI!$B$11:$C$109,2,FALSE),""),"") -> Condomino01 | F53: I872 | G53: 2 | H53: 326 | I53: 24 | J53: U | K53: A/2 | L53: U | M53: 6,5 | O53: 369.27 | P53: Via dei MILLE | Q53: snc | T53: P2 | U53: 4 | V53: ABITAZIONE
A54: 44 | B54: U44 | C54: UF45 | D54: C10 | E54: =IF(D54<>"",IFERROR(VLOOKUP(D54,iCONDOMINI!$B$11:$C$109,2,FALSE),""),"") -> Condomino10 | F54: I872 | G54: 2 | H54: 326 | I54: 82 | J54: U | K54: A/2 | L54: U | M54: 9,5 | O54: 539.7 | P54: Via dei MILLE | T54: P3-P4 | U54: 5 | V54: ABITAZIONE
A55: 45 | B55: U45 | C55: UF46 | D55: C08 | E55: =IF(D55<>"",IFERROR(VLOOKUP(D55,iCONDOMINI!$B$11:$C$109,2,FALSE),""),"") -> Eredi Condomino08 | F55: I872 | G55: 2 | H55: 326 | I55: 73 | J55: U | K55: C/2 | L55: 1 | N55: 61 | O55: 66.16 | P55: Via dei MILLE | T55: P4 | V55: SOFFITTA
A56: 46 | B56: U46 | C56: UF47 | D56: C12 | E56: =IF(D56<>"",IFERROR(VLOOKUP(D56,iCONDOMINI!$B$11:$C$109,2,FALSE),""),"") -> Condomino12 | F56: I872 | G56: 2 | H56: 326 | I56: 78 | J56: U | K56: C/2 | L56: 2 | N56: 24 | O56: 30.99 | P56: Via dei MILLE | T56: P4 | V56: SOFFITTA
A57: 47 | B57: U47 | E57: =IF(D57<>"",IFERROR(VLOOKUP(D57,iCONDOMINI!$B$11:$C$109,2,FALSE),""),"") -> 
A58: 48 | B58: U48 | E58: =IF(D58<>"",IFERROR(VLOOKUP(D58,iCONDOMINI!$B$11:$C$109,2,FALSE),""),"") -> 
A59: 49 | B59: U49 | E59: =IF(D59<>"",IFERROR(VLOOKUP(D59,iCONDOMINI!$B$11:$C$109,2,FALSE),""),"") -> 
A60: 50 | B60: U50 | E60: =IF(D60<>"",IFERROR(VLOOKUP(D60,iCONDOMINI!$B$11:$C$109,2,FALSE),""),"") -> 
A61: 51 | B61: U51 | E61: =IF(D61<>"",IFERROR(VLOOKUP(D61,iCONDOMINI!$B$11:$C$109,2,FALSE),""),"") -> 
A62: 52 | B62: U52 | E62: =IF(D62<>"",IFERROR(VLOOKUP(D62,iCONDOMINI!$B$11:$C$109,2,FALSE),""),"") -> 
A63: 53 | B63: U53 | E63: =IF(D63<>"",IFERROR(VLOOKUP(D63,iCONDOMINI!$B$11:$C$109,2,FALSE),""),"") -> 
A64: 54 | B64: U54 | E64: =IF(D64<>"",IFERROR(VLOOKUP(D64,iCONDOMINI!$B$11:$C$109,2,FALSE),""),"") -> 
A65: 55 | B65: U55 | E65: =IF(D65<>"",IFERROR(VLOOKUP(D65,iCONDOMINI!$B$11:$C$109,2,FALSE),""),"") -> 
A66: 56 | B66: U56 | E66: =IF(D66<>"",IFERROR(VLOOKUP(D66,iCONDOMINI!$B$11:$C$109,2,FALSE),""),"") -> 
A67: 57 | B67: U57 | E67: =IF(D67<>"",IFERROR(VLOOKUP(D67,iCONDOMINI!$B$11:$C$109,2,FALSE),""),"") -> 
A68: 58 | B68: U58 | E68: =IF(D68<>"",IFERROR(VLOOKUP(D68,iCONDOMINI!$B$11:$C$109,2,FALSE),""),"") -> 
A69: 59 | B69: U59 | E69: =IF(D69<>"",IFERROR(VLOOKUP(D69,iCONDOMINI!$B$11:$C$109,2,FALSE),""),"") -> 
A70: 60 | B70: U60 | E70: =IF(D70<>"",IFERROR(VLOOKUP(D70,iCONDOMINI!$B$11:$C$109,2,FALSE),""),"") -> 
A71: 61 | B71: U61 | E71: =IF(D71<>"",IFERROR(VLOOKUP(D71,iCONDOMINI!$B$11:$C$109,2,FALSE),""),"") -> 
A72: 62 | B72: U62 | E72: =IF(D72<>"",IFERROR(VLOOKUP(D72,iCONDOMINI!$B$11:$C$109,2,FALSE),""),"") -> 
A73: 63 | B73: U63 | E73: =IF(D73<>"",IFERROR(VLOOKUP(D73,iCONDOMINI!$B$11:$C$109,2,FALSE),""),"") -> 
A74: 64 | B74: U64 | E74: =IF(D74<>"",IFERROR(VLOOKUP(D74,iCONDOMINI!$B$11:$C$109,2,FALSE),""),"") -> 
A75: 65 | B75: U65 | E75: =IF(D75<>"",IFERROR(VLOOKUP(D75,iCONDOMINI!$B$11:$C$109,2,FALSE),""),"") -> 
A76: 66 | B76: U66 | E76: =IF(D76<>"",IFERROR(VLOOKUP(D76,iCONDOMINI!$B$11:$C$109,2,FALSE),""),"") -> 
A77: 67 | B77: U67 | E77: =IF(D77<>"",IFERROR(VLOOKUP(D77,iCONDOMINI!$B$11:$C$109,2,FALSE),""),"") -> 
A78: 68 | B78: U68 | E78: =IF(D78<>"",IFERROR(VLOOKUP(D78,iCONDOMINI!$B$11:$C$109,2,FALSE),""),"") -> 
A79: 69 | B79: U69 | E79: =IF(D79<>"",IFERROR(VLOOKUP(D79,iCONDOMINI!$B$11:$C$109,2,FALSE),""),"") -> 
A80: 70 | B80: U70 | E80: =IF(D80<>"",IFERROR(VLOOKUP(D80,iCONDOMINI!$B$11:$C$109,2,FALSE),""),"") -> 
A81: 71 | B81: U71 | E81: =IF(D81<>"",IFERROR(VLOOKUP(D81,iCONDOMINI!$B$11:$C$109,2,FALSE),""),"") -> 
A82: 72 | B82: U72 | E82: =IF(D82<>"",IFERROR(VLOOKUP(D82,iCONDOMINI!$B$11:$C$109,2,FALSE),""),"") -> 
A83: 73 | B83: U73 | E83: =IF(D83<>"",IFERROR(VLOOKUP(D83,iCONDOMINI!$B$11:$C$109,2,FALSE),""),"") -> 
A84: 74 | B84: U74 | E84: =IF(D84<>"",IFERROR(VLOOKUP(D84,iCONDOMINI!$B$11:$C$109,2,FALSE),""),"") -> 
A85: 75 | B85: U75 | E85: =IF(D85<>"",IFERROR(VLOOKUP(D85,iCONDOMINI!$B$11:$C$109,2,FALSE),""),"") -> 
A86: 76 | B86: U76 | E86: =IF(D86<>"",IFERROR(VLOOKUP(D86,iCONDOMINI!$B$11:$C$109,2,FALSE),""),"") -> 
A87: 77 | B87: U77 | E87: =IF(D87<>"",IFERROR(VLOOKUP(D87,iCONDOMINI!$B$11:$C$109,2,FALSE),""),"") -> 
A88: 78 | B88: U78 | E88: =IF(D88<>"",IFERROR(VLOOKUP(D88,iCONDOMINI!$B$11:$C$109,2,FALSE),""),"") -> 
A89: 79 | B89: U79 | E89: =IF(D89<>"",IFERROR(VLOOKUP(D89,iCONDOMINI!$B$11:$C$109,2,FALSE),""),"") -> 
A90: 80 | B90: U80 | E90: =IF(D90<>"",IFERROR(VLOOKUP(D90,iCONDOMINI!$B$11:$C$109,2,FALSE),""),"") -> 
A91: 81 | B91: U81 | E91: =IF(D91<>"",IFERROR(VLOOKUP(D91,iCONDOMINI!$B$11:$C$109,2,FALSE),""),"") -> 
A92: 82 | B92: U82 | E92: =IF(D92<>"",IFERROR(VLOOKUP(D92,iCONDOMINI!$B$11:$C$109,2,FALSE),""),"") -> 
A93: 83 | B93: U83 | E93: =IF(D93<>"",IFERROR(VLOOKUP(D93,iCONDOMINI!$B$11:$C$109,2,FALSE),""),"") -> 
A94: 84 | B94: U84 | E94: =IF(D94<>"",IFERROR(VLOOKUP(D94,iCONDOMINI!$B$11:$C$109,2,FALSE),""),"") -> 
A95: 85 | B95: U85 | E95: =IF(D95<>"",IFERROR(VLOOKUP(D95,iCONDOMINI!$B$11:$C$109,2,FALSE),""),"") -> 
A96: 86 | B96: U86 | E96: =IF(D96<>"",IFERROR(VLOOKUP(D96,iCONDOMINI!$B$11:$C$109,2,FALSE),""),"") -> 
A97: 87 | B97: U87 | E97: =IF(D97<>"",IFERROR(VLOOKUP(D97,iCONDOMINI!$B$11:$C$109,2,FALSE),""),"") -> 
A98: 88 | B98: U88 | E98: =IF(D98<>"",IFERROR(VLOOKUP(D98,iCONDOMINI!$B$11:$C$109,2,FALSE),""),"") -> 
A99: 89 | B99: U89 | E99: =IF(D99<>"",IFERROR(VLOOKUP(D99,iCONDOMINI!$B$11:$C$109,2,FALSE),""),"") -> 
A100: 90 | B100: U90 | E100: =IF(D100<>"",IFERROR(VLOOKUP(D100,iCONDOMINI!$B$11:$C$109,2,FALSE),""),"") -> 
A101: 91 | B101: U91 | E101: =IF(D101<>"",IFERROR(VLOOKUP(D101,iCONDOMINI!$B$11:$C$109,2,FALSE),""),"") -> 
A102: 92 | B102: U92 | E102: =IF(D102<>"",IFERROR(VLOOKUP(D102,iCONDOMINI!$B$11:$C$109,2,FALSE),""),"") -> 
A103: 93 | B103: U93 | E103: =IF(D103<>"",IFERROR(VLOOKUP(D103,iCONDOMINI!$B$11:$C$109,2,FALSE),""),"") -> 
A104: 94 | B104: U94 | E104: =IF(D104<>"",IFERROR(VLOOKUP(D104,iCONDOMINI!$B$11:$C$109,2,FALSE),""),"") -> 
A105: 95 | B105: U95
A106: 96 | B106: U96 | E106: =IF(D106<>"",IFERROR(VLOOKUP(D106,iCONDOMINI!$B$11:$C$109,2,FALSE),""),"") -> 
A107: 97 | B107: U97 | E107: =IF(D107<>"",IFERROR(VLOOKUP(D107,iCONDOMINI!$B$11:$C$109,2,FALSE),""),"") -> 
A108: 98 | B108: U98 | E108: =IF(D108<>"",IFERROR(VLOOKUP(D108,iCONDOMINI!$B$11:$C$109,2,FALSE),""),"") -> 
A109: 99 | B109: U99 | E109: =IF(D109<>"",IFERROR(VLOOKUP(D109,iCONDOMINI!$B$11:$C$109,2,FALSE),""),"") -> 
A111: 0 | W111: 0

Sheet iTABUF (hidden)
A1: Possono essere variati solo i valori delle celle senza sfondo colorato. | N1: 0
A7: ='iP1'!A5 -> Condominio "PROTOTIPO"
A8: TABELLE MILLESIMALI per UNITÀ FUNZIONALI
A9: n° U.F. | B9: Codice Unità Funzionale | C9: Codice Unità Immobiliare cui appartiene | D9: Tabella A | E9: Tabella B | F9: Tabella C | G9: Tabella D | H9: Tabella E | I9: Tabella F | J9: Tabella G | K9: Tabella H | L9: Tabella I | M9: Tabella J
D10: GENERALE | E10: Scala A-38 | F10: Scala B-30 | G10: Scala C-22 | H10: PORTICO | I10: TUNNEL
A11: 1 | B11: =iUF!B11 -> UF01 | C11: =IF(iUF!C11<>"",iUF!C11,"") -> U01 | D11: 1.4961 | E11: 29 | I11: 25
A12: 2 | B12: =iUF!B12 -> UF02 | C12: =IF(iUF!C12<>"",iUF!C12,"") -> U02 | D12: 1.4961 | E12: 29 | I12: 25
A13: 3 | B13: =iUF!B13 -> UF03 | C13: =IF(iUF!C13<>"",iUF!C13,"") -> U03 | D13: 1.5857 | E13: 29 | I13: 25
A14: 4 | B14: =iUF!B14 -> UF04 | C14: =IF(iUF!C14<>"",iUF!C14,"") -> U04 | D14: 1.5618 | E14: 29 | I14: 25
A15: 5 | B15: =iUF!B15 -> UF05 | C15: =IF(iUF!C15<>"",iUF!C15,"") -> U05 | D15: 1.5917 | E15: 29 | I15: 25
A16: 6 | B16: =iUF!B16 -> UF06 | C16: =IF(iUF!C16<>"",iUF!C16,"") -> U06 | D16: 1.5081 | E16: 29 | I16: 25
A17: 7 | B17: =iUF!B17 -> UF07 | C17: =IF(iUF!C17<>"",iUF!C17,"") -> U07 | D17: 1.5379 | F17: 28 | I17: 25
A18: 8 | B18: =iUF!B18 -> UF08 | C18: =IF(iUF!C18<>"",iUF!C18,"") -> U08 | D18: 1.5618 | F18: 28 | I18: 25
A19: 9 | B19: =iUF!B19 -> UF09 | C19: =IF(iUF!C19<>"",iUF!C19,"") -> U09 | D19: 1.5618 | F19: 28 | I19: 25
A20: 10 | B20: =iUF!B20 -> UF10 | C20: =IF(iUF!C20<>"",iUF!C20,"") -> U10 | D20: 1.6663 | F20: 28 | I20: 25
A21: 11 | B21: =iUF!B21 -> UF11 | C21: =IF(iUF!C21<>"",iUF!C21,"") -> U11 | D21: 1.6156 | F21: 28 | I21: 25
A22: 12 | B22: =iUF!B22 -> UF12 | C22: =IF(iUF!C22<>"",iUF!C22,"") -> U12 | D22: 1.5379 | F22: 28 | I22: 25
A23: 13 | B23: =iUF!B23 -> UF13 | C23: =IF(iUF!C23<>"",iUF!C23,"") -> U13 | D23: 1.6156 | G23: 37 | I23: 25
A24: 14 | B24: =iUF!B24 -> UF14 | C24: =IF(iUF!C24<>"",iUF!C24,"") -> U14 | D24: 1.5857 | G24: 37 | I24: 25
A25: 15 | B25: =iUF!B25 -> UF15 | C25: =IF(iUF!C25<>"",iUF!C25,"") -> U15 | D25: 1.5081 | G25: 37 | I25: 25
A26: 16 | B26: =iUF!B26 -> UF16 | C26: =IF(iUF!C26<>"",iUF!C26,"") -> U16 | D26: 1.6156 | G26: 37 | I26: 25
A27: 17 | B27: =iUF!B27 -> UF17 | C27: =IF(iUF!C27<>"",iUF!C27,"") -> U17 | D27: 6.1487 | G27: 39 | I27: 102
A28: 18 | B28: =iUF!B28 -> UF18 | C28: =IF(iUF!C28<>"",iUF!C28,"") -> U18 | D28: 3.7851 | E28: 30 | I28: 85
A29: 19 | B29: =iUF!B29 -> UF19 | C29: =IF(iUF!C29<>"",iUF!C29,"") -> U19 | D29: 2.7324 | E29: 30 | I29: 62
A30: 20 | B30: =iUF!B30 -> UF20 | C30: =IF(iUF!C30<>"",iUF!C30,"") -> U20 | D30: 5.1961 | F30: 32 | I30: 117
A31: 21 | B31: =iUF!B31 -> UF21 | C31: =IF(iUF!C31<>"",iUF!C31,"") -> U21 | D31: 3.8697 | F31: 31 | I31: 87
A32: 22 | B32: =iUF!B32 -> UF22 | C32: =IF(iUF!C32<>"",iUF!C32,"") -> U22 | D32: 2.7548 | G32: 39 | I32: 62
A33: 23 | B33: =iUF!B33 -> UF23 | C33: =IF(iUF!C33<>"",iUF!C33,"") -> U23 | D33: 3.7851 | G33: 40 | I33: 85
A34: 24 | B34: =iUF!B34 -> UF24 | C34: =IF(iUF!C34<>"",iUF!C34,"") -> U24 | D34: 46.3268 | H34: 100
A35: 25 | B35: =iUF!B35 -> UF25 | C35: =IF(iUF!C35<>"",iUF!C35,"") -> U25 | D35: 23.3426 | H35: 100
A36: 26 | B36: =iUF!B36 -> UF26 | C36: =IF(iUF!C36<>"",iUF!C36,"") -> U26 | D36: 48.3575 | H36: 100
A37: 27 | B37: =iUF!B37 -> UF27 | C37: =IF(iUF!C37<>"",iUF!C37,"") -> U27 | D37: 64.1448 | H37: 100
A38: 28 | B38: =iUF!B38 -> UF28 | C38: =IF(iUF!C38<>"",iUF!C38,"") -> U28 | D38: 55.5942 | H38: 100
A39: 29 | B39: =iUF!B39 -> UF29 | C39: =IF(iUF!C39<>"",iUF!C39,"") -> U29 | D39: 43.244 | E39: 104 | H39: 27.778
A40: 30 | B40: =iUF!B40 -> UF30 | C40: =IF(iUF!C40<>"",iUF!C40,"") -> U30 | D40: 39.3335 | E40: 97 | H40: 27.778
A41: 31 | B41: =iUF!B41 -> UF31 | C41: =IF(iUF!C41<>"",iUF!C41,"") -> U04 | D41: 41.9494 | E41: 127 | H41: 27.778
A42: 32 | B42: =iUF!B42 -> UF32 | C42: =IF(iUF!C42<>"",iUF!C42,"") -> U31 | D42: 36.1352 | E42: 116 | H42: 27.778
A43: 33 | B43: =iUF!B43 -> UF33 | C43: =IF(iUF!C43<>"",iUF!C43,"") -> U32 | D43: 49.0314 | E43: 168 | H43: 27.778
A44: 34 | B44: =iUF!B44 -> UF34 | C44: =IF(iUF!C44<>"",iUF!C44,"") -> U33 | D44: 30.3882 | E44: 128 | H44: 27.778
A45: 35 | B45: =iUF!B45 -> UF35 | C45: =IF(iUF!C45<>"",iUF!C45,"") -> U34 | D45: 39.4365 | F45: 114 | H45: 27.778
A46: 36 | B46: =iUF!B46 -> UF36 | C46: =IF(iUF!C46<>"",iUF!C46,"") -> U35 | D46: 31.844 | F46: 96 | H46: 27.778
A47: 37 | B47: =iUF!B47 -> UF37 | C47: =IF(iUF!C47<>"",iUF!C47,"") -> U36 | D47: 29.873 | F47: 115 | H47: 27.778
A48: 38 | B48: =iUF!B48 -> UF38 | C48: =IF(iUF!C48<>"",iUF!C48,"") -> U37 | D48: 30.2851 | F48: 116 | H48: 27.778
A49: 39 | B49: =iUF!B49 -> UF39 | C49: =IF(iUF!C49<>"",iUF!C49,"") -> U38 | D49: 39.7411 | F49: 167 | H49: 27.778
A50: 40 | B50: =iUF!B50 -> UF40 | C50: =IF(iUF!C50<>"",iUF!C50,"") -> U39 | D50: 29.0891 | F50: 137 | H50: 27.778
A51: 41 | B51: =iUF!B51 -> UF41 | C51: =IF(iUF!C51<>"",iUF!C51,"") -> U40 | D51: 36.5787 | G51: 98 | H51: 27.778
A52: 42 | B52: =iUF!B52 -> UF42 | C52: =IF(iUF!C52<>"",iUF!C52,"") -> U41 | D52: 43.9607 | G52: 112 | H52: 27.778
A53: 43 | B53: =iUF!B53 -> UF43 | C53: =IF(iUF!C53<>"",iUF!C53,"") -> U42 | D53: 36.8429 | G53: 130 | H53: 27.778
A54: 44 | B54: =iUF!B54 -> UF44 | C54: =IF(iUF!C54<>"",iUF!C54,"") -> U43 | D54: 40.3727 | G54: 137 | H54: 27.778
A55: 45 | B55: =iUF!B55 -> UF45 | C55: =IF(iUF!C55<>"",iUF!C55,"") -> U44 | D55: 81.3052 | G55: 257 | H55: 27.778
A56: 46 | B56: =iUF!B56 -> UF46 | C56: =IF(iUF!C56<>"",iUF!C56,"") -> U45 | D56: 16.8519 | E56: 26 | H56: 27.774
A57: 47 | B57: =iUF!B57 -> UF47 | C57: =IF(iUF!C57<>"",iUF!C57,"") -> U46 | D57: 12.6538 | F57: 24
A58: 48 | B58: =iUF!B58 -> UF48 | C58: =IF(iUF!C58<>"",iUF!C58,"") -> 
A59: 49 | B59: =iUF!B59 -> UF49 | C59: =IF(iUF!C59<>"",iUF!C59,"") -> 
A60: 50 | B60: =iUF!B60 -> UF50 | C60: =IF(iUF!C60<>"",iUF!C60,"") -> 
A61: 51 | B61: =iUF!B61 -> UF51 | C61: =IF(iUF!C61<>"",iUF!C61,"") -> 
A62: 52 | B62: =iUF!B62 -> UF52 | C62: =IF(iUF!C62<>"",iUF!C62,"") -> 
A63: 53 | B63: =iUF!B63 -> UF53 | C63: =IF(iUF!C63<>"",iUF!C63,"") -> 
A64: 54 | B64: =iUF!B64 -> UF54 | C64: =IF(iUF!C64<>"",iUF!C64,"") -> 
A65: 55 | B65: =iUF!B65 -> UF55 | C65: =IF(iUF!C65<>"",iUF!C65,"") -> 
A66: 56 | B66: =iUF!B66 -> UF56 | C66: =IF(iUF!C66<>"",iUF!C66,"") -> 
A67: 57 | B67: =iUF!B67 -> UF57 | C67: =IF(iUF!C67<>"",iUF!C67,"") -> 
A68: 58 | B68: =iUF!B68 -> UF58 | C68: =IF(iUF!C68<>"",iUF!C68,"") -> 
A69: 59 | B69: =iUF!B69 -> UF59 | C69: =IF(iUF!C69<>"",iUF!C69,"") -> 
A70: 60 | B70: =iUF!B70 -> UF60 | C70: =IF(iUF!C70<>"",iUF!C70,"") -> 
A71: 61 | B71: =iUF!B71 -> UF61 | C71: =IF(iUF!C71<>"",iUF!C71,"") -> 
A72: 62 | B72: =iUF!B72 -> UF62 | C72: =IF(iUF!C72<>"",iUF!C72,"") -> 
A73: 63 | B73: =iUF!B73 -> UF63 | C73: =IF(iUF!C73<>"",iUF!C73,"") -> 
A74: 64 | B74: =iUF!B74 -> UF64 | C74: =IF(iUF!C74<>"",iUF!C74,"") -> 
A75: 65 | B75: =iUF!B75 -> UF65 | C75: =IF(iUF!C75<>"",iUF!C75,"") -> 
A76: 66 | B76: =iUF!B76 -> UF66 | C76: =IF(iUF!C76<>"",iUF!C76,"") -> 
A77: 67 | B77: =iUF!B77 -> UF67 | C77: =IF(iUF!C77<>"",iUF!C77,"") -> 
A78: 68 | B78: =iUF!B78 -> UF68 | C78: =IF(iUF!C78<>"",iUF!C78,"") -> 
A79: 69 | B79: =iUF!B79 -> UF69 | C79: =IF(iUF!C79<>"",iUF!C79,"") -> 
A80: 70 | B80: =iUF!B80 -> UF70 | C80: =IF(iUF!C80<>"",iUF!C80,"") -> 
A81: 71 | B81: =iUF!B81 -> UF71 | C81: =IF(iUF!C81<>"",iUF!C81,"") -> 
A82: 72 | B82: =iUF!B82 -> UF72 | C82: =IF(iUF!C82<>"",iUF!C82,"") -> 
A83: 73 | B83: =iUF!B83 -> UF73 | C83: =IF(iUF!C83<>"",iUF!C83,"") -> 
A84: 74 | B84: =iUF!B84 -> UF74 | C84: =IF(iUF!C84<>"",iUF!C84,"") -> 
A85: 75 | B85: =iUF!B85 -> UF75 | C85: =IF(iUF!C85<>"",iUF!C85,"") -> 
A86: 76 | B86: =iUF!B86 -> UF76 | C86: =IF(iUF!C86<>"",iUF!C86,"") -> 
A87: 77 | B87: =iUF!B87 -> UF77 | C87: =IF(iUF!C87<>"",iUF!C87,"") -> 
A88: 78 | B88: =iUF!B88 -> UF78 | C88: =IF(iUF!C88<>"",iUF!C88,"") -> 
A89: 79 | B89: =iUF!B89 -> UF79 | C89: =IF(iUF!C89<>"",iUF!C89,"") -> 
A90: 80 | B90: =iUF!B90 -> UF80 | C90: =IF(iUF!C90<>"",iUF!C90,"") -> 
A91: 81 | B91: =iUF!B91 -> UF81 | C91: =IF(iUF!C91<>"",iUF!C91,"") -> 
A92: 82 | B92: =iUF!B92 -> UF82 | C92: =IF(iUF!C92<>"",iUF!C92,"") -> 
A93: 83 | B93: =iUF!B93 -> UF83 | C93: =IF(iUF!C93<>"",iUF!C93,"") -> 
A94: 84 | B94: =iUF!B94 -> UF84 | C94: =IF(iUF!C94<>"",iUF!C94,"") -> 
A95: 85 | B95: =iUF!B95 -> UF85 | C95: =IF(iUF!C95<>"",iUF!C95,"") -> 
A96: 86 | B96: =iUF!B96 -> UF86 | C96: =IF(iUF!C96<>"",iUF!C96,"") -> 
A97: 87 | B97: =iUF!B97 -> UF87 | C97: =IF(iUF!C97<>"",iUF!C97,"") -> 
A98: 88 | B98: =iUF!B98 -> UF88 | C98: =IF(iUF!C98<>"",iUF!C98,"") -> 
A99: 89 | B99: =iUF!B99 -> UF89 | C99: =IF(iUF!C99<>"",iUF!C99,"") -> 
A100: 90 | B100: =iUF!B100 -> UF90 | C100: =IF(iUF!C100<>"",iUF!C100,"") -> 
A101: 91 | B101: =iUF!B101 -> UF91 | C101: =IF(iUF!C101<>"",iUF!C101,"") -> 
A102: 92 | B102: =iUF!B102 -> UF92 | C102: =IF(iUF!C102<>"",iUF!C102,"") -> 
A103: 93 | B103: =iUF!B103 -> UF93 | C103: =IF(iUF!C103<>"",iUF!C103,"") -> 
A104: 94 | B104: =iUF!B104 -> UF94 | C104: =IF(iUF!C104<>"",iUF!C104,"") -> 
A105: 95 | B105: =iUF!B105 -> UF95 | C105: =IF(iUF!C105<>"",iUF!C105,"") -> 
A106: 96 | B106: =iUF!B106 -> UF96 | C106: =IF(iUF!C106<>"",iUF!C106,"") -> 
A107: 97 | B107: =iUF!B107 -> UF97 | C107: =IF(iUF!C107<>"",iUF!C107,"") -> 
A108: 98 | B108: =iUF!B108 -> UF98 | C108: =IF(iUF!C108<>"",iUF!C108,"") -> 
A109: 99 | B109: =iUF!B109 -> UF99 | C109: =IF(iUF!C109<>"",iUF!C109,"") -> 
C110: TOTALI | D110: =SUM(D11:D109) -> 1000 | E110: =SUM(E11:E109) -> 1000 | F110: 1000 | G110: 1000 | H110: 1000 | I110: 1000 | J110: 0 | K110: =SUM(K11:K109) -> 0 | L110: =SUM(L11:L109) -> 0 | M110: =SUM(M11:M109) -> 0
A111: 0 | N111: 0

Sheet nPC (hidden)
A1: ='iP1'!A5 -> Condominio "PROTOTIPO"
A2: IL PIANO DEI CONTI
A3: La procedura GOICO gestisce la contabilità condominiale con il metodo del Piano dei Conti. Con tale metodo ad ogni operazione o rilevazione contabile è assegnato uno o più codici di conto, al fine di caratterizzare l'operazione attribuendole così sia una causale di raggruppamento e sia una conseguente modalità di trattamento contabile. Il piano dei conti è costituito dall'insieme di tutti i conti utilizzabili nella tenuta delle scritture contabili relative alla gestione economico-finanziaria del condominio. Il piano dei conti è suddiviso in più piani parziali dei conti : 1 - PIANO DELLE USCITE 2 - PIANO DELLE ENTRATE 3 - PIANO DEI CREDITI 4 - PIANO DEI DEBITI 5 - PIANO DEI CONTI FISCALI
A4: Un piano parziale dei conti si presenta sotto forma di un prospetto che associa le descrizioni delle operazioni contabili (di pagamento, di incasso, ecc.) normalmente eseguite dall'amministratore e designate come causale o intestazione o oggetto del conto o voce di bilancio ad una stringa alfanumerica di tre o quattro campi separati da punti (codice del conto). Il primo campo del CODICE CONTO è detto Sezione ed è costituito da una sola lettera maiuscola. Il secondo campo è costituito di solito da un numero a due cifre ed indica il capitolo o mastro della sezione, quale causale comune che raggruppa i sottoconti o voci individuati dal terzo campo, sempre di tipo numerico a due cifre. Per alcune voci si potrebbe avere un ulteriore campo che fornisce una ulteriore suddivisione per gli elementi che costituiscono la voce.
A5: PIANO DELLE USCITE. Le sezioni sono sei e sono individuati dalle lettere S, L, G, P, U e R. Il piano dei conti delle uscite condominiali, a differenza di quello per aziende, prevede, per i conti relativi a spese, un’ulteriore indicazione che è quella della tabella millesimale da utilizzare per ripartire la spesa fra i singoli condomini.
A6: PIANO DELLE ENTRATE. Le sezioni sono sei: E-A-F-Q-V-W.
A7: PIANO DEI CREDITI. La sezione è una sola la C con sei capitoli.
A8: PIANO DEI DEBITI. La sezione è una sola la D con cinque capitoli (manca il capitolo 01).
A9: PIANO DEI CONTI FISCALI. La sezione è una sola la H con due capitoli.

Sheet iPCU (hidden)
A1: Possono essere variati solo i valori delle celle senza sfondo colorato. | F1: 0
A6: ='iP1'!A5 -> Condominio "PROTOTIPO"
A7: PIANO GENERALE DEI CONTI
A8: PIANO DELLE USCITE
A9: SEZIONI, CAPITOLI e VOCI | B9: CODICE CONTO | C9: TABELLA RIPARTO | D9: PERCENTUALE SUDDIVISIONE
D10: PROPRIETARI | E10: INQUILINI
A11: SPESE GENERALI | B11: S.01
A12: ASSICURAZIONE FABBRICATO | B12: S.01.01 | C12: A | D12: 1
A13: CANCELLERIA | B13: S.01.02 | C13: A | D13: 1
A14: POSTALI, TELEGRAFICHE, TELEFONICHE E WEB | B14: S.01.03 | C14: A | D14: 1
A15: DIRITTI BOLLI TASSE | B15: S.01.04 | C15: A | D15: 1
A16: SPESE PER ADEMPIMENTI FISCALI | B16: S.01.05 | C16: A | D16: 1
A17: COMPENSI AMMINISTRATORE | B17: S.01.06 | C17: A | D17: 1
A18: COMPENSI A TERZI (consulenti, ...) | B18: S.01.07 | C18: A | D18: 1
A19: SPESE LEGALI, CONTRATTUALI e RECUPERO CREDITI | B19: S.01.08 | C19: A | D19: 1
A20: ONERI E SPESE BANCARIE | B20: S.01.09 | C20: A | D20: 1
A21: ALTRE SPESE GENERALI | B21: S.01.10 | C21: A | D21: 1
A22: VARIE IMPREVISTE ED ALTRE SPESE DOCUMENTATE INQUILINO | B22: S.01.11 | C22: A
A23: VARIE IMPREVISTE ED ALTRE SPESE DOCUMENTATE PROPRIETARIO | B23: S.01.12 | C23: A
B24: S.01.13
B25: S.01.14
B26: S.01.15
A27: PULIZIE | B27: S.02
A28: PULIZIA INTERCAPEDINI E PARTI COMUNI | B28: S.02.01 | C28: A | E28: 1
A29: PULIZIA SCALE E ANDRONE civico 38 | B29: S.02.02 | C29: B | E29: 1
A30: PULIZIA SCALE E ANDRONE civico 30 | B30: S.02.03 | C30: C | E30: 1
A31: PULIZIA SCALE E ANDRONE civico 22 | B31: S.02.04 | C31: D
A32: PULIZIA PORTICO | B32: S.02.05 | C32: E
A33: PULIZIA TUNNEL | B33: S.02.06 | C33: F
B34: S.02.07
B35: S.02.08
B36: S.02.09
B37: S.02.10
A38: MANUTENZIONE ORDINARIA | B38: S.03
A39: CANCELLO BOX e IMPIANTI RELATIVI AL TUNNEL | B39: S.03.01 | C39: F | E39: 1
A40: OPERE EDILI ED IMPIANTISTICHE - Scala A - civico 38 (tab. B) | B40: S.03.02 | C40: B | E40: 1
A41: OPERE EDILI ED IMPIANTISTICHE - Scala B - civico 30 (tab. C) | B41: S.03.03 | C41: C | E41: 1
A42: OPERE EDILI ED IMPIANTISTICHE - Scala C - civico 22 (tab. C) | B42: S.03.04 | C42: D | E42: 1
A43: ASCENSORE - Scala A - civico 38 (tab. B) | B43: S.03.05 | C43: B | E43: 1
A44: ASCENSORE - Scala B - civico 30 (tab. C) | B44: S.03.06 | C44: C
A45: ASCENSORE - Scala C - civico 22 (tab. D) | B45: S.03.07 | C45: D
B46: S.03.08
B47: S.03.09
B48: S.03.10
A49: CONSUMI DI ENERGIA | B49: S.04
A50: ENERGIA ILLUMINAZIONE E ALIMENTAZIONE ASCENSORE - Scala A - civico 38 | B50: S.04.01 | C50: B | E50: 1
A51: ENERGIA ILLUMINAZIONE E ALIMENTAZIONE ASCENSORE - Scala B - civico 30 | B51: S.04.02 | C51: C | E51: 1
A52: ENERGIA ILLUMINAZIONE E ALIMENTAZIONE ASCENSORE - Scala C - civico 22 | B52: S.04.03 | C52: D | E52: 1
A53: ENERGIA ILLUMINAZIONE - PORTICO - civico 30 | B53: S.04.04 | C53: E | E53: 1
A54: ENERGIA ILLUMINAZIONE - TUNNEL - civico 30 | B54: S.04.05 | C54: F | E54: 1
A55: 50% BOLLETTA LOTTO 5 - ENERGIA ALIMENTAZIONE CANCELLO - TUNNEL - civico 46 | B55: S.04.06 | C55: F | E55: 1
B56: S.04.07 | E56: 1
B57: S.04.08 | E57: 1
B58: S.04.09
B59: S.04.10
A60: MANUTENZIONE STRAORDINARIA | B60: S.05
A61: PARTI COMUNI - COPERTURA - MANUTENZIONE MARCIAPIEDE ED AIUOLE VIA DROSI | B61: S.05.01 | C61: E | D61: 1
A62: OPERE EDILI ED IMPIANTISTICHE - Scala A - civico 38 (tab. B) | B62: S.05.02 | C62: B | D62: 1
A63: OPERE EDILI ED IMPIANTISTICHE - Scala B - civico 30 (tab. C) | B63: S.05.03 | C63: C | D63: 1
A64: OPERE EDILI ED IMPIANTISTICHE - Scala C - civico 22 (tab. D) | B64: S.05.04 | C64: D | D64: 1
A65: MANUTENZIONE E VERIFICHE DI LEGGE ASCENSORE - Scala A - civico 38 (tab. B) | B65: S.05.05 | C65: B | D65: 1
A66: MANUTENZIONE E VERIFICHE DI LEGGE ASCENSORE - Scala B - civico 30 (tab. C) | B66: S.05.06 | C66: C | E66: 1
A67: MANUTENZIONE E VERIFICHE DI LEGGE ASCENSORE - Scala C - civico 22 (tab. D) | B67: S.05.07 | C67: D | E67: 1
B68: S.05.08
B69: S.05.09
B70: S.05.10
A71: SPESE VARIE A CARICO DEI PROPRIETARI | B71: S.06
A72: VARIE IMPREVISTE ED ALTRE SPESE DOCUMENTATE PROPRIETARIO - Scala A - civico 38 | B72: S.06.01 | C72: B | D72: 1
A73: VARIE IMPREVISTE ED ALTRE SPESE DOCUMENTATE PROPRIETARIO - Scala B - civico 30 | B73: S.06.02 | C73: C | D73: 1
A74: VARIE IMPREVISTE ED ALTRE SPESE DOCUMENTATE PROPRIETARIO - Scala C - civico 22 | B74: S.06.03 | C74: D | D74: 1
A75: VARIE IMPREVISTE ED ALTRE SPESE DOCUMENTATE PROPRIETARIO - PORTICO | B75: S.06.04 | C75: E | D75: 1
A76: VARIE IMPREVISTE ED ALTRE SPESE DOCUMENTATE PROPRIETARIO - TUNNEL | B76: S.06.05 | C76: F | D76: 1
A77: SPESE VARIE A CARICO DEGLI INQUILINI | B77: S.07
A78: VARIE IMPREVISTE ED ALTRE SPESE DOCUMENTATE INQUILINO - Scala A - civico 38 | B78: S.07.01 | C78: B | E78: 1
A79: VARIE IMPREVISTE ED ALTRE SPESE DOCUMENTATE INQUILINO - Scala B - civico 30 | B79: S.07.02 | C79: C | E79: 1
A80: VARIE IMPREVISTE ED ALTRE SPESE DOCUMENTATE INQUILINO - Scala C - civico 22 | B80: S.07.03 | C80: D | E80: 1
A81: VARIE IMPREVISTE ED ALTRE SPESE DOCUMENTATE INQUILINO - PORTICO | B81: S.07.04 | C81: E | E81: 1
A82: VARIE IMPREVISTE ED ALTRE SPESE DOCUMENTATE INQUILINO - TUNNEL | B82: S.07.05 | C82: F | E82: 1
A83: USCITE PER COSTITUZIONE DEPOSITI PRESSO TERZI e PRESTITI A TERZI | B83: L
A84: DEPOSITI CAUZIONALI | B84: L.01.01 | C84: A
A85: ACQUISTO VOUCHER LAVORI | B85: L.01.02 | C85: A
A86: PRESTITI A TERZI | B86: L.01.03 | C86: A
B87: L.01.04
B88: L.01.05
A89: SPESE PERSONALI o ASSEGNATE DIRETTAMENTE AI CONDOMINI | C89: P
A90: =IF(iCONDOMINI!C11<>"",iCONDOMINI!C11,"") -> Condomino01 | B90: P.01.01
A91: =IF(iCONDOMINI!C12<>"",iCONDOMINI!C12,"") -> Condomino02 | B91: P.01.02
A92: =IF(iCONDOMINI!C13<>"",iCONDOMINI!C13,"") -> Condomino03 | B92: P.01.03
A93: =IF(iCONDOMINI!C14<>"",iCONDOMINI!C14,"") -> Condomino04 S.r.l. | B93: P.01.04
A94: =IF(iCONDOMINI!C15<>"",iCONDOMINI!C15,"") -> Condomino05 | B94: P.01.05
A95: =IF(iCONDOMINI!C16<>"",iCONDOMINI!C16,"") -> Condomino06 | B95: P.01.06
A96: =IF(iCONDOMINI!C17<>"",iCONDOMINI!C17,"") -> Condomino07 | B96: P.01.07
A97: =IF(iCONDOMINI!C18<>"",iCONDOMINI!C18,"") -> Eredi Condomino08 | B97: P.01.08
A98: =IF(iCONDOMINI!C19<>"",iCONDOMINI!C19,"") -> Condomino09 S.r.l. | B98: P.01.09
A99: =IF(iCONDOMINI!C20<>"",iCONDOMINI!C20,"") -> Condomino10 | B99: P.01.10
A100: =IF(iCONDOMINI!C21<>"",iCONDOMINI!C21,"") -> Condomino11 | B100: P.01.11
A101: =IF(iCONDOMINI!C22<>"",iCONDOMINI!C22,"") -> Condomino12 | B101: P.01.12
A102: =IF(iCONDOMINI!C23<>"",iCONDOMINI!C23,"") -> Condomino13 | B102: P.01.13
A103: =IF(iCONDOMINI!C24<>"",iCONDOMINI!C24,"") -> Condomino14 | B103: P.01.14
A104: =IF(iCONDOMINI!C25<>"",iCONDOMINI!C25,"") -> Condomino15 | B104: P.01.15
A105: =IF(iCONDOMINI!C26<>"",iCONDOMINI!C26,"") -> Condomino16 | B105: P.01.16
A106: =IF(iCONDOMINI!C27<>"",iCONDOMINI!C27,"") -> Condomino17 | B106: P.01.17
A107: =IF(iCONDOMINI!C28<>"",iCONDOMINI!C28,"") -> Condomino18 | B107: P.01.18
A108: =IF(iCONDOMINI!C29<>"",iCONDOMINI!C29,"") -> Condomino19 | B108: P.01.19
A109: =IF(iCONDOMINI!C30<>"",iCONDOMINI!C30,"") -> Condomino20 | B109: P.01.20
A110: =IF(iCONDOMINI!C31<>"",iCONDOMINI!C31,"") -> Condomino21 | B110: P.01.21
A111: =IF(iCONDOMINI!C32<>"",iCONDOMINI!C32,"") -> Condomino22 | B111: P.01.22
A112: =IF(iCONDOMINI!C33<>"",iCONDOMINI!C33,"") -> Condomino23 | B112: P.01.23
A113: =IF(iCONDOMINI!C34<>"",iCONDOMINI!C34,"") ->  | B113: P.01.24
A114: =IF(iCONDOMINI!C35<>"",iCONDOMINI!C35,"") ->  | B114: P.01.25
A115: =IF(iCONDOMINI!C36<>"",iCONDOMINI!C36,"") ->  | B115: P.01.26
A116: =IF(iCONDOMINI!C37<>"",iCONDOMINI!C37,"") ->  | B116: P.01.27
A117: =IF(iCONDOMINI!C38<>"",iCONDOMINI!C38,"") ->  | B117: P.01.28
A118: =IF(iCONDOMINI!C39<>"",iCONDOMINI!C39,"") ->  | B118: P.01.29
A119: =IF(iCONDOMINI!C40<>"",iCONDOMINI!C40,"") ->  | B119: P.01.30
A120: =IF(iCONDOMINI!C41<>"",iCONDOMINI!C41,"") ->  | B120: P.01.31
A121: =IF(iCONDOMINI!C42<>"",iCONDOMINI!C42,"") ->  | B121: P.01.32
A122: =IF(iCONDOMINI!C43<>"",iCONDOMINI!C43,"") ->  | B122: P.01.33
A123: =IF(iCONDOMINI!C44<>"",iCONDOMINI!C44,"") ->  | B123: P.01.34
A124: =IF(iCONDOMINI!C45<>"",iCONDOMINI!C45,"") ->  | B124: P.01.35
A125: =IF(iCONDOMINI!C46<>"",iCONDOMINI!C46,"") ->  | B125: P.01.36
A126: =IF(iCONDOMINI!C47<>"",iCONDOMINI!C47,"") ->  | B126: P.01.37
A127: =IF(iCONDOMINI!C48<>"",iCONDOMINI!C48,"") ->  | B127: P.01.38
A128: =IF(iCONDOMINI!C49<>"",iCONDOMINI!C49,"") ->  | B128: P.01.39
A129: =IF(iCONDOMINI!C50<>"",iCONDOMINI!C50,"") ->  | B129: P.01.40
A130: =IF(iCONDOMINI!C51<>"",iCONDOMINI!C51,"") ->  | B130: P.01.41
A131: =IF(iCONDOMINI!C52<>"",iCONDOMINI!C52,"") ->  | B131: P.01.42
A132: =IF(iCONDOMINI!C53<>"",iCONDOMINI!C53,"") ->  | B132: P.01.43
A133: =IF(iCONDOMINI!C54<>"",iCONDOMINI!C54,"") ->  | B133: P.01.44
A134: =IF(iCONDOMINI!C55<>"",iCONDOMINI!C55,"") ->  | B134: P.01.45
A135: =IF(iCONDOMINI!C56<>"",iCONDOMINI!C56,"") ->  | B135: P.01.46
A136: =IF(iCONDOMINI!C57<>"",iCONDOMINI!C57,"") ->  | B136: P.01.47
A137: =IF(iCONDOMINI!C58<>"",iCONDOMINI!C58,"") ->  | B137: P.01.48
A138: =IF(iCONDOMINI!C59<>"",iCONDOMINI!C59,"") ->  | B138: P.01.49
A139: =IF(iCONDOMINI!C60<>"",iCONDOMINI!C60,"") ->  | B139: P.01.50
A140: =IF(iCONDOMINI!C61<>"",iCONDOMINI!C61,"") ->  | B140: P.01.51
A141: =IF(iCONDOMINI!C62<>"",iCONDOMINI!C62,"") ->  | B141: P.01.52
A142: =IF(iCONDOMINI!C63<>"",iCONDOMINI!C63,"") ->  | B142: P.01.53
A143: =IF(iCONDOMINI!C64<>"",iCONDOMINI!C64,"") ->  | B143: P.01.54
A144: =IF(iCONDOMINI!C65<>"",iCONDOMINI!C65,"") ->  | B144: P.01.55
A145: =IF(iCONDOMINI!C66<>"",iCONDOMINI!C66,"") ->  | B145: P.01.56
A146: =IF(iCONDOMINI!C67<>"",iCONDOMINI!C67,"") ->  | B146: P.01.57
A147: =IF(iCONDOMINI!C68<>"",iCONDOMINI!C68,"") ->  | B147: P.01.58
A148: =IF(iCONDOMINI!C69<>"",iCONDOMINI!C69,"") ->  | B148: P.01.59
A149: =IF(iCONDOMINI!C70<>"",iCONDOMINI!C70,"") ->  | B149: P.01.60
A150: =IF(iCONDOMINI!C71<>"",iCONDOMINI!C71,"") ->  | B150: P.01.61
A151: =IF(iCONDOMINI!C72<>"",iCONDOMINI!C72,"") ->  | B151: P.01.62
A152: =IF(iCONDOMINI!C73<>"",iCONDOMINI!C73,"") ->  | B152: P.01.63
A153: =IF(iCONDOMINI!C74<>"",iCONDOMINI!C74,"") ->  | B153: P.01.64
A154: =IF(iCONDOMINI!C75<>"",iCONDOMINI!C75,"") ->  | B154: P.01.65
A155: =IF(iCONDOMINI!C76<>"",iCONDOMINI!C76,"") ->  | B155: P.01.66
A156: =IF(iCONDOMINI!C77<>"",iCONDOMINI!C77,"") ->  | B156: P.01.67
A157: =IF(iCONDOMINI!C78<>"",iCONDOMINI!C78,"") ->  | B157: P.01.68
A158: =IF(iCONDOMINI!C79<>"",iCONDOMINI!C79,"") ->  | B158: P.01.69
A159: =IF(iCONDOMINI!C80<>"",iCONDOMINI!C80,"") ->  | B159: P.01.70
A160: =IF(iCONDOMINI!C81<>"",iCONDOMINI!C81,"") ->  | B160: P.01.71
A161: =IF(iCONDOMINI!C82<>"",iCONDOMINI!C82,"") ->  | B161: P.01.72
A162: =IF(iCONDOMINI!C83<>"",iCONDOMINI!C83,"") ->  | B162: P.01.73
A163: =IF(iCONDOMINI!C84<>"",iCONDOMINI!C84,"") ->  | B163: P.01.74
A164: =IF(iCONDOMINI!C85<>"",iCONDOMINI!C85,"") ->  | B164: P.01.75
A165: =IF(iCONDOMINI!C86<>"",iCONDOMINI!C86,"") ->  | B165: P.01.76
A166: =IF(iCONDOMINI!C87<>"",iCONDOMINI!C87,"") ->  | B166: P.01.77
A167: =IF(iCONDOMINI!C88<>"",iCONDOMINI!C88,"") ->  | B167: P.01.78
A168: =IF(iCONDOMINI!C89<>"",iCONDOMINI!C89,"") ->  | B168: P.01.79
A169: =IF(iCONDOMINI!C90<>"",iCONDOMINI!C90,"") ->  | B169: P.01.80
A170: =IF(iCONDOMINI!C91<>"",iCONDOMINI!C91,"") ->  | B170: P.01.81
A171: =IF(iCONDOMINI!C92<>"",iCONDOMINI!C92,"") ->  | B171: P.01.82
A172: =IF(iCONDOMINI!C93<>"",iCONDOMINI!C93,"") ->  | B172: P.01.83
A173: =IF(iCONDOMINI!C94<>"",iCONDOMINI!C94,"") ->  | B173: P.01.84
A174: =IF(iCONDOMINI!C95<>"",iCONDOMINI!C95,"") ->  | B174: P.01.85
A175: =IF(iCONDOMINI!C96<>"",iCONDOMINI!C96,"") ->  | B175: P.01.86
A176: =IF(iCONDOMINI!C97<>"",iCONDOMINI!C97,"") ->  | B176: P.01.87
A177: =IF(iCONDOMINI!C98<>"",iCONDOMINI!C98,"") ->  | B177: P.01.88
A178: =IF(iCONDOMINI!C99<>"",iCONDOMINI!C99,"") ->  | B178: P.01.89
A179: =IF(iCONDOMINI!C100<>"",iCONDOMINI!C100,"") ->  | B179: P.01.90
A180: =IF(iCONDOMINI!C101<>"",iCONDOMINI!C101,"") ->  | B180: P.01.91
A181: =IF(iCONDOMINI!C102<>"",iCONDOMINI!C102,"") ->  | B181: P.01.92
A182: =IF(iCONDOMINI!C103<>"",iCONDOMINI!C103,"") ->  | B182: P.01.93
A183: =IF(iCONDOMINI!C104<>"",iCONDOMINI!C104,"") ->  | B183: P.01.94
A184: =IF(iCONDOMINI!C105<>"",iCONDOMINI!C105,"") ->  | B184: P.01.95
A185: =IF(iCONDOMINI!C106<>"",iCONDOMINI!C106,"") ->  | B185: P.01.96
A186: =IF(iCONDOMINI!C107<>"",iCONDOMINI!C107,"") ->  | B186: P.01.97
A187: =IF(iCONDOMINI!C108<>"",iCONDOMINI!C108,"") ->  | B187: P.01.98
A188: =IF(iCONDOMINI!C109<>"",iCONDOMINI!C109,"") ->  | B188: P.01.99
A189: RESTITUZIONI, PAGAMENTI DEBITI E VERSAMENTI R.A. | C189: U
A190: Restituzioni a Condomini versamenti in eccesso per l'esercizio precedente | B190: U.01.nc
A191: Restituzione Prestiti | B191: U.02.00
A192: Pagamenti Debiti v/s Terzi Privati, Erario e Enti Pubblici | B192: U.03.00
A193: Versamenti Ritenute d'Acconto relative a debiti esercizi precedenti | B193: U.04.00
A194: Rimborso danni a condomini, risarciti da Assicurazione | B194: U.05.00
A195: PRESTITI A GESTIONI SPECIALI SEPARATE e FONDI | C195: R
A196: =IF(LEN('iP1'!A27)>0,"PRESTITO a " &'iP1'!A27,"") -> PRESTITO a F-LAVORI MANUTENZIONE (2013-2015) | B196: R.01.01
A197: =IF(LEN('iP1'!A28)>0,"PRESTITO a " &'iP1'!A28,"") ->  | B197: R.01.02
A198: =IF(LEN('iP1'!A29)>0,"PRESTITO a " &'iP1'!A29,"") ->  | B198: R.01.03
A199: =IF(LEN('iP1'!A30)>0,"PRESTITO a " &'iP1'!A30,"") ->  | B199: R.01.04
A200: =IF(LEN('iP1'!A31)>0,"PRESTITO a " &'iP1'!A31,"") ->  | B200: R.01.05
A201: USCITE PER CONTO DI GESTIONI SPECIALI SEPARATI e FONDI | C201: G
A202: =IF(LEN('iP1'!A27)>0,"USCITE per " &'iP1'!A27,"") -> USCITE per F-LAVORI MANUTENZIONE (2013-2015) | B202: G.01.01
A203: =IF(LEN('iP1'!A28)>0,"USCITE per " &'iP1'!A28,"") ->  | B203: G.01.02
A204: =IF(LEN('iP1'!A29)>0,"USCITE per " &'iP1'!A29,"") ->  | B204: G.01.03
... 3 more rows

Sheet iPCE (hidden)
A1: 0 | E1: 0
A7: ='iP1'!A5 -> Condominio "PROTOTIPO"
A8: PIANO GENERALE DEI CONTI
A9: PIANO DELLE ENTRATE
A10: SEZIONI, CAPITOLI e VOCI | B10: CODICI CONTO
A11: INCASSO CONTRIBUTI CONDOMINIALI (GESTIONE ORDINARIA) | B11: Q.01 QUOTE Esercizio in corso | C11: Q.02 CONGUAGLIO Esercizio precedente | D11: Q.03 ARRETRATI
A12: Rendite Finanziarie (interessi attivi, ...) | B12: Q.01.01 | C12: Q.02.01 | D12: Q.03.01
A13: Sanzioni a condomini | B13: Q.01.02 | C13: Q.02.02 | D13: Q.03.02
A14: Rendite patrimoniali da beni comuni censibili (fitti, ...) | B14: Q.01.03 | C14: Q.02.03 | D14: Q.03.03
B15: Q.01.04 | C15: Q.02.04 | D15: Q.03.04
B16: Q.01.05 | C16: Q.02.05 | D16: Q.03.05
A17: =iCONDOMINI!C16 -> Condomino06 | B17: Q.01.06 | C17: Q.02.06 | D17: Q.03.06
A18: =iCONDOMINI!C17 -> Condomino07 | B18: Q.01.07 | C18: Q.02.07 | D18: Q.03.07
A19: =iCONDOMINI!C18 -> Eredi Condomino08 | B19: Q.01.08 | C19: Q.02.08 | D19: Q.03.08
A20: =iCONDOMINI!C19 -> Condomino09 S.r.l. | B20: Q.01.09 | C20: Q.02.09 | D20: Q.03.09
A21: =iCONDOMINI!C20 -> Condomino10 | B21: Q.01.10 | C21: Q.02.10 | D21: Q.03.10
A22: =iCONDOMINI!C21 -> Condomino11 | B22: Q.01.11 | C22: Q.02.11 | D22: Q.03.11
A23: =iCONDOMINI!C22 -> Condomino12 | B23: Q.01.12 | C23: Q.02.12 | D23: Q.03.12
A24: =iCONDOMINI!C23 -> Condomino13 | B24: Q.01.13 | C24: Q.02.13 | D24: Q.03.13
A25: =iCONDOMINI!C24 -> Condomino14 | B25: Q.01.14 | C25: Q.02.14 | D25: Q.03.14
A26: =iCONDOMINI!C25 -> Condomino15 | B26: Q.01.15 | C26: Q.02.15 | D26: Q.03.15
A27: =iCONDOMINI!C26 -> Condomino16 | B27: Q.01.16 | C27: Q.02.16 | D27: Q.03.16
A28: =iCONDOMINI!C27 -> Condomino17 | B28: Q.01.17 | C28: Q.02.17 | D28: Q.03.17
A29: =iCONDOMINI!C28 -> Condomino18 | B29: Q.01.18 | C29: Q.02.18 | D29: Q.03.18
A30: =iCONDOMINI!C29 -> Condomino19 | B30: Q.01.19 | C30: Q.02.19 | D30: Q.03.19
A31: =iCONDOMINI!C30 -> Condomino20 | B31: Q.01.20 | C31: Q.02.20 | D31: Q.03.20
A32: =iCONDOMINI!C31 -> Condomino21 | B32: Q.01.21 | C32: Q.02.21 | D32: Q.03.21
A33: =iCONDOMINI!C32 -> Condomino22 | B33: Q.01.22 | C33: Q.02.22 | D33: Q.03.22
A34: =iCONDOMINI!C33 -> Condomino23 | B34: Q.01.23 | C34: Q.02.23 | D34: Q.03.23
A35: =iCONDOMINI!C34 -> 0 | B35: Q.01.24 | C35: Q.02.24 | D35: Q.03.24
A36: =iCONDOMINI!C35 -> 0 | B36: Q.01.25 | C36: Q.02.25 | D36: Q.03.25
A37: =iCONDOMINI!C36 -> 0 | B37: Q.01.26 | C37: Q.02.26 | D37: Q.03.26
A38: =iCONDOMINI!C37 -> 0 | B38: Q.01.27 | C38: Q.02.27 | D38: Q.03.27
A39: =iCONDOMINI!C38 -> 0 | B39: Q.01.28 | C39: Q.02.28 | D39: Q.03.28
A40: =iCONDOMINI!C39 -> 0 | B40: Q.01.29 | C40: Q.02.29 | D40: Q.03.29
A41: =iCONDOMINI!C40 -> 0 | B41: Q.01.30 | C41: Q.02.30 | D41: Q.03.30
A42: =iCONDOMINI!C41 -> 0 | B42: Q.01.31 | C42: Q.02.31 | D42: Q.03.31
A43: =iCONDOMINI!C42 -> 0 | B43: Q.01.32 | C43: Q.02.32 | D43: Q.03.32
A44: =iCONDOMINI!C43 -> 0 | B44: Q.01.33 | C44: Q.02.33 | D44: Q.03.33
A45: =iCONDOMINI!C44 -> 0 | B45: Q.01.34 | C45: Q.02.34 | D45: Q.03.34
A46: =iCONDOMINI!C45 -> 0 | B46: Q.01.35 | C46: Q.02.35 | D46: Q.03.35
A47: =iCONDOMINI!C46 -> 0 | B47: Q.01.36 | C47: Q.02.36 | D47: Q.03.36
A48: =iCONDOMINI!C47 -> 0 | B48: Q.01.37 | C48: Q.02.37 | D48: Q.03.37
A49: =iCONDOMINI!C48 -> 0 | B49: Q.01.38 | C49: Q.02.38 | D49: Q.03.38
A50: =iCONDOMINI!C49 -> 0 | B50: Q.01.39 | C50: Q.02.39 | D50: Q.03.39
A51: =iCONDOMINI!C50 -> 0 | B51: Q.01.40 | C51: Q.02.40 | D51: Q.03.40
A52: =iCONDOMINI!C51 -> 0 | B52: Q.01.41 | C52: Q.02.41 | D52: Q.03.41
A53: =iCONDOMINI!C52 -> 0 | B53: Q.01.42 | C53: Q.02.42 | D53: Q.03.42
A54: =iCONDOMINI!C53 -> 0 | B54: Q.01.43 | C54: Q.02.43 | D54: Q.03.43
A55: =iCONDOMINI!C54 -> 0 | B55: Q.01.44 | C55: Q.02.44 | D55: Q.03.44
A56: =iCONDOMINI!C55 -> 0 | B56: Q.01.45 | C56: Q.02.45 | D56: Q.03.45
A57: =iCONDOMINI!C56 -> 0 | B57: Q.01.46 | C57: Q.02.46 | D57: Q.03.46
A58: =iCONDOMINI!C57 -> 0 | B58: Q.01.47 | C58: Q.02.47 | D58: Q.03.47
A59: =iCONDOMINI!C58 -> 0 | B59: Q.01.48 | C59: Q.02.48 | D59: Q.03.48
A60: =iCONDOMINI!C59 -> 0 | B60: Q.01.49 | C60: Q.02.49 | D60: Q.03.49
A61: =iCONDOMINI!C60 -> 0 | B61: Q.01.50 | C61: Q.02.50 | D61: Q.03.50
A62: =iCONDOMINI!C61 -> 0 | B62: Q.01.51 | C62: Q.02.51 | D62: Q.03.51
A63: =iCONDOMINI!C62 -> 0 | B63: Q.01.52 | C63: Q.02.52 | D63: Q.03.52
A64: =iCONDOMINI!C63 -> 0 | B64: Q.01.53 | C64: Q.02.53 | D64: Q.03.53
A65: =iCONDOMINI!C64 -> 0 | B65: Q.01.54 | C65: Q.02.54 | D65: Q.03.54
A66: =iCONDOMINI!C65 -> 0 | B66: Q.01.55 | C66: Q.02.55 | D66: Q.03.55
A67: =iCONDOMINI!C66 -> 0 | B67: Q.01.56 | C67: Q.02.56 | D67: Q.03.56
A68: =iCONDOMINI!C67 -> 0 | B68: Q.01.57 | C68: Q.02.57 | D68: Q.03.57
A69: =iCONDOMINI!C68 -> 0 | B69: Q.01.58 | C69: Q.02.58 | D69: Q.03.58
A70: =iCONDOMINI!C69 -> 0 | B70: Q.01.59 | C70: Q.02.59 | D70: Q.03.59
A71: =iCONDOMINI!C70 -> 0 | B71: Q.01.60 | C71: Q.02.60 | D71: Q.03.60
A72: =iCONDOMINI!C71 -> 0 | B72: Q.01.61 | C72: Q.02.61 | D72: Q.03.61
A73: =iCONDOMINI!C72 -> 0 | B73: Q.01.62 | C73: Q.02.62 | D73: Q.03.62
A74: =iCONDOMINI!C73 -> 0 | B74: Q.01.63 | C74: Q.02.63 | D74: Q.03.63
A75: =iCONDOMINI!C74 -> 0 | B75: Q.01.64 | C75: Q.02.64 | D75: Q.03.64
A76: =iCONDOMINI!C75 -> 0 | B76: Q.01.65 | C76: Q.02.65 | D76: Q.03.65
A77: =iCONDOMINI!C76 -> 0 | B77: Q.01.66 | C77: Q.02.66 | D77: Q.03.66
A78: =iCONDOMINI!C77 -> 0 | B78: Q.01.67 | C78: Q.02.67 | D78: Q.03.67
A79: =iCONDOMINI!C78 -> 0 | B79: Q.01.68 | C79: Q.02.68 | D79: Q.03.68
A80: =iCONDOMINI!C79 -> 0 | B80: Q.01.69 | C80: Q.02.69 | D80: Q.03.69
A81: =iCONDOMINI!C80 -> 0 | B81: Q.01.70 | C81: Q.02.70 | D81: Q.03.70
A82: =iCONDOMINI!C81 -> 0 | B82: Q.01.71 | C82: Q.02.71 | D82: Q.03.71
A83: =iCONDOMINI!C82 -> 0 | B83: Q.01.72 | C83: Q.02.72 | D83: Q.03.72
A84: =iCONDOMINI!C83 -> 0 | B84: Q.01.73 | C84: Q.02.73 | D84: Q.03.73
A85: =iCONDOMINI!C84 -> 0 | B85: Q.01.74 | C85: Q.02.74 | D85: Q.03.74
A86: =iCONDOMINI!C85 -> 0 | B86: Q.01.75 | C86: Q.02.75 | D86: Q.03.75
A87: =iCONDOMINI!C86 -> 0 | B87: Q.01.76 | C87: Q.02.76 | D87: Q.03.76
A88: =iCONDOMINI!C87 -> 0 | B88: Q.01.77 | C88: Q.02.77 | D88: Q.03.77
A89: =iCONDOMINI!C88 -> 0 | B89: Q.01.78 | C89: Q.02.78 | D89: Q.03.78
A90: =iCONDOMINI!C89 -> 0 | B90: Q.01.79 | C90: Q.02.79 | D90: Q.03.79
A91: =iCONDOMINI!C90 -> 0 | B91: Q.01.80 | C91: Q.02.80 | D91: Q.03.80
A92: =iCONDOMINI!C91 -> 0 | B92: Q.01.81 | C92: Q.02.81 | D92: Q.03.81
A93: =iCONDOMINI!C92 -> 0 | B93: Q.01.82 | C93: Q.02.82 | D93: Q.03.82
A94: =iCONDOMINI!C93 -> 0 | B94: Q.01.83 | C94: Q.02.83 | D94: Q.03.83
A95: =iCONDOMINI!C94 -> 0 | B95: Q.01.84 | C95: Q.02.84 | D95: Q.03.84
A96: =iCONDOMINI!C95 -> 0 | B96: Q.01.85 | C96: Q.02.85 | D96: Q.03.85
A97: =iCONDOMINI!C96 -> 0 | B97: Q.01.86 | C97: Q.02.86 | D97: Q.03.86
A98: =iCONDOMINI!C97 -> 0 | B98: Q.01.87 | C98: Q.02.87 | D98: Q.03.87
A99: =iCONDOMINI!C98 -> 0 | B99: Q.01.88 | C99: Q.02.88 | D99: Q.03.88
A100: =iCONDOMINI!C99 -> 0 | B100: Q.01.89 | C100: Q.02.89 | D100: Q.03.89
A101: =iCONDOMINI!C100 -> 0 | B101: Q.01.90 | C101: Q.02.90 | D101: Q.03.90
A102: =iCONDOMINI!C101 -> 0 | B102: Q.01.91 | C102: Q.02.91 | D102: Q.03.91
A103: =iCONDOMINI!C102 -> 0 | B103: Q.01.92 | C103: Q.02.92 | D103: Q.03.92
A104: =iCONDOMINI!C103 -> 0 | B104: Q.01.93 | C104: Q.02.93 | D104: Q.03.93
A105: =iCONDOMINI!C104 -> 0 | B105: Q.01.94 | C105: Q.02.94 | D105: Q.03.94
A106: =iCONDOMINI!C105 -> 0 | B106: Q.01.95 | C106: Q.02.95 | D106: Q.03.95
A107: =iCONDOMINI!C106 -> 0 | B107: Q.01.96 | C107: Q.02.96 | D107: Q.03.96
A108: =iCONDOMINI!C107 -> 0 | B108: Q.01.97 | C108: Q.02.97 | D108: Q.03.97
A109: =iCONDOMINI!C108 -> 0 | B109: Q.01.98 | C109: Q.02.98 | D109: Q.03.98
A110: =iCONDOMINI!C109 -> 0 | B110: Q.01.99 | C110: Q.02.99 | D110: Q.03.99
A111: RIMBORSI e ABBUONI SU SPESE GESTIONE ORDINARIA | B111: A
A112: ="Spese già ripartite con TABELLA " &'iP1'!D16 -> Spese già ripartite con TABELLA Tabella A | B112: A.01.01
A113: ="Spese già ripartite con TABELLA " &'iP1'!D17 -> Spese già ripartite con TABELLA Tabella B | B113: A.01.02
A114: ="Spese già ripartite con TABELLA " &'iP1'!D18 -> Spese già ripartite con TABELLA Tabella C | B114: A.01.03
A115: ="Spese già ripartite con TABELLA " &'iP1'!D19 -> Spese già ripartite con TABELLA Tabella D | B115: A.01.04
A116: ="Spese già ripartite con TABELLA " &'iP1'!D20 -> Spese già ripartite con TABELLA Tabella E | B116: A.01.05
A117: ="Spese già ripartite con TABELLA " &'iP1'!D21 -> Spese già ripartite con TABELLA Tabella F | B117: A.01.06
A118: ="Spese già ripartite con TABELLA " &'iP1'!D22 -> Spese già ripartite con TABELLA Tabella G | B118: A.01.07
A119: ="Spese già ripartite con TABELLA " &'iP1'!D23 -> Spese già ripartite con TABELLA Tabella H | B119: A.01.08
A120: ="Spese già ripartite con TABELLA " &'iP1'!D24 -> Spese già ripartite con TABELLA Tabella I | B120: A.01.09
A121: ="Spese già ripartite con TABELLA " &'iP1'!D25 -> Spese già ripartite con TABELLA Tabella J | B121: A.01.10
A122: RENDITE, ALTRE ENTRATE E PROVENTI DIVERSI | B122: E
A123: Rendite Patrimoniali da beni comuni censibili (fitti, ...) | B123: E.01.01
A124: Rendite Finanziarie (interessi attivi, ...) | B124: E.01.02
A125: Sanzioni a condomini | B125: E.01.03
A126: Donazioni | B126: E.01.04
A127: Attività commerciali e produttive marginali | B127: E.01.05
A128: Entrate varie | B128: E.01.06
B129: E.01.07
B130: E.01.08
B131: E.01.09
B132: E.01.10
A133: VERSAMENTI SU GESTIONI SPECIALI SEPARATE e FONDI | B133: F
A134: =IF(LEN('iP1'!A27)>0,"VERSAMENTO SU GESTIONE SPECIALE -" & 'iP1'!A27 & "-" & " (cassa)","") -> VERSAMENTO SU GESTIONE SPECIALE -F-LAVORI MANUTENZIONE (2013-2015)- (cassa) | B134: F.01.01
A135: =IF(LEN('iP1'!A27)>0,"VERSAMENTO SU GESTIONE SPECIALE -" & 'iP1'!A27 & "-" & " (conto corrente)","") -> VERSAMENTO SU GESTIONE SPECIALE -F-LAVORI MANUTENZIONE (2013-2015)- (conto corrente) | B135: F.01.02
A136: =IF(LEN('iP1'!A28)>0,"VERSAMENTO SU GESTIONE SPECIALE -" & 'iP1'!A28 & "-" & " (cassa)","") ->  | B136: F.02.01
A137: =IF(LEN('iP1'!A28)>0,"VERSAMENTO SU GESTIONE SPECIALE -" & 'iP1'!A28 & "-" & " (conto corrente)","") ->  | B137: F.02.02
A138: =IF(LEN('iP1'!A29)>0,"VERSAMENTO SU GESTIONE SPECIALE -" & 'iP1'!A29 & "-" & " (cassa)","") ->  | B138: F.03.01
A139: =IF(LEN('iP1'!A29)>0,"VERSAMENTO SU GESTIONE SPECIALE -" & 'iP1'!A29 & "-" & " (conto corrente)","") ->  | B139: F.03.02
A140: Prestiti ricevuti da terzi | B140: F.04.01
A141: Entrate varie | B141: F.04.02
B142: F.05.01
B143: F.05.02
B144: V
A145: Anticipazione di cassa da Amministratore | B145: V.01.01
A146: Prestiti ricevuti da terzi e condomini | B146: V.01.02
B147: V.01.03
B148: V.01.04
B149: V.01.05
A150: ANTICIPAZIONI da GESTIONI SPECIALI | B150: T
A151: =IF(LEN('iP1'!A27)>0,"Anticipazione da GESTIONE SPECIALE "&'iP1'!A27,"") -> Anticipazione da GESTIONE SPECIALE F-LAVORI MANUTENZIONE (2013-2015) | B151: W.01.01
A152: =IF(LEN('iP1'!A28)>0,"Anticipazione da GESTIONE SPECIALE "&'iP1'!A28,"") ->  | B152: W.01.02
A153: =IF(LEN('iP1'!A29)>0,"Anticipazione da GESTIONE SPECIALE "&'iP1'!A29,"") ->  | B153: W.01.03
A154: =IF(LEN('iP1'!A30)>0,"Anticipazione da GESTIONE SPECIALE "&'iP1'!A30,"") ->  | B154: W.01.04
A155: =IF(LEN('iP1'!A31)>0,"Anticipazione da GESTIONE SPECIALE "&'iP1'!A31,"") ->  | B155: W.01.05
A157: 0 | E157: 0

Sheet iPCDC (hidden)
A1: Possono essere variati solo i valori delle celle senza sfondo colorato. | G1: 0
A7: ='iP1'!A5 -> Condominio "PROTOTIPO"
A8: PIANO GENERALE DEI CONTI
A9: PIANO DEI CREDITI | D9: PIANO DEI DEBITI
A10: CAPITOLI e VOCI | B10: CODICE CONTO | D10: CAPITOLI e VOCI | E10: CODICI CONTO
A11: da DEPOSITI di DENARO presso Terzi | B11: C.01
A12: =iPCU!A84 -> DEPOSITI CAUZIONALI | B12: C.01.01.YY
A13: =iPCU!A85 -> ACQUISTO VOUCHER LAVORI | B13: C.01.02.YY
A14: =iPCU!A86 -> PRESTITI A TERZI | B14: C.01.03.YY
A15: =iPCU!A87 -> 0 | B15: C.01.04.YY | D15: =A15 -> 0
A16: =iPCU!A88 -> 0 | B16: C.01.05.YY | D16: =A16 -> 0
A17: da TERZI PRIVATI | B17: C.02 | D17: v/s TERZI PRIVATI | E17: D.02
A18: da FORNITORI | B18: C.02.01.YY | D18: v/s FORNITORI per FATTURE RICEVUTE | E18: D.02.01.YY
A19: da DEBITORI DIVERSI | B19: C.02.02.YY | D19: v/s FORNITORI per AVVISI DI FATTURA RICEVUTI | E19: D.02.02.YY
A20: da CANONI e FITTI | B20: C.02.03.YY | D20: v/s FORNITORI per IMPEGNI DI SPESA | E20: D.02.03.YY
B21: C.02.04.YY | D21: v/s TERZI per PRESTITI RICEVUTI | E21: D.02.04.YY
B22: C.02.05.YY | D22: v/s CREDITORI DIVERSI | E22: D.02.05.YY
A23: da TERZI PUBBLICI | B23: C.03 | D23: v/s TERZI PUBBLICI | E23: D.03
A24: da ERARIO | B24: C.03.01.YY | D24: v/s ERARIO per RITENUTE ACCONTO SU SPESE | E24: D.03.01.YY
A25: da altri Enti Pubblici | B25: C.03.02.YY | D25: v/s ERARIO per TRIBUTI | E25: D.03.02.YY
B26: C.03.03.YY | D26: v/s ERARIO per R.A. SU PAGAMENTI DEBITI | E26: D.03.03.YY
B27: C.03.04.YY | E27: D.03.04.YY
B28: C.03.05.YY | E28: D.03.05.YY
A29: da CONDOMINI | B29: C.04 | D29: v/s CONDOMINI | E29: D.04 | F29: D.05
A30: =iCONDOMINI!C11 -> Condomino01 | B30: C.04.01.YY | D30: =iCONDOMINI!C11 -> Condomino01 | E30: D.04.01 | F30: D.05.01
A31: =iCONDOMINI!C12 -> Condomino02 | B31: C.04.02.YY | D31: =iCONDOMINI!C12 -> Condomino02 | E31: D.04.02 | F31: D.05.02
A32: =iCONDOMINI!C13 -> Condomino03 | B32: C.04.03.YY | D32: =iCONDOMINI!C13 -> Condomino03 | E32: D.04.03 | F32: D.05.03
A33: =iCONDOMINI!C14 -> Condomino04 S.r.l. | B33: C.04.04.YY | D33: =iCONDOMINI!C14 -> Condomino04 S.r.l. | E33: D.04.04 | F33: D.05.04
A34: =iCONDOMINI!C15 -> Condomino05 | B34: C.04.05.YY | D34: =iCONDOMINI!C15 -> Condomino05 | E34: D.04.05 | F34: D.05.05
A35: =iCONDOMINI!C16 -> Condomino06 | B35: C.04.06.YY | D35: =iCONDOMINI!C16 -> Condomino06 | E35: D.04.06 | F35: D.05.06
A36: =iCONDOMINI!C17 -> Condomino07 | B36: C.04.07.YY | D36: =iCONDOMINI!C17 -> Condomino07 | E36: D.04.07 | F36: D.05.07
A37: =iCONDOMINI!C18 -> Eredi Condomino08 | B37: C.04.08.YY | D37: =iCONDOMINI!C18 -> Eredi Condomino08 | E37: D.04.08 | F37: D.05.08
A38: =iCONDOMINI!C19 -> Condomino09 S.r.l. | B38: C.04.09.YY | D38: =iCONDOMINI!C19 -> Condomino09 S.r.l. | E38: D.04.09 | F38: D.05.09
A39: =iCONDOMINI!C20 -> Condomino10 | B39: C.04.10.YY | D39: =iCONDOMINI!C20 -> Condomino10 | E39: D.04.10 | F39: D.05.10
A40: =iCONDOMINI!C21 -> Condomino11 | B40: C.04.11.YY | D40: =iCONDOMINI!C21 -> Condomino11 | E40: D.04.11 | F40: D.05.11
A41: =iCONDOMINI!C22 -> Condomino12 | B41: C.04.12.YY | D41: =iCONDOMINI!C22 -> Condomino12 | E41: D.04.12 | F41: D.05.12
A42: =iCONDOMINI!C23 -> Condomino13 | B42: C.04.13.YY | D42: =iCONDOMINI!C23 -> Condomino13 | E42: D.04.13 | F42: D.05.13
A43: =iCONDOMINI!C24 -> Condomino14 | B43: C.04.14.YY | D43: =iCONDOMINI!C24 -> Condomino14 | E43: D.04.14 | F43: D.05.14
A44: =iCONDOMINI!C25 -> Condomino15 | B44: C.04.15.YY | D44: =iCONDOMINI!C25 -> Condomino15 | E44: D.04.15 | F44: D.05.15
A45: =iCONDOMINI!C26 -> Condomino16 | B45: C.04.16.YY | D45: =iCONDOMINI!C26 -> Condomino16 | E45: D.04.16 | F45: D.05.16
A46: =iCONDOMINI!C27 -> Condomino17 | B46: C.04.17.YY | D46: =iCONDOMINI!C27 -> Condomino17 | E46: D.04.17 | F46: D.05.17
A47: =iCONDOMINI!C28 -> Condomino18 | B47: C.04.18.YY | D47: =iCONDOMINI!C28 -> Condomino18 | E47: D.04.18 | F47: D.05.18
A48: =iCONDOMINI!C29 -> Condomino19 | B48: C.04.19.YY | D48: =iCONDOMINI!C29 -> Condomino19 | E48: D.04.19 | F48: D.05.19
A49: =iCONDOMINI!C30 -> Condomino20 | B49: C.04.20.YY | D49: =iCONDOMINI!C30 -> Condomino20 | E49: D.04.20 | F49: D.05.20
A50: =iCONDOMINI!C31 -> Condomino21 | B50: C.04.21.YY | D50: =iCONDOMINI!C31 -> Condomino21 | E50: D.04.21 | F50: D.05.21
A51: =iCONDOMINI!C32 -> Condomino22 | B51: C.04.22.YY | D51: =iCONDOMINI!C32 -> Condomino22 | E51: D.04.22 | F51: D.05.22
A52: =iCONDOMINI!C33 -> Condomino23 | B52: C.04.23.YY | D52: =iCONDOMINI!C33 -> Condomino23 | E52: D.04.23 | F52: D.05.23
A53: =iCONDOMINI!C34 -> 0 | B53: C.04.24.YY | D53: =iCONDOMINI!C34 -> 0 | E53: D.04.24 | F53: D.05.24
A54: =iCONDOMINI!C35 -> 0 | B54: C.04.25.YY | D54: =iCONDOMINI!C35 -> 0 | E54: D.04.25 | F54: D.05.25
A55: =iCONDOMINI!C36 -> 0 | B55: C.04.26.YY | D55: =iCONDOMINI!C36 -> 0 | E55: D.04.26 | F55: D.05.26
A56: =iCONDOMINI!C37 -> 0 | B56: C.04.27.YY | D56: =iCONDOMINI!C37 -> 0 | E56: D.04.27 | F56: D.05.27
A57: =iCONDOMINI!C38 -> 0 | B57: C.04.28.YY | D57: =iCONDOMINI!C38 -> 0 | E57: D.04.28 | F57: D.05.28
A58: =iCONDOMINI!C39 -> 0 | B58: C.04.29.YY | D58: =iCONDOMINI!C39 -> 0 | E58: D.04.29 | F58: D.05.29
A59: =iCONDOMINI!C40 -> 0 | B59: C.04.30.YY | D59: =iCONDOMINI!C40 -> 0 | E59: D.04.30 | F59: D.05.30
A60: =iCONDOMINI!C41 -> 0 | B60: C.04.31.YY | D60: =iCONDOMINI!C41 -> 0 | E60: D.04.31 | F60: D.05.31
A61: =iCONDOMINI!C42 -> 0 | B61: C.04.32.YY | D61: =iCONDOMINI!C42 -> 0 | E61: D.04.32 | F61: D.05.32
A62: =iCONDOMINI!C43 -> 0 | B62: C.04.33.YY | D62: =iCONDOMINI!C43 -> 0 | E62: D.04.33 | F62: D.05.33
A63: =iCONDOMINI!C44 -> 0 | B63: C.04.34.YY | D63: =iCONDOMINI!C44 -> 0 | E63: D.04.34 | F63: D.05.34
A64: =iCONDOMINI!C45 -> 0 | B64: C.04.35.YY | D64: =iCONDOMINI!C45 -> 0 | E64: D.04.35 | F64: D.05.35
A65: =iCONDOMINI!C46 -> 0 | B65: C.04.36.YY | D65: =iCONDOMINI!C46 -> 0 | E65: D.04.36 | F65: D.05.36
A66: =iCONDOMINI!C47 -> 0 | B66: C.04.37.YY | D66: =iCONDOMINI!C47 -> 0 | E66: D.04.37 | F66: D.05.37
A67: =iCONDOMINI!C48 -> 0 | B67: C.04.38.YY | D67: =iCONDOMINI!C48 -> 0 | E67: D.04.38 | F67: D.05.38
A68: =iCONDOMINI!C49 -> 0 | B68: C.04.39.YY | D68: =iCONDOMINI!C49 -> 0 | E68: D.04.39 | F68: D.05.39
A69: =iCONDOMINI!C50 -> 0 | B69: C.04.40.YY | D69: =iCONDOMINI!C50 -> 0 | E69: D.04.40 | F69: D.05.40
A70: =iCONDOMINI!C51 -> 0 | B70: C.04.41.YY | D70: =iCONDOMINI!C51 -> 0 | E70: D.04.41 | F70: D.05.41
A71: =iCONDOMINI!C52 -> 0 | B71: C.04.42.YY | D71: =iCONDOMINI!C52 -> 0 | E71: D.04.42 | F71: D.05.42
A72: =iCONDOMINI!C53 -> 0 | B72: C.04.43.YY | D72: =iCONDOMINI!C53 -> 0 | E72: D.04.43 | F72: D.05.43
A73: =iCONDOMINI!C54 -> 0 | B73: C.04.44.YY | D73: =iCONDOMINI!C54 -> 0 | E73: D.04.44 | F73: D.05.44
A74: =iCONDOMINI!C55 -> 0 | B74: C.04.45.YY | D74: =iCONDOMINI!C55 -> 0 | E74: D.04.45 | F74: D.05.45
A75: =iCONDOMINI!C56 -> 0 | B75: C.04.46.YY | D75: =iCONDOMINI!C56 -> 0 | E75: D.04.46 | F75: D.05.46
A76: =iCONDOMINI!C57 -> 0 | B76: C.04.47.YY | D76: =iCONDOMINI!C57 -> 0 | E76: D.04.47 | F76: D.05.47
A77: =iCONDOMINI!C58 -> 0 | B77: C.04.48.YY | D77: =iCONDOMINI!C58 -> 0 | E77: D.04.48 | F77: D.05.48
A78: =iCONDOMINI!C59 -> 0 | B78: C.04.49.YY | D78: =iCONDOMINI!C59 -> 0 | E78: D.04.49 | F78: D.05.49
A79: =iCONDOMINI!C60 -> 0 | B79: C.04.50.YY | D79: =iCONDOMINI!C60 -> 0 | E79: D.04.50 | F79: D.05.50
A80: =iCONDOMINI!C61 -> 0 | B80: C.04.51.YY | D80: =iCONDOMINI!C61 -> 0 | E80: D.04.51 | F80: D.05.51
A81: =iCONDOMINI!C62 -> 0 | B81: C.04.52.YY | D81: =iCONDOMINI!C62 -> 0 | E81: D.04.52 | F81: D.05.52
A82: =iCONDOMINI!C63 -> 0 | B82: C.04.53.YY | D82: =iCONDOMINI!C63 -> 0 | E82: D.04.53 | F82: D.05.53
A83: =iCONDOMINI!C64 -> 0 | B83: C.04.54.YY | D83: =iCONDOMINI!C64 -> 0 | E83: D.04.54 | F83: D.05.54
A84: =iCONDOMINI!C65 -> 0 | B84: C.04.55.YY | D84: =iCONDOMINI!C65 -> 0 | E84: D.04.55 | F84: D.05.55
A85: =iCONDOMINI!C66 -> 0 | B85: C.04.56.YY | D85: =iCONDOMINI!C66 -> 0 | E85: D.04.56 | F85: D.05.56
A86: =iCONDOMINI!C67 -> 0 | B86: C.04.57.YY | D86: =iCONDOMINI!C67 -> 0 | E86: D.04.57 | F86: D.05.57
A87: =iCONDOMINI!C68 -> 0 | B87: C.04.58.YY | D87: =iCONDOMINI!C68 -> 0 | E87: D.04.58 | F87: D.05.58
A88: =iCONDOMINI!C69 -> 0 | B88: C.04.59.YY | D88: =iCONDOMINI!C69 -> 0 | E88: D.04.59 | F88: D.05.59
A89: =iCONDOMINI!C70 -> 0 | B89: C.04.60.YY | D89: =iCONDOMINI!C70 -> 0 | E89: D.04.60 | F89: D.05.60
A90: =iCONDOMINI!C71 -> 0 | B90: C.04.61.YY | D90: =iCONDOMINI!C71 -> 0 | E90: D.04.61 | F90: D.05.61
A91: =iCONDOMINI!C72 -> 0 | B91: C.04.62.YY | D91: =iCONDOMINI!C72 -> 0 | E91: D.04.62 | F91: D.05.62
A92: =iCONDOMINI!C73 -> 0 | B92: C.04.63.YY | D92: =iCONDOMINI!C73 -> 0 | E92: D.04.63 | F92: D.05.63
A93: =iCONDOMINI!C74 -> 0 | B93: C.04.64.YY | D93: =iCONDOMINI!C74 -> 0 | E93: D.04.64 | F93: D.05.64
A94: =iCONDOMINI!C75 -> 0 | B94: C.04.65.YY | D94: =iCONDOMINI!C75 -> 0 | E94: D.04.65 | F94: D.05.65
A95: =iCONDOMINI!C76 -> 0 | B95: C.04.66.YY | D95: =iCONDOMINI!C76 -> 0 | E95: D.04.66 | F95: D.05.66
A96: =iCONDOMINI!C77 -> 0 | B96: C.04.67.YY | D96: =iCONDOMINI!C77 -> 0 | E96: D.04.67 | F96: D.05.67
A97: =iCONDOMINI!C78 -> 0 | B97: C.04.68.YY | D97: =iCONDOMINI!C78 -> 0 | E97: D.04.68 | F97: D.05.68
A98: =iCONDOMINI!C79 -> 0 | B98: C.04.69.YY | D98: =iCONDOMINI!C79 -> 0 | E98: D.04.69 | F98: D.05.69
A99: =iCONDOMINI!C80 -> 0 | B99: C.04.70.YY | D99: =iCONDOMINI!C80 -> 0 | E99: D.04.70 | F99: D.05.70
A100: =iCONDOMINI!C81 -> 0 | B100: C.04.71.YY | D100: =iCONDOMINI!C81 -> 0 | E100: D.04.71 | F100: D.05.71
A101: =iCONDOMINI!C82 -> 0 | B101: C.04.72.YY | D101: =iCONDOMINI!C82 -> 0 | E101: D.04.72 | F101: D.05.72
A102: =iCONDOMINI!C83 -> 0 | B102: C.04.73.YY | D102: =iCONDOMINI!C83 -> 0 | E102: D.04.73 | F102: D.05.73
A103: =iCONDOMINI!C84 -> 0 | B103: C.04.74.YY | D103: =iCONDOMINI!C84 -> 0 | E103: D.04.74 | F103: D.05.74
A104: =iCONDOMINI!C85 -> 0 | B104: C.04.75.YY | D104: =iCONDOMINI!C85 -> 0 | E104: D.04.75 | F104: D.05.75
A105: =iCONDOMINI!C86 -> 0 | B105: C.04.76.YY | D105: =iCONDOMINI!C86 -> 0 | E105: D.04.76 | F105: D.05.76
A106: =iCONDOMINI!C87 -> 0 | B106: C.04.77.YY | D106: =iCONDOMINI!C87 -> 0 | E106: D.04.77 | F106: D.05.77
A107: =iCONDOMINI!C88 -> 0 | B107: C.04.78.YY | D107: =iCONDOMINI!C88 -> 0 | E107: D.04.78 | F107: D.05.78
A108: =iCONDOMINI!C89 -> 0 | B108: C.04.79.YY | D108: =iCONDOMINI!C89 -> 0 | E108: D.04.79 | F108: D.05.79
A109: =iCONDOMINI!C90 -> 0 | B109: C.04.80.YY | D109: =iCONDOMINI!C90 -> 0 | E109: D.04.80 | F109: D.05.80
A110: =iCONDOMINI!C91 -> 0 | B110: C.04.81.YY | D110: =iCONDOMINI!C91 -> 0 | E110: D.04.81 | F110: D.05.81
A111: =iCONDOMINI!C92 -> 0 | B111: C.04.82.YY | D111: =iCONDOMINI!C92 -> 0 | E111: D.04.82 | F111: D.05.82
A112: =iCONDOMINI!C93 -> 0 | B112: C.04.83.YY | D112: =iCONDOMINI!C93 -> 0 | E112: D.04.83 | F112: D.05.83
A113: =iCONDOMINI!C94 -> 0 | B113: C.04.84.YY | D113: =iCONDOMINI!C94 -> 0 | E113: D.04.84 | F113: D.05.84
A114: =iCONDOMINI!C95 -> 0 | B114: C.04.85.YY | D114: =iCONDOMINI!C95 -> 0 | E114: D.04.85 | F114: D.05.85
A115: =iCONDOMINI!C96 -> 0 | B115: C.04.86.YY | D115: =iCONDOMINI!C96 -> 0 | E115: D.04.86 | F115: D.05.86
A116: =iCONDOMINI!C97 -> 0 | B116: C.04.87.YY | D116: =iCONDOMINI!C97 -> 0 | E116: D.04.87 | F116: D.05.87
A117: =iCONDOMINI!C98 -> 0 | B117: C.04.88.YY | D117: =iCONDOMINI!C98 -> 0 | E117: D.04.88 | F117: D.05.88
A118: =iCONDOMINI!C99 -> 0 | B118: C.04.89.YY | D118: =iCONDOMINI!C99 -> 0 | E118: D.04.89 | F118: D.05.89
A119: =iCONDOMINI!C100 -> 0 | B119: C.04.90.YY | D119: =iCONDOMINI!C100 -> 0 | E119: D.04.90 | F119: D.05.90
A120: =iCONDOMINI!C101 -> 0 | B120: C.04.91.YY | D120: =iCONDOMINI!C101 -> 0 | E120: D.04.91 | F120: D.05.91
A121: =iCONDOMINI!C102 -> 0 | B121: C.04.92.YY | D121: =iCONDOMINI!C102 -> 0 | E121: D.04.92 | F121: D.05.92
A122: =iCONDOMINI!C103 -> 0 | B122: C.04.93.YY | D122: =iCONDOMINI!C103 -> 0 | E122: D.04.93 | F122: D.05.93
A123: =iCONDOMINI!C104 -> 0 | B123: C.04.94.YY | D123: =iCONDOMINI!C104 -> 0 | E123: D.04.94 | F123: D.05.94
A124: =iCONDOMINI!C105 -> 0 | B124: C.04.95.YY | D124: =iCONDOMINI!C105 -> 0 | E124: D.04.95 | F124: D.05.95
A125: =iCONDOMINI!C106 -> 0 | B125: C.04.96.YY | D125: =iCONDOMINI!C106 -> 0 | E125: D.04.96 | F125: D.05.96
A126: =iCONDOMINI!C107 -> 0 | B126: C.04.97.YY | D126: =iCONDOMINI!C107 -> 0 | E126: D.04.97 | F126: D.05.97
A127: =iCONDOMINI!C108 -> 0 | B127: C.04.98.YY | D127: =iCONDOMINI!C108 -> 0 | E127: D.04.98 | F127: D.05.98
A128: =iCONDOMINI!C109 -> 0 | B128: C.04.99.YY | D128: =iCONDOMINI!C109 -> 0 | E128: D.04.99 | F128: D.05.99
A129: da GESTIONI SPECIALI SEPARATE E FONDI | B129: C.06 | D129: v/s GESTIONI SPECIALI SEPARATE e FONDI | E129: D.06
A130: =IF('iP1'!A27<>"","Da " & 'iP1'!A27,"") -> Da F-LAVORI MANUTENZIONE (2013-2015) | B130: C.06.01 | D130: =IF('iP1'!A27<>"","v/s " & 'iP1'!A27,"") -> v/s F-LAVORI MANUTENZIONE (2013-2015) | E130: D.06.01
A131: =IF('iP1'!A28<>"","Da " & 'iP1'!A28,"") ->  | B131: C.06.02 | D131: =IF('iP1'!A28<>"","v/s " & 'iP1'!A28,"") ->  | E131: D.06.02
A132: =IF('iP1'!A29<>"","Da " & 'iP1'!A29,"") ->  | B132: C.06.03 | D132: =IF('iP1'!A29<>"","v/s " & 'iP1'!A29,"") ->  | E132: D.06.03
A133: =IF('iP1'!A30<>"","Da " & 'iP1'!A30,"") ->  | B133: C.06.04 | D133: =IF('iP1'!A30<>"","v/s " & 'iP1'!A30,"") ->  | E133: D.06.04
A134: =IF('iP1'!A31<>"","Da " & 'iP1'!A31,"") ->  | B134: C.06.05 | D134: =IF('iP1'!A31<>"","v/s " & 'iP1'!A31,"") ->  | E134: D.06.05
A136: 0 | G136: 0

Sheet iPCF (hidden)
D1: 0
A7: ='iP1'!A5 -> Condominio "PROTOTIPO"
A8: PIANO GENERALE DEI CONTI
A9: PIANO DEI CONTI FISCALI
A10: TIPO DI OPERAZIONE CON RILEVANZA FISCALE | B10: CODICE CONTO | C10: Parametri variabili
A11: Pagamento compenso a fornitore per il quale è prevista la Ritenuta d'Acconto (R.A.). Il documento contabile può essere sia fattura che ricevuta. | B11: H.Pww.nf | C11: ww: percentuale R.A nf: numero fornitore
A12: Versamento all' Erario della Ritenuta d'Acconto (R.A.) trattenuta nel pagamento del fornitore. | B12: H.Rww.nf | C12: ww: percentuale R.A nf: numero fornitore
A14: I conti fiscali sono utilizzati nel Giornale Contabile al solo scopo di tracciare le operazioni fiscalmente rilevanti per il condominio. In forza della legge 27.12.1997, n. 449, i condomìni sono diventati dal 10 gennaio 1998 sostituti d'imposta, ovvero sono tenuti al pagamento di imposte in relazione a manifestazioni di capacità contributiva riferibili ad un altro soggetto, detto “sostituito”, tramite il cosiddetto meccanismo della ritenuta d'acconto. La ritenuta d’acconto è una somma che – nelle ipotesi previste dalla legge – chi eroga un compenso (spesso in qualità di datore di lavoro) trattiene sull’importo totale dovuto al proprio creditore (spesso in veste di lavoratore autonomo o subordinato): tale prelievo, che il sostituto provvede a versare direttamente nelle casse del Fisco, non sostituisce l’ordinaria imposizione sui redditi, cui il soggetto sostituito rimane obbligato nei confronti dell’Erario. I proventi assoggettati a ritenuta d’acconto concorrono infatti solo parzialmente alla formazione del reddito complessivo del sostituito, in relazione al quale verrà calcolata l’imposta globalmente da questi dovuta. La ritenuta d’acconto rappresenta un prelievo anticipato e provvisorio rispetto all’imposta personale (eventualmente) dovuta dal soggetto che la subisce.
A15: La Finanziaria 2007 ha introdotto per i condomini l'obbligo di operare la ritenuta d'acconto sui compensi corrisposti ai fornitori di opere, prestazioni e servizi a favore del condominio stesso (art. 25-ter D.P.R. 600/1973). Alla luce di quanto sopra, le operazioni fiscalmente rilevanti per i condomini sono due: 1 - la trattenuta della ritenuta d'acconto al momento del pagamento al fornitore 2 - il successivo versamento all'Erario di quanto trattenuto Dette operazioni possiedono, nel piano dei conti fiscali, due codici distinti costituiti da una stringa alfanumerica di tre campi separati da punti. - Il primo campo è costituito sempre e solo dalla lettera maiuscola H. - Il secondo campo è costituito da una lettera (P o R) e da un numero a due cifre, che indica la percentuale della ritenuta d'acconto (00, 04 o 20). P individua l'operazione di trattenimento all'atto del pagamento, R quella del versamento all'Erario di quanto trattenuto - Il terzo campo è costituito da un numero di due cifre, che è lo stesso di quello indicato dopo il trattino nel codice del fornitore cui è stata trattenuta la ritenuta d'acconto. Il codice del fornitore è quello assegnatogli dall'utilizzatore nel foglio iFORNITORI.
A16: 0 | D16: 0

Sheet iFCD (hidden)
A1: !!! Fornire i dati solo nelle celle senza sfondo colorato. Non variare mai il contenuto e la posizione delle celle con sfondo colorato. | K1: 0
A8: ='iP1'!A5 -> Condominio "PROTOTIPO"
A9: n. | B9: Cognome/ Ditta | C9: Nome/ Forma societaria | D9: Codice Fiscale | E9: Sesso | F9: Data nascita | G9: Comune di nascita | H9: Prov. nascita | I9: Domicilio fiscale | J9: Codice
B10: FORNITORI DI OPERE, PRESTAZIONI E SERVIZI (Somme erogate da attestare con Certificazione Unica) | J10: F
A11: 1 | B11: SAMUELE | C11: Saverio | D11: SSSSSS77T30B758X | E11: M | F11: 1968-11-30 | G11: CARDINALE | H11: CZ | I11: Via Luca - 88064 CHIARAVALLE CENTRALE (CZ) | J11: F-01
A12: 2 | B12: MAI ANTINCENDIO | C12: Snc | D12: 03622650794 | I12: Via Palermo, snc - 88054 SERSALE (CZ) | J12: F-02
A13: 3 | B13: OTIR SERVIZI | C13: Srl | D13: 01729590033 | I13: Viale LIBIA, 44 00199 ROMA (RM) | J13: F-03
A14: 4 | B14: Pippo | C14: Pippo | D14: PPPPPP67D21K324A | E14: M | F14: 1970-02-21 | G14: STILO | H14: RC | I14: Via Cavour, 28 - 88060 SATRIANO (CZ) | J14: F-04
A15: 5 | B15: SPURGHI PERFETTI | C15: Srl | D15: 02984760796 | I15: VIA Martiri di GERACE - 88060 GUARDAVALLE (CZ) | J15: F-05
A16: 6 | B16: Consulente | C16: Fiscale | D16: PPPCCM59S15I872J | E16: M | F16: 1959-10-25 | G16: SOVERATO | H16: CZ | I16: Via Giotto 72 - 88060 SATRIANO (CZ) | J16: F-06
A17: 7 | B17: CHIEFARI | C17: Pietro | D17: CCCPTR37F21I872Y | E17: M | F17: 1937-01-21 | G17: SANT'ANDREA JONIO | H17: CZ | I17: ViaLe CUTURELLA 2/D - 88068 SOVERATO (CZ) | J17: F-07
A18: 8 | B18: AVVOCATO | C18: Giuseppe | D18: VVVGPP84S10C352Z | E18: M | F18: 10/11/1984 | G18: CATANZARO | H18: CZ | I18: Via Sandro Botticelli, 11 - 88060 SANT'ANDREA JONIO (CZ) | J18: F-08
A19: 9 | B19: FALEGNAMERIA | C19: Srl | D19: 02384400194 | I19: Via Arlecchino,99 - 88040 SETTINGIANO (CZ) | J19: F-09
A20: 10 | B20: ELETTRICISTA | C20: Giuseppe | D20: ZZZGPP59R03C352P | E20: M | F20: 03/10/1959 | G20: CATANZARO | H20: CZ | I20: Viale Piave, 18 - 88100 CATANZARO (CZ) | J20: F-10
A21: 11 | B21: CERTIFICAZIONI ASCENSORI | C21: SpA | D21: 01158650790 | I21: Via Magnolie Fiorite, 33 88100 CATANZARO (CZ) | J21: F-11
A22: 12
A23: 13
A24: 14
A25: 15
A26: 16
A27: 17
A28: 18
A29: 19
A30: 20
B31: UTENZE e FORNITORI DI BENI (Somme erogate da non attestare con Certificazione Unica) | J31: C
A32: 1 | B32: E-On Energia | J32: C-01
A33: 2 | B33: Cartoleria MINERVA | J33: C-02
A34: 3 | B34: ENEL ENERGIA | J34: C-03
A35: 4
A36: 5
A37: 6
A38: 7
A39: 8
A40: 9
A41: 10
B42: CREDITORI PUBBLICI PER IMPOSTE E TASSE | J42: A
A43: 1 | B43: ERARIO | J43: A-01
A44: 2
A45: 3
A46: 4
A47: 5
B48: CREDITORI VARI PRIVATI | J48: Z-01
A49: 1
A50: 2
A51: 3
A52: 4
A53: 5
B54: CREDITORI GESTIONI SPECIALI e FONDI STESSO CONDOMINIO
A55: 1
A56: 2
A57: 3
A58: 4
A59: 5
B60: DEBITORI TERZI (Somme condominiali depositate presso Terzi) | J60: D
A61: 1 | B61: ENEL ENERGIA | J61: D-01
A62: 2
A63: 3
A64: 4
A65: 5
B66: DEBITORI VARI TERZI PRIVATI
A67: 1
A68: 2
A69: 3
A70: 4
A71: 5
B72: DEBITORI TERZI PUBBLICI | J72: E
A73: 1 | B73: Comune di CATANZARO | J73: E-02
A74: 2
A75: 3
A76: 4
A77: 5
B78: DEBITORI GESTIONI SPECIALI e FONDI STESSO CONDOMINIO | J78: S
A79: 1 | B79: FONDO LAVORI SPECIALI | J79: S-01
A80: 2
A81: 3
A82: 4
A83: 5
A85: 0 | K85: 0

Sheet iGSF (hidden)
A1: Possono essere variati solo i valori delle celle senza sfondo colorato.
A9: ='iP1'!A5 -> Condominio "PROTOTIPO"
A10: GESTIONI SPECIALE e FONDI
A11: ATTIVITÀ | E11: PASSIVITÀ
A12: =IF('iP1'!A27<>"",'iP1'!A27,"") -> F-LAVORI MANUTENZIONE (2013-2015) | D12: =SUM(C13:C17) -> 0 | E12: =A12 -> F-LAVORI MANUTENZIONE (2013-2015) | H12: =SUM(G13:G17) -> 0
B13: CASSA
B14: CONTO CORRENTE | F14: DEBITI v/s FORNITORI
B15: CREDITI da CONDOMINI | F15: DEBITI v/s CONDOMINI
B16: CREDITI da GESTIONE ORDINARIA | F16: DEBITI v/s GESTIONE ORDINARIA
B17: CREDITI VARI | F17: DEBITI VARI
A18: =IF('iP1'!A28<>"",'iP1'!A28,"") ->  | D18: =SUM(C19:C23) -> 0 | E18: =A18 ->  | H18: =SUM(G19:G23) -> 0
B19: CASSA
B20: CONTO CORRENTE | F20: DEBITI v/s FORNITORI
B21: CREDITI da CONDOMINI | F21: DEBITI v/s CONDOMINI
B22: CREDITI da GESTIONE ORDINARIA | F22: DEBITI v/s GESTIONE ORDINARIA
B23: CREDITI VARI | F23: DEBITI VARI
A24: =IF('iP1'!A29<>"",'iP1'!A29,"") ->  | D24: =SUM(C25:C29) -> 0 | E24: =A24 ->  | H24: =SUM(G25:G29) -> 0
B25: CASSA
B26: CONTO CORRENTE | F26: DEBITI v/s FORNITORI
B27: CREDITI da CONDOMINI | F27: DEBITI v/s CONDOMINI
B28: CREDITI da GESTIONE ORDINARIA | F28: DEBITI v/s GESTIONE ORDINARIA
B29: CREDITI VARI | F29: DEBITI VARI
A30: =IF('iP1'!A30<>"",'iP1'!A30,"") ->  | D30: =SUM(C31:C35) -> 0 | E30: =A30 ->  | H30: =SUM(G31:G35) -> 0
B31: CASSA
B32: CONTO CORRENTE | F32: DEBITI v/s FORNITORI
B33: CREDITI da CONDOMINI | F33: DEBITI v/s CONDOMINI
B34: CREDITI da GESTIONE ORDINARIA | F34: DEBITI v/s GESTIONE ORDINARIA
B35: CREDITI VARI | F35: DEBITI VARI
A36: =IF('iP1'!A31<>"",'iP1'!A31,"") ->  | D36: =SUM(C37:C41) -> 0 | E36: =A36 ->  | H36: =SUM(G37:G41) -> 0
B37: CASSA
B38: CONTO CORRENTE | F38: DEBITI v/s FORNITORI
B39: CREDITI da CONDOMINI | F39: DEBITI v/s CONDOMINI
B40: CREDITI da GESTIONE ORDINARIA | F40: DEBITI v/s GESTIONE ORDINARIA
B41: CREDITI VARI | F41: DEBITI VARI
A42: TOTALE ATTIVITÀ | D42: =SUM(D12:D41) -> 0 | E42: TOTALE PASSIVITÀ | H42: =SUM(H12:H41) -> 0

Sheet iIMMAGINI (hidden)
A1: È possibile riportare le due immagini sottostanti sugli altri fogli che le prevedono,
A2: premendo il pulsante sottostante.
A3: Le immagini possono essere variate nei limiti riportati.
A4: Se si sostituiscono le immagini, le nuove immagini devono essere sempre
A5: rinominate con i nomi "foto" e "firma" prima di premere il pulsante.
B8: Nome immagine: foto
G9: Dimensioni massime
G10: L | H10: 7,70 cm
G11: H | H11: 4,00 cm
B19: Nome immagine: firma
G20: Dimensioni massime
G21: L | H21: 7,70 cm
G22: H | H22: 2,70 cm

Sheet iRP2 (hidden)
A1: Fornire i dati solo nelle celle senza sfondo colorato. Non variare mai contenuto e posizione delle celle con sfondo colorato. | E1: 0
A2: ='iP1'!A5 -> Condominio "PROTOTIPO"
A3: ="DEPOSITI CAUZIONALI" -> DEPOSITI CAUZIONALI
A4: ="al giorno " & TEXT('iP1'!#REF!,"gg-mmm-aaaa") -> 
A5: n. | B5: DEPOSITARIO | C5: CAUSALE | D5: IMPORTO DEPOSITATO
A6: 1 | B6: ENEL ENERGIA S.p.A. | C6: Deposito Cauzionale | D6: 42.27
A7: 2 | B7: ENEL ENERGIA S.p.A. | C7: Deposito Cauzionale | D7: 42.27
A8: 3 | B8: ENEL ENERGIA S.p.A. | C8: Deposito Cauzionale | D8: 42.27
A9: 4
A10: 5
A11: 6
A12: 7
A13: 8
A14: 9
A15: 10
A16: 11
A17: 12
A18: 13
A19: 14
A20: 15
C21: TOTALE DEPOSITO | D21: =SUM(D6:D20) -> 126.81
A22: DEPOSITI CAUZIONALI
A23: ="al giorno 1-gen-" & 'iP1'!A37 & " (inizio esercizio)" -> al giorno 1-gen-2022 (inizio esercizio)
A24: n. | B24: DEPOSITARIO | C24: CAUSALE | D24: IMPORTO DEPOSITATO
A25: 1 | B25: ENEL ENERGIA S.p.A. | C25: Deposito Cauzionale | D25: 42.27
A26: 2 | B26: ENEL ENERGIA S.p.A. | C26: Deposito Cauzionale | D26: 42.27
A27: 3 | B27: ENEL ENERGIA S.p.A. | C27: Deposito Cauzionale | D27: 42.27
A28: 4
A29: 5
A30: 6
A31: 7
A32: 8
A33: 9
A34: 10
A35: 11
A36: 12
A37: 13
A38: 14
A39: 15
C40: TOTALE DEPOSITO | D40: =SUM(D25:D39) -> 126.81
A41: 0 | E41: 0

Sheet sBP (hidden)
A2: INDICE DEI PROSPETTI DEL BILANCIO PREVENTIVO
A4: Il fascicolo del Bilancio Preventivo è composto dai seguenti prospetti:
A6: 1 | B6: SITUAZIONE PATRIMONIALE ad INIZIO ESERCIZIO
C7: Riporta gli importi dei crediti e dei debiti che il condominio ha all'inizio dell'esercizio nonchè la disponibilità liquida su cassa (in contante) e su conto corrente.
A8: 2 | B8: PREVENTIVO DELLE SPESE PER L' ESERCIZIO
C9: Riporta gli importi delle spese che si stima occorre affrontare nel corso dell'esercizio, suddivise per voci, raggruppati in capitoli.
A10: 3 | B10: RIPARTO DELLE SPESE PREVISTE FRA I CONDOMINI
C11: Riporta gli importi con i quali i singoli condomini devono concorrere al pagamento delle spese costi previste, suddivisi per tabella di spesa. La somma di tali importi costituisce la quota del condomino per l'esercizio.
A12: 4 | B12: RATEAZIONE E SCADENZE DEI PAGAMENTI DOVUTI DAI SINGOLI CONDOMINI
C13: Riporta le quote dovute per l'esercizio da ciascun condomino suddivise in rate. I criteri di rateizzazione sono quelli della delibera assembleare vigente al riguardo, che prevede: Un numero di rate pari a 4, ovvero le rate sono trimestrali. L'importo della prima rata è uguale all'importo della rata trimestrale prevista per l'esercizio. L'importo delle tre rate restanti è pari sempre a quello della rata trimestrale dalla quale è dedotto 1/3 dell'eventuale conguaglio a credito del condomino. Le date di scadenza del pagamento delle rate sono il 10 gennaio, il 10 aprile, il 10 luglio e il 10 ottobre dell'esercizio.
A14: 5 | B14: PROSPETTI DEI CREDITORI e DEI DEBITORI TERZI
C15: Riportano i debiti ed i crediti con i relativi debitori e creditori, nonché le causali, all'inizio dell'esercizio.
A16: 6 | B16: PROSPETTO dei DEPOSITI ATTIVI PRESSO TERZI
B17: (non riportato in quanto non ci sono attualmente depositi attivi)
C18: Riporta i depositi attivi che il condominio vanta nei confronti di terzi, all'inizio dell'esercizio.
A19: 7 | B19: PROSPETTO delle ATTREZZATURE
B20: (non riportato in quanto non ci sono attualmente attrezzature di proprietà del Condominio)
C21: Riporta le attrezzature che il condominio possiede, all'inizio dell'esercizio.

Sheet nBP (hidden)
A2: NOTA BILANCIO PREVENTIVO
A4: Il bilancio preventivo 2022 prevede un totale di spese in aumento rispetto a quello di xx.xxx,xx dell’esercizio 2021 al fine di tener conto di maggior previsioni di spesa, quali
A6: 1. | B6: Indicizzazione della polizza assicurativa fabbricato.
A7: 2. | B7: Verifica periodica dei due ascensore ed eventuali spese di adeguamento degli stessi alle norme di sicurezza. La previsione di eventuale adeguamento è stimata in 150 euro ad ascensore, se supererà tale cifra occorrerà rivedere le quote dei pagamenti in corso di esercizio.
A8: 3. | B8: Aumento delle spese per la fornitura di energia elettrica. Un tale tipo di aumento si rende necessario per tener conto delle previsioni di un aumento particolarmente sensibile, a detta degli organi di informazione, del costo di produzione dell’energia. Si è stimato, forse ottimisticamente, un aumento di spesa pari al 20% rispetto a quello preventivato per le stesse voci di spesa nello scorso esercizio.
A9: 4 | B9: Inflazione stimata in aumento. Tale aumento è stato concentrato a livello di preventivo nelle pulizie scale con un incremento di euro cento a scala.
A11: Tutto queste considerazioni portano ad una previsione totale di spesa di xx.xxx,xx euro per l’esercizio 2022.
A12: Il bilancio preventivo 2022 mantiene le stesse voci di spesa dell’esercizio 2021, ma con importi maggiorati per alcune voci per come sopra specificato.

Sheet cSPI (hidden)
A1: Condominio "PROTOTIPO"
A2: STATO PATRIMONIALE all' 01/01/2022
A3: ATTIVITÀ | I3: PASSIVITÀ
A4: DISPONIBILITÀ LIQUIDA
B5: Gestione Ordinaria | C5: =IF(C6+C7<>0,"Fondo 1","") -> Fondo 1 | D5: =IF(D6+D7<>0,"Fondo 2","") ->  | E5: =IF(E6+E7<>0,"Fondo 3","") ->  | F5: =IF(F6+F7<>0,"Fondo 4","") ->  | G5: =IF(G6+G7<>0,"Fondo 5","") ->  | H5: =SUM(H6:H7) -> 181.22
A6: CASSA | C6: 0 | D6: 0 | E6: 0 | F6: 0 | G6: 0 | H6: =SUM(B6:G6) -> 0
A7: CONTO CORRENTE POSTALE | C7: 181.22 | D7: 0 | E7: 0 | F7: 0 | G7: 0 | H7: =SUM(B7:G7) -> 181.22
A8: CREDITI | I8: DEBITI
A9: VOCE | B9: Conto | C9: ="Eserc. " &'iP1'!A37-5 -> Eserc. 2017 | D9: ="Eserc. " &'iP1'!A37-4 -> Eserc. 2018 | E9: ="Eserc. " &'iP1'!A37- 3 -> Eserc. 2019 | F9: ="Eserc. " &'iP1'!A37- 2 -> Eserc. 2020 | G9: ="Eserc. " &'iP1'!A37- 1 -> Eserc. 2021 | H9: TOTALE | I9: VOCE | J9: Conto | K9: =C9 -> Eserc. 2017 | L9: Eserc. 2018 | M9: Eserc. 2019 | N9: Eserc. 2020 | O9: Eserc. 2021 | P9: TOTALE
C10: ="YY = " & RIGHT(C9,2) -> YY = 17 | D10: ="YY = " & RIGHT(D9,2) -> YY = 18 | E10: ="YY = " & RIGHT(E9,2) -> YY = 19 | F10: ="YY = " & RIGHT(F9,2) -> YY = 20 | G10: ="YY = " & RIGHT(G9,2) -> YY = 21 | K10: YY = 17 | L10: YY = 18 | M10: YY = 19 | N10: YY = 20 | O10: YY = 21
A11: ="CREDITI " &cCREDITI!A11 -> CREDITI da DEPOSITI di DENARO presso Terzi | C11: =SUM(C12:C16) -> 0 | D11: 0 | E11: 0 | F11: 0 | G11: 126.81 | H11: 126.81 | I11: ="DEBITI " &cDEBITI!A11 -> DEBITI | K11: =SUM(K12:K16) -> 0 | L11: 0 | M11: 0 | N11: 0 | O11: 0 | P11: 0
A12: =cCREDITI!A12 -> DEPOSITI CAUZIONALI | B12: =cCREDITI!B12 -> C.01.01.YY | G12: 126.81 | H12: =SUM(C12:G12) -> 126.81 | I12: =cDEBITI!A12 -> 0 | J12: =cDEBITI!B11 -> 00:00:00 | P12: =SUM(K12:O12) -> 0
A13: =cCREDITI!A13 -> ACQUISTO VOUCHER LAVORI | B13: =cCREDITI!B13 -> C.01.02.YY | H13: =SUM(C13:G13) -> 0 | I13: =cDEBITI!A13 -> 0 | J13: =cDEBITI!B12 -> 00:00:00 | P13: =SUM(K13:O13) -> 0
A14: =cCREDITI!A14 -> PRESTITI A TERZI | B14: =cCREDITI!B14 -> C.01.03.YY | H14: 0 | I14: =cDEBITI!A14 -> 0 | J14: =cDEBITI!B13 -> 00:00:00 | P14: 0
A15: =cCREDITI!A15 -> 00:00:00 | B15: =cCREDITI!B15 -> C.01.04.YY | H15: 0 | I15: =cDEBITI!A15 -> 0 | J15: =cDEBITI!B14 -> 00:00:00 | P15: 0
A16: =cCREDITI!A16 -> 00:00:00 | B16: =cCREDITI!B16 -> C.01.05.YY | H16: 0 | I16: =cDEBITI!A16 -> 0 | J16: =cDEBITI!B15 -> 00:00:00 | P16: 0
A17: ="CREDITI " &cCREDITI!A17 -> CREDITI da TERZI PRIVATI | D17: =SUM(D18:D22) -> 0 | E17: =SUM(E18:E22) -> 0 | F17: =SUM(F18:F22) -> 0 | G17: =SUM(G18:G22) -> 0 | H17: =SUM(H18:H22) -> 0 | I17: ="DEBITI " &cDEBITI!A17 -> DEBITI v/s TERZI PRIVATI | K17: =SUM(K18:K22) -> 0 | L17: 0 | M17: 1500 | N17: 1750 | O17: 3787.46 | P17: 7037.46
A18: =cCREDITI!A18 -> da FORNITORI | B18: =cCREDITI!B18 -> C.02.01.YY | H18: 0 | I18: =cDEBITI!A18 -> v/s FORNITORI per FATTURE RICEVUTE | J18: =cDEBITI!B18 -> D.02.01.YY | O18: 2287.46 | P18: =SUM(K18:O18) -> 2287.46
A19: =cCREDITI!A19 -> da DEBITORI DIVERSI | B19: =cCREDITI!B19 -> C.02.02.YY | H19: 0 | I19: =cDEBITI!A19 -> v/s FORNITORI per AVVISI DI FATTURA RICEVUTI | J19: =cDEBITI!B19 -> D.02.02.YY | N19: 50 | P19: =SUM(K19:O19) -> 50
A20: =cCREDITI!A20 -> da CANONI e FITTI | B20: =cCREDITI!B20 -> C.02.03.YY | H20: 0 | I20: =cDEBITI!A20 -> v/s FORNITORI per IMPEGNI DI SPESA | J20: =cDEBITI!B20 -> D.02.03.YY | M20: 1500 | N20: 1700 | O20: 1500 | P20: =SUM(K20:O20) -> 4700
A21: =cCREDITI!A21 -> 00:00:00 | B21: =cCREDITI!B21 -> C.02.04.YY | H21: 0 | I21: =cDEBITI!A21 -> v/s TERZI per PRESTITI RICEVUTI | J21: =cDEBITI!B21 -> D.02.04.YY | P21: =SUM(K21:O21) -> 0
A22: =cCREDITI!A22 -> 00:00:00 | B22: =cCREDITI!B22 -> C.02.05.YY | H22: 0 | I22: =cDEBITI!A22 -> v/s CREDITORI DIVERSI | J22: =cDEBITI!B22 -> D.02.05.YY | P22: =SUM(K22:O22) -> 0
A23: ="CREDITI " &cCREDITI!A23 -> CREDITI da TERZI PUBBLICI | H23: =SUM(H24:H28) -> 0 | I23: ="DEBITI " &cDEBITI!A23 -> DEBITI v/s TERZI PUBBLICI | K23: =SUM(K24:K28) -> 0 | L23: 0 | M23: 0 | N23: 0 | O23: 0 | P23: 0
A24: =cCREDITI!A24 -> da ERARIO | B24: =cCREDITI!B24 -> C.03.01.YY | H24: 0 | I24: =cDEBITI!A24 -> v/s ERARIO per RITENUTE ACCONTO SU SPESE | J24: =cDEBITI!B24 -> D.03.01.YY | P24: 0
A25: =cCREDITI!A25 -> da altri Enti Pubblici | B25: =cCREDITI!B25 -> C.03.02.YY | H25: 0 | I25: =cDEBITI!A25 -> v/s ERARIO per TRIBUTI | J25: =cDEBITI!B25 -> D.03.02.YY | P25: 0
A26: =cCREDITI!A26 -> 00:00:00 | B26: =cCREDITI!B26 -> C.03.03.YY | H26: 0 | I26: =cDEBITI!A26 -> v/s ERARIO per R.A. SU PAGAMENTI DEBITI | J26: =cDEBITI!B26 -> D.03.03.YY | P26: 0
A27: =cCREDITI!A27 -> 00:00:00 | B27: =cCREDITI!B27 -> C.03.04.YY | H27: 0 | I27: =cDEBITI!A27 -> 00:00:00 | J27: =cDEBITI!B27 -> D.03.04.YY | P27: 0
A28: =cCREDITI!A28 -> 00:00:00 | B28: =cCREDITI!B28 -> C.03.05.YY | H28: 0 | I28: =cDEBITI!A28 -> 00:00:00 | J28: =cDEBITI!B28 -> D.03.05.YY | P28: 0
A29: ="CREDITI " &cCREDITI!A29 -> CREDITI da CONDOMINI | C29: =SUM(C30:C128) -> 2355.53 | D29: 1466.99 | E29: 2035.55 | F29: 2752.6 | G29: 2247.87 | H29: 10858.54 | I29: ="DEBITI " &cDEBITI!A29 -> DEBITI v/s CONDOMINI | J29: Quote in eccesso | N29: Cauzioni | P29: =SUM(P30:P128) -> 4130.12
A30: =iCONDOMINI!C11 -> Condomino01 | B30: =cCREDITI!B30 -> C.04.01.YY | H30: 0 | I30: =iCONDOMINI!C11 -> Condomino01 | J30: =cDEBITI!B30 -> D.04.01 | M30: 178.06 | N30: =cDEBITI!G30 -> D.05.01 | O30: 5.32 | P30: =M30+O30 -> 183.38
A31: =iCONDOMINI!C12 -> Condomino02 | B31: =cCREDITI!B31 -> C.04.02.YY | H31: 0 | I31: =iCONDOMINI!C12 -> Condomino02 | J31: =cDEBITI!B31 -> D.04.02 | M31: 322.97 | N31: =cDEBITI!G31 -> D.05.02 | O31: 4.05 | P31: =M31+O31 -> 327.02
A32: =iCONDOMINI!C13 -> Condomino03 | B32: =cCREDITI!B32 -> C.04.03.YY | D32: 216.02 | E32: 376.65 | F32: 494.68 | G32: 169.05 | H32: 1256.4 | I32: =iCONDOMINI!C13 -> Condomino03 | J32: =cDEBITI!B32 -> D.04.03 | N32: =cDEBITI!G32 -> D.05.03 | O32: 0.84 | P32: 0.84
A33: =iCONDOMINI!C14 -> Condomino04 S.r.l. | B33: =cCREDITI!B33 -> C.04.04.YY | D33: 209.74 | E33: 338.12 | F33: 454.48 | G33: 229.27 | H33: 1231.61 | I33: =iCONDOMINI!C14 -> Condomino04 S.r.l. | J33: =cDEBITI!B33 -> D.04.04 | N33: =cDEBITI!G33 -> D.05.04 | O33: 7.14 | P33: 7.14
A34: =iCONDOMINI!C15 -> Condomino05 | B34: =cCREDITI!B34 -> C.04.05.YY | H34: 0 | I34: =iCONDOMINI!C15 -> Condomino05 | J34: =cDEBITI!B34 -> D.04.05 | M34: 212.14 | N34: =cDEBITI!G34 -> D.05.05 | O34: 5.68 | P34: 217.82
A35: =iCONDOMINI!C16 -> Condomino06 | B35: =cCREDITI!B35 -> C.04.06.YY | C35: 2355.53 | D35: 515.59 | E35: 422.78 | F35: 475.6 | G35: 473.66 | H35: 4243.16 | I35: =iCONDOMINI!C16 -> Condomino06 | J35: =cDEBITI!B35 -> D.04.06 | N35: =cDEBITI!G35 -> D.05.06 | O35: 4.84 | P35: 4.84
A36: =iCONDOMINI!C17 -> Condomino07 | B36: =cCREDITI!B36 -> C.04.07.YY | H36: 0 | I36: =iCONDOMINI!C17 -> Condomino07 | J36: =cDEBITI!B36 -> D.04.07 | M36: 179.04 | N36: =cDEBITI!G36 -> D.05.07 | O36: 5.77 | P36: 184.81
A37: =iCONDOMINI!C18 -> Eredi Condomino08 | B37: =cCREDITI!B37 -> C.04.08.YY | H37: 0 | I37: =iCONDOMINI!C18 -> Eredi Condomino08 | J37: =cDEBITI!B37 -> D.04.08 | M37: 18.8 | N37: =cDEBITI!G37 -> D.05.08 | O37: 2.14 | P37: 20.94
A38: =iCONDOMINI!C19 -> Condomino09 S.r.l. | B38: =cCREDITI!B38 -> C.04.09.YY | H38: 0 | I38: =iCONDOMINI!C19 -> Condomino09 S.r.l. | J38: =cDEBITI!B38 -> D.04.09 | M38: 315.36 | N38: =cDEBITI!G38 -> D.05.09 | O38: 6.55 | P38: 321.91
A39: =iCONDOMINI!C20 -> Condomino10 | B39: =cCREDITI!B39 -> C.04.10.YY | D39: 525.64 | E39: 898 | F39: 1050.3 | G39: 1013.3 | H39: 3487.24 | I39: =iCONDOMINI!C20 -> Condomino10 | J39: =cDEBITI!B39 -> D.04.10 | N39: =cDEBITI!G39 -> D.05.10 | O39: 11.09 | P39: 11.09
A40: =iCONDOMINI!C21 -> Condomino11 | B40: =cCREDITI!B40 -> C.04.11.YY | H40: 0 | I40: =iCONDOMINI!C21 -> Condomino11 | J40: =cDEBITI!B40 -> D.04.11 | M40: 97.88 | N40: =cDEBITI!G40 -> D.05.11 | O40: 4.78 | P40: 102.66
A41: =iCONDOMINI!C22 -> Condomino12 | B41: =cCREDITI!B41 -> C.04.12.YY | H41: 0 | I41: =iCONDOMINI!C22 -> Condomino12 | J41: =cDEBITI!B41 -> D.04.12 | M41: 591.44 | N41: =cDEBITI!G41 -> D.05.12 | O41: 5.49 | P41: 596.93
A42: =iCONDOMINI!C23 -> Condomino13 | B42: =cCREDITI!B42 -> C.04.13.YY | H42: 0 | I42: =iCONDOMINI!C23 -> Condomino13 | J42: =cDEBITI!B42 -> D.04.13 | M42: 319.89 | N42: =cDEBITI!G42 -> D.05.13 | O42: 8.14 | P42: 328.03
A43: =iCONDOMINI!C24 -> Condomino14 | B43: =cCREDITI!B43 -> C.04.14.YY | H43: 0 | I43: =iCONDOMINI!C24 -> Condomino14 | J43: =cDEBITI!B43 -> D.04.14 | M43: 290.2 | N43: =cDEBITI!G43 -> D.05.14 | O43: 3.79 | P43: 293.99
A44: =iCONDOMINI!C25 -> Condomino15 | B44: =cCREDITI!B44 -> C.04.15.YY | F44: 277.54 | G44: 218.93 | H44: 496.47 | I44: =iCONDOMINI!C25 -> Condomino15 | J44: =cDEBITI!B44 -> D.04.15 | N44: =cDEBITI!G44 -> D.05.15 | O44: 7.53 | P44: 7.53
A45: =iCONDOMINI!C26 -> Condomino16 | B45: =cCREDITI!B45 -> C.04.16.YY | H45: 0 | I45: =iCONDOMINI!C26 -> Condomino16 | J45: =cDEBITI!B45 -> D.04.16 | M45: 234.35 | N45: =cDEBITI!G45 -> D.05.16 | O45: 5.23 | P45: 239.58
A46: =iCONDOMINI!C27 -> Condomino17 | B46: =cCREDITI!B46 -> C.04.17.YY | G46: 13.1 | H46: 13.1 | I46: =iCONDOMINI!C27 -> Condomino17 | J46: =cDEBITI!B46 -> D.04.17 | N46: =cDEBITI!G46 -> D.05.17 | O46: 4.88 | P46: 4.88
A47: =iCONDOMINI!C28 -> Condomino18 | B47: =cCREDITI!B47 -> C.04.18.YY | H47: 0 | I47: =iCONDOMINI!C28 -> Condomino18 | J47: =cDEBITI!B47 -> D.04.18 | M47: 361.89 | N47: =cDEBITI!G47 -> D.05.18 | O47: 4.24 | P47: 366.13
A48: =iCONDOMINI!C29 -> Condomino19 | B48: =cCREDITI!B48 -> C.04.19.YY | H48: 0 | I48: =iCONDOMINI!C29 -> Condomino19 | J48: =cDEBITI!B48 -> D.04.19 | M48: 259.28 | N48: =cDEBITI!G48 -> D.05.19 | O48: 6.41 | P48: 265.69
A49: =iCONDOMINI!C30 -> Condomino20 | B49: =cCREDITI!B49 -> C.04.20.YY | H49: 0 | I49: =iCONDOMINI!C30 -> Condomino20 | J49: =cDEBITI!B49 -> D.04.20 | M49: 221.43 | N49: =cDEBITI!G49 -> D.05.20 | O49: 5.52 | P49: 226.95
A50: =iCONDOMINI!C31 -> Condomino21 | B50: =cCREDITI!B50 -> C.04.21.YY | H50: 0 | I50: =iCONDOMINI!C31 -> Condomino21 | J50: =cDEBITI!B50 -> D.04.21 | M50: 203.21 | N50: =cDEBITI!G50 -> D.05.21 | O50: 5.21 | P50: 208.42
A51: =iCONDOMINI!C32 -> Condomino22 | B51: =cCREDITI!B51 -> C.04.22.YY | H51: 0 | I51: =iCONDOMINI!C32 -> Condomino22 | J51: =cDEBITI!B51 -> D.04.22 | M51: 197.37 | N51: =cDEBITI!G51 -> D.05.22 | O51: 4.04 | P51: 201.41
A52: =iCONDOMINI!C33 -> Condomino23 | B52: =cCREDITI!B52 -> C.04.23.YY | G52: 130.56 | H52: 130.56 | I52: =iCONDOMINI!C33 -> Condomino23 | J52: =cDEBITI!B52 -> D.04.23 | N52: =cDEBITI!G52 -> D.05.23 | O52: 8.13 | P52: 8.13
A53: =iCONDOMINI!C34 -> 0 | B53: =cCREDITI!B53 -> C.04.24.YY | H53: 0 | I53: =iCONDOMINI!C34 -> 0 | J53: =cDEBITI!B53 -> D.04.24 | N53: =cDEBITI!G53 -> D.05.24 | P53: 0
A54: =iCONDOMINI!C35 -> 0 | B54: =cCREDITI!B54 -> C.04.25.YY | H54: 0 | J54: =cDEBITI!B54 -> D.04.25 | N54: =cDEBITI!G54 -> D.05.25 | P54: 0
A55: =iCONDOMINI!C36 -> 0 | B55: =cCREDITI!B55 -> C.04.26.YY | H55: 0 | J55: =cDEBITI!B55 -> D.04.26 | N55: =cDEBITI!G55 -> D.05.26 | P55: 0
A56: =iCONDOMINI!C37 -> 0 | B56: =cCREDITI!B56 -> C.04.27.YY | H56: 0 | J56: =cDEBITI!B56 -> D.04.27 | N56: =cDEBITI!G56 -> D.05.27 | P56: 0
A57: =iCONDOMINI!C38 -> 0 | B57: =cCREDITI!B57 -> C.04.28.YY | H57: 0 | J57: =cDEBITI!B57 -> D.04.28 | N57: =cDEBITI!G57 -> D.05.28 | P57: 0
A58: =iCONDOMINI!C39 -> 0 | B58: =cCREDITI!B58 -> C.04.29.YY | H58: 0 | J58: =cDEBITI!B58 -> D.04.29 | N58: =cDEBITI!G58 -> D.05.29 | P58: 0
A59: =iCONDOMINI!C40 -> 0 | B59: =cCREDITI!B59 -> C.04.30.YY | H59: 0 | J59: =cDEBITI!B59 -> D.04.30 | N59: =cDEBITI!G59 -> D.05.30 | P59: 0
A60: =iCONDOMINI!C41 -> 0 | B60: =cCREDITI!B60 -> C.04.31.YY | H60: 0 | J60: =cDEBITI!B60 -> D.04.31 | N60: =cDEBITI!G60 -> D.05.31 | P60: 0
A61: =iCONDOMINI!C42 -> 0 | B61: =cCREDITI!B61 -> C.04.32.YY | H61: 0 | J61: =cDEBITI!B61 -> D.04.32 | N61: =cDEBITI!G61 -> D.05.32 | P61: 0
A62: =iCONDOMINI!C43 -> 0 | B62: =cCREDITI!B62 -> C.04.33.YY | H62: 0 | J62: =cDEBITI!B62 -> D.04.33 | N62: =cDEBITI!G62 -> D.05.33 | P62: 0
A63: =iCONDOMINI!C44 -> 0 | B63: =cCREDITI!B63 -> C.04.34.YY | H63: 0 | J63: =cDEBITI!B63 -> D.04.34 | N63: =cDEBITI!G63 -> D.05.34 | P63: 0
A64: =iCONDOMINI!C45 -> 0 | B64: =cCREDITI!B64 -> C.04.35.YY | H64: 0 | J64: =cDEBITI!B64 -> D.04.35 | N64: =cDEBITI!G64 -> D.05.35 | P64: 0
A65: =iCONDOMINI!C46 -> 0 | B65: =cCREDITI!B65 -> C.04.36.YY | H65: 0 | J65: =cDEBITI!B65 -> D.04.36 | N65: =cDEBITI!G65 -> D.05.36 | P65: 0
A66: =iCONDOMINI!C47 -> 0 | B66: =cCREDITI!B66 -> C.04.37.YY | H66: 0 | J66: =cDEBITI!B66 -> D.04.37 | N66: =cDEBITI!G66 -> D.05.37 | P66: 0
A67: =iCONDOMINI!C48 -> 0 | B67: =cCREDITI!B67 -> C.04.38.YY | H67: 0 | J67: =cDEBITI!B67 -> D.04.38 | N67: =cDEBITI!G67 -> D.05.38 | P67: 0
A68: =iCONDOMINI!C49 -> 0 | B68: =cCREDITI!B68 -> C.04.39.YY | H68: 0 | J68: =cDEBITI!B68 -> D.04.39 | N68: =cDEBITI!G68 -> D.05.39 | P68: 0
A69: =iCONDOMINI!C50 -> 0 | B69: =cCREDITI!B69 -> C.04.40.YY | H69: 0 | J69: =cDEBITI!B69 -> D.04.40 | N69: =cDEBITI!G69 -> D.05.40 | P69: 0
A70: =iCONDOMINI!C51 -> 0 | B70: =cCREDITI!B70 -> C.04.41.YY | H70: 0 | J70: =cDEBITI!B70 -> D.04.41 | N70: =cDEBITI!G70 -> D.05.41 | P70: 0
A71: =iCONDOMINI!C52 -> 0 | B71: =cCREDITI!B71 -> C.04.42.YY | H71: 0 | J71: =cDEBITI!B71 -> D.04.42 | N71: =cDEBITI!G71 -> D.05.42 | P71: 0
A72: =iCONDOMINI!C53 -> 0 | B72: =cCREDITI!B72 -> C.04.43.YY | H72: 0 | J72: =cDEBITI!B72 -> D.04.43 | N72: =cDEBITI!G72 -> D.05.43 | P72: 0
A73: =iCONDOMINI!C54 -> 0 | B73: =cCREDITI!B73 -> C.04.44.YY | H73: 0 | J73: =cDEBITI!B73 -> D.04.44 | N73: =cDEBITI!G73 -> D.05.44 | P73: 0
A74: =iCONDOMINI!C55 -> 0 | B74: =cCREDITI!B74 -> C.04.45.YY | H74: 0 | J74: =cDEBITI!B74 -> D.04.45 | N74: =cDEBITI!G74 -> D.05.45 | P74: 0
A75: =iCONDOMINI!C56 -> 0 | B75: =cCREDITI!B75 -> C.04.46.YY | H75: 0 | J75: =cDEBITI!B75 -> D.04.46 | N75: =cDEBITI!G75 -> D.05.46 | P75: 0
A76: =iCONDOMINI!C57 -> 0 | B76: =cCREDITI!B76 -> C.04.47.YY | H76: 0 | J76: =cDEBITI!B76 -> D.04.47 | N76: =cDEBITI!G76 -> D.05.47 | P76: 0
A77: =iCONDOMINI!C58 -> 0 | B77: =cCREDITI!B77 -> C.04.48.YY | H77: =SUM(C77:G77) -> 0 | J77: =cDEBITI!B77 -> D.04.48 | N77: =cDEBITI!G77 -> D.05.48 | P77: 0
A78: =iCONDOMINI!C59 -> 0 | B78: =cCREDITI!B78 -> C.04.49.YY | H78: 0 | J78: =cDEBITI!B78 -> D.04.49 | N78: =cDEBITI!G78 -> D.05.49 | P78: 0
A79: =iCONDOMINI!C60 -> 0 | B79: =cCREDITI!B79 -> C.04.50.YY | H79: 0 | J79: =cDEBITI!B79 -> D.04.50 | N79: =cDEBITI!G79 -> D.05.50 | P79: 0
A80: =iCONDOMINI!C61 -> 0 | B80: =cCREDITI!B80 -> C.04.51.YY | H80: 0 | J80: =cDEBITI!B80 -> D.04.51 | N80: =cDEBITI!G80 -> D.05.51 | P80: 0
A81: =iCONDOMINI!C62 -> 0 | B81: =cCREDITI!B81 -> C.04.52.YY | H81: 0 | J81: =cDEBITI!B81 -> D.04.52 | N81: =cDEBITI!G81 -> D.05.52 | P81: 0
A82: =iCONDOMINI!C63 -> 0 | B82: =cCREDITI!B82 -> C.04.53.YY | H82: 0 | J82: =cDEBITI!B82 -> D.04.53 | N82: =cDEBITI!G82 -> D.05.53 | P82: 0
A83: =iCONDOMINI!C64 -> 0 | B83: =cCREDITI!B83 -> C.04.54.YY | H83: 0 | J83: =cDEBITI!B83 -> D.04.54 | N83: =cDEBITI!G83 -> D.05.54 | P83: 0
A84: =iCONDOMINI!C65 -> 0 | B84: =cCREDITI!B84 -> C.04.55.YY | H84: 0 | J84: =cDEBITI!B84 -> D.04.55 | N84: =cDEBITI!G84 -> D.05.55 | P84: 0
A85: =iCONDOMINI!C66 -> 0 | B85: =cCREDITI!B85 -> C.04.56.YY | H85: 0 | J85: =cDEBITI!B85 -> D.04.56 | N85: =cDEBITI!G85 -> D.05.56 | P85: 0
A86: =iCONDOMINI!C67 -> 0 | B86: =cCREDITI!B86 -> C.04.57.YY | H86: 0 | J86: =cDEBITI!B86 -> D.04.57 | N86: =cDEBITI!G86 -> D.05.57 | P86: 0
A87: =iCONDOMINI!C68 -> 0 | B87: =cCREDITI!B87 -> C.04.58.YY | H87: 0 | J87: =cDEBITI!B87 -> D.04.58 | N87: =cDEBITI!G87 -> D.05.58 | P87: 0
A88: =iCONDOMINI!C69 -> 0 | B88: =cCREDITI!B88 -> C.04.59.YY | H88: 0 | J88: =cDEBITI!B88 -> D.04.59 | N88: =cDEBITI!G88 -> D.05.59 | P88: 0
A89: =iCONDOMINI!C70 -> 0 | B89: =cCREDITI!B89 -> C.04.60.YY | H89: 0 | J89: =cDEBITI!B89 -> D.04.60 | N89: =cDEBITI!G89 -> D.05.60 | P89: 0
A90: =iCONDOMINI!C71 -> 0 | B90: =cCREDITI!B90 -> C.04.61.YY | H90: 0 | J90: =cDEBITI!B90 -> D.04.61 | N90: =cDEBITI!G90 -> D.05.61 | P90: 0
A91: =iCONDOMINI!C72 -> 0 | B91: =cCREDITI!B91 -> C.04.62.YY | H91: 0 | J91: =cDEBITI!B91 -> D.04.62 | N91: =cDEBITI!G91 -> D.05.62 | P91: 0
A92: =iCONDOMINI!C73 -> 0 | B92: =cCREDITI!B92 -> C.04.63.YY | H92: 0 | J92: =cDEBITI!B92 -> D.04.63 | N92: =cDEBITI!G92 -> D.05.63 | P92: 0
A93: =iCONDOMINI!C74 -> 0 | B93: =cCREDITI!B93 -> C.04.64.YY | H93: 0 | J93: =cDEBITI!B93 -> D.04.64 | N93: =cDEBITI!G93 -> D.05.64 | P93: 0
A94: =iCONDOMINI!C75 -> 0 | B94: =cCREDITI!B94 -> C.04.65.YY | H94: 0 | J94: =cDEBITI!B94 -> D.04.65 | N94: =cDEBITI!G94 -> D.05.65 | P94: 0
A95: =iCONDOMINI!C76 -> 0 | B95: =cCREDITI!B95 -> C.04.66.YY | H95: 0 | J95: =cDEBITI!B95 -> D.04.66 | N95: =cDEBITI!G95 -> D.05.66 | P95: =M95+O95 -> 0
A96: =iCONDOMINI!C77 -> 0 | B96: =cCREDITI!B96 -> C.04.67.YY | H96: 0 | J96: =cDEBITI!B96 -> D.04.67 | N96: =cDEBITI!G96 -> D.05.67 | P96: 0
A97: =iCONDOMINI!C78 -> 0 | B97: =cCREDITI!B97 -> C.04.68.YY | H97: 0 | J97: =cDEBITI!B97 -> D.04.68 | N97: =cDEBITI!G97 -> D.05.68 | P97: 0
A98: =iCONDOMINI!C79 -> 0 | B98: =cCREDITI!B98 -> C.04.69.YY | H98: 0 | J98: =cDEBITI!B98 -> D.04.69 | N98: =cDEBITI!G98 -> D.05.69 | P98: 0
A99: =iCONDOMINI!C80 -> 0 | B99: =cCREDITI!B99 -> C.04.70.YY | H99: 0 | J99: =cDEBITI!B99 -> D.04.70 | N99: =cDEBITI!G99 -> D.05.70 | P99: 0
A100: =iCONDOMINI!C81 -> 0 | B100: =cCREDITI!B100 -> C.04.71.YY | H100: 0 | J100: =cDEBITI!B100 -> D.04.71 | N100: =cDEBITI!G100 -> D.05.71 | P100: 0
A101: =iCONDOMINI!C82 -> 0 | B101: =cCREDITI!B101 -> C.04.72.YY | H101: 0 | J101: =cDEBITI!B101 -> D.04.72 | N101: =cDEBITI!G101 -> D.05.72 | P101: 0
A102: =iCONDOMINI!C83 -> 0 | B102: =cCREDITI!B102 -> C.04.73.YY | H102: 0 | J102: =cDEBITI!B102 -> D.04.73 | N102: =cDEBITI!G102 -> D.05.73 | P102: 0
A103: =iCONDOMINI!C84 -> 0 | B103: =cCREDITI!B103 -> C.04.74.YY | H103: 0 | J103: =cDEBITI!B103 -> D.04.74 | N103: =cDEBITI!G103 -> D.05.74 | P103: 0
A104: =iCONDOMINI!C85 -> 0 | B104: =cCREDITI!B104 -> C.04.75.YY | H104: 0 | J104: =cDEBITI!B104 -> D.04.75 | N104: =cDEBITI!G104 -> D.05.75 | P104: 0
A105: =iCONDOMINI!C86 -> 0 | B105: =cCREDITI!B105 -> C.04.76.YY | H105: 0 | J105: =cDEBITI!B105 -> D.04.76 | N105: =cDEBITI!G105 -> D.05.76 | P105: 0
A106: =iCONDOMINI!C87 -> 0 | B106: =cCREDITI!B106 -> C.04.77.YY | H106: 0 | J106: =cDEBITI!B106 -> D.04.77 | N106: =cDEBITI!G106 -> D.05.77 | P106: 0
A107: =iCONDOMINI!C88 -> 0 | B107: =cCREDITI!B107 -> C.04.78.YY | H107: 0 | J107: =cDEBITI!B107 -> D.04.78 | N107: =cDEBITI!G107 -> D.05.78 | P107: 0
A108: =iCONDOMINI!C89 -> 0 | B108: =cCREDITI!B108 -> C.04.79.YY | H108: 0 | J108: =cDEBITI!B108 -> D.04.79 | N108: =cDEBITI!G108 -> D.05.79 | P108: 0
A109: =iCONDOMINI!C90 -> 0 | B109: =cCREDITI!B109 -> C.04.80.YY | H109: 0 | J109: =cDEBITI!B109 -> D.04.80 | N109: =cDEBITI!G109 -> D.05.80 | P109: 0
A110: =iCONDOMINI!C91 -> 0 | B110: =cCREDITI!B110 -> C.04.81.YY | H110: 0 | J110: =cDEBITI!B110 -> D.04.81 | N110: =cDEBITI!G110 -> D.05.81 | P110: 0
A111: =iCONDOMINI!C92 -> 0 | B111: =cCREDITI!B111 -> C.04.82.YY | H111: 0 | J111: =cDEBITI!B111 -> D.04.82 | N111: =cDEBITI!G111 -> D.05.82 | P111: 0
A112: =iCONDOMINI!C93 -> 0 | B112: =cCREDITI!B112 -> C.04.83.YY | H112: 0 | J112: =cDEBITI!B112 -> D.04.83 | N112: =cDEBITI!G112 -> D.05.83 | P112: 0
A113: =iCONDOMINI!C94 -> 0 | B113: =cCREDITI!B113 -> C.04.84.YY | H113: 0 | J113: =cDEBITI!B113 -> D.04.84 | N113: =cDEBITI!G113 -> D.05.84 | P113: 0
A114: =iCONDOMINI!C95 -> 0 | B114: =cCREDITI!B114 -> C.04.85.YY | H114: 0 | J114: =cDEBITI!B114 -> D.04.85 | N114: =cDEBITI!G114 -> D.05.85 | P114: 0
A115: =iCONDOMINI!C96 -> 0 | B115: =cCREDITI!B115 -> C.04.86.YY | H115: 0 | J115: =cDEBITI!B115 -> D.04.86 | N115: =cDEBITI!G115 -> D.05.86 | P115: 0
A116: =iCONDOMINI!C97 -> 0 | B116: =cCREDITI!B116 -> C.04.87.YY | H116: 0 | J116: =cDEBITI!B116 -> D.04.87 | N116: =cDEBITI!G116 -> D.05.87 | P116: 0
A117: =iCONDOMINI!C98 -> 0 | B117: =cCREDITI!B117 -> C.04.88.YY | H117: 0 | J117: =cDEBITI!B117 -> D.04.88 | N117: =cDEBITI!G117 -> D.05.88 | P117: 0
A118: =iCONDOMINI!C99 -> 0 | B118: =cCREDITI!B118 -> C.04.89.YY | H118: 0 | J118: =cDEBITI!B118 -> D.04.89 | N118: =cDEBITI!G118 -> D.05.89 | P118: 0
A119: =iCONDOMINI!C100 -> 0 | B119: =cCREDITI!B119 -> C.04.90.YY | H119: 0 | J119: =cDEBITI!B119 -> D.04.90 | N119: =cDEBITI!G119 -> D.05.90 | P119: 0
A120: =iCONDOMINI!C101 -> 0 | B120: =cCREDITI!B120 -> C.04.91.YY | H120: 0 | J120: =cDEBITI!B120 -> D.04.91 | N120: =cDEBITI!G120 -> D.05.91 | P120: 0
A121: =iCONDOMINI!C102 -> 0 | B121: =cCREDITI!B121 -> C.04.92.YY | H121: 0 | J121: =cDEBITI!B121 -> D.04.92 | N121: =cDEBITI!G121 -> D.05.92 | P121: 0
A122: =iCONDOMINI!C103 -> 0 | B122: =cCREDITI!B122 -> C.04.93.YY | H122: 0 | J122: =cDEBITI!B122 -> D.04.93 | N122: =cDEBITI!G122 -> D.05.93 | P122: 0
A123: =iCONDOMINI!C104 -> 0 | B123: =cCREDITI!B123 -> C.04.94.YY | H123: 0 | J123: =cDEBITI!B123 -> D.04.94 | N123: =cDEBITI!G123 -> D.05.94 | P123: 0
A124: =iCONDOMINI!C105 -> 0 | B124: =cCREDITI!B124 -> C.04.95.YY | H124: 0 | J124: =cDEBITI!B124 -> D.04.95 | N124: =cDEBITI!G124 -> D.05.95 | P124: 0
A125: =iCONDOMINI!C106 -> 0 | B125: =cCREDITI!B125 -> C.04.96.YY | H125: 0 | J125: =cDEBITI!B125 -> D.04.96 | N125: =cDEBITI!G125 -> D.05.96 | P125: 0
A126: =iCONDOMINI!C107 -> 0 | B126: =cCREDITI!B126 -> C.04.97.YY | H126: 0 | J126: =cDEBITI!B126 -> D.04.97 | N126: =cDEBITI!G126 -> D.05.97 | P126: 0
A127: =iCONDOMINI!C108 -> 0 | B127: =cCREDITI!B127 -> C.04.98.YY | H127: 0 | J127: =cDEBITI!B127 -> D.04.98 | N127: =cDEBITI!G127 -> D.05.98 | P127: 0
A128: =iCONDOMINI!C109 -> 0 | B128: =cCREDITI!B128 -> C.04.99.YY | H128: 0 | J128: =cDEBITI!B128 -> D.04.99 | N128: =cDEBITI!G128 -> D.05.99 | P128: 0
A129: ="CREDITI " &cCREDITI!A129 -> CREDITI da FONDI SPECIALI | C129: =SUM(C130:C134) -> 0 | D129: 0 | E129: 0 | F129: 0 | G129: 1.01 | H129: 1.01 | I129: ="DEBITI " &cDEBITI!A129 -> DEBITI v/s GESTIONI SPECIALI SEPARATE e FONDI | K129: =SUM(K130:K134) -> 0 | L129: 0 | M129: 0 | N129: 0 | O129: 0 | P129: 0
A130: =cCREDITI!A130 -> Da F-LAVORI MANUTENZIONE (2013-2015) | B130: =cCREDITI!B130 -> C.06.01 | G130: 1.01 | H130: =SUM(C130:G130) -> 1.01 | I130: =cDEBITI!A130 -> v/s F-LAVORI MANUTENZIONE (2013-2015) | J130: =cDEBITI!B130 -> D.06.01 | P130: =SUM(K130:O130) -> 0
A131: =cCREDITI!A131 ->  | B131: =cCREDITI!B131 -> C.06.02 | H131: =SUM(C131:G131) -> 0 | I131: =cDEBITI!A131 ->  | J131: =cDEBITI!B131 -> D.06.02 | P131: =SUM(K131:O131) -> 0
A132: =cCREDITI!A132 ->  | B132: =cCREDITI!B132 -> C.06.03 | H132: =SUM(C132:G132) -> 0 | I132: =cDEBITI!A132 ->  | J132: =cDEBITI!B132 -> D.06.03 | P132: =SUM(K132:O132) -> 0
A133: =cCREDITI!A133 ->  | B133: =cCREDITI!B133 -> C.06.04 | H133: =SUM(C133:G133) -> 0 | I133: =cDEBITI!A133 ->  | J133: =cDEBITI!B133 -> D.06.04 | P133: =SUM(K133:O133) -> 0
A134: =cCREDITI!A134 ->  | B134: =cCREDITI!B134 -> C.06.05 | H134: =SUM(C134:G134) -> 0 | I134: =cDEBITI!A134 ->  | J134: =cDEBITI!B134 -> D.06.05 | P134: =SUM(K134:O134) -> 0
A135: RIEPILOGO ATTIVITÀ | I135: RIEPILOGO PASSIVITÀ
A136: LIQUIDITÀ | H136: =H5 -> 181.22
A137: TOTALI CREDITI DIRETTI DA CONDOMINI | C137: =C29 -> 2355.53 | D137: 1466.99 | E137: 2035.55 | F137: 2752.6 | G137: 2247.87 | H137: 10858.54 | I137: TOTALE DEBITI v/s CONDOMINI | M137: =SUM(M30:M128) -> 4003.31 | O137: =SUM(O30:O128) -> 126.81 | P137: =M137+O137 -> 4130.12
A138: TOTALI ALTRI CREDITI | C138: =C11+C17+C23+C129 -> 0 | D138: 0 | E138: 0 | F138: 0 | G138: 127.82 | H138: 127.82 | I138: TOTALI DEBITI v/s TERZI | K138: =K11+K17+K23+K129 -> 0 | L138: =L11+L17+L23+L129 -> 0 | M138: =M11+M17+M23+M129 -> 1500 | N138: =N11+N17+N23+N129 -> 1750 | O138: =O11+O17+O23+O129 -> 3787.46 | P138: =SUM(K138:O138) -> 7037.46
A139: ATTIVITÀ | B139: =H136+H137+H138 -> 11167.58 | I139: PASSIVITÀ | J139: =P137+P138 -> 11167.58

Sheet iPUS (hidden)
F1: =SUMIFS(F12:F88,iPCU!E12:E88,">0") -> 8550 | G1: 0
A7: ='iP1'!A5 -> Condominio "PROTOTIPO"
A8: ="PREVENTIVO DELLE SPESE PER L'ESERCIZIO " & annoesercizio() -> PREVENTIVO DELLE SPESE PER L'ESERCIZIO 2022
A9: CAPITOLI e VOCI DI SPESA | B9: CODICE CONTO | C9: TABELLA RIPARTO | D9: IMPORTI | E9: SUDDIVISIONE
D10: PREVENTIV. | E10: PROPRIETARIO | F10: INQUILINO
A11: =iPCU!A11 -> SPESE GENERALI | C11: =iPCU!C11 -> 0 | D11: =SUMIFS(D12:D26,C12:C26,"=?") -> 3940
A12: =iPCU!A12 -> ASSICURAZIONE FABBRICATO | B12: =iPCU!B12 -> S.01.01 | C12: =iPCU!C12 -> A | D12: 10 | E12: =D12*iPCU!D12 -> 10 | F12: =D12*iPCU!E12 -> 0
A13: =iPCU!A13 -> CANCELLERIA | B13: =iPCU!B13 -> S.01.02 | C13: =iPCU!C13 -> A | D13: 50 | E13: =D13*iPCU!D13 -> 50 | F13: =D13*iPCU!E13 -> 0
A14: =iPCU!A14 -> POSTALI, TELEGRAFICHE, TELEFONICHE E WEB | B14: =iPCU!B14 -> S.01.03 | C14: =iPCU!C14 -> A | D14: 20 | E14: =D14*iPCU!D14 -> 20 | F14: =D14*iPCU!E14 -> 0
A15: =iPCU!A15 -> DIRITTI BOLLI TASSE | B15: =iPCU!B15 -> S.01.04 | C15: =iPCU!C15 -> A | D15: 30 | E15: =D15*iPCU!D15 -> 30 | F15: =D15*iPCU!E15 -> 0
A16: =iPCU!A16 -> SPESE PER ADEMPIMENTI FISCALI | B16: =iPCU!B16 -> S.01.05 | C16: =iPCU!C16 -> A | D16: 80 | E16: =D16*iPCU!D16 -> 80 | F16: =D16*iPCU!E16 -> 0
A17: =iPCU!A17 -> COMPENSI AMMINISTRATORE | B17: =iPCU!B17 -> S.01.06 | C17: =iPCU!C17 -> A | D17: 1400 | E17: =D17*iPCU!D17 -> 1400 | F17: =D17*iPCU!E17 -> 0
A18: =iPCU!A18 -> COMPENSI A TERZI (consulenti, ...) | B18: =iPCU!B18 -> S.01.07 | C18: =iPCU!C18 -> A | D18: 350 | E18: =D18*iPCU!D18 -> 350 | F18: =D18*iPCU!E18 -> 0
A19: =iPCU!A19 -> SPESE LEGALI, CONTRATTUALI e RECUPERO CREDITI | B19: =iPCU!B19 -> S.01.08 | C19: =iPCU!C19 -> A | D19: 1600 | E19: =D19*iPCU!D19 -> 1600 | F19: =D19*iPCU!E19 -> 0
A20: =iPCU!A20 -> ONERI E SPESE BANCARIE | B20: =iPCU!B20 -> S.01.09 | C20: =iPCU!C20 -> A | D20: 320 | E20: =D20*iPCU!D20 -> 320 | F20: =D20*iPCU!E20 -> 0
A21: =iPCU!A21 -> ALTRE SPESE GENERALI | B21: =iPCU!B21 -> S.01.10 | C21: =iPCU!C21 -> A | D21: 20 | E21: =D21*iPCU!D21 -> 20 | F21: =D21*iPCU!E21 -> 0
A22: =iPCU!A22 -> VARIE IMPREVISTE ED ALTRE SPESE DOCUMENTATE INQUILINO | B22: =iPCU!B22 -> S.01.11 | C22: =iPCU!C22 -> A | D22: 30 | E22: =D22*iPCU!D22 -> 0 | F22: =D22*iPCU!E22 -> 0
A23: =iPCU!A23 -> VARIE IMPREVISTE ED ALTRE SPESE DOCUMENTATE PROPRIETARIO | B23: =iPCU!B23 -> S.01.12 | C23: =iPCU!C23 -> A | D23: 30 | E23: =D23*iPCU!D23 -> 0 | F23: =D23*iPCU!E23 -> 0
A24: =iPCU!A24 -> 0 | B24: =iPCU!B24 -> S.01.13 | C24: =iPCU!C24 -> 0 | D24: 0 | E24: =D24*iPCU!D24 -> 0 | F24: =D24*iPCU!E24 -> 0
A25: =iPCU!A25 -> 0 | B25: =iPCU!B25 -> S.01.14 | C25: =iPCU!C25 -> 0 | D25: 0 | E25: =D25*iPCU!D25 -> 0 | F25: =D25*iPCU!E25 -> 0
A26: =iPCU!A26 -> 0 | B26: =iPCU!B26 -> S.01.15 | C26: =iPCU!C26 -> 0 | E26: =D26*iPCU!D26 -> 0 | F26: =D26*iPCU!E26 -> 0
A27: =iPCU!A27 -> PULIZIE | C27: =iPCU!C27 -> 0 | D27: =SUMIFS(D28:D37,C28:C37,"=?") -> 1550 | E27: 0 | F27: 0
A28: =iPCU!A28 -> PULIZIA INTERCAPEDINI E PARTI COMUNI | B28: =iPCU!B28 -> S.02.01 | C28: =iPCU!C28 -> A | D28: 150 | E28: =D28*iPCU!D28 -> 0 | F28: =D28*iPCU!E28 -> 150
A29: =iPCU!A29 -> PULIZIA SCALE E ANDRONE civico 38 | B29: =iPCU!B29 -> S.02.02 | C29: =iPCU!C29 -> B | D29: 400 | E29: =D29*iPCU!D29 -> 0 | F29: =D29*iPCU!E29 -> 400
A30: =iPCU!A30 -> PULIZIA SCALE E ANDRONE civico 30 | B30: =iPCU!B30 -> S.02.03 | C30: =iPCU!C30 -> C | D30: 400 | E30: =D30*iPCU!D30 -> 0 | F30: =D30*iPCU!E30 -> 400
A31: =iPCU!A31 -> PULIZIA SCALE E ANDRONE civico 22 | B31: =iPCU!B31 -> S.02.04 | C31: =iPCU!C31 -> D | D31: 400 | E31: =D31*iPCU!D31 -> 0 | F31: =D31*iPCU!E31 -> 0
A32: =iPCU!A32 -> PULIZIA PORTICO | B32: =iPCU!B32 -> S.02.05 | C32: =iPCU!C32 -> E | D32: 100 | E32: =D32*iPCU!D32 -> 0 | F32: =D32*iPCU!E32 -> 0
A33: =iPCU!A33 -> PULIZIA TUNNEL | B33: =iPCU!B33 -> S.02.06 | C33: =iPCU!C33 -> F | D33: 100 | E33: =D33*iPCU!D33 -> 0 | F33: =D33*iPCU!E33 -> 0
A34: =iPCU!A34 -> 0 | B34: =iPCU!B34 -> S.02.07 | C34: =iPCU!C34 -> 0 | E34: =D34*iPCU!D34 -> 0 | F34: =D34*iPCU!E34 -> 0
A35: =iPCU!A35 -> 0 | B35: =iPCU!B35 -> S.02.08 | C35: =iPCU!C35 -> 0 | E35: =D35*iPCU!D35 -> 0 | F35: =D35*iPCU!E35 -> 0
A36: =iPCU!A36 -> 0 | B36: =iPCU!B36 -> S.02.09 | C36: =iPCU!C36 -> 0 | E36: =D36*iPCU!D36 -> 0 | F36: =D36*iPCU!E36 -> 0
A37: =iPCU!A37 -> 0 | B37: =iPCU!B37 -> S.02.10 | C37: =iPCU!C37 -> 0 | E37: =D37*iPCU!D37 -> 0 | F37: =D37*iPCU!E37 -> 0
A38: =iPCU!A38 -> MANUTENZIONE ORDINARIA | C38: =iPCU!C38 -> 0 | D38: =SUMIFS(D39:D48,C39:C48,"=?") -> 3010
A39: =iPCU!A39 -> CANCELLO BOX e IMPIANTI RELATIVI AL TUNNEL | B39: =iPCU!B39 -> S.03.01 | C39: =iPCU!C39 -> F | D39: 100 | E39: =D39*iPCU!D39 -> 0 | F39: =D39*iPCU!E39 -> 100
A40: =iPCU!A40 -> OPERE EDILI ED IMPIANTISTICHE - Scala A - civico 38 (tab. B) | B40: =iPCU!B40 -> S.03.02 | C40: =iPCU!C40 -> B | D40: 120 | E40: =D40*iPCU!D40 -> 0 | F40: =D40*iPCU!E40 -> 120
A41: =iPCU!A41 -> OPERE EDILI ED IMPIANTISTICHE - Scala B - civico 30 (tab. C) | B41: =iPCU!B41 -> S.03.03 | C41: =iPCU!C41 -> C | D41: 120 | E41: =D41*iPCU!D41 -> 0 | F41: =D41*iPCU!E41 -> 120
A42: =iPCU!A42 -> OPERE EDILI ED IMPIANTISTICHE - Scala C - civico 22 (tab. C) | B42: =iPCU!B42 -> S.03.04 | C42: =iPCU!C42 -> D | D42: 120 | E42: =D42*iPCU!D42 -> 0 | F42: =D42*iPCU!E42 -> 120
A43: =iPCU!A43 -> ASCENSORE - Scala A - civico 38 (tab. B) | B43: =iPCU!B43 -> S.03.05 | C43: =iPCU!C43 -> B | D43: 850 | E43: =D43*iPCU!D43 -> 0 | F43: =D43*iPCU!E43 -> 850
A44: =iPCU!A44 -> ASCENSORE - Scala B - civico 30 (tab. C) | B44: =iPCU!B44 -> S.03.06 | C44: =iPCU!C44 -> C | D44: 850 | E44: =D44*iPCU!D44 -> 0 | F44: =D44*iPCU!E44 -> 0
A45: =iPCU!A45 -> ASCENSORE - Scala C - civico 22 (tab. D) | B45: =iPCU!B45 -> S.03.07 | C45: =iPCU!C45 -> D | D45: 850 | E45: =D45*iPCU!D45 -> 0 | F45: =D45*iPCU!E45 -> 0
A46: =iPCU!A46 -> 0 | B46: =iPCU!B46 -> S.03.08 | C46: =iPCU!C46 -> 0 | E46: =D46*iPCU!D46 -> 0 | F46: =D46*iPCU!E46 -> 0
A47: =iPCU!A47 -> 0 | B47: =iPCU!B47 -> S.03.09 | C47: =iPCU!C47 -> 0 | E47: =D47*iPCU!D47 -> 0 | F47: =D47*iPCU!E47 -> 0
A48: =iPCU!A48 -> 0 | B48: =iPCU!B48 -> S.03.10 | C48: =iPCU!C48 -> 0 | D48: 0 | E48: =D48*iPCU!D48 -> 0 | F48: =D48*iPCU!E48 -> 0
A49: =iPCU!A49 -> CONSUMI DI ENERGIA | C49: =iPCU!C49 -> 0 | D49: =SUMIFS(D50:D59,C50:C59,"=?") -> 4550
A50: =iPCU!A50 -> ENERGIA ILLUMINAZIONE E ALIMENTAZIONE ASCENSORE - Scala A - civico 38 | B50: =iPCU!B50 -> S.04.01 | C50: =iPCU!C50 -> B | D50: 1200 | E50: =D50*iPCU!D50 -> 0 | F50: =D50*iPCU!E50 -> 1200
A51: =iPCU!A51 -> ENERGIA ILLUMINAZIONE E ALIMENTAZIONE ASCENSORE - Scala B - civico 30 | B51: =iPCU!B51 -> S.04.02 | C51: =iPCU!C51 -> C | D51: 1100 | E51: =D51*iPCU!D51 -> 0 | F51: =D51*iPCU!E51 -> 1100
A52: =iPCU!A52 -> ENERGIA ILLUMINAZIONE E ALIMENTAZIONE ASCENSORE - Scala C - civico 22 | B52: =iPCU!B52 -> S.04.03 | C52: =iPCU!C52 -> D | D52: 1300 | E52: =D52*iPCU!D52 -> 0 | F52: =D52*iPCU!E52 -> 1300
A53: =iPCU!A53 -> ENERGIA ILLUMINAZIONE - PORTICO - civico 30 | B53: =iPCU!B53 -> S.04.04 | C53: =iPCU!C53 -> E | D53: 500 | E53: =D53*iPCU!D53 -> 0 | F53: =D53*iPCU!E53 -> 500
A54: =iPCU!A54 -> ENERGIA ILLUMINAZIONE - TUNNEL - civico 30 | B54: =iPCU!B54 -> S.04.05 | C54: =iPCU!C54 -> F | D54: 400 | E54: =D54*iPCU!D54 -> 0 | F54: =D54*iPCU!E54 -> 400
A55: =iPCU!A55 -> 50% BOLLETTA LOTTO 5 - ENERGIA ALIMENTAZIONE CANCELLO - TUNNEL - civico 46 | B55: =iPCU!B55 -> S.04.06 | C55: =iPCU!C55 -> F | D55: 50 | E55: =D55*iPCU!D55 -> 0 | F55: =D55*iPCU!E55 -> 50
A56: =iPCU!A56 -> 0 | B56: =iPCU!B56 -> S.04.07 | C56: =iPCU!C56 -> 0 | D56: 430 | E56: =D56*iPCU!D56 -> 0 | F56: =D56*iPCU!E56 -> 430
A57: =iPCU!A57 -> 0 | B57: =iPCU!B57 -> S.04.08 | C57: =iPCU!C57 -> 0 | D57: 460 | E57: =D57*iPCU!D57 -> 0 | F57: =D57*iPCU!E57 -> 460
A58: =iPCU!A58 -> 0 | B58: =iPCU!B58 -> S.04.09 | C58: =iPCU!C58 -> 0 | E58: =D58*iPCU!D58 -> 0 | F58: =D58*iPCU!E58 -> 0
A59: =iPCU!A59 -> 0 | B59: =iPCU!B59 -> S.04.10 | C59: =iPCU!C59 -> 0 | E59: =D59*iPCU!D59 -> 0 | F59: =D59*iPCU!E59 -> 0
A60: =iPCU!A60 -> MANUTENZIONE STRAORDINARIA | C60: =iPCU!C60 -> 0 | D60: =SUM(D61:D70) -> 1450
A61: =iPCU!A61 -> PARTI COMUNI - COPERTURA - MANUTENZIONE MARCIAPIEDE ED AIUOLE VIA DROSI | B61: =iPCU!B61 -> S.05.01 | C61: =iPCU!C61 -> E | D61: 100 | E61: =D61*iPCU!D61 -> 100 | F61: =D61*iPCU!E61 -> 0
A62: =iPCU!A62 -> OPERE EDILI ED IMPIANTISTICHE - Scala A - civico 38 (tab. B) | B62: =iPCU!B62 -> S.05.02 | C62: =iPCU!C62 -> B | D62: 100 | E62: =D62*iPCU!D62 -> 100 | F62: =D62*iPCU!E62 -> 0
A63: =iPCU!A63 -> OPERE EDILI ED IMPIANTISTICHE - Scala B - civico 30 (tab. C) | B63: =iPCU!B63 -> S.05.03 | C63: =iPCU!C63 -> C | D63: 100 | E63: =D63*iPCU!D63 -> 100 | F63: =D63*iPCU!E63 -> 0
A64: =iPCU!A64 -> OPERE EDILI ED IMPIANTISTICHE - Scala C - civico 22 (tab. D) | B64: =iPCU!B64 -> S.05.04 | C64: =iPCU!C64 -> D | D64: 100 | E64: =D64*iPCU!D64 -> 100 | F64: =D64*iPCU!E64 -> 0
A65: =iPCU!A65 -> MANUTENZIONE E VERIFICHE DI LEGGE ASCENSORE - Scala A - civico 38 (tab. B) | B65: =iPCU!B65 -> S.05.05 | C65: =iPCU!C65 -> B | D65: 350 | E65: =D65*iPCU!D65 -> 350 | F65: =D65*iPCU!E65 -> 0
A66: =iPCU!A66 -> MANUTENZIONE E VERIFICHE DI LEGGE ASCENSORE - Scala B - civico 30 (tab. C) | B66: =iPCU!B66 -> S.05.06 | C66: =iPCU!C66 -> C | D66: 350 | E66: =D66*iPCU!D66 -> 0 | F66: =D66*iPCU!E66 -> 350
A67: =iPCU!A67 -> MANUTENZIONE E VERIFICHE DI LEGGE ASCENSORE - Scala C - civico 22 (tab. D) | B67: =iPCU!B67 -> S.05.07 | C67: =iPCU!C67 -> D | D67: 350 | E67: =D67*iPCU!D67 -> 0 | F67: =D67*iPCU!E67 -> 350
A68: =iPCU!A68 -> 0 | B68: =iPCU!B68 -> S.05.08 | C68: =iPCU!C68 -> 0 | E68: =D68*iPCU!D68 -> 0 | F68: =D68*iPCU!E68 -> 0
A69: =iPCU!A69 -> 0 | B69: =iPCU!B69 -> S.05.09 | C69: =iPCU!C69 -> 0 | E69: =D69*iPCU!D69 -> 0 | F69: =D69*iPCU!E69 -> 0
A70: =iPCU!A70 -> 0 | B70: =iPCU!B70 -> S.05.10 | C70: =iPCU!C70 -> 0 | E70: =D70*iPCU!D70 -> 0 | F70: =D70*iPCU!E70 -> 0
A71: =iPCU!A71 -> SPESE VARIE A CARICO DEI PROPRIETARI | C71: =iPCU!C71 -> 0 | D71: =SUMIFS(D72:D76,C72:C76,"=?") -> 150
A72: =iPCU!A72 -> VARIE IMPREVISTE ED ALTRE SPESE DOCUMENTATE PROPRIETARIO - Scala A - civico 38 | B72: =iPCU!B72 -> S.06.01 | C72: =iPCU!C72 -> B | D72: 30 | E72: =D72*iPCU!D72 -> 30 | F72: =D72*iPCU!E72 -> 0
A73: =iPCU!A73 -> VARIE IMPREVISTE ED ALTRE SPESE DOCUMENTATE PROPRIETARIO - Scala B - civico 30 | B73: =iPCU!B73 -> S.06.02 | C73: =iPCU!C73 -> C | D73: 30 | E73: =D73*iPCU!D73 -> 30 | F73: =D73*iPCU!E73 -> 0
A74: =iPCU!A74 -> VARIE IMPREVISTE ED ALTRE SPESE DOCUMENTATE PROPRIETARIO - Scala C - civico 22 | B74: =iPCU!B74 -> S.06.03 | C74: =iPCU!C74 -> D | D74: 30 | E74: =D74*iPCU!D74 -> 30 | F74: =D74*iPCU!E74 -> 0
A75: =iPCU!A75 -> VARIE IMPREVISTE ED ALTRE SPESE DOCUMENTATE PROPRIETARIO - PORTICO | B75: =iPCU!B75 -> S.06.04 | C75: =iPCU!C75 -> E | D75: 30 | E75: =D75*iPCU!D75 -> 30 | F75: =D75*iPCU!E75 -> 0
A76: =iPCU!A76 -> VARIE IMPREVISTE ED ALTRE SPESE DOCUMENTATE PROPRIETARIO - TUNNEL | B76: =iPCU!B76 -> S.06.05 | C76: =iPCU!C76 -> F | D76: 30 | E76: =D76*iPCU!D76 -> 30 | F76: =D76*iPCU!E76 -> 0
A77: =iPCU!A77 -> SPESE VARIE A CARICO DEGLI INQUILINI | C77: =iPCU!C77 -> 0 | D77: =SUMIFS(D78:D82,C78:C82,"=?") -> 150
A78: =iPCU!A78 -> VARIE IMPREVISTE ED ALTRE SPESE DOCUMENTATE INQUILINO - Scala A - civico 38 | B78: =iPCU!B78 -> S.07.01 | C78: =iPCU!C78 -> B | D78: 30 | E78: =D78*iPCU!D78 -> 0 | F78: =D78*iPCU!E78 -> 30
A79: =iPCU!A79 -> VARIE IMPREVISTE ED ALTRE SPESE DOCUMENTATE INQUILINO - Scala B - civico 30 | B79: =iPCU!B79 -> S.07.02 | C79: =iPCU!C79 -> C | D79: 30 | E79: =D79*iPCU!D79 -> 0 | F79: =D79*iPCU!E79 -> 30
A80: =iPCU!A80 -> VARIE IMPREVISTE ED ALTRE SPESE DOCUMENTATE INQUILINO - Scala C - civico 22 | B80: =iPCU!B80 -> S.07.03 | C80: =iPCU!C80 -> D | D80: 30 | E80: =D80*iPCU!D80 -> 0 | F80: =D80*iPCU!E80 -> 30
A81: =iPCU!A81 -> VARIE IMPREVISTE ED ALTRE SPESE DOCUMENTATE INQUILINO - PORTICO | B81: =iPCU!B81 -> S.07.04 | C81: =iPCU!C81 -> E | D81: 30 | E81: =D81*iPCU!D81 -> 0 | F81: =D81*iPCU!E81 -> 30
A82: =iPCU!A82 -> VARIE IMPREVISTE ED ALTRE SPESE DOCUMENTATE INQUILINO - TUNNEL | B82: =iPCU!B82 -> S.07.05 | C82: =iPCU!C82 -> F | D82: 30 | E82: =D82*iPCU!D82 -> 0 | F82: =D82*iPCU!E82 -> 30
A83: =iPCU!A83 -> USCITE PER COSTITUZIONE DEPOSITI PRESSO TERZI e PRESTITI A TERZI | C83: =iPCU!C83 -> 0 | D83: =SUMIFS(D84:D88,C84:C88,"=?") -> 0
A84: =iPCU!A84 -> DEPOSITI CAUZIONALI | B84: =iPCU!B84 -> L.01.01 | C84: =iPCU!C84 -> A | E84: =D84*iPCU!D84 -> 0 | F84: =D84*iPCU!E84 -> 0
A85: =iPCU!A85 -> ACQUISTO VOUCHER LAVORI | B85: =iPCU!B85 -> L.01.02 | C85: =iPCU!C85 -> A | E85: =D85*iPCU!D85 -> 0 | F85: =D85*iPCU!E85 -> 0
A86: =iPCU!A86 -> PRESTITI A TERZI | B86: =iPCU!B86 -> L.01.03 | C86: =iPCU!C86 -> A | E86: =D86*iPCU!D86 -> 0 | F86: =D86*iPCU!E86 -> 0
A87: =iPCU!A87 -> 0 | B87: =iPCU!B87 -> L.01.04 | C87: =iPCU!C87 -> 0 | E87: =D87*iPCU!D87 -> 0 | F87: =D87*iPCU!E87 -> 0
A88: =iPCU!A88 -> 0 | B88: =iPCU!B88 -> L.01.05 | C88: =iPCU!C88 -> 0 | E88: =D88*iPCU!D88 -> 0 | F88: =D88*iPCU!E88 -> 0
A89: =iPCU!A201 -> USCITE PER CONTO DI GESTIONI SPECIALI SEPARATI e FONDI | B89: =iPCU!B201 -> 0 | C89: =iPCU!C201 -> G | E89: =D89*iPCU!D201 -> 0 | F89: =D89*iPCU!E201 -> 0
A90: =iPCU!A202 -> USCITE per F-LAVORI MANUTENZIONE (2013-2015) | B90: =iPCU!B202 -> G.01.01 | E90: =D90*iPCU!D202 -> 0 | F90: =D90*iPCU!E202 -> 0
A91: =iPCU!A203 ->  | B91: =iPCU!B203 -> G.01.02 | E91: =D91*iPCU!D203 -> 0 | F91: =D91*iPCU!E203 -> 0
A92: =iPCU!A204 ->  | B92: =iPCU!B204 -> G.01.03 | E92: =D92*iPCU!D204 -> 0 | F92: =D92*iPCU!E204 -> 0
A93: =iPCU!A205 ->  | B93: =iPCU!B205 -> G.01.04 | E93: =D93*iPCU!D205 -> 0 | F93: =D93*iPCU!E205 -> 0
A94: =iPCU!A206 ->  | B94: =iPCU!B206 -> G.01.05 | E94: =D94*iPCU!D206 -> 0 | F94: =D94*iPCU!E206 -> 0
A95: =iPCU!A89 -> SPESE PERSONALI o ASSEGNATE DIRETTAMENTE AI CONDOMINI | B95: =iPCU!B89 -> 0 | C95: =iPCU!C89 -> P | E95: =D95*iPCU!D89 -> 0 | F95: =D95*iPCU!E89 -> 0
A96: =iPCU!A90 -> Condomino01 | B96: =iPCU!B90 -> P.01.01 | E96: =D96*iPCU!D90 -> 0 | F96: =D96*iPCU!E90 -> 0
A97: =iPCU!A91 -> Condomino02 | B97: =iPCU!B91 -> P.01.02 | E97: =D97*iPCU!D91 -> 0 | F97: =D97*iPCU!E91 -> 0
A98: =iPCU!A92 -> Condomino03 | B98: =iPCU!B92 -> P.01.03 | E98: =D98*iPCU!D92 -> 0 | F98: =D98*iPCU!E92 -> 0
A99: =iPCU!A93 -> Condomino04 S.r.l. | B99: =iPCU!B93 -> P.01.04 | E99: =D99*iPCU!D93 -> 0 | F99: =D99*iPCU!E93 -> 0
A100: =iPCU!A94 -> Condomino05 | B100: =iPCU!B94 -> P.01.05 | E100: =D100*iPCU!D94 -> 0 | F100: =D100*iPCU!E94 -> 0
A101: =iPCU!A95 -> Condomino06 | B101: =iPCU!B95 -> P.01.06 | E101: =D101*iPCU!D95 -> 0 | F101: =D101*iPCU!E95 -> 0
A102: =iPCU!A96 -> Condomino07 | B102: =iPCU!B96 -> P.01.07 | E102: =D102*iPCU!D96 -> 0 | F102: =D102*iPCU!E96 -> 0
A103: =iPCU!A97 -> Eredi Condomino08 | B103: =iPCU!B97 -> P.01.08 | E103: =D103*iPCU!D97 -> 0 | F103: =D103*iPCU!E97 -> 0
A104: =iPCU!A98 -> Condomino09 S.r.l. | B104: =iPCU!B98 -> P.01.09 | E104: =D104*iPCU!D98 -> 0 | F104: =D104*iPCU!E98 -> 0
A105: =iPCU!A99 -> Condomino10 | B105: =iPCU!B99 -> P.01.10 | E105: =D105*iPCU!D99 -> 0 | F105: =D105*iPCU!E99 -> 0
A106: =iPCU!A100 -> Condomino11 | B106: =iPCU!B100 -> P.01.11 | E106: =D106*iPCU!D100 -> 0 | F106: =D106*iPCU!E100 -> 0
A107: =iPCU!A101 -> Condomino12 | B107: =iPCU!B101 -> P.01.12 | E107: =D107*iPCU!D101 -> 0 | F107: =D107*iPCU!E101 -> 0
A108: =iPCU!A102 -> Condomino13 | B108: =iPCU!B102 -> P.01.13 | E108: =D108*iPCU!D102 -> 0 | F108: =D108*iPCU!E102 -> 0
A109: =iPCU!A103 -> Condomino14 | B109: =iPCU!B103 -> P.01.14 | E109: =D109*iPCU!D103 -> 0 | F109: =D109*iPCU!E103 -> 0
A110: =iPCU!A104 -> Condomino15 | B110: =iPCU!B104 -> P.01.15 | E110: =D110*iPCU!D104 -> 0 | F110: =D110*iPCU!E104 -> 0
A111: =iPCU!A105 -> Condomino16 | B111: =iPCU!B105 -> P.01.16 | E111: =D111*iPCU!D105 -> 0 | F111: =D111*iPCU!E105 -> 0
A112: =iPCU!A106 -> Condomino17 | B112: =iPCU!B106 -> P.01.17 | E112: =D112*iPCU!D106 -> 0 | F112: =D112*iPCU!E106 -> 0
A113: =iPCU!A107 -> Condomino18 | B113: =iPCU!B107 -> P.01.18 | E113: =D113*iPCU!D107 -> 0 | F113: =D113*iPCU!E107 -> 0
A114: =iPCU!A108 -> Condomino19 | B114: =iPCU!B108 -> P.01.19 | E114: =D114*iPCU!D108 -> 0 | F114: =D114*iPCU!E108 -> 0
A115: =iPCU!A109 -> Condomino20 | B115: =iPCU!B109 -> P.01.20 | E115: =D115*iPCU!D109 -> 0 | F115: =D115*iPCU!E109 -> 0
A116: =iPCU!A110 -> Condomino21 | B116: =iPCU!B110 -> P.01.21 | E116: =D116*iPCU!D110 -> 0 | F116: =D116*iPCU!E110 -> 0
A117: =iPCU!A111 -> Condomino22 | B117: =iPCU!B111 -> P.01.22 | E117: =D117*iPCU!D111 -> 0 | F117: =D117*iPCU!E111 -> 0
A118: =iPCU!A112 -> Condomino23 | B118: =iPCU!B112 -> P.01.23 | E118: =D118*iPCU!D112 -> 0 | F118: =D118*iPCU!E112 -> 0
A119: =iPCU!A113 ->  | B119: =iPCU!B113 -> P.01.24 | E119: =D119*iPCU!D113 -> 0 | F119: =D119*iPCU!E113 -> 0
A120: =iPCU!A114 ->  | B120: =iPCU!B114 -> P.01.25 | E120: =D120*iPCU!D114 -> 0 | F120: =D120*iPCU!E114 -> 0
A121: =iPCU!A115 ->  | B121: =iPCU!B115 -> P.01.26 | E121: =D121*iPCU!D115 -> 0 | F121: =D121*iPCU!E115 -> 0
A122: =iPCU!A116 ->  | B122: =iPCU!B116 -> P.01.27 | E122: =D122*iPCU!D116 -> 0 | F122: =D122*iPCU!E116 -> 0
A123: =iPCU!A117 ->  | B123: =iPCU!B117 -> P.01.28 | E123: =D123*iPCU!D117 -> 0 | F123: =D123*iPCU!E117 -> 0
A124: =iPCU!A118 ->  | B124: =iPCU!B118 -> P.01.29 | E124: =D124*iPCU!D118 -> 0 | F124: =D124*iPCU!E118 -> 0
A125: =iPCU!A119 ->  | B125: =iPCU!B119 -> P.01.30 | E125: =D125*iPCU!D119 -> 0 | F125: =D125*iPCU!E119 -> 0
A126: =iPCU!A120 ->  | B126: =iPCU!B120 -> P.01.31 | E126: =D126*iPCU!D120 -> 0 | F126: =D126*iPCU!E120 -> 0
A127: =iPCU!A121 ->  | B127: =iPCU!B121 -> P.01.32 | E127: =D127*iPCU!D121 -> 0 | F127: =D127*iPCU!E121 -> 0
A128: =iPCU!A122 ->  | B128: =iPCU!B122 -> P.01.33 | E128: =D128*iPCU!D122 -> 0 | F128: =D128*iPCU!E122 -> 0
A129: =iPCU!A123 ->  | B129: =iPCU!B123 -> P.01.34 | E129: =D129*iPCU!D123 -> 0 | F129: =D129*iPCU!E123 -> 0
A130: =iPCU!A124 ->  | B130: =iPCU!B124 -> P.01.35 | E130: =D130*iPCU!D124 -> 0 | F130: =D130*iPCU!E124 -> 0
A131: =iPCU!A125 ->  | B131: =iPCU!B125 -> P.01.36 | E131: =D131*iPCU!D125 -> 0 | F131: =D131*iPCU!E125 -> 0
A132: =iPCU!A126 ->  | B132: =iPCU!B126 -> P.01.37 | E132: =D132*iPCU!D126 -> 0 | F132: =D132*iPCU!E126 -> 0
A133: =iPCU!A127 ->  | B133: =iPCU!B127 -> P.01.38 | E133: =D133*iPCU!D127 -> 0 | F133: =D133*iPCU!E127 -> 0
A134: =iPCU!A128 ->  | B134: =iPCU!B128 -> P.01.39 | E134: =D134*iPCU!D128 -> 0 | F134: =D134*iPCU!E128 -> 0
A135: =iPCU!A129 ->  | B135: =iPCU!B129 -> P.01.40 | E135: =D135*iPCU!D129 -> 0 | F135: =D135*iPCU!E129 -> 0
A136: =iPCU!A130 ->  | B136: =iPCU!B130 -> P.01.41 | E136: =D136*iPCU!D130 -> 0 | F136: =D136*iPCU!E130 -> 0
A137: =iPCU!A131 ->  | B137: =iPCU!B131 -> P.01.42 | E137: =D137*iPCU!D131 -> 0 | F137: =D137*iPCU!E131 -> 0
A138: =iPCU!A132 ->  | B138: =iPCU!B132 -> P.01.43 | E138: =D138*iPCU!D132 -> 0 | F138: =D138*iPCU!E132 -> 0
A139: =iPCU!A133 ->  | B139: =iPCU!B133 -> P.01.44 | E139: =D139*iPCU!D133 -> 0 | F139: =D139*iPCU!E133 -> 0
A140: =iPCU!A134 ->  | B140: =iPCU!B134 -> P.01.45 | E140: =D140*iPCU!D134 -> 0 | F140: =D140*iPCU!E134 -> 0
A141: =iPCU!A135 ->  | B141: =iPCU!B135 -> P.01.46 | E141: =D141*iPCU!D135 -> 0 | F141: =D141*iPCU!E135 -> 0
A142: =iPCU!A136 ->  | B142: =iPCU!B136 -> P.01.47 | E142: =D142*iPCU!D136 -> 0 | F142: =D142*iPCU!E136 -> 0
A143: =iPCU!A137 ->  | B143: =iPCU!B137 -> P.01.48 | E143: =D143*iPCU!D137 -> 0 | F143: =D143*iPCU!E137 -> 0
A144: =iPCU!A138 ->  | B144: =iPCU!B138 -> P.01.49 | E144: =D144*iPCU!D138 -> 0 | F144: =D144*iPCU!E138 -> 0
A145: =iPCU!A139 ->  | B145: =iPCU!B139 -> P.01.50 | E145: =D145*iPCU!D139 -> 0 | F145: =D145*iPCU!E139 -> 0
A146: =iPCU!A140 ->  | B146: =iPCU!B140 -> P.01.51 | E146: =D146*iPCU!D140 -> 0 | F146: =D146*iPCU!E140 -> 0
A147: =iPCU!A141 ->  | B147: =iPCU!B141 -> P.01.52 | E147: =D147*iPCU!D141 -> 0 | F147: =D147*iPCU!E141 -> 0
A148: =iPCU!A142 ->  | B148: =iPCU!B142 -> P.01.53 | E148: =D148*iPCU!D142 -> 0 | F148: =D148*iPCU!E142 -> 0
A149: =iPCU!A143 ->  | B149: =iPCU!B143 -> P.01.54 | E149: =D149*iPCU!D143 -> 0 | F149: =D149*iPCU!E143 -> 0
A150: =iPCU!A144 ->  | B150: =iPCU!B144 -> P.01.55 | E150: =D150*iPCU!D144 -> 0 | F150: =D150*iPCU!E144 -> 0
A151: =iPCU!A145 ->  | B151: =iPCU!B145 -> P.01.56 | E151: =D151*iPCU!D145 -> 0 | F151: =D151*iPCU!E145 -> 0
A152: =iPCU!A146 ->  | B152: =iPCU!B146 -> P.01.57 | E152: =D152*iPCU!D146 -> 0 | F152: =D152*iPCU!E146 -> 0
A153: =iPCU!A147 ->  | B153: =iPCU!B147 -> P.01.58 | E153: =D153*iPCU!D147 -> 0 | F153: =D153*iPCU!E147 -> 0
A154: =iPCU!A148 ->  | B154: =iPCU!B148 -> P.01.59 | E154: =D154*iPCU!D148 -> 0 | F154: =D154*iPCU!E148 -> 0
A155: =iPCU!A149 ->  | B155: =iPCU!B149 -> P.01.60 | E155: =D155*iPCU!D149 -> 0 | F155: =D155*iPCU!E149 -> 0
A156: =iPCU!A150 ->  | B156: =iPCU!B150 -> P.01.61 | E156: =D156*iPCU!D150 -> 0 | F156: =D156*iPCU!E150 -> 0
A157: =iPCU!A151 ->  | B157: =iPCU!B151 -> P.01.62 | E157: =D157*iPCU!D151 -> 0 | F157: =D157*iPCU!E151 -> 0
A158: =iPCU!A152 ->  | B158: =iPCU!B152 -> P.01.63 | E158: =D158*iPCU!D152 -> 0 | F158: =D158*iPCU!E152 -> 0
A159: =iPCU!A153 ->  | B159: =iPCU!B153 -> P.01.64 | E159: =D159*iPCU!D153 -> 0 | F159: =D159*iPCU!E153 -> 0
A160: =iPCU!A154 ->  | B160: =iPCU!B154 -> P.01.65 | E160: =D160*iPCU!D154 -> 0 | F160: =D160*iPCU!E154 -> 0
A161: =iPCU!A155 ->  | B161: =iPCU!B155 -> P.01.66 | E161: =D161*iPCU!D155 -> 0 | F161: =D161*iPCU!E155 -> 0
A162: =iPCU!A156 ->  | B162: =iPCU!B156 -> P.01.67 | E162: =D162*iPCU!D156 -> 0 | F162: =D162*iPCU!E156 -> 0
A163: =iPCU!A157 ->  | B163: =iPCU!B157 -> P.01.68 | E163: =D163*iPCU!D157 -> 0 | F163: =D163*iPCU!E157 -> 0
A164: =iPCU!A158 ->  | B164: =iPCU!B158 -> P.01.69 | E164: =D164*iPCU!D158 -> 0 | F164: =D164*iPCU!E158 -> 0
A165: =iPCU!A159 ->  | B165: =iPCU!B159 -> P.01.70 | E165: =D165*iPCU!D159 -> 0 | F165: =D165*iPCU!E159 -> 0
A166: =iPCU!A160 ->  | B166: =iPCU!B160 -> P.01.71 | E166: =D166*iPCU!D160 -> 0 | F166: =D166*iPCU!E160 -> 0
A167: =iPCU!A161 ->  | B167: =iPCU!B161 -> P.01.72 | E167: =D167*iPCU!D161 -> 0 | F167: =D167*iPCU!E161 -> 0
A168: =iPCU!A162 ->  | B168: =iPCU!B162 -> P.01.73 | E168: =D168*iPCU!D162 -> 0 | F168: =D168*iPCU!E162 -> 0
A169: =iPCU!A163 ->  | B169: =iPCU!B163 -> P.01.74 | E169: =D169*iPCU!D163 -> 0 | F169: =D169*iPCU!E163 -> 0
A170: =iPCU!A164 ->  | B170: =iPCU!B164 -> P.01.75 | E170: =D170*iPCU!D164 -> 0 | F170: =D170*iPCU!E164 -> 0
A171: =iPCU!A165 ->  | B171: =iPCU!B165 -> P.01.76 | E171: =D171*iPCU!D165 -> 0 | F171: =D171*iPCU!E165 -> 0
A172: =iPCU!A166 ->  | B172: =iPCU!B166 -> P.01.77 | E172: =D172*iPCU!D166 -> 0 | F172: =D172*iPCU!E166 -> 0
A173: =iPCU!A167 ->  | B173: =iPCU!B167 -> P.01.78 | E173: =D173*iPCU!D167 -> 0 | F173: =D173*iPCU!E167 -> 0
A174: =iPCU!A168 ->  | B174: =iPCU!B168 -> P.01.79 | E174: =D174*iPCU!D168 -> 0 | F174: =D174*iPCU!E168 -> 0
A175: =iPCU!A169 ->  | B175: =iPCU!B169 -> P.01.80 | E175: =D175*iPCU!D169 -> 0 | F175: =D175*iPCU!E169 -> 0
A176: =iPCU!A170 ->  | B176: =iPCU!B170 -> P.01.81 | E176: =D176*iPCU!D170 -> 0 | F176: =D176*iPCU!E170 -> 0
A177: =iPCU!A171 ->  | B177: =iPCU!B171 -> P.01.82 | E177: =D177*iPCU!D171 -> 0 | F177: =D177*iPCU!E171 -> 0
A178: =iPCU!A172 ->  | B178: =iPCU!B172 -> P.01.83 | E178: =D178*iPCU!D172 -> 0 | F178: =D178*iPCU!E172 -> 0
A179: =iPCU!A173 ->  | B179: =iPCU!B173 -> P.01.84 | E179: =D179*iPCU!D173 -> 0 | F179: =D179*iPCU!E173 -> 0
A180: =iPCU!A174 ->  | B180: =iPCU!B174 -> P.01.85 | E180: =D180*iPCU!D174 -> 0 | F180: =D180*iPCU!E174 -> 0
A181: =iPCU!A175 ->  | B181: =iPCU!B175 -> P.01.86 | E181: =D181*iPCU!D175 -> 0 | F181: =D181*iPCU!E175 -> 0
A182: =iPCU!A176 ->  | B182: =iPCU!B176 -> P.01.87 | E182: =D182*iPCU!D176 -> 0 | F182: =D182*iPCU!E176 -> 0
A183: =iPCU!A177 ->  | B183: =iPCU!B177 -> P.01.88 | E183: =D183*iPCU!D177 -> 0 | F183: =D183*iPCU!E177 -> 0
A184: =iPCU!A178 ->  | B184: =iPCU!B178 -> P.01.89 | E184: =D184*iPCU!D178 -> 0 | F184: =D184*iPCU!E178 -> 0
A185: =iPCU!A179 ->  | B185: =iPCU!B179 -> P.01.90 | E185: =D185*iPCU!D179 -> 0 | F185: =D185*iPCU!E179 -> 0
A186: =iPCU!A180 ->  | B186: =iPCU!B180 -> P.01.91 | E186: =D186*iPCU!D180 -> 0 | F186: =D186*iPCU!E180 -> 0
A187: =iPCU!A181 ->  | B187: =iPCU!B181 -> P.01.92 | E187: =D187*iPCU!D181 -> 0 | F187: =D187*iPCU!E181 -> 0
A188: =iPCU!A182 ->  | B188: =iPCU!B182 -> P.01.93 | E188: =D188*iPCU!D182 -> 0 | F188: =D188*iPCU!E182 -> 0
A189: =iPCU!A183 ->  | B189: =iPCU!B183 -> P.01.94 | E189: =D189*iPCU!D183 -> 0 | F189: =D189*iPCU!E183 -> 0
A190: =iPCU!A184 ->  | B190: =iPCU!B184 -> P.01.95 | E190: =D190*iPCU!D184 -> 0 | F190: =D190*iPCU!E184 -> 0
A191: =iPCU!A185 ->  | B191: =iPCU!B185 -> P.01.96 | E191: =D191*iPCU!D185 -> 0 | F191: =D191*iPCU!E185 -> 0
A192: =iPCU!A186 ->  | B192: =iPCU!B186 -> P.01.97 | E192: =D192*iPCU!D186 -> 0 | F192: =D192*iPCU!E186 -> 0
A193: =iPCU!A187 ->  | B193: =iPCU!B187 -> P.01.98 | E193: =D193*iPCU!D187 -> 0 | F193: =D193*iPCU!E187 -> 0
A194: =iPCU!A188 ->  | B194: =iPCU!B188 -> P.01.99 | E194: =D194*iPCU!D188 -> 0 | F194: =D194*iPCU!E188 -> 0
A195: TOTALE SPESE PREVENTIVATE DA RIPARTIRE | D195: =SUMIFS(D11:D194,C11:C194,"=?") -> 14800 | E195: =SUM(E11:E194) -> 4780 | F195: =SUM(F11:F194) -> 8550
F196: 0 | G196: 0

Sheet iGIORNALE (hidden)
O1: 0
A2: Le celle con sfondo giallo contengono formule e non devono essere mai sovrascritte. I risultati delle formule sono visualizzati solo se la cella di colonna A della riga non è vuota. Le formule possono essere ricopiate singolarmente o con il metodo "seleziona e trascina" partendo da una cella che contiene la formula.
A3: Le celle di colonna M contengono solitamente una formula, quella più usuale per associare l'importo al conto movimentato. La formula può essere variata o si può scrivere direttamente il valore, quando l'importo movimentato non corrisponde ad una entrata o uscita scritta sulla stessa riga. La formula originaria può sempre essere riscritta copiandola dalla cella M10.
H4: ATTENZIONE! Le scritture guidate saranno attendibili solo se i prospetti contabili sono aggiornati. È bene quindi, prima di ogni scrittura guidata automatizzata, ricalcolare il bilancio di esercizio e le scritture fiscali. | Q4: Calcolo di controllo sui singoli conti
Q5: Conto | R5: Importo
A6: ='iP1'!A5 -> Condominio "PROTOTIPO"
A7: ="REGISTRO DELLE OPERAZIONI CONTABILI - ANNO " & 'iP1'!A37 -> REGISTRO DELLE OPERAZIONI CONTABILI - ANNO 2022 | Q7: A.01.01 | R7: =SUMIFS($M$11:M$1504,L$11:L$1504,Q7) -> 0
A8: Reg. | B8: Data | E8: DESCRIZIONE OPERAZIONE (e/o STRINGA INFORMATIVA) | F8: CASSA | I8: CONTO CORRENTE | L8: MOVIMENTO | N8: Pezza giustificativa | Q8: ="D.03.01." & RIGHT('iP1'!A37,2) -> D.03.01.22 | R8: =SUMIFS($M$11:M$1504,L$11:L$1504,Q8,M$11:M$1504,">0") -> 1.07
A9: n° | F9: ENTRATA | G9: USCITA | H9: SALDO | I9: ENTRATA | J9: USCITA | K9: SALDO | L9: CONTO | M9: IMPOR.
A10: =COUNTA(A11:A1460) -> 247 | B10: g | C10: m | D10: a | E10: TOTALI | F10: =ROUND(SUM(F12:F921),2) -> 504.9 | G10: =SUM(G12:G921) -> 504.9 | H10: =F10-G10 -> 0 | I10: =ROUND(SUM(I12:I921),2) -> 1897.15 | J10: =SUM(J12:J921) -> 1176.81 | K10: =I10-J10 -> 720.34 | M10: =IF(LEN(L10)>0,F10+G10+I10+J10,"") ->  | N10: n°
A11: 0 | B11: 0 | C11: 0 | D11: 2022 | E11: =========== SCRITTURE DI APERTURA ESERCIZIO ========== (riporto valori da esercizio precedente)
A12: a | B12: 0 | C12: 0 | D12: 2022 | E12: =========== SCRITTURE DI APERTURA ESERCIZIO ========== (riporto valori da stato patrimoniale esercizio precedente)
A13: l | B13: 0 | C13: 0 | D13: 2022 | E13: LIQUIDITÀ
A14: l | B14: 0 | C14: 0 | D14: 2022 | E14: SITUAZIONE LIQUIDITÀ INIZIALE (Gestione Ordinaria) | F14: 0 | H14: =IF(A14<>"",IF(INDIRECT(ADDRESS(ROW()-1,8))="",ROUND(SUM(INDIRECT(ADDRESS(ROW()-2,8)),F14,-G14),2),ROUND(SUM(INDIRECT(ADDRESS(ROW()-1,8)),F14,-G14),2)),"") -> 0 | I14: 181.22 | K14: =IF(A14<>"",IF(INDIRECT(ADDRESS(ROW()-1,11))="",ROUND(SUM(INDIRECT(ADDRESS(ROW()-2,11)),I14,-J14),2),ROUND(SUM(INDIRECT(ADDRESS(ROW()-1,11)),I14,-J14),2)),"") -> 181.22
A15: l | B15: 0 | C15: 0 | D15: 2022 | E15: SITUAZIONE LIQUIDITÀ INIZIALE - Gestione straordinaria - | F15: 0 | H15: =IF(A15<>"",IF(INDIRECT(ADDRESS(ROW()-1,8))="",ROUND(SUM(INDIRECT(ADDRESS(ROW()-2,8)),F15,-G15),2),ROUND(SUM(INDIRECT(ADDRESS(ROW()-1,8)),F15,-G15),2)),"") -> 0 | I15: 0 | K15: =IF(A15<>"",IF(INDIRECT(ADDRESS(ROW()-1,11))="",ROUND(SUM(INDIRECT(ADDRESS(ROW()-2,11)),I15,-J15),2),ROUND(SUM(INDIRECT(ADDRESS(ROW()-1,11)),I15,-J15),2)),"") -> 181.22
A16: l | B16: 0 | C16: 0 | D16: 2022 | E16: SITUAZIONE LIQUIDITÀ INIZIALE - Gestione straordinaria - | F16: 0 | H16: 0 | I16: 0 | K16: 181.22
A17: l | B17: 0 | C17: 0 | D17: 2022 | E17: SITUAZIONE LIQUIDITÀ INIZIALE - Gestione straordinaria - | F17: 0 | H17: 0 | I17: 0 | K17: 181.22
A18: l | B18: 0 | C18: 0 | D18: 2022 | E18: SITUAZIONE LIQUIDITÀ INIZIALE - Gestione straordinaria - | F18: 0 | H18: 0 | I18: 0 | K18: 181.22
A19: l | B19: 0 | C19: 0 | D19: 2022 | E19: SITUAZIONE LIQUIDITÀ INIZIALE - Gestione straordinaria - | F19: 0 | H19: 0 | I19: 0 | K19: 181.22
A20: c | B20: 0 | C20: 0 | D20: 2022 | E20: CREDITI | H20: 0 | K20: 181.22
A21: c | B21: 0 | C21: 0 | D21: 2022 | E21: da DEPOSITI di DENARO presso Terzi | H21: 0 | K21: 181.22
A22: c | B22: 0 | C22: 0 | D22: 2022 | E22: da ENEL ENERGIA SpA # deposito cauzionale scala A civico 38 # 01 # D-01 # 06/07/2021 | H22: 0 | K22: 181.22 | L22: C.01.01.21 | M22: 42.27
A23: c | B23: 0 | C23: 0 | D23: 2022 | E23: da ENEL ENERGIA SpA # deposito cauzionale scala B civico 30 # 02 # D-01 # 06/07/2021 | H23: 0 | K23: 181.22 | L23: C.01.01.21 | M23: 42.27
A24: c | B24: 0 | C24: 0 | D24: 2022 | E24: da ENEL ENERGIA SpA # deposito cauzionale scala C civico 22 # 03 # D-01 # 06/07/2021 | H24: 0 | K24: 181.22 | L24: C.01.01.21 | M24: 42.27
A25: c | B25: 0 | C25: 0 | D25: 2022 | E25: da GESTIONI SPECIALI SEPARATE E FONDI | H25: 0 | K25: 181.22
A26: c | B26: 0 | C26: 0 | D26: 2022 | E26: da Gestione Speciale LAVORI 1 # prestito da gestione ordinaria # 04 # S-01 # 07/01/2021 | H26: 0 | K26: 181.22 | L26: C.06.01.21 | M26: 1.01
A27: c | B27: 0 | C27: 0 | D27: 2022 | E27: da CONDOMINI | H27: 0 | K27: 181.22
A28: c | B28: 0 | C28: 0 | D28: 2022 | E28: ESERCIZIO 2017 | H28: 0 | K28: 181.22
A29: c | B29: 0 | C29: 0 | D29: 2022 | E29: Condomino06 | H29: 0 | K29: 181.22 | L29: C.04.06.17 | M29: 2355.53
A30: c | B30: 0 | C30: 0 | D30: 2022 | E30: ESERCIZIO 2018 | H30: 0 | K30: 181.22
A31: c | B31: 0 | C31: 0 | D31: 2022 | E31: Condomino03 | H31: 0 | K31: 181.22 | L31: C.04.03.18 | M31: 216.02
A32: c | B32: 0 | C32: 0 | D32: 2022 | E32: Condomino04 S.r.l. | H32: 0 | K32: 181.22 | L32: C.04.04.18 | M32: 209.74
A33: c | B33: 0 | C33: 0 | D33: 2022 | E33: Condomino06 | H33: 0 | K33: 181.22 | L33: C.04.06.18 | M33: 515.59
A34: c | B34: 0 | C34: 0 | D34: 2022 | E34: Condomino10 | H34: 0 | K34: 181.22 | L34: C.04.10.18 | M34: 525.64
A35: c | B35: 0 | C35: 0 | D35: 2022 | E35: ESERCIZIO 2019 | H35: 0 | K35: 181.22
A36: c | B36: 0 | C36: 0 | D36: 2022 | E36: Condomino03 | H36: 0 | K36: 181.22 | L36: C.04.03.19 | M36: 376.65
A37: c | B37: 0 | C37: 0 | D37: 2022 | E37: Condomino04 S.r.l. | H37: 0 | K37: 181.22 | L37: C.04.04.19 | M37: 338.12
A38: c | B38: 0 | C38: 0 | D38: 2022 | E38: Condomino06 | H38: 0 | K38: 181.22 | L38: C.04.06.19 | M38: 422.78
A39: c | B39: 0 | C39: 0 | D39: 2022 | E39: Condomino10 | H39: 0 | K39: 181.22 | L39: C.04.10.19 | M39: 898
A40: c | B40: 0 | C40: 0 | D40: 2022 | E40: ESERCIZIO 2020 | H40: 0 | K40: 181.22
A41: c | B41: 0 | C41: 0 | D41: 2022 | E41: Condomino03 | H41: 0 | K41: 181.22 | L41: C.04.03.20 | M41: 494.68
A42: c | B42: 0 | C42: 0 | D42: 2022 | E42: Condomino04 S.r.l. | H42: 0 | K42: 181.22 | L42: C.04.04.20 | M42: 454.48
A43: c | B43: 0 | C43: 0 | D43: 2022 | E43: Condomino06 | H43: 0 | K43: 181.22 | L43: C.04.06.20 | M43: 475.6
A44: c | B44: 0 | C44: 0 | D44: 2022 | E44: Condomino10 | H44: 0 | K44: 181.22 | L44: C.04.10.20 | M44: 1050.3
A45: c | B45: 0 | C45: 0 | D45: 2022 | E45: Condomino15 | H45: 0 | K45: 181.22 | L45: C.04.15.20 | M45: 277.54
A46: c | B46: 0 | C46: 0 | D46: 2022 | E46: ESERCIZIO 2021 | H46: 0 | K46: 181.22
A47: c | B47: 0 | C47: 0 | D47: 2022 | E47: Condomino03 | H47: 0 | K47: 181.22 | L47: C.04.03.21 | M47: 169.05
A48: c | B48: 0 | C48: 0 | D48: 2022 | E48: Condomino04 S.r.l. | H48: 0 | K48: 181.22 | L48: C.04.04.21 | M48: 229.27
A49: c | B49: 0 | C49: 0 | D49: 2022 | E49: Condomino06 | H49: 0 | K49: 181.22 | L49: C.04.06.21 | M49: 473.66
A50: c | B50: 0 | C50: 0 | D50: 2022 | E50: Condomino10 | H50: 0 | K50: 181.22 | L50: C.04.10.21 | M50: 1013.3
A51: c | B51: 0 | C51: 0 | D51: 2022 | E51: Condomino15 | H51: 0 | K51: 181.22 | L51: C.04.15.21 | M51: 218.93
A52: c | B52: 0 | C52: 0 | D52: 2022 | E52: Condomino17 | H52: 0 | K52: 181.22 | L52: C.04.17.21 | M52: 13.1
A53: c | B53: 0 | C53: 0 | D53: 2022 | E53: Condomino23 | H53: 0 | K53: 181.22 | L53: C.04.23.21 | M53: 130.56
A54: d | B54: 0 | C54: 0 | D54: 2022 | E54: DEBITI | H54: 0 | K54: 181.22
A55: d | B55: 0 | C55: 0 | D55: 2022 | E55: DEPOSITI presso TERZI | H55: 0 | K55: 181.22
A56: d | B56: 0 | C56: 0 | D56: 2022 | E56: Condomino01 | H56: 0 | K56: 181.22 | L56: D.05.01 | M56: 5.32
A57: d | B57: 0 | C57: 0 | D57: 2022 | E57: Condomino02 | H57: 0 | K57: 181.22 | L57: D.05.02 | M57: 4.05
A58: d | B58: 0 | C58: 0 | D58: 2022 | E58: Condomino03 | H58: 0 | K58: 181.22 | L58: D.05.03 | M58: 0.84
A59: d | B59: 0 | C59: 0 | D59: 2022 | E59: Condomino04 S.r.l. | H59: 0 | K59: 181.22 | L59: D.05.04 | M59: 7.14
A60: d | B60: 0 | C60: 0 | D60: 2022 | E60: Condomino05 | H60: 0 | K60: 181.22 | L60: D.05.05 | M60: 5.68
A61: d | B61: 0 | C61: 0 | D61: 2022 | E61: Condomino06 | H61: 0 | K61: 181.22 | L61: D.05.06 | M61: 4.84
A62: d | B62: 0 | C62: 0 | D62: 2022 | E62: Condomino07 | H62: 0 | K62: 181.22 | L62: D.05.07 | M62: 5.77
A63: d | B63: 0 | C63: 0 | D63: 2022 | E63: Condomino08 | H63: 0 | K63: 181.22 | L63: D.05.08 | M63: 2.14
A64: d | B64: 0 | C64: 0 | D64: 2022 | E64: Condomino09 S.r.l. | H64: 0 | K64: 181.22 | L64: D.05.09 | M64: 6.55
A65: d | B65: 0 | C65: 0 | D65: 2022 | E65: Condomino10 | H65: 0 | K65: 181.22 | L65: D.05.10 | M65: 11.09
A66: d | B66: 0 | C66: 0 | D66: 2022 | E66: Condomino11 | H66: 0 | K66: 181.22 | L66: D.05.11 | M66: 4.78
A67: d | B67: 0 | C67: 0 | D67: 2022 | E67: Condomino12 | H67: 0 | K67: 181.22 | L67: D.05.12 | M67: 5.49
A68: d | B68: 0 | C68: 0 | D68: 2022 | E68: Condomino13 | H68: 0 | K68: 181.22 | L68: D.05.13 | M68: 8.14
A69: d | B69: 0 | C69: 0 | D69: 2022 | E69: Condomino14 | H69: 0 | K69: 181.22 | L69: D.05.14 | M69: 3.79
A70: d | B70: 0 | C70: 0 | D70: 2022 | E70: Condomino15 | H70: 0 | K70: 181.22 | L70: D.05.15 | M70: 7.53
A71: d | B71: 0 | C71: 0 | D71: 2022 | E71: Condomino16 | H71: 0 | K71: 181.22 | L71: D.05.16 | M71: 5.23
A72: d | B72: 0 | C72: 0 | D72: 2022 | E72: Condomino17 | H72: 0 | K72: 181.22 | L72: D.05.17 | M72: 4.88
A73: d | B73: 0 | C73: 0 | D73: 2022 | E73: Condomino18 | H73: 0 | K73: 181.22 | L73: D.05.18 | M73: 4.24
A74: d | B74: 0 | C74: 0 | D74: 2022 | E74: Condomino19 | H74: 0 | K74: 181.22 | L74: D.05.19 | M74: 6.41
A75: d | B75: 0 | C75: 0 | D75: 2022 | E75: Condomino20 | H75: 0 | K75: 181.22 | L75: D.05.20 | M75: 5.52
A76: d | B76: 0 | C76: 0 | D76: 2022 | E76: Condomino21 | H76: 0 | K76: 181.22 | L76: D.05.21 | M76: 5.21
A77: d | B77: 0 | C77: 0 | D77: 2022 | E77: Condomino22 | H77: 0 | K77: 181.22 | L77: D.05.22 | M77: 4.04
A78: d | B78: 0 | C78: 0 | D78: 2022 | E78: Condomino23 | H78: 0 | K78: 181.22 | L78: D.05.23 | M78: 8.13
A79: d | B79: 0 | C79: 0 | D79: 2022 | E79: v/s TERZI PRIVATI | H79: 0 | K79: 181.22
A80: d | B80: 0 | C80: 0 | D80: 2022 | E80: v/s CONSULENTE FISCALE # Impegno di spesa Consulenza fiscale 2019 # 01 # F-06 # 31/12/2019 | H80: 0 | K80: 181.22 | L80: D.02.03.19 | M80: 300
A81: d | B81: 0 | C81: 0 | D81: 2022 | E81: v/s CHIEFARI Pietro # impegno spesa comp. Amm. Es. 2019 # 02 # F-07 # 31/12/2019 | H81: 0 | K81: 181.22 | L81: D.02.03.19 | M81: 1200
A82: d | B82: 0 | C82: 0 | D82: 2022 | E82: v/s AVVOCATO Giuseppe # avviso fattura n. 10/2020 del 1-12-2020 # 03 # F-08 # 01/12/2020 | H82: 0 | K82: 181.22 | L82: D.02.02.20 | M82: 50
A83: d | B83: 0 | C83: 0 | D83: 2022 | E83: v/s CHIEFARI Pietro # impegno spesa comp. Amm. Es. 2020 # 04 # F-07 # 31/12/2020 | H83: =IF(A83<>"",IF(INDIRECT(ADDRESS(ROW()-1,8))="",ROUND(SUM(INDIRECT(ADDRESS(ROW()-2,8)),F83,-G83),2),ROUND(SUM(INDIRECT(ADDRESS(ROW()-1,8)),F83,-G83),2)),"") -> 0 | K83: =IF(A83<>"",IF(INDIRECT(ADDRESS(ROW()-1,11))="",ROUND(SUM(INDIRECT(ADDRESS(ROW()-2,11)),I83,-J83),2),ROUND(SUM(INDIRECT(ADDRESS(ROW()-1,11)),I83,-J83),2)),"") -> 181.22 | L83: D.02.03.20 | M83: 1400
A84: d | B84: 0 | C84: 0 | D84: 2022 | E84: v/s CONSULENTE FISCALE # Impegno di spesa Consulenza fiscale 2020 # 05 # F-06 # 31/12/2020 | H84: 0 | K84: 181.22 | L84: D.02.03.20 | M84: 300
A85: d | B85: 0 | C85: 0 | D85: 2022 | E85: v/s OTIR SERVIZI Srl # Fatture del 24-02-2021 manutenz. Straord. # 06 # F-03 # 24/02/2021 | H85: 0 | K85: 181.22 | L85: D.02.01.21 | M85: 231
A86: d | B86: 0 | C86: 0 | D86: 2022 | E86: v/s OTIR SERVIZI Srl # Fattura n. 3FO21025812 del 07-01-2021 # 07 # F-03 # 07/01/2021 | H86: 0 | K86: 181.22 | L86: D.02.01.21 | M86: 57.22
A87: d | B87: 0 | C87: 0 | D87: 2022 | E87: v/s OTIR SERVIZI Srl # Fattura n. 3FO21025811 del 07-01-2021 # 08 # F-03 # 07/01/2021 | H87: 0 | K87: 181.22 | L87: D.02.01.21 | M87: 57.22
A88: d | B88: 0 | C88: 0 | D88: 2022 | E88: v/s OTIR SERVIZI Srl # Fattura n. 3FO21025813 del 07-01-2021 # 09 # F-03 # 07/01/2021 | H88: 0 | K88: 181.22 | L88: D.02.01.21 | M88: 57.22
A89: d | B89: 0 | C89: 0 | D89: 2022 | E89: v/s OTIR SERVIZI Srl # Fattura 3FC21006548 del 05-03-2021 # 10 # F-03 # 05/03/2021 | H89: 0 | K89: 181.22 | L89: D.02.01.21 | M89: 43
A90: d | B90: 0 | C90: 0 | D90: 2022 | E90: v/s OTIR SERVIZI Srl # Fattura 3FC21006550 del 05-03-2021 # 11 # F-03 # 05/03/2021 | H90: 0 | K90: 181.22 | L90: D.02.01.21 | M90: 43
A91: d | B91: 0 | C91: 0 | D91: 2022 | E91: v/s OTIR SERVIZI Srl # Fattura 3FC21006549 del 05-03-2021 # 12 # F-03 # 05/03/2021 | H91: 0 | K91: 181.22 | L91: D.02.01.21 | M91: 43
A92: d | B92: 0 | C92: 0 | D92: 2022 | E92: v/s OTIR SERVIZI Srl # Fattura n. 3FO21084628del 01/07-2021 # 13 # F-03 # 01/07/2021 | H92: 0 | K92: 181.22 | L92: D.02.01.21 | M92: 407.22
A93: d | B93: 0 | C93: 0 | D93: 2022 | E93: v/s OTIR SERVIZI Srl # Fattura n. 3FO21084627 del 01-07-2021 # 14 # F-03 # 01/07/2021 | H93: 0 | K93: 181.22 | L93: D.02.01.21 | M93: 407.22
A94: d | B94: 0 | C94: 0 | D94: 2022 | E94: v/s OTIR SERVIZI Srl # Fattura n. 3FO21084629 del 01-07-2021 # 15 # F-03 # 01/07/2021 | H94: 0 | K94: 181.22 | L94: D.02.01.21 | M94: 407.22
A95: d | B95: 0 | C95: 0 | D95: 2022 | E95: v/s OTIR SERVIZI Srl # Fattura n. 3FC21033819del 10-12-2021 # 16 # F-03 # 10/12/2021 | H95: 0 | K95: 181.22 | L95: D.02.01.21 | M95: 200.2
A96: d | B96: 0 | C96: 0 | D96: 2022 | E96: v/s ENEL ENERGIA SpA # Fattura n. 4157845945 del 08-12-2021 # 17 # C-03 # 08/12/2021 | H96: 0 | K96: 181.22 | L96: D.02.01.21 | M96: 153.94
A97: d | B97: 0 | C97: 0 | D97: 2022 | E97: v/s Samuele SAVERIO # Fattura n. 310 del 22-12-2021 # 18 # F-01 # 22/12/2021 | H97: 0 | K97: 181.22 | L97: D.02.01.21 | M97: 60
A98: d | B98: 0 | C98: 0 | D98: 2022 | E98: v/s Samuele SAVERIO # Fattura n. 311 del 22-12-2021 # 19 # F-01 # 22/12/2021 | H98: 0 | K98: 181.22 | L98: D.02.01.21 | M98: 60
A99: d | B99: 0 | C99: 0 | D99: 2022 | E99: v/s Samuele SAVERIO # Fattura n. 312 del 22-12-2021 # 20 # F-01 # 22/12/2021 | H99: 0 | K99: 181.22 | L99: D.02.01.21 | M99: 60
A100: d | B100: 0 | C100: 0 | D100: 2022 | E100: v/s CHIEFARI Pietro # Impegno di spesa competenze Amministratore 2021 # 21 # F-07 # 31/12/2021 | H100: 0 | K100: 181.22 | L100: D.02.03.21 | M100: 1200
A101: d | B101: 0 | C101: 0 | D101: 2022 | E101: v/s CONSULENTE FISCALE # Impegno di spesa consulenza fiscale 2021 # 22 # F-06 # 31/12/2021 | H101: 0 | K101: 181.22 | L101: D.02.03.21 | M101: 300
A102: d | B102: 0 | C102: 0 | D102: 2022 | E102: v/s GESTIONI SPECIALI SEPARATE e FONDI | H102: 0 | K102: 181.22
A103: d | B103: 0 | C103: 0 | D103: 2022 | E103: v/s CONDOMINI (Quote versate in eccesso) | H103: 0 | K103: 181.22
A104: d | B104: 0 | C104: 0 | D104: 2022 | E104: Condomino01 | H104: 0 | K104: 181.22 | L104: D.04.01 | M104: 178.06
A105: d | B105: 0 | C105: 0 | D105: 2022 | E105: Condomino02 | H105: 0 | K105: 181.22 | L105: D.04.02 | M105: 322.97
A106: d | B106: 0 | C106: 0 | D106: 2022 | E106: Condomino05 | H106: 0 | K106: 181.22 | L106: D.04.05 | M106: 212.14
A107: d | B107: 0 | C107: 0 | D107: 2022 | E107: Condomino07 | H107: 0 | K107: 181.22 | L107: D.04.07 | M107: 179.04
A108: d | B108: 0 | C108: 0 | D108: 2022 | E108: Condomino08 | H108: 0 | K108: 181.22 | L108: D.04.08 | M108: 18.8
A109: d | B109: 0 | C109: 0 | D109: 2022 | E109: Condomino09 S.r.l. | H109: 0 | K109: 181.22 | L109: D.04.09 | M109: 315.36
A110: d | B110: 0 | C110: 0 | D110: 2022 | E110: Condomino11 | H110: 0 | K110: 181.22 | L110: D.04.11 | M110: 97.88
A111: d | B111: 0 | C111: 0 | D111: 2022 | E111: Condomino12 | H111: 0 | K111: 181.22 | L111: D.04.12 | M111: 591.44
A112: d | B112: 0 | C112: 0 | D112: 2022 | E112: Condomino13 | H112: 0 | K112: 181.22 | L112: D.04.13 | M112: 319.89
A113: d | B113: 0 | C113: 0 | D113: 2022 | E113: Condomino14 | H113: 0 | K113: 181.22 | L113: D.04.14 | M113: 290.2
A114: d | B114: 0 | C114: 0 | D114: 2022 | E114: Condomino16 | H114: 0 | K114: 181.22 | L114: D.04.16 | M114: 234.35
A115: d | B115: 0 | C115: 0 | D115: 2022 | E115: Condomino18 | H115: 0 | K115: 181.22 | L115: D.04.18 | M115: 361.89
A116: d | B116: 0 | C116: 0 | D116: 2022 | E116: Condomino19 | H116: 0 | K116: 181.22 | L116: D.04.19 | M116: 259.28
A117: d | B117: 0 | C117: 0 | D117: 2022 | E117: Condomino20 | H117: 0 | K117: 181.22 | L117: D.04.20 | M117: 221.43
A118: d | B118: 0 | C118: 0 | D118: 2022 | E118: Condomino21 | H118: 0 | K118: 181.22 | L118: D.04.21 | M118: 203.21
A119: d | B119: 0 | C119: 0 | D119: 2022 | E119: Condomino22 | H119: 0 | K119: 181.22 | L119: D.04.22 | M119: 197.37
A120: s | B120: 1 | C120: 1 | D120: 2022 | E120: OPERAZIONI DI STORNO | H120: 0 | K120: 181.22
A121: s | B121: 1 | C121: 1 | D121: 2022 | E121: Restituzione a Condomino01 | H121: 0 | K121: 181.22 | L121: U.01.01 | M121: 178.06
A122: s | B122: 1 | C122: 1 | D122: 2022 | E122: Condomino01 # Versamento in conto quota esercizio 2022 per storno credito 2021 | H122: 0 | K122: 181.22 | L122: Q.01.01 | M122: 178.06
A123: s | B123: 1 | C123: 1 | D123: 2022 | E123: Restituzione a Condomino02 | H123: 0 | K123: 181.22 | L123: U.01.02 | M123: 322.97
A124: s | B124: 1 | C124: 1 | D124: 2022 | E124: Condomino02 # Versamento in conto quota esercizio 2022 per storno credito 2021 | H124: 0 | K124: 181.22 | L124: Q.01.02 | M124: 322.97
A125: s | B125: 1 | C125: 1 | D125: 2022 | E125: Restituzione a Condomino05 | H125: 0 | K125: 181.22 | L125: U.01.05 | M125: 212.14
A126: s | B126: 1 | C126: 1 | D126: 2022 | E126: Condomino05 # Versamento in conto quota esercizio 2022 per storno credito 2021 | H126: 0 | K126: 181.22 | L126: Q.01.05 | M126: 212.14
A127: s | B127: 1 | C127: 1 | D127: 2022 | E127: Restituzione a Condomino07 | H127: 0 | K127: 181.22 | L127: U.01.07 | M127: 179.04
A128: s | B128: 1 | C128: 1 | D128: 2022 | E128: Condomino07 # Versamento in conto quota esercizio 2022 per storno credito 2021 | H128: 0 | K128: 181.22 | L128: Q.01.07 | M128: 179.04
A129: s | B129: 1 | C129: 1 | D129: 2022 | E129: Restituzione a Condomino08 | H129: 0 | K129: 181.22 | L129: U.01.08 | M129: 18.8
A130: s | B130: 1 | C130: 1 | D130: 2022 | E130: Condomino08 # Versamento in conto quota esercizio 2022 per storno credito 2021 | H130: 0 | K130: 181.22 | L130: Q.01.08 | M130: 18.8
A131: s | B131: 1 | C131: 1 | D131: 2022 | E131: Restituzione a Condomino09 S.r.l. | H131: 0 | K131: 181.22 | L131: U.01.09 | M131: 315.36
A132: s | B132: 1 | C132: 1 | D132: 2022 | E132: Condomino09 S.r.l. # Versamento in conto quota esercizio 2022 per storno credito 2021 | H132: 0 | K132: 181.22 | L132: Q.01.09 | M132: 315.36
A133: s | B133: 1 | C133: 1 | D133: 2022 | E133: Restituzione a Condomino11 | H133: 0 | K133: 181.22 | L133: U.01.11 | M133: 97.88
A134: s | B134: 1 | C134: 1 | D134: 2022 | E134: Condomino11 # Versamento in conto quota esercizio 2022 per storno credito 2021 | H134: 0 | K134: 181.22 | L134: Q.01.11 | M134: 97.88
A135: s | B135: 1 | C135: 1 | D135: 2022 | E135: Restituzione a Condomino12 | H135: 0 | K135: 181.22 | L135: U.01.12 | M135: 591.44
A136: s | B136: 1 | C136: 1 | D136: 2022 | E136: Condomino12 # Versamento in conto quota esercizio 2022 per storno credito 2021 | H136: 0 | K136: 181.22 | L136: Q.01.12 | M136: 591.44
A137: s | B137: 1 | C137: 1 | D137: 2022 | E137: Restituzione a Condomino13 | H137: 0 | K137: 181.22 | L137: U.01.13 | M137: 319.89
A138: s | B138: 1 | C138: 1 | D138: 2022 | E138: Condomino13 # Versamento in conto quota esercizio 2022 per storno credito 2021 | H138: 0 | K138: 181.22 | L138: Q.01.13 | M138: 319.89
A139: s | B139: 1 | C139: 1 | D139: 2022 | E139: Restituzione a Condomino14 | H139: 0 | K139: 181.22 | L139: U.01.14 | M139: 290.2
A140: s | B140: 1 | C140: 1 | D140: 2022 | E140: Condomino14 # Versamento in conto quota esercizio 2022 per storno credito 2021 | H140: 0 | K140: 181.22 | L140: Q.01.14 | M140: 290.2
A141: s | B141: 1 | C141: 1 | D141: 2022 | E141: Restituzione a Condomino16 | H141: 0 | K141: 181.22 | L141: U.01.16 | M141: 234.35
A142: s | B142: 1 | C142: 1 | D142: 2022 | E142: Condomino16 # Versamento in conto quota esercizio 2022 per storno credito 2021 | H142: 0 | K142: 181.22 | L142: Q.01.16 | M142: 234.35
A143: s | B143: 1 | C143: 1 | D143: 2022 | E143: Restituzione a Condomino18 | H143: 0 | K143: 181.22 | L143: U.01.18 | M143: 361.89
A144: s | B144: 1 | C144: 1 | D144: 2022 | E144: Condomino18 # Versamento in conto quota esercizio 2022 per storno credito 2021 | H144: 0 | K144: 181.22 | L144: Q.01.18 | M144: 361.89
A145: s | B145: 1 | C145: 1 | D145: 2022 | E145: Restituzione a Condomino19 | H145: 0 | K145: 181.22 | L145: U.01.19 | M145: 259.28
A146: s | B146: 1 | C146: 1 | D146: 2022 | E146: Condomino19 # Versamento in conto quota esercizio 2022 per storno credito 2021 | H146: 0 | K146: 181.22 | L146: Q.01.19 | M146: 259.28
A147: s | B147: 1 | C147: 1 | D147: 2022 | E147: Restituzione a Condomino20 | H147: 0 | K147: 181.22 | L147: U.01.20 | M147: 221.43
A148: s | B148: 1 | C148: 1 | D148: 2022 | E148: Condomino20 # Versamento in conto quota esercizio 2022 per storno credito 2021 | H148: 0 | K148: 181.22 | L148: Q.01.20 | M148: 221.43
A149: s | B149: 1 | C149: 1 | D149: 2022 | E149: Restituzione a Condomino21 | H149: 0 | K149: 181.22 | L149: U.01.21 | M149: 203.21
A150: s | B150: 1 | C150: 1 | D150: 2022 | E150: Condomino21 # Versamento in conto quota esercizio 2022 per storno credito 2021 | H150: 0 | K150: 181.22 | L150: Q.01.21 | M150: 203.21
A151: s | B151: 1 | C151: 1 | D151: 2022 | E151: Restituzione a Condomino22 | H151: 0 | K151: 181.22 | L151: U.01.22 | M151: 197.37
A152: s | B152: 1 | C152: 1 | D152: 2022 | E152: Condomino22 # Versamento in conto quota esercizio 2022 per storno credito 2021 | H152: 0 | K152: 181.22 | L152: Q.01.22 | M152: 197.37
A153: e | B153: 1 | C153: 1 | D153: 2022 | E153: === SCRITTURE RELATIVE ALL'ESERCIZIO IN CORSO === | H153: 0 | K153: 181.22
A154: 1 | B154: 5 | C154: 1 | D154: 2022 | E154: Spese Bancarie - DICEMBRE 2021 | H154: =IF(A154<>"",IF(INDIRECT(ADDRESS(ROW()-1,8))="",ROUND(SUM(INDIRECT(ADDRESS(ROW()-2,8)),F154,-G154),2),ROUND(SUM(INDIRECT(ADDRESS(ROW()-1,8)),F154,-G154),2)),"") -> 0 | J154: 23.49 | K154: =IF(A154<>"",IF(INDIRECT(ADDRESS(ROW()-1,11))="",ROUND(SUM(INDIRECT(ADDRESS(ROW()-2,11)),I154,-J154),2),ROUND(SUM(INDIRECT(ADDRESS(ROW()-1,11)),I154,-J154),2)),"") -> 157.73 | M154: =IF(LEN(L154)>0,F154+G154+I154+J154,"") -> 
A155: 1 | B155: 5 | C155: 1 | D155: 2022 | E155: Imposta di Bollo | H155: 0 | K155: 157.73 | L155: S.01.09 | M155: 8.49
A156: 1 | B156: 5 | C156: 1 | D156: 2022 | E156: Canone | H156: 0 | K156: 157.73 | L156: S.01.09 | M156: 5
A157: 1 | B157: 5 | C157: 1 | D157: 2022 | E157: Tenuta conto | H157: 0 | K157: 157.73 | L157: S.01.09 | M157: 10
A158: 2 | B158: 3 | C158: 2 | D158: 2022 | E158: Spese Bancarie - GENNAIO 2022 | H158: 0 | J158: 23.49 | K158: 134.24 | M158: =IF(LEN(L158)>0,F158+G158+I158+J158,"") -> 
A159: 2 | B159: 3 | C159: 2 | D159: 2022 | E159: Imposta di Bollo | H159: 0 | K159: 134.24 | L159: S.01.09 | M159: 8.49
A160: 2 | B160: 3 | C160: 2 | D160: 2022 | E160: Canone | H160: 0 | K160: 134.24 | L160: S.01.09 | M160: 5
A161: 2 | B161: 3 | C161: 2 | D161: 2022 | E161: Tenuta conto | H161: 0 | K161: 134.24 | L161: S.01.09 | M161: 10
A162: 3 | B162: 3 | C162: 2 | D162: 2022 | E162: Condomino19 # Versamento tramite bonifico in conto quota 2022 | H162: =IF(A162<>"",IF(INDIRECT(ADDRESS(ROW()-1,8))="",SUM(INDIRECT(ADDRESS(ROW()-2,8)),F162,-G162),SUM(INDIRECT(ADDRESS(ROW()-1,8)),F162,-G162)),"") -> 0 | I162: 155.82 | K162: =IF(A162<>"",IF(INDIRECT(ADDRESS(ROW()-1,11))="",SUM(INDIRECT(ADDRESS(ROW()-2,11)),I162,-J162),SUM(INDIRECT(ADDRESS(ROW()-1,11)),I162,-J162)),"") -> 290.06 | L162: Q.01.19 | M162: =IF(LEN(L162)>0,F162+G162+I162+J162,"") -> 155.82
A163: 4 | B163: 3 | C163: 2 | D163: 2022 | E163: Ricevuta fattura Samuele SAVERIO n. 1 del 28-01-2022 - Portico | H163: =IF(A163<>"",IF(INDIRECT(ADDRESS(ROW()-1,8))="",ROUND(SUM(INDIRECT(ADDRESS(ROW()-2,8)),F163,-G163),2),ROUND(SUM(INDIRECT(ADDRESS(ROW()-1,8)),F163,-G163),2)),"") -> 0 | K163: =IF(A163<>"",IF(INDIRECT(ADDRESS(ROW()-1,11))="",ROUND(SUM(INDIRECT(ADDRESS(ROW()-2,11)),I163,-J163),2),ROUND(SUM(INDIRECT(ADDRESS(ROW()-1,11)),I163,-J163),2)),"") -> 290.06 | L163: S.02.05 | M163: 25
A164: 4 | B164: 3 | C164: 2 | D164: 2022 | E164: Nasce debito c/o Samuele SAVERIO # Fattura n. 1 del 28-01-2022 # 23 # F-01 # 28-01-2022 | H164: =IF(A164<>"",IF(INDIRECT(ADDRESS(ROW()-1,8))="",ROUND(SUM(INDIRECT(ADDRESS(ROW()-2,8)),F164,-G164),2),ROUND(SUM(INDIRECT(ADDRESS(ROW()-1,8)),F164,-G164),2)),"") -> 0 | K164: =IF(A164<>"",IF(INDIRECT(ADDRESS(ROW()-1,11))="",ROUND(SUM(INDIRECT(ADDRESS(ROW()-2,11)),I164,-J164),2),ROUND(SUM(INDIRECT(ADDRESS(ROW()-1,11)),I164,-J164),2)),"") -> 290.06 | L164: D.02.01.22 | M164: 25
A165: 5 | B165: 3 | C165: 2 | D165: 2022 | E165: Abbuono - Nota di credito OTIR n. 3ND22000007 del 03/01/2022 su Fatt. 3FC21006550del 05/03/2021 - Scala A | H165: =IF(A165<>"",IF(INDIRECT(ADDRESS(ROW()-1,8))="",SUM(INDIRECT(ADDRESS(ROW()-2,8)),F165,-G165),SUM(INDIRECT(ADDRESS(ROW()-1,8)),F165,-G165)),"") -> 0 | K165: =IF(A165<>"",IF(INDIRECT(ADDRESS(ROW()-1,11))="",SUM(INDIRECT(ADDRESS(ROW()-2,11)),I165,-J165),SUM(INDIRECT(ADDRESS(ROW()-1,11)),I165,-J165)),"") -> 290.06 | L165: A.01.02 | M165: 43
A166: 5 | B166: 3 | C166: 2 | D166: 2022 | E166: Si riduce il debito verso OTIR # 10 | H166: 0 | K166: =IF(A166<>"",IF(INDIRECT(ADDRESS(ROW()-1,11))="",ROUND(SUM(INDIRECT(ADDRESS(ROW()-2,11)),I166,-J166),2),ROUND(SUM(INDIRECT(ADDRESS(ROW()-1,11)),I166,-J166),2)),"") -> 290.06 | L166: D.02.01.21 | M166: -43
A167: 6 | B167: 3 | C167: 2 | D167: 2022 | E167: Abbuono - Nota di credito OTIR n. 3ND22000005 del 03/01/2022 su Fatt. 3FC21006548 del 05/03/2021 - Scala B | H167: 0 | K167: =IF(A167<>"",IF(INDIRECT(ADDRESS(ROW()-1,11))="",SUM(INDIRECT(ADDRESS(ROW()-2,11)),I167,-J167),SUM(INDIRECT(ADDRESS(ROW()-1,11)),I167,-J167)),"") -> 290.06 | L167: A.01.03 | M167: 43
A168: 6 | B168: 3 | C168: 2 | D168: 2022 | E168: Si riduce il debito verso OTIR # 11 | H168: 0 | K168: =IF(A168<>"",IF(INDIRECT(ADDRESS(ROW()-1,11))="",ROUND(SUM(INDIRECT(ADDRESS(ROW()-2,11)),I168,-J168),2),ROUND(SUM(INDIRECT(ADDRESS(ROW()-1,11)),I168,-J168),2)),"") -> 290.06 | L168: D.02.01.21 | M168: -43
A169: 7 | B169: 3 | C169: 2 | D169: 2022 | E169: Abbuono - Nota di credito OTIR n. 3ND22000006 del 03/01/2022 su Fatt. 3FC21006549 del 05/03/2021 - Scala C | H169: 0 | K169: =IF(A169<>"",IF(INDIRECT(ADDRESS(ROW()-1,11))="",SUM(INDIRECT(ADDRESS(ROW()-2,11)),I169,-J169),SUM(INDIRECT(ADDRESS(ROW()-1,11)),I169,-J169)),"") -> 290.06 | L169: A.01.04 | M169: 43
A170: 7 | B170: 3 | C170: 2 | D170: 2022 | E170: Si riduce il debito verso OTIR # 12 | H170: 0 | K170: =IF(A170<>"",IF(INDIRECT(ADDRESS(ROW()-1,11))="",ROUND(SUM(INDIRECT(ADDRESS(ROW()-2,11)),I170,-J170),2),ROUND(SUM(INDIRECT(ADDRESS(ROW()-1,11)),I170,-J170),2)),"") -> 290.06 | L170: D.02.01.21 | M170: -43
A171: 8 | B171: 10 | C171: 2 | D171: 2022 | E171: Ricevuta Fattura OTIR n. 3FO22026272 del 10-01-2022 - Manutenzione Ordinaria programmata - Scala A | H171: 0 | K171: =IF(A171<>"",IF(INDIRECT(ADDRESS(ROW()-1,11))="",SUM(INDIRECT(ADDRESS(ROW()-2,11)),I171,-J171),SUM(INDIRECT(ADDRESS(ROW()-1,11)),I171,-J171)),"") -> 290.06 | L171: S.03.05 | M171: 424.05
A172: 8 | B172: 10 | C172: 2 | D172: 2022 | E172: Nasce debito v/s OTIR Srl # Fattura n. 3FO22026272 del 10-01-2022 # 24 # F-03 # 10-01-2022 | H172: 0 | K172: 290.06 | L172: D.02.01.22 | M172: 424.05
A173: 9 | B173: 10 | C173: 2 | D173: 2022 | E173: Ricevuta Fattura OTIR n. 3FO22026271 del 10-01-2022 - manutenzione Ordinaria programmata - Scala B | H173: 0 | K173: 290.06 | L173: S.03.06 | M173: 424.05
A174: 9 | B174: 10 | C174: 2 | D174: 2022 | E174: Nasce debito v/s OTIR Srl # Fattura n. 3FO22026271 del 10-01-2022 # 25 # F-03 # 10-01-2022 | H174: 0 | K174: 290.06 | L174: D.02.01.22 | M174: 424.05
A175: 10 | B175: 10 | C175: 2 | D175: 2022 | E175: Ricevuta Fattura OTIR n. 3FO22026273 del 10-01-2022- manutenzione Ordinaria programmata - Scala C | H175: 0 | K175: 290.06 | L175: S.03.07 | M175: 424.05
A176: 10 | B176: 10 | C176: 2 | D176: 2022 | E176: Nasce debito v/s OTIR Srl # Fattura n. 3FO22026273 del 10-01-2022 # 26 # F-03 # 10-01-2022 | H176: 0 | K176: 290.06 | L176: D.02.01.22 | M176: 424.05
A177: 11 | B177: 10 | C177: 2 | D177: 2022 | E177: Ricevuta Fattura ENEL ENERGIA. SpA n. 418 758 7725 del 13-12-2021 (Scala C - civico 22 - cod. Cliente: ... 397) | H177: =IF(A177<>"",IF(INDIRECT(ADDRESS(ROW()-1,8))="",ROUND(SUM(INDIRECT(ADDRESS(ROW()-2,8)),F177,-G177),2),ROUND(SUM(INDIRECT(ADDRESS(ROW()-1,8)),F177,-G177),2)),"") -> 0 | K177: =IF(A177<>"",IF(INDIRECT(ADDRESS(ROW()-1,11))="",ROUND(SUM(INDIRECT(ADDRESS(ROW()-2,11)),I177,-J177),2),ROUND(SUM(INDIRECT(ADDRESS(ROW()-1,11)),I177,-J177),2)),"") -> 290.06 | L177: S.04.03 | M177: 102.85
A178: 11 | B178: 10 | C178: 2 | D178: 2022 | E178: Nasce debito c/o Enel Energia # Fattura n. 418 758 7725 del 13-12-2021 # 27 # C-03 # 13-12-2021 | H178: 0 | K178: 290.06 | L178: D.02.01.22 | M178: 102.85
A179: 12 | B179: 23 | C179: 2 | D179: 2022 | E179: Abbuono ENEL ENERGIA. SpA su Fattura n. 418 257 3894 del 08-12-2021 - Scala A | H179: 0 | K179: 290.06 | L179: A.01.02 | M179: 25.83
A180: 13 | B180: 23 | C180: 2 | D180: 2022 | E180: Abbuono ENEL ENERGIA. SpA su Fattura n. 418 257 3894 del 08-12-2021 - Scala B | H180: 0 | K180: 290.06 | L180: A.01.03 | M180: 25.83
A181: 14 | B181: 23 | C181: 2 | D181: 2022 | E181: Abbuono ENEL ENERGIA. SpA su Fattura n. 418 257 3894 del 08-12-2021 - Scala C | H181: 0 | K181: 290.06 | L181: A.01.04 | M181: 25.83
A182: 15 | B182: 23 | C182: 2 | D182: 2022 | E182: si riduce il debito c/o ENEL ENERGIA SpA #17 | H182: 0 | K182: 290.06 | L182: D.02.01.21 | M182: -77.49
A183: 16 | B183: 23 | C183: 2 | D183: 2022 | E183: Saldo Fatture ENEL ENERGIA. SpA n. 418 257 3894 Dicembre 2021 - bonifico (€ 179,30) | H183: 0 | J183: 76.45 | K183: 213.61 | L183: U.02.00 | M183: =IF(LEN(L183)>0,F183+G183+I183+J183,"") -> 76.45
A184: 16 | B184: 23 | C184: 2 | D184: 2022 | E184: si riduce il debito c/o ENEL ENERGIA SpA #17 | H184: 0 | K184: 213.61 | L184: D.02.01.21 | M184: -76.45
A185: 17 | B185: 23 | C185: 2 | D185: 2022 | E185: Saldo Fatture ENEL ENERGIA. SpA n. 418 758 7725 Dicembre 2021 - bonifico (€ 179,30) | H185: 0 | J185: 102.85 | K185: 110.76
A186: 17 | B186: 23 | C186: 2 | D186: 2022 | E186: si riduce il debito c/o ENEL ENERGIA SpA # 27 | H186: 0 | K186: 110.76 | L186: D.02.01.22 | M186: -102.85
A187: 18 | B187: 24 | C187: 2 | D187: 2022 | E187: Condomino02 # Versamento tramite bonifico in conto quota 2022 | H187: =IF(A187<>"",IF(INDIRECT(ADDRESS(ROW()-1,8))="",SUM(INDIRECT(ADDRESS(ROW()-2,8)),F187,-G187),SUM(INDIRECT(ADDRESS(ROW()-1,8)),F187,-G187)),"") -> 0 | I187: 150 | K187: =IF(A187<>"",IF(INDIRECT(ADDRESS(ROW()-1,11))="",SUM(INDIRECT(ADDRESS(ROW()-2,11)),I187,-J187),SUM(INDIRECT(ADDRESS(ROW()-1,11)),I187,-J187)),"") -> 260.76 | L187: Q.01.02 | M187: =IF(LEN(L187)>0,F187+G187+I187+J187,"") -> 150
A188: 19 | B188: 26 | C188: 2 | D188: 2022 | E188: Cndomino08 # Versamento in conto quota 2022 - RIC. 47/B | F188: 152 | H188: =IF(A188<>"",IF(INDIRECT(ADDRESS(ROW()-1,8))="",ROUND(SUM(INDIRECT(ADDRESS(ROW()-2,8)),F188,-G188),2),ROUND(SUM(INDIRECT(ADDRESS(ROW()-1,8)),F188,-G188),2)),"") -> 152 | K188: =IF(A188<>"",IF(INDIRECT(ADDRESS(ROW()-1,11))="",ROUND(SUM(INDIRECT(ADDRESS(ROW()-2,11)),I188,-J188),2),ROUND(SUM(INDIRECT(ADDRESS(ROW()-1,11)),I188,-J188),2)),"") -> 260.76 | L188: Q.01.08 | M188: =IF(LEN(L188)>0,F188+G188+I188+J188,"") -> 152
A189: 20 | B189: 26 | C189: 2 | D189: 2022 | E189: Da Cassa a Banca - bonifico Amministratore | G189: 152 | H189: 0 | I189: 152 | K189: 412.76 | M189: =IF(LEN(L189)>0,F189+G189+I189+J189,"") -> 
A190: 21 | B190: 26 | C190: 2 | D190: 2022 | E190: Fattura ENEL ENERGIA. SpA n. 419 929 7049 del 07-02-2022 (Scala C - civico 22 - cod. Cliente: ... 397) - bonifico | H190: 0 | J190: 125.71 | K190: 287.05 | L190: S.04.03 | M190: =IF(LEN(L190)>0,F190+G190+I190+J190,"") -> 125.71
A191: 22 | B191: 26 | C191: 2 | D191: 2022 | E191: Fattura ENEL ENERGIA. SpA n. 419 875 5304 del 06-02-2022 (Scala B - civico 30 - cod. Cliente: ... 325) - bonifico | H191: 0 | J191: 120.74 | K191: 166.31
A192: 22 | B192: 26 | C192: 2 | D192: 2022 | E192: Consumi da addebbitare a scala B (57%) | H192: 0 | K192: 166.31 | L192: S.04.02 | M192: =J191*0.57 -> 68.8218
A193: 22 | B193: 26 | C193: 2 | D193: 2022 | E193: Consumi da addebbitare a Portico (27%) | H193: 0 | K193: 166.31 | L193: S.04.04 | M193: =J191*0.27 -> 32.5998
A194: 22 | B194: 26 | C194: 2 | D194: 2022 | E194: Consumi da addebbitare a Tunnel (16%) | H194: 0 | K194: 166.31 | L194: S.04.05 | M194: =J191*0.16 -> 19.3184
A195: 23 | B195: 26 | C195: 2 | D195: 2022 | E195: Ricevuta fattura Samuele SAVERIO n. 10 del 25-02-2022 - Scala A | H195: 0 | K195: 166.31 | L195: S.02.02 | M195: 60
A196: 23 | B196: 26 | C196: 2 | D196: 2022 | E196: Nasce debito c/o Samuele SAVERIO # Fattura n. 10 del 25-02-2022 # 28 # F-01 # 25-02-2022 | H196: 0 | K196: 166.31 | L196: D.02.01.22 | M196: 60
A197: 24 | B197: 26 | C197: 2 | D197: 2022 | E197: Ricevuta fattura Samuele SAVERIO n. 11 del 25-02-2022 - Scala B | H197: 0 | K197: 166.31 | L197: S.02.03 | M197: 60
A198: 24 | B198: 26 | C198: 2 | D198: 2022 | E198: Nasce debito c/o Samuele SAVERIO # Fattura n. 11 del 25-02-2022 # 29 # F-01 # 25-02-2022 | H198: 0 | K198: 166.31 | L198: D.02.01.22 | M198: 60
A199: 25 | B199: 26 | C199: 2 | D199: 2022 | E199: Ricevuta fattura Samuele SAVERIO n. 12 del 25-02-2022 - Scala C | H199: 0 | K199: 166.31 | L199: S.02.04 | M199: 60
A200: 25 | B200: 26 | C200: 2 | D200: 2022 | E200: Nasce debito c/o Samuele SAVERIO # Fattura n. 12 del 25-02-2022 # 30 # F-01 # 25-02-2022 | H200: 0 | K200: 166.31 | L200: D.02.01.22 | M200: 60
... 124 more rows

Sheet iRP1 (hidden)
A1: Fornire i dati solo nelle celle senza sfondo colorato. Non variare mai contenuto e posizione delle celle con sfondo colorato. | G1: 0
A2: ='iP1'!A5 -> Condominio "PROTOTIPO"
A3: ="MATERIALI e ATTREZZATURE del CONDOMINIO" -> MATERIALI e ATTREZZATURE del CONDOMINIO
A4: ="al giorno " & TEXT('iP1'!#REF!,"gg-mmm-aaaa") -> 
A5: n. | B5: QUANTITÀ | C5: TIPO DI ATTREZZATURA o MATERIALE | D5: MARCA | E5: STATO DI CONSERVAZIONE | F5: CUSTODE (Amm. / Condom./Altri)
A6: 1
A7: 2
A8: 3
A9: 4
A10: 5
A11: 6
A12: 7
A13: 8
A14: 9
A15: 10
A16: 11
A17: 12
A18: 13
A19: 14
A20: 15
A21: 16
A22: 17
A23: 18
A24: 19
A25: 20
A26: 21
A27: 22
A28: 23
A29: 24
A30: 25
A31: 26
A32: 27
A33: 28
A34: 29
A35: 30
A37: ="MATERIALI e ATTREZZATURE del CONDOMINIO" -> MATERIALI e ATTREZZATURE del CONDOMINIO
A38: ="al giorno 1-gen-" & 'iP1'!A37 & " (inizio esercizio)" -> al giorno 1-gen-2022 (inizio esercizio)
A39: n. | B39: QUANTITÀ | C39: TIPO DI ATTREZZATURA o MATERIALE | D39: MARCA | E39: STATO DI CONSERVAZIONE | F39: CUSTODE (Amm. / Condom./Altri)
A40: 1
A41: 2
A42: 3
A43: 4
A44: 5
A45: 6
A46: 7
A47: 8
A48: 9
A49: 10
A50: 11
A51: 12
A52: 13
A53: 14
A54: 15
A55: 16
A56: 17
A57: 18
A58: 19
A59: 20
A60: 21
A61: 22
A62: 23
A63: 24
A64: 25
A65: 26
A66: 27
A67: 28
A68: 29
A69: 30
A71: 0 | G71: 0

Sheet iPU1 (hidden)
S1: 0
A2: n. | B2: CONDOMINO | C2: CONVOCAZIONE ASSEMBLEA xx/yy mm aaaa | D2: VERBALE ASSEMBLEA dd mmm aaa | E2: INFORMATIVA PRIVACY | F2: COMUNICAZIONE dd mmm aaaa
A3: 1 | B3: Condomino01 | C3: Raccom. Postale | D3: Raccom. Postale | E3: Raccom. Postale | F3: e-mail
A4: 2 | B4: Condomino02 | C4: e-mail | D4: Raccom. Postale | E4: Raccom. Postale | F4: e-mail
A5: 3 | B5: Condomino03 | C5: Consegna a mano | D5: Raccom. Postale | E5: Raccom. Postale | F5: per posta
A6: 4 | B6: Condomino04 S.r.l. | C6: e-mail | D6: da non consegnare | E6: e-mail | F6: e-mail
A7: 5 | B7: Condomino05 | C7: e-mail | D7: Raccom. Postale | E7: Raccom. Postale | F7: e-mail
A8: 6 | B8: Condomino06 | C8: Raccom. Postale | D8: e-mail | E8: e-mail | F8: e-mail
A9: 7 | B9: Condomino07 | C9: Consegna a mano | D9: Raccom. Postale | E9: Raccom. Postale | F9: Consegna a mano
A10: 8 | B10: Eredi Condomino08 | C10: e-mail | D10: da non consegnare | E10: e-mail | F10: e-mail
A11: 9 | B11: Condomino09 S.r.l. | C11: e-mail | D11: da non consegnare | E11: e-mail | F11: e-mail
A12: 10 | B12: Condomino10 | C12: e-mail | D12: da non consegnare | E12: e-mail | F12: e-mail
A13: 11 | B13: Condomino11 | C13: e-mail | D13: da non consegnare | E13: e-mail | F13: e-mail
A14: 12 | B14: Condomino12 | C14: e-mail | D14: Raccom. Postale | E14: Raccom. Postale | F14: e-mail
A15: 13 | B15: Condomino13 | C15: e-mail | D15: da non consegnare | E15: e-mail | F15: e-mail
A16: 14 | B16: Condomino14 | C16: Raccom. Postale | D16: Raccom. Postale | E16: Raccom. Postale | F16: Consegna a mano
A17: 15 | B17: Condomino15 | C17: Raccom. Postale | D17: Raccom. Postale | E17: Raccom. Postale | F17: Consegna a mano
A18: 16 | B18: Condomino16 | C18: e-mail | D18: da non consegnare | E18: e-mail | F18: e-mail
A19: 17 | B19: Condomino17
A20: 18 | B20: Condomino18
A21: 19 | B21: Condomino19
A22: 20 | B22: Condomino20
A23: 21 | B23: Condomino21
A24: 22 | B24: Condomino22
A25: 23 | B25: Condomino23

Sheet iPU2 (hidden)
AA1: 0
A2: n. | B2: ADEMPIMENTO | F2: DATA

Sheet sRE (hidden)
A2: INDICE DEI PROSPETTI DEL RENDICONTO D'ESERCIZIO
A4: Il rendiconto della gestione ordinaria dell'esercizio è costituito per il condominio dai seguenti elaborati:
A5: 1 | B5: IL PIANO DEI CONTI (non fornito in quanto uguale a quello dell'esercizio precedente)
A6: 2 | B6: LE TABELLE DI RIPARTIZIONE (non fornite in quanto sono le stesse dell'esercizio precedente)
A7: 3 | B7: IL REGISTRO DI CONTABILITÀ
A8: 4 | B8: IL RIEPILOGO FINANZIARIO
A9: 5 | B9: LA NOTA SINTETICA ESPLICATIVA DELLA GESTIONE
A11: Il presente fascicolo costituisce il "RIEPILOGO FINANZIARIO" ed è composto dai seguenti prospetti:
A13: 1 | B13: PROSPETTO DELLE USCITE
B14: Riporta, fra l'altro, gli importi delle spese sostenute e degli impegni di spesa imputabili all'esercizio, riepilogate e suddivise per voci, a loro volta raggruppate in capitoli. Le informazioni dettagliate sulle singole spese sono nel registro di contabilità.
A15: 2 | B15: QUADRO DI RAFFRONTO fra SPESE EFFETTIVE e SPESE PREVENTIVATE
B16: Riporta un confronto fra le spese preventivate ad inizio esercizio e quelle realmente effettuate.
A17: 3 | B17: PROSPETTO di RIPARTO delle SPESE fra i CONDOMINI
B18: Riporta gli importi con i quali i singoli condomini devono concorrere al pagamento delle spese sostenute. Queste sono suddivise fra i condomini secondo le varie tabelle millesimali di ripartizione, che stabiliscono per ciascun condomino la quota parte dovuta sul totale delle spese ricadenti in quella tabella.
A19: 4 | B19: PROSPETTO di RIEPILOGO delle ENTRATE
B20: Riporta gli importi dei pagamenti effettuati dai condomini per l'esercizio in corso, ed eventualmente dei conguagli per l'esercizio precedente e degli arretrati, relativi cioè ad esercizi anteriori a quello precedente.
A21: 5 | B21: PROSPETTO DEI CREDITI
B22: Riporta gli importi dei crediti che il condominio vanta nei confronti di condomini e di terzi. Gli importi sono suddivisi per esercizi.
A23: 6 | B23: PROSPETTO DEI DEBITI
B24: Riporta gli importi dei debiti che il condominio ha nei confronti di terzi e degli stessi condomini. Gli importo sono suddivisi per esercizi.
A25: 7 | B25: PROSPETTO di RENDICONTO
B26: Contiene tre quadri.
B27: 1 | C27: CONTO ECONOMICO DELLA GESTIONE ORDINARIA
C28: Riporta gli incassi e le spese dell'esercizio. Le spese riportate sono quelle ripartite, sia come già sostenute sia come impegni di spesa di competenza dell'esercizio.
B29: 2 | C29: CONTO FINANZIARIO
C30: Riporta i flussi in denaro in entrata ed in uscita sia per la gestione ordinaria sia per le eventuali gestioni speciali. Riporta inoltra la liquidità alla data del rendiconto.
B31: 3 | C31: RIEPILOGO FINANZIARIO o SITUAZIONE PATRIMONIALE
C32: Riporta le attività e le passività. Naturalmente come per tutti i condomini il saldo patrimoniale è sempre nullo.
A33: 8 | B33: PROSPETTI dei CREDITORI TERZI e dei DEBITORI TERZI
B34: Riportano i debiti ed i crediti con i relativi debitori e creditori, nonché le causali.
A35: 9 | B35: PROSPETTO dei DEPOSITI ATTIVI
B36: (non riportato in quanto non ci sono attualmente depositi attivi)
B37: Riporta i depositi attivi che il condominio vanta nei confronti di terzi.
A38: 10 | B38: PROSPETTO delle ATTREZZATURE
B39: (non riportato in quanto non ci sono attualmente attrezzature di proprietà del Condominio)
B40: Riporta le attrezzature che il condominio possiede.

Sheet cTABUI (hidden)
A1: Possono essere variati solo i valori delle celle senza sfondo colorato. | T1: 0
A7: ='iP1'!A5 -> Condominio "PROTOTIPO"
A8: TABELLE MILLESIMALI per UNITÀ IMMOBILIARI
A9: n° U.I. | B9: Codice Unità Immobiliare | C9: U.F. Costituenti | D9: Codice Condomino Proprietario | E9: Denominazione Condomino | F9: Tabella A | G9: Tabella B | H9: Tabella C | I9: Tabella D | J9: Tabella E | K9: Tabella F | L9: Tabella G | M9: Tabella H | N9: Tabella I | O9: Tabella J | P9: Part | Q9: Sub | R9: Categ.
F10: GENERALE | G10: Scala A-38 | H10: Scala B-30 | I10: Scala C-22 | J10: PORTICO | K10: TUNNEL
A11: 1 | B11: =iUI!B11 -> U01 | C11: UF01 | D11: =IF(iUI!D11<>"",iUI!D11,"") -> C19 | E11: =IF(iUI!E11<>"",iUI!E11,"") -> Condomino19 | F11: =SUMIFS(iTABUF!$D$11:$D$109,iTABUF!$C$11:$C$109,B11) -> 1.4961 | G11: =SUMIFS(iTABUF!$E$11:$E$109,iTABUF!$C$11:$C$109,B11) -> 29 | H11: =SUMIFS(iTABUF!$F$11:$F$109,iTABUF!$C$11:$C$109,B11) -> 0 | I11: =SUMIFS(iTABUF!$G$11:$G$109,iTABUF!$C$11:$C$109,B11) -> 0 | J11: =SUMIFS(iTABUF!$H$11:$H$109,iTABUF!$C$11:$C$109,B11) -> 0 | K11: =SUMIFS(iTABUF!$I$11:$I$109,iTABUF!$C$11:$C$109,B11) -> 25 | L11: =SUMIFS(iTABUF!$J$11:$J$109,iTABUF!$C$11:$C$109,B11) -> 0 | M11: =SUMIFS(iTABUF!$K$11:$K$109,iTABUF!$C$11:$C$109,B11) -> 0 | N11: =SUMIFS(iTABUF!$L$11:$L$109,iTABUF!$C$11:$C$109,B11) -> 0 | O11: =SUMIFS(iTABUF!$M$11:$M$109,iTABUF!$C$11:$C$109,B11) -> 0 | P11: =iUI!H11 -> 326 | Q11: =iUI!I11 -> 69 | R11: =iUI!K11 -> C/6
A12: 2 | B12: =iUI!B12 -> U02 | C12: UF02 | D12: =IF(iUI!D12<>"",iUI!D12,"") -> C22 | E12: =IF(iUI!E12<>"",iUI!E12,"") -> Condomino22 | F12: =SUMIFS(iTABUF!$D$11:$D$109,iTABUF!$C$11:$C$109,B12) -> 1.4961 | G12: =SUMIFS(iTABUF!$E$11:$E$109,iTABUF!$C$11:$C$109,B12) -> 29 | H12: =SUMIFS(iTABUF!$F$11:$F$109,iTABUF!$C$11:$C$109,B12) -> 0 | I12: =SUMIFS(iTABUF!$G$11:$G$109,iTABUF!$C$11:$C$109,B12) -> 0 | J12: =SUMIFS(iTABUF!$H$11:$H$109,iTABUF!$C$11:$C$109,B12) -> 0 | K12: =SUMIFS(iTABUF!$I$11:$I$109,iTABUF!$C$11:$C$109,B12) -> 25 | L12: =SUMIFS(iTABUF!$J$11:$J$109,iTABUF!$C$11:$C$109,B12) -> 0 | M12: =SUMIFS(iTABUF!$K$11:$K$109,iTABUF!$C$11:$C$109,B12) -> 0 | N12: =SUMIFS(iTABUF!$L$11:$L$109,iTABUF!$C$11:$C$109,B12) -> 0 | O12: =SUMIFS(iTABUF!$M$11:$M$109,iTABUF!$C$11:$C$109,B12) -> 0 | P12: =iUI!H12 -> 326 | Q12: =iUI!I12 -> 70 | R12: =iUI!K12 -> C/6
A13: 3 | B13: =iUI!B13 -> U03 | C13: UF03 | D13: =IF(iUI!D13<>"",iUI!D13,"") -> C05 | E13: =IF(iUI!E13<>"",iUI!E13,"") -> Condomino05 | F13: =SUMIFS(iTABUF!$D$11:$D$109,iTABUF!$C$11:$C$109,B13) -> 1.5857 | G13: =SUMIFS(iTABUF!$E$11:$E$109,iTABUF!$C$11:$C$109,B13) -> 29 | H13: =SUMIFS(iTABUF!$F$11:$F$109,iTABUF!$C$11:$C$109,B13) -> 0 | I13: =SUMIFS(iTABUF!$G$11:$G$109,iTABUF!$C$11:$C$109,B13) -> 0 | J13: =SUMIFS(iTABUF!$H$11:$H$109,iTABUF!$C$11:$C$109,B13) -> 0 | K13: =SUMIFS(iTABUF!$I$11:$I$109,iTABUF!$C$11:$C$109,B13) -> 25 | L13: =SUMIFS(iTABUF!$J$11:$J$109,iTABUF!$C$11:$C$109,B13) -> 0 | M13: =SUMIFS(iTABUF!$K$11:$K$109,iTABUF!$C$11:$C$109,B13) -> 0 | N13: =SUMIFS(iTABUF!$L$11:$L$109,iTABUF!$C$11:$C$109,B13) -> 0 | O13: =SUMIFS(iTABUF!$M$11:$M$109,iTABUF!$C$11:$C$109,B13) -> 0 | P13: =iUI!H13 -> 326 | Q13: =iUI!I13 -> 38 | R13: =iUI!K13 -> C/6
A14: 4 | B14: =iUI!B14 -> U04 | C14: UF04+UF31 | D14: =IF(iUI!D14<>"",iUI!D14,"") -> C20 | E14: =IF(iUI!E14<>"",iUI!E14,"") -> Condomino20 | F14: =SUMIFS(iTABUF!$D$11:$D$109,iTABUF!$C$11:$C$109,B14) -> 43.5112 | G14: =SUMIFS(iTABUF!$E$11:$E$109,iTABUF!$C$11:$C$109,B14) -> 156 | H14: =SUMIFS(iTABUF!$F$11:$F$109,iTABUF!$C$11:$C$109,B14) -> 0 | I14: =SUMIFS(iTABUF!$G$11:$G$109,iTABUF!$C$11:$C$109,B14) -> 0 | J14: =SUMIFS(iTABUF!$H$11:$H$109,iTABUF!$C$11:$C$109,B14) -> 27.778 | K14: =SUMIFS(iTABUF!$I$11:$I$109,iTABUF!$C$11:$C$109,B14) -> 25 | L14: =SUMIFS(iTABUF!$J$11:$J$109,iTABUF!$C$11:$C$109,B14) -> 0 | M14: =SUMIFS(iTABUF!$K$11:$K$109,iTABUF!$C$11:$C$109,B14) -> 0 | N14: =SUMIFS(iTABUF!$L$11:$L$109,iTABUF!$C$11:$C$109,B14) -> 0 | O14: =SUMIFS(iTABUF!$M$11:$M$109,iTABUF!$C$11:$C$109,B14) -> 0 | P14: =iUI!H14 -> 326 | Q14: =iUI!I14 -> 75 | R14: =iUI!K14 -> A/2
A15: 5 | B15: =iUI!B15 -> U05 | C15: UF05 | D15: =IF(iUI!D15<>"",iUI!D15,"") -> C11 | E15: =IF(iUI!E15<>"",iUI!E15,"") -> Condomino11 | F15: =SUMIFS(iTABUF!$D$11:$D$109,iTABUF!$C$11:$C$109,B15) -> 1.5917 | G15: =SUMIFS(iTABUF!$E$11:$E$109,iTABUF!$C$11:$C$109,B15) -> 29 | H15: =SUMIFS(iTABUF!$F$11:$F$109,iTABUF!$C$11:$C$109,B15) -> 0 | I15: =SUMIFS(iTABUF!$G$11:$G$109,iTABUF!$C$11:$C$109,B15) -> 0 | J15: =SUMIFS(iTABUF!$H$11:$H$109,iTABUF!$C$11:$C$109,B15) -> 0 | K15: =SUMIFS(iTABUF!$I$11:$I$109,iTABUF!$C$11:$C$109,B15) -> 25 | L15: =SUMIFS(iTABUF!$J$11:$J$109,iTABUF!$C$11:$C$109,B15) -> 0 | M15: =SUMIFS(iTABUF!$K$11:$K$109,iTABUF!$C$11:$C$109,B15) -> 0 | N15: =SUMIFS(iTABUF!$L$11:$L$109,iTABUF!$C$11:$C$109,B15) -> 0 | O15: =SUMIFS(iTABUF!$M$11:$M$109,iTABUF!$C$11:$C$109,B15) -> 0 | P15: =iUI!H15 -> 326 | Q15: =iUI!I15 -> 40 | R15: =iUI!K15 -> C/6
A16: 6 | B16: =iUI!B16 -> U06 | C16: UF06 | D16: =IF(iUI!D16<>"",iUI!D16,"") -> C13 | E16: =IF(iUI!E16<>"",iUI!E16,"") -> Condomino13 | F16: =SUMIFS(iTABUF!$D$11:$D$109,iTABUF!$C$11:$C$109,B16) -> 1.5081 | G16: =SUMIFS(iTABUF!$E$11:$E$109,iTABUF!$C$11:$C$109,B16) -> 29 | H16: =SUMIFS(iTABUF!$F$11:$F$109,iTABUF!$C$11:$C$109,B16) -> 0 | I16: =SUMIFS(iTABUF!$G$11:$G$109,iTABUF!$C$11:$C$109,B16) -> 0 | J16: =SUMIFS(iTABUF!$H$11:$H$109,iTABUF!$C$11:$C$109,B16) -> 0 | K16: =SUMIFS(iTABUF!$I$11:$I$109,iTABUF!$C$11:$C$109,B16) -> 25 | L16: =SUMIFS(iTABUF!$J$11:$J$109,iTABUF!$C$11:$C$109,B16) -> 0 | M16: =SUMIFS(iTABUF!$K$11:$K$109,iTABUF!$C$11:$C$109,B16) -> 0 | N16: =SUMIFS(iTABUF!$L$11:$L$109,iTABUF!$C$11:$C$109,B16) -> 0 | O16: =SUMIFS(iTABUF!$M$11:$M$109,iTABUF!$C$11:$C$109,B16) -> 0 | P16: =iUI!H16 -> 326 | Q16: =iUI!I16 -> 41 | R16: =iUI!K16 -> C/6
A17: 7 | B17: =iUI!B17 -> U07 | C17: UF07 | D17: =IF(iUI!D17<>"",iUI!D17,"") -> C12 | E17: =IF(iUI!E17<>"",iUI!E17,"") -> Condomino12 | F17: =SUMIFS(iTABUF!$D$11:$D$109,iTABUF!$C$11:$C$109,B17) -> 1.5379 | G17: =SUMIFS(iTABUF!$E$11:$E$109,iTABUF!$C$11:$C$109,B17) -> 0 | H17: =SUMIFS(iTABUF!$F$11:$F$109,iTABUF!$C$11:$C$109,B17) -> 28 | I17: =SUMIFS(iTABUF!$G$11:$G$109,iTABUF!$C$11:$C$109,B17) -> 0 | J17: =SUMIFS(iTABUF!$H$11:$H$109,iTABUF!$C$11:$C$109,B17) -> 0 | K17: =SUMIFS(iTABUF!$I$11:$I$109,iTABUF!$C$11:$C$109,B17) -> 25 | L17: =SUMIFS(iTABUF!$J$11:$J$109,iTABUF!$C$11:$C$109,B17) -> 0 | M17: =SUMIFS(iTABUF!$K$11:$K$109,iTABUF!$C$11:$C$109,B17) -> 0 | N17: =SUMIFS(iTABUF!$L$11:$L$109,iTABUF!$C$11:$C$109,B17) -> 0 | O17: =SUMIFS(iTABUF!$M$11:$M$109,iTABUF!$C$11:$C$109,B17) -> 0 | P17: =iUI!H17 -> 326 | Q17: =iUI!I17 -> 42 | R17: =iUI!K17 -> C/6
A18: 8 | B18: =iUI!B18 -> U08 | C18: UF08 | D18: =IF(iUI!D18<>"",iUI!D18,"") -> C18 | E18: =IF(iUI!E18<>"",iUI!E18,"") -> Condomino18 | F18: =SUMIFS(iTABUF!$D$11:$D$109,iTABUF!$C$11:$C$109,B18) -> 1.5618 | G18: =SUMIFS(iTABUF!$E$11:$E$109,iTABUF!$C$11:$C$109,B18) -> 0 | H18: =SUMIFS(iTABUF!$F$11:$F$109,iTABUF!$C$11:$C$109,B18) -> 28 | I18: =SUMIFS(iTABUF!$G$11:$G$109,iTABUF!$C$11:$C$109,B18) -> 0 | J18: =SUMIFS(iTABUF!$H$11:$H$109,iTABUF!$C$11:$C$109,B18) -> 0 | K18: =SUMIFS(iTABUF!$I$11:$I$109,iTABUF!$C$11:$C$109,B18) -> 25 | L18: =SUMIFS(iTABUF!$J$11:$J$109,iTABUF!$C$11:$C$109,B18) -> 0 | M18: =SUMIFS(iTABUF!$K$11:$K$109,iTABUF!$C$11:$C$109,B18) -> 0 | N18: =SUMIFS(iTABUF!$L$11:$L$109,iTABUF!$C$11:$C$109,B18) -> 0 | O18: =SUMIFS(iTABUF!$M$11:$M$109,iTABUF!$C$11:$C$109,B18) -> 0 | P18: =iUI!H18 -> 326 | Q18: =iUI!I18 -> 43 | R18: =iUI!K18 -> C/6
A19: 9 | B19: =iUI!B19 -> U09 | C19: UF09 | D19: =IF(iUI!D19<>"",iUI!D19,"") -> C09 | E19: =IF(iUI!E19<>"",iUI!E19,"") -> Condomino09 S.r.l. | F19: =SUMIFS(iTABUF!$D$11:$D$109,iTABUF!$C$11:$C$109,B19) -> 1.5618 | G19: =SUMIFS(iTABUF!$E$11:$E$109,iTABUF!$C$11:$C$109,B19) -> 0 | H19: =SUMIFS(iTABUF!$F$11:$F$109,iTABUF!$C$11:$C$109,B19) -> 28 | I19: =SUMIFS(iTABUF!$G$11:$G$109,iTABUF!$C$11:$C$109,B19) -> 0 | J19: =SUMIFS(iTABUF!$H$11:$H$109,iTABUF!$C$11:$C$109,B19) -> 0 | K19: =SUMIFS(iTABUF!$I$11:$I$109,iTABUF!$C$11:$C$109,B19) -> 25 | L19: =SUMIFS(iTABUF!$J$11:$J$109,iTABUF!$C$11:$C$109,B19) -> 0 | M19: =SUMIFS(iTABUF!$K$11:$K$109,iTABUF!$C$11:$C$109,B19) -> 0 | N19: =SUMIFS(iTABUF!$L$11:$L$109,iTABUF!$C$11:$C$109,B19) -> 0 | O19: =SUMIFS(iTABUF!$M$11:$M$109,iTABUF!$C$11:$C$109,B19) -> 0 | P19: =iUI!H19 -> 326 | Q19: =iUI!I19 -> 44 | R19: =iUI!K19 -> C/6
A20: 10 | B20: =iUI!B20 -> U10 | C20: UF10 | D20: =IF(iUI!D20<>"",iUI!D20,"") -> C02 | E20: =IF(iUI!E20<>"",iUI!E20,"") -> Condomino02 | F20: =SUMIFS(iTABUF!$D$11:$D$109,iTABUF!$C$11:$C$109,B20) -> 1.6663 | G20: =SUMIFS(iTABUF!$E$11:$E$109,iTABUF!$C$11:$C$109,B20) -> 0 | H20: =SUMIFS(iTABUF!$F$11:$F$109,iTABUF!$C$11:$C$109,B20) -> 28 | I20: =SUMIFS(iTABUF!$G$11:$G$109,iTABUF!$C$11:$C$109,B20) -> 0 | J20: =SUMIFS(iTABUF!$H$11:$H$109,iTABUF!$C$11:$C$109,B20) -> 0 | K20: =SUMIFS(iTABUF!$I$11:$I$109,iTABUF!$C$11:$C$109,B20) -> 25 | L20: =SUMIFS(iTABUF!$J$11:$J$109,iTABUF!$C$11:$C$109,B20) -> 0 | M20: =SUMIFS(iTABUF!$K$11:$K$109,iTABUF!$C$11:$C$109,B20) -> 0 | N20: =SUMIFS(iTABUF!$L$11:$L$109,iTABUF!$C$11:$C$109,B20) -> 0 | O20: =SUMIFS(iTABUF!$M$11:$M$109,iTABUF!$C$11:$C$109,B20) -> 0 | P20: =iUI!H20 -> 326 | Q20: =iUI!I20 -> 45 | R20: =iUI!K20 -> C/6
A21: 11 | B21: =iUI!B21 -> U11 | C21: UF11 | D21: =IF(iUI!D21<>"",iUI!D21,"") -> C21 | E21: =IF(iUI!E21<>"",iUI!E21,"") -> Condomino21 | F21: =SUMIFS(iTABUF!$D$11:$D$109,iTABUF!$C$11:$C$109,B21) -> 1.6156 | G21: =SUMIFS(iTABUF!$E$11:$E$109,iTABUF!$C$11:$C$109,B21) -> 0 | H21: =SUMIFS(iTABUF!$F$11:$F$109,iTABUF!$C$11:$C$109,B21) -> 28 | I21: =SUMIFS(iTABUF!$G$11:$G$109,iTABUF!$C$11:$C$109,B21) -> 0 | J21: =SUMIFS(iTABUF!$H$11:$H$109,iTABUF!$C$11:$C$109,B21) -> 0 | K21: =SUMIFS(iTABUF!$I$11:$I$109,iTABUF!$C$11:$C$109,B21) -> 25 | L21: =SUMIFS(iTABUF!$J$11:$J$109,iTABUF!$C$11:$C$109,B21) -> 0 | M21: =SUMIFS(iTABUF!$K$11:$K$109,iTABUF!$C$11:$C$109,B21) -> 0 | N21: =SUMIFS(iTABUF!$L$11:$L$109,iTABUF!$C$11:$C$109,B21) -> 0 | O21: =SUMIFS(iTABUF!$M$11:$M$109,iTABUF!$C$11:$C$109,B21) -> 0 | P21: =iUI!H21 -> 326 | Q21: =iUI!I21 -> 46 | R21: =iUI!K21 -> C/6
A22: 12 | B22: =iUI!B22 -> U12 | C22: UF12 | D22: =IF(iUI!D22<>"",iUI!D22,"") -> C16 | E22: =IF(iUI!E22<>"",iUI!E22,"") -> Condomino16 | F22: =SUMIFS(iTABUF!$D$11:$D$109,iTABUF!$C$11:$C$109,B22) -> 1.5379 | G22: =SUMIFS(iTABUF!$E$11:$E$109,iTABUF!$C$11:$C$109,B22) -> 0 | H22: =SUMIFS(iTABUF!$F$11:$F$109,iTABUF!$C$11:$C$109,B22) -> 28 | I22: =SUMIFS(iTABUF!$G$11:$G$109,iTABUF!$C$11:$C$109,B22) -> 0 | J22: =SUMIFS(iTABUF!$H$11:$H$109,iTABUF!$C$11:$C$109,B22) -> 0 | K22: =SUMIFS(iTABUF!$I$11:$I$109,iTABUF!$C$11:$C$109,B22) -> 25 | L22: =SUMIFS(iTABUF!$J$11:$J$109,iTABUF!$C$11:$C$109,B22) -> 0 | M22: =SUMIFS(iTABUF!$K$11:$K$109,iTABUF!$C$11:$C$109,B22) -> 0 | N22: =SUMIFS(iTABUF!$L$11:$L$109,iTABUF!$C$11:$C$109,B22) -> 0 | O22: =SUMIFS(iTABUF!$M$11:$M$109,iTABUF!$C$11:$C$109,B22) -> 0 | P22: =iUI!H22 -> 326 | Q22: =iUI!I22 -> 47 | R22: =iUI!K22 -> C/6
A23: 13 | B23: =iUI!B23 -> U13 | C23: UF13 | D23: =IF(iUI!D23<>"",iUI!D23,"") -> C17 | E23: =IF(iUI!E23<>"",iUI!E23,"") -> Condomino17 | F23: =SUMIFS(iTABUF!$D$11:$D$109,iTABUF!$C$11:$C$109,B23) -> 1.6156 | G23: =SUMIFS(iTABUF!$E$11:$E$109,iTABUF!$C$11:$C$109,B23) -> 0 | H23: =SUMIFS(iTABUF!$F$11:$F$109,iTABUF!$C$11:$C$109,B23) -> 0 | I23: =SUMIFS(iTABUF!$G$11:$G$109,iTABUF!$C$11:$C$109,B23) -> 37 | J23: =SUMIFS(iTABUF!$H$11:$H$109,iTABUF!$C$11:$C$109,B23) -> 0 | K23: =SUMIFS(iTABUF!$I$11:$I$109,iTABUF!$C$11:$C$109,B23) -> 25 | L23: =SUMIFS(iTABUF!$J$11:$J$109,iTABUF!$C$11:$C$109,B23) -> 0 | M23: =SUMIFS(iTABUF!$K$11:$K$109,iTABUF!$C$11:$C$109,B23) -> 0 | N23: =SUMIFS(iTABUF!$L$11:$L$109,iTABUF!$C$11:$C$109,B23) -> 0 | O23: =SUMIFS(iTABUF!$M$11:$M$109,iTABUF!$C$11:$C$109,B23) -> 0 | P23: =iUI!H23 -> 326 | Q23: =iUI!I23 -> 48 | R23: =iUI!K23 -> C/6
A24: 14 | B24: =iUI!B24 -> U14 | C24: UF14 | D24: =IF(iUI!D24<>"",iUI!D24,"") -> C06 | E24: =IF(iUI!E24<>"",iUI!E24,"") -> Condomino06 | F24: =SUMIFS(iTABUF!$D$11:$D$109,iTABUF!$C$11:$C$109,B24) -> 1.5857 | G24: =SUMIFS(iTABUF!$E$11:$E$109,iTABUF!$C$11:$C$109,B24) -> 0 | H24: =SUMIFS(iTABUF!$F$11:$F$109,iTABUF!$C$11:$C$109,B24) -> 0 | I24: =SUMIFS(iTABUF!$G$11:$G$109,iTABUF!$C$11:$C$109,B24) -> 37 | J24: =SUMIFS(iTABUF!$H$11:$H$109,iTABUF!$C$11:$C$109,B24) -> 0 | K24: =SUMIFS(iTABUF!$I$11:$I$109,iTABUF!$C$11:$C$109,B24) -> 25 | L24: =SUMIFS(iTABUF!$J$11:$J$109,iTABUF!$C$11:$C$109,B24) -> 0 | M24: =SUMIFS(iTABUF!$K$11:$K$109,iTABUF!$C$11:$C$109,B24) -> 0 | N24: =SUMIFS(iTABUF!$L$11:$L$109,iTABUF!$C$11:$C$109,B24) -> 0 | O24: =SUMIFS(iTABUF!$M$11:$M$109,iTABUF!$C$11:$C$109,B24) -> 0 | P24: =iUI!H24 -> 326 | Q24: =iUI!I24 -> 49 | R24: =iUI!K24 -> C/6
A25: 15 | B25: =iUI!B25 -> U15 | C25: UF15 | D25: =IF(iUI!D25<>"",iUI!D25,"") -> C07 | E25: =IF(iUI!E25<>"",iUI!E25,"") -> Condomino07 | F25: =SUMIFS(iTABUF!$D$11:$D$109,iTABUF!$C$11:$C$109,B25) -> 1.5081 | G25: =SUMIFS(iTABUF!$E$11:$E$109,iTABUF!$C$11:$C$109,B25) -> 0 | H25: =SUMIFS(iTABUF!$F$11:$F$109,iTABUF!$C$11:$C$109,B25) -> 0 | I25: =SUMIFS(iTABUF!$G$11:$G$109,iTABUF!$C$11:$C$109,B25) -> 37 | J25: =SUMIFS(iTABUF!$H$11:$H$109,iTABUF!$C$11:$C$109,B25) -> 0 | K25: =SUMIFS(iTABUF!$I$11:$I$109,iTABUF!$C$11:$C$109,B25) -> 25 | L25: =SUMIFS(iTABUF!$J$11:$J$109,iTABUF!$C$11:$C$109,B25) -> 0 | M25: =SUMIFS(iTABUF!$K$11:$K$109,iTABUF!$C$11:$C$109,B25) -> 0 | N25: =SUMIFS(iTABUF!$L$11:$L$109,iTABUF!$C$11:$C$109,B25) -> 0 | O25: =SUMIFS(iTABUF!$M$11:$M$109,iTABUF!$C$11:$C$109,B25) -> 0 | P25: =iUI!H25 -> 326 | Q25: =iUI!I25 -> 50 | R25: =iUI!K25 -> C/6
A26: 16 | B26: =iUI!B26 -> U16 | C26: UF16 | D26: =IF(iUI!D26<>"",iUI!D26,"") -> C01 | E26: =IF(iUI!E26<>"",iUI!E26,"") -> Condomino01 | F26: =SUMIFS(iTABUF!$D$11:$D$109,iTABUF!$C$11:$C$109,B26) -> 1.6156 | G26: =SUMIFS(iTABUF!$E$11:$E$109,iTABUF!$C$11:$C$109,B26) -> 0 | H26: =SUMIFS(iTABUF!$F$11:$F$109,iTABUF!$C$11:$C$109,B26) -> 0 | I26: =SUMIFS(iTABUF!$G$11:$G$109,iTABUF!$C$11:$C$109,B26) -> 37 | J26: =SUMIFS(iTABUF!$H$11:$H$109,iTABUF!$C$11:$C$109,B26) -> 0 | K26: =SUMIFS(iTABUF!$I$11:$I$109,iTABUF!$C$11:$C$109,B26) -> 25 | L26: =SUMIFS(iTABUF!$J$11:$J$109,iTABUF!$C$11:$C$109,B26) -> 0 | M26: =SUMIFS(iTABUF!$K$11:$K$109,iTABUF!$C$11:$C$109,B26) -> 0 | N26: =SUMIFS(iTABUF!$L$11:$L$109,iTABUF!$C$11:$C$109,B26) -> 0 | O26: =SUMIFS(iTABUF!$M$11:$M$109,iTABUF!$C$11:$C$109,B26) -> 0 | P26: =iUI!H26 -> 326 | Q26: =iUI!I26 -> 51 | R26: =iUI!K26 -> C/6
A27: 17 | B27: =iUI!B27 -> U17 | C27: UF17 | D27: =IF(iUI!D27<>"",iUI!D27,"") -> C10 | E27: =IF(iUI!E27<>"",iUI!E27,"") -> Condomino10 | F27: =SUMIFS(iTABUF!$D$11:$D$109,iTABUF!$C$11:$C$109,B27) -> 6.1487 | G27: =SUMIFS(iTABUF!$E$11:$E$109,iTABUF!$C$11:$C$109,B27) -> 0 | H27: =SUMIFS(iTABUF!$F$11:$F$109,iTABUF!$C$11:$C$109,B27) -> 0 | I27: =SUMIFS(iTABUF!$G$11:$G$109,iTABUF!$C$11:$C$109,B27) -> 39 | J27: =SUMIFS(iTABUF!$H$11:$H$109,iTABUF!$C$11:$C$109,B27) -> 0 | K27: =SUMIFS(iTABUF!$I$11:$I$109,iTABUF!$C$11:$C$109,B27) -> 102 | L27: =SUMIFS(iTABUF!$J$11:$J$109,iTABUF!$C$11:$C$109,B27) -> 0 | M27: =SUMIFS(iTABUF!$K$11:$K$109,iTABUF!$C$11:$C$109,B27) -> 0 | N27: =SUMIFS(iTABUF!$L$11:$L$109,iTABUF!$C$11:$C$109,B27) -> 0 | O27: =SUMIFS(iTABUF!$M$11:$M$109,iTABUF!$C$11:$C$109,B27) -> 0 | P27: =iUI!H27 -> 326 | Q27: =iUI!I27 -> 64 | R27: =iUI!K27 -> C/6
A28: 18 | B28: =iUI!B28 -> U18 | C28: UF18 | D28: =IF(iUI!D28<>"",iUI!D28,"") -> C09 | E28: =IF(iUI!E28<>"",iUI!E28,"") -> Condomino09 S.r.l. | F28: =SUMIFS(iTABUF!$D$11:$D$109,iTABUF!$C$11:$C$109,B28) -> 3.7851 | G28: =SUMIFS(iTABUF!$E$11:$E$109,iTABUF!$C$11:$C$109,B28) -> 30 | H28: =SUMIFS(iTABUF!$F$11:$F$109,iTABUF!$C$11:$C$109,B28) -> 0 | I28: =SUMIFS(iTABUF!$G$11:$G$109,iTABUF!$C$11:$C$109,B28) -> 0 | J28: =SUMIFS(iTABUF!$H$11:$H$109,iTABUF!$C$11:$C$109,B28) -> 0 | K28: =SUMIFS(iTABUF!$I$11:$I$109,iTABUF!$C$11:$C$109,B28) -> 85 | L28: =SUMIFS(iTABUF!$J$11:$J$109,iTABUF!$C$11:$C$109,B28) -> 0 | M28: =SUMIFS(iTABUF!$K$11:$K$109,iTABUF!$C$11:$C$109,B28) -> 0 | N28: =SUMIFS(iTABUF!$L$11:$L$109,iTABUF!$C$11:$C$109,B28) -> 0 | O28: =SUMIFS(iTABUF!$M$11:$M$109,iTABUF!$C$11:$C$109,B28) -> 0 | P28: =iUI!H28 -> 326 | Q28: =iUI!I28 -> 68 | R28: =iUI!K28 -> C/2
A29: 19 | B29: =iUI!B29 -> U19 | C29: UF19 | D29: =IF(iUI!D29<>"",iUI!D29,"") -> C04 | E29: =IF(iUI!E29<>"",iUI!E29,"") -> Condomino04 S.r.l. | F29: =SUMIFS(iTABUF!$D$11:$D$109,iTABUF!$C$11:$C$109,B29) -> 2.7324 | G29: =SUMIFS(iTABUF!$E$11:$E$109,iTABUF!$C$11:$C$109,B29) -> 30 | H29: =SUMIFS(iTABUF!$F$11:$F$109,iTABUF!$C$11:$C$109,B29) -> 0 | I29: =SUMIFS(iTABUF!$G$11:$G$109,iTABUF!$C$11:$C$109,B29) -> 0 | J29: =SUMIFS(iTABUF!$H$11:$H$109,iTABUF!$C$11:$C$109,B29) -> 0 | K29: =SUMIFS(iTABUF!$I$11:$I$109,iTABUF!$C$11:$C$109,B29) -> 62 | L29: =SUMIFS(iTABUF!$J$11:$J$109,iTABUF!$C$11:$C$109,B29) -> 0 | M29: =SUMIFS(iTABUF!$K$11:$K$109,iTABUF!$C$11:$C$109,B29) -> 0 | N29: =SUMIFS(iTABUF!$L$11:$L$109,iTABUF!$C$11:$C$109,B29) -> 0 | O29: =SUMIFS(iTABUF!$M$11:$M$109,iTABUF!$C$11:$C$109,B29) -> 0 | P29: =iUI!H29 -> 326 | Q29: =iUI!I29 -> 29 | R29: =iUI!K29 -> C/2
A30: 20 | B30: =iUI!B30 -> U20 | C30: UF20 | D30: =IF(iUI!D30<>"",iUI!D30,"") -> C04 | E30: =IF(iUI!E30<>"",iUI!E30,"") -> Condomino04 S.r.l. | F30: =SUMIFS(iTABUF!$D$11:$D$109,iTABUF!$C$11:$C$109,B30) -> 5.1961 | G30: =SUMIFS(iTABUF!$E$11:$E$109,iTABUF!$C$11:$C$109,B30) -> 0 | H30: =SUMIFS(iTABUF!$F$11:$F$109,iTABUF!$C$11:$C$109,B30) -> 32 | I30: =SUMIFS(iTABUF!$G$11:$G$109,iTABUF!$C$11:$C$109,B30) -> 0 | J30: =SUMIFS(iTABUF!$H$11:$H$109,iTABUF!$C$11:$C$109,B30) -> 0 | K30: =SUMIFS(iTABUF!$I$11:$I$109,iTABUF!$C$11:$C$109,B30) -> 117 | L30: =SUMIFS(iTABUF!$J$11:$J$109,iTABUF!$C$11:$C$109,B30) -> 0 | M30: =SUMIFS(iTABUF!$K$11:$K$109,iTABUF!$C$11:$C$109,B30) -> 0 | N30: =SUMIFS(iTABUF!$L$11:$L$109,iTABUF!$C$11:$C$109,B30) -> 0 | O30: =SUMIFS(iTABUF!$M$11:$M$109,iTABUF!$C$11:$C$109,B30) -> 0 | P30: =iUI!H30 -> 326 | Q30: =iUI!I30 -> 67 | R30: =iUI!K30 -> C/2
A31: 21 | B31: =iUI!B31 -> U21 | C31: UF21 | D31: =IF(iUI!D31<>"",iUI!D31,"") -> C03 | E31: =IF(iUI!E31<>"",iUI!E31,"") -> Condomino03 | F31: =SUMIFS(iTABUF!$D$11:$D$109,iTABUF!$C$11:$C$109,B31) -> 3.8697 | G31: =SUMIFS(iTABUF!$E$11:$E$109,iTABUF!$C$11:$C$109,B31) -> 0 | H31: =SUMIFS(iTABUF!$F$11:$F$109,iTABUF!$C$11:$C$109,B31) -> 31 | I31: =SUMIFS(iTABUF!$G$11:$G$109,iTABUF!$C$11:$C$109,B31) -> 0 | J31: =SUMIFS(iTABUF!$H$11:$H$109,iTABUF!$C$11:$C$109,B31) -> 0 | K31: =SUMIFS(iTABUF!$I$11:$I$109,iTABUF!$C$11:$C$109,B31) -> 87 | L31: =SUMIFS(iTABUF!$J$11:$J$109,iTABUF!$C$11:$C$109,B31) -> 0 | M31: =SUMIFS(iTABUF!$K$11:$K$109,iTABUF!$C$11:$C$109,B31) -> 0 | N31: =SUMIFS(iTABUF!$L$11:$L$109,iTABUF!$C$11:$C$109,B31) -> 0 | O31: =SUMIFS(iTABUF!$M$11:$M$109,iTABUF!$C$11:$C$109,B31) -> 0 | P31: =iUI!H31 -> 326 | Q31: =iUI!I31 -> 66 | R31: =iUI!K31 -> C/2
A32: 22 | B32: =iUI!B32 -> U22 | C32: UF22 | D32: =IF(iUI!D32<>"",iUI!D32,"") -> C03 | E32: =IF(iUI!E32<>"",iUI!E32,"") -> Condomino03 | F32: =SUMIFS(iTABUF!$D$11:$D$109,iTABUF!$C$11:$C$109,B32) -> 2.7548 | G32: =SUMIFS(iTABUF!$E$11:$E$109,iTABUF!$C$11:$C$109,B32) -> 0 | H32: =SUMIFS(iTABUF!$F$11:$F$109,iTABUF!$C$11:$C$109,B32) -> 0 | I32: =SUMIFS(iTABUF!$G$11:$G$109,iTABUF!$C$11:$C$109,B32) -> 39 | J32: =SUMIFS(iTABUF!$H$11:$H$109,iTABUF!$C$11:$C$109,B32) -> 0 | K32: =SUMIFS(iTABUF!$I$11:$I$109,iTABUF!$C$11:$C$109,B32) -> 62 | L32: =SUMIFS(iTABUF!$J$11:$J$109,iTABUF!$C$11:$C$109,B32) -> 0 | M32: =SUMIFS(iTABUF!$K$11:$K$109,iTABUF!$C$11:$C$109,B32) -> 0 | N32: =SUMIFS(iTABUF!$L$11:$L$109,iTABUF!$C$11:$C$109,B32) -> 0 | O32: =SUMIFS(iTABUF!$M$11:$M$109,iTABUF!$C$11:$C$109,B32) -> 0 | P32: =iUI!H32 -> 326 | Q32: =iUI!I32 -> 34 | R32: =iUI!K32 -> C/2
A33: 23 | B33: =iUI!B33 -> U23 | C33: UF23 | D33: =IF(iUI!D33<>"",iUI!D33,"") -> C15 | E33: =IF(iUI!E33<>"",iUI!E33,"") -> Condomino15 | F33: =SUMIFS(iTABUF!$D$11:$D$109,iTABUF!$C$11:$C$109,B33) -> 3.7851 | G33: =SUMIFS(iTABUF!$E$11:$E$109,iTABUF!$C$11:$C$109,B33) -> 0 | H33: =SUMIFS(iTABUF!$F$11:$F$109,iTABUF!$C$11:$C$109,B33) -> 0 | I33: =SUMIFS(iTABUF!$G$11:$G$109,iTABUF!$C$11:$C$109,B33) -> 40 | J33: =SUMIFS(iTABUF!$H$11:$H$109,iTABUF!$C$11:$C$109,B33) -> 0 | K33: =SUMIFS(iTABUF!$I$11:$I$109,iTABUF!$C$11:$C$109,B33) -> 85 | L33: =SUMIFS(iTABUF!$J$11:$J$109,iTABUF!$C$11:$C$109,B33) -> 0 | M33: =SUMIFS(iTABUF!$K$11:$K$109,iTABUF!$C$11:$C$109,B33) -> 0 | N33: =SUMIFS(iTABUF!$L$11:$L$109,iTABUF!$C$11:$C$109,B33) -> 0 | O33: =SUMIFS(iTABUF!$M$11:$M$109,iTABUF!$C$11:$C$109,B33) -> 0 | P33: =iUI!H33 -> 326 | Q33: =iUI!I33 -> 65 | R33: =iUI!K33 -> C/2
A34: 24 | B34: =iUI!B34 -> U24 | C34: UF24 | D34: =IF(iUI!D34<>"",iUI!D34,"") -> C09 | E34: =IF(iUI!E34<>"",iUI!E34,"") -> Condomino09 S.r.l. | F34: =SUMIFS(iTABUF!$D$11:$D$109,iTABUF!$C$11:$C$109,B34) -> 46.3268 | G34: =SUMIFS(iTABUF!$E$11:$E$109,iTABUF!$C$11:$C$109,B34) -> 0 | H34: =SUMIFS(iTABUF!$F$11:$F$109,iTABUF!$C$11:$C$109,B34) -> 0 | I34: =SUMIFS(iTABUF!$G$11:$G$109,iTABUF!$C$11:$C$109,B34) -> 0 | J34: =SUMIFS(iTABUF!$H$11:$H$109,iTABUF!$C$11:$C$109,B34) -> 100 | K34: =SUMIFS(iTABUF!$I$11:$I$109,iTABUF!$C$11:$C$109,B34) -> 0 | L34: =SUMIFS(iTABUF!$J$11:$J$109,iTABUF!$C$11:$C$109,B34) -> 0 | M34: =SUMIFS(iTABUF!$K$11:$K$109,iTABUF!$C$11:$C$109,B34) -> 0 | N34: =SUMIFS(iTABUF!$L$11:$L$109,iTABUF!$C$11:$C$109,B34) -> 0 | O34: =SUMIFS(iTABUF!$M$11:$M$109,iTABUF!$C$11:$C$109,B34) -> 0 | P34: =iUI!H34 -> 326 | Q34: =iUI!I34 -> 58 | R34: =iUI!K34 -> C/1
A35: 25 | B35: =iUI!B35 -> U25 | C35: UF25 | D35: =IF(iUI!D35<>"",iUI!D35,"") -> C13 | E35: =IF(iUI!E35<>"",iUI!E35,"") -> Condomino13 | F35: =SUMIFS(iTABUF!$D$11:$D$109,iTABUF!$C$11:$C$109,B35) -> 23.3426 | G35: =SUMIFS(iTABUF!$E$11:$E$109,iTABUF!$C$11:$C$109,B35) -> 0 | H35: =SUMIFS(iTABUF!$F$11:$F$109,iTABUF!$C$11:$C$109,B35) -> 0 | I35: =SUMIFS(iTABUF!$G$11:$G$109,iTABUF!$C$11:$C$109,B35) -> 0 | J35: =SUMIFS(iTABUF!$H$11:$H$109,iTABUF!$C$11:$C$109,B35) -> 100 | K35: =SUMIFS(iTABUF!$I$11:$I$109,iTABUF!$C$11:$C$109,B35) -> 0 | L35: =SUMIFS(iTABUF!$J$11:$J$109,iTABUF!$C$11:$C$109,B35) -> 0 | M35: =SUMIFS(iTABUF!$K$11:$K$109,iTABUF!$C$11:$C$109,B35) -> 0 | N35: =SUMIFS(iTABUF!$L$11:$L$109,iTABUF!$C$11:$C$109,B35) -> 0 | O35: =SUMIFS(iTABUF!$M$11:$M$109,iTABUF!$C$11:$C$109,B35) -> 0 | P35: =iUI!H35 -> 326 | Q35: =iUI!I35 -> 76 | R35: =iUI!K35 -> A/10
A36: 26 | B36: =iUI!B36 -> U26 | C36: UF26 | D36: =IF(iUI!D36<>"",iUI!D36,"") -> C04 | E36: =IF(iUI!E36<>"",iUI!E36,"") -> Condomino04 S.r.l. | F36: =SUMIFS(iTABUF!$D$11:$D$109,iTABUF!$C$11:$C$109,B36) -> 48.3575 | G36: =SUMIFS(iTABUF!$E$11:$E$109,iTABUF!$C$11:$C$109,B36) -> 0 | H36: =SUMIFS(iTABUF!$F$11:$F$109,iTABUF!$C$11:$C$109,B36) -> 0 | I36: =SUMIFS(iTABUF!$G$11:$G$109,iTABUF!$C$11:$C$109,B36) -> 0 | J36: =SUMIFS(iTABUF!$H$11:$H$109,iTABUF!$C$11:$C$109,B36) -> 100 | K36: =SUMIFS(iTABUF!$I$11:$I$109,iTABUF!$C$11:$C$109,B36) -> 0 | L36: =SUMIFS(iTABUF!$J$11:$J$109,iTABUF!$C$11:$C$109,B36) -> 0 | M36: =SUMIFS(iTABUF!$K$11:$K$109,iTABUF!$C$11:$C$109,B36) -> 0 | N36: =SUMIFS(iTABUF!$L$11:$L$109,iTABUF!$C$11:$C$109,B36) -> 0 | O36: =SUMIFS(iTABUF!$M$11:$M$109,iTABUF!$C$11:$C$109,B36) -> 0 | P36: =iUI!H36 -> 326 | Q36: =iUI!I36 -> 60 | R36: =iUI!K36 -> C/1
A37: 27 | B37: =iUI!B37 -> U27 | C37: UF27 | D37: =IF(iUI!D37<>"",iUI!D37,"") -> C23 | E37: =IF(iUI!E37<>"",iUI!E37,"") -> Condomino23 | F37: =SUMIFS(iTABUF!$D$11:$D$109,iTABUF!$C$11:$C$109,B37) -> 64.1448 | G37: =SUMIFS(iTABUF!$E$11:$E$109,iTABUF!$C$11:$C$109,B37) -> 0 | H37: =SUMIFS(iTABUF!$F$11:$F$109,iTABUF!$C$11:$C$109,B37) -> 0 | I37: =SUMIFS(iTABUF!$G$11:$G$109,iTABUF!$C$11:$C$109,B37) -> 0 | J37: =SUMIFS(iTABUF!$H$11:$H$109,iTABUF!$C$11:$C$109,B37) -> 100 | K37: =SUMIFS(iTABUF!$I$11:$I$109,iTABUF!$C$11:$C$109,B37) -> 0 | L37: =SUMIFS(iTABUF!$J$11:$J$109,iTABUF!$C$11:$C$109,B37) -> 0 | M37: =SUMIFS(iTABUF!$K$11:$K$109,iTABUF!$C$11:$C$109,B37) -> 0 | N37: =SUMIFS(iTABUF!$L$11:$L$109,iTABUF!$C$11:$C$109,B37) -> 0 | O37: =SUMIFS(iTABUF!$M$11:$M$109,iTABUF!$C$11:$C$109,B37) -> 0 | P37: =iUI!H37 -> 326 | Q37: =iUI!I37 -> 61 | R37: =iUI!K37 -> C/1
A38: 28 | B38: =iUI!B38 -> U28 | C38: UF28 | D38: =IF(iUI!D38<>"",iUI!D38,"") -> C15 | E38: =IF(iUI!E38<>"",iUI!E38,"") -> Condomino15 | F38: =SUMIFS(iTABUF!$D$11:$D$109,iTABUF!$C$11:$C$109,B38) -> 55.5942 | G38: =SUMIFS(iTABUF!$E$11:$E$109,iTABUF!$C$11:$C$109,B38) -> 0 | H38: =SUMIFS(iTABUF!$F$11:$F$109,iTABUF!$C$11:$C$109,B38) -> 0 | I38: =SUMIFS(iTABUF!$G$11:$G$109,iTABUF!$C$11:$C$109,B38) -> 0 | J38: =SUMIFS(iTABUF!$H$11:$H$109,iTABUF!$C$11:$C$109,B38) -> 100 | K38: =SUMIFS(iTABUF!$I$11:$I$109,iTABUF!$C$11:$C$109,B38) -> 0 | L38: =SUMIFS(iTABUF!$J$11:$J$109,iTABUF!$C$11:$C$109,B38) -> 0 | M38: =SUMIFS(iTABUF!$K$11:$K$109,iTABUF!$C$11:$C$109,B38) -> 0 | N38: =SUMIFS(iTABUF!$L$11:$L$109,iTABUF!$C$11:$C$109,B38) -> 0 | O38: =SUMIFS(iTABUF!$M$11:$M$109,iTABUF!$C$11:$C$109,B38) -> 0 | P38: =iUI!H38 -> 326 | Q38: =iUI!I38 -> 62 | R38: =iUI!K38 -> C/1
A39: 29 | B39: =iUI!B39 -> U29 | C39: UF29 | D39: =IF(iUI!D39<>"",iUI!D39,"") -> C05 | E39: =IF(iUI!E39<>"",iUI!E39,"") -> Condomino05 | F39: =SUMIFS(iTABUF!$D$11:$D$109,iTABUF!$C$11:$C$109,B39) -> 43.244 | G39: =SUMIFS(iTABUF!$E$11:$E$109,iTABUF!$C$11:$C$109,B39) -> 104 | H39: =SUMIFS(iTABUF!$F$11:$F$109,iTABUF!$C$11:$C$109,B39) -> 0 | I39: =SUMIFS(iTABUF!$G$11:$G$109,iTABUF!$C$11:$C$109,B39) -> 0 | J39: =SUMIFS(iTABUF!$H$11:$H$109,iTABUF!$C$11:$C$109,B39) -> 27.778 | K39: =SUMIFS(iTABUF!$I$11:$I$109,iTABUF!$C$11:$C$109,B39) -> 0 | L39: =SUMIFS(iTABUF!$J$11:$J$109,iTABUF!$C$11:$C$109,B39) -> 0 | M39: =SUMIFS(iTABUF!$K$11:$K$109,iTABUF!$C$11:$C$109,B39) -> 0 | N39: =SUMIFS(iTABUF!$L$11:$L$109,iTABUF!$C$11:$C$109,B39) -> 0 | O39: =SUMIFS(iTABUF!$M$11:$M$109,iTABUF!$C$11:$C$109,B39) -> 0 | P39: =iUI!H39 -> 326 | Q39: =iUI!I39 -> 7 | R39: =iUI!K39 -> A/2
A40: 30 | B40: =iUI!B40 -> U30 | C40: UF30 | D40: =IF(iUI!D40<>"",iUI!D40,"") -> C13 | E40: =IF(iUI!E40<>"",iUI!E40,"") -> Condomino13 | F40: =SUMIFS(iTABUF!$D$11:$D$109,iTABUF!$C$11:$C$109,B40) -> 39.3335 | G40: =SUMIFS(iTABUF!$E$11:$E$109,iTABUF!$C$11:$C$109,B40) -> 97 | H40: =SUMIFS(iTABUF!$F$11:$F$109,iTABUF!$C$11:$C$109,B40) -> 0 | I40: =SUMIFS(iTABUF!$G$11:$G$109,iTABUF!$C$11:$C$109,B40) -> 0 | J40: =SUMIFS(iTABUF!$H$11:$H$109,iTABUF!$C$11:$C$109,B40) -> 27.778 | K40: =SUMIFS(iTABUF!$I$11:$I$109,iTABUF!$C$11:$C$109,B40) -> 0 | L40: =SUMIFS(iTABUF!$J$11:$J$109,iTABUF!$C$11:$C$109,B40) -> 0 | M40: =SUMIFS(iTABUF!$K$11:$K$109,iTABUF!$C$11:$C$109,B40) -> 0 | N40: =SUMIFS(iTABUF!$L$11:$L$109,iTABUF!$C$11:$C$109,B40) -> 0 | O40: =SUMIFS(iTABUF!$M$11:$M$109,iTABUF!$C$11:$C$109,B40) -> 0 | P40: =iUI!H40 -> 326 | Q40: =iUI!I40 -> 8 | R40: =iUI!K40 -> A/2
A41: 31 | B41: =iUI!B41 -> U31 | C41: UF32 | D41: =IF(iUI!D41<>"",iUI!D41,"") -> C11 | E41: =IF(iUI!E41<>"",iUI!E41,"") -> Condomino11 | F41: =SUMIFS(iTABUF!$D$11:$D$109,iTABUF!$C$11:$C$109,B41) -> 36.1352 | G41: =SUMIFS(iTABUF!$E$11:$E$109,iTABUF!$C$11:$C$109,B41) -> 116 | H41: =SUMIFS(iTABUF!$F$11:$F$109,iTABUF!$C$11:$C$109,B41) -> 0 | I41: =SUMIFS(iTABUF!$G$11:$G$109,iTABUF!$C$11:$C$109,B41) -> 0 | J41: =SUMIFS(iTABUF!$H$11:$H$109,iTABUF!$C$11:$C$109,B41) -> 27.778 | K41: =SUMIFS(iTABUF!$I$11:$I$109,iTABUF!$C$11:$C$109,B41) -> 0 | L41: =SUMIFS(iTABUF!$J$11:$J$109,iTABUF!$C$11:$C$109,B41) -> 0 | M41: =SUMIFS(iTABUF!$K$11:$K$109,iTABUF!$C$11:$C$109,B41) -> 0 | N41: =SUMIFS(iTABUF!$L$11:$L$109,iTABUF!$C$11:$C$109,B41) -> 0 | O41: =SUMIFS(iTABUF!$M$11:$M$109,iTABUF!$C$11:$C$109,B41) -> 0 | P41: =iUI!H41 -> 326 | Q41: =iUI!I41 -> 10 | R41: =iUI!K41 -> A/2
A42: 32 | B42: =iUI!B42 -> U32 | C42: UF33 | D42: =IF(iUI!D42<>"",iUI!D42,"") -> C19 | E42: =IF(iUI!E42<>"",iUI!E42,"") -> Condomino19 | F42: =SUMIFS(iTABUF!$D$11:$D$109,iTABUF!$C$11:$C$109,B42) -> 49.0314 | G42: =SUMIFS(iTABUF!$E$11:$E$109,iTABUF!$C$11:$C$109,B42) -> 168 | H42: =SUMIFS(iTABUF!$F$11:$F$109,iTABUF!$C$11:$C$109,B42) -> 0 | I42: =SUMIFS(iTABUF!$G$11:$G$109,iTABUF!$C$11:$C$109,B42) -> 0 | J42: =SUMIFS(iTABUF!$H$11:$H$109,iTABUF!$C$11:$C$109,B42) -> 27.778 | K42: =SUMIFS(iTABUF!$I$11:$I$109,iTABUF!$C$11:$C$109,B42) -> 0 | L42: =SUMIFS(iTABUF!$J$11:$J$109,iTABUF!$C$11:$C$109,B42) -> 0 | M42: =SUMIFS(iTABUF!$K$11:$K$109,iTABUF!$C$11:$C$109,B42) -> 0 | N42: =SUMIFS(iTABUF!$L$11:$L$109,iTABUF!$C$11:$C$109,B42) -> 0 | O42: =SUMIFS(iTABUF!$M$11:$M$109,iTABUF!$C$11:$C$109,B42) -> 0 | P42: =iUI!H42 -> 326 | Q42: =iUI!I42 -> 79 | R42: =iUI!K42 -> A/2
A43: 33 | B43: =iUI!B43 -> U33 | C43: UF34 | D43: =IF(iUI!D43<>"",iUI!D43,"") -> C22 | E43: =IF(iUI!E43<>"",iUI!E43,"") -> Condomino22 | F43: =SUMIFS(iTABUF!$D$11:$D$109,iTABUF!$C$11:$C$109,B43) -> 30.3882 | G43: =SUMIFS(iTABUF!$E$11:$E$109,iTABUF!$C$11:$C$109,B43) -> 128 | H43: =SUMIFS(iTABUF!$F$11:$F$109,iTABUF!$C$11:$C$109,B43) -> 0 | I43: =SUMIFS(iTABUF!$G$11:$G$109,iTABUF!$C$11:$C$109,B43) -> 0 | J43: =SUMIFS(iTABUF!$H$11:$H$109,iTABUF!$C$11:$C$109,B43) -> 27.778 | K43: =SUMIFS(iTABUF!$I$11:$I$109,iTABUF!$C$11:$C$109,B43) -> 0 | L43: =SUMIFS(iTABUF!$J$11:$J$109,iTABUF!$C$11:$C$109,B43) -> 0 | M43: =SUMIFS(iTABUF!$K$11:$K$109,iTABUF!$C$11:$C$109,B43) -> 0 | N43: =SUMIFS(iTABUF!$L$11:$L$109,iTABUF!$C$11:$C$109,B43) -> 0 | O43: =SUMIFS(iTABUF!$M$11:$M$109,iTABUF!$C$11:$C$109,B43) -> 0 | P43: =iUI!H43 -> 326 | Q43: =iUI!I43 -> 80 | R43: =iUI!K43 -> A/3
A44: 34 | B44: =iUI!B44 -> U34 | C44: UF35 | D44: =IF(iUI!D44<>"",iUI!D44,"") -> C21 | E44: =IF(iUI!E44<>"",iUI!E44,"") -> Condomino21 | F44: =SUMIFS(iTABUF!$D$11:$D$109,iTABUF!$C$11:$C$109,B44) -> 39.4365 | G44: =SUMIFS(iTABUF!$E$11:$E$109,iTABUF!$C$11:$C$109,B44) -> 0 | H44: =SUMIFS(iTABUF!$F$11:$F$109,iTABUF!$C$11:$C$109,B44) -> 114 | I44: =SUMIFS(iTABUF!$G$11:$G$109,iTABUF!$C$11:$C$109,B44) -> 0 | J44: =SUMIFS(iTABUF!$H$11:$H$109,iTABUF!$C$11:$C$109,B44) -> 27.778 | K44: =SUMIFS(iTABUF!$I$11:$I$109,iTABUF!$C$11:$C$109,B44) -> 0 | L44: =SUMIFS(iTABUF!$J$11:$J$109,iTABUF!$C$11:$C$109,B44) -> 0 | M44: =SUMIFS(iTABUF!$K$11:$K$109,iTABUF!$C$11:$C$109,B44) -> 0 | N44: =SUMIFS(iTABUF!$L$11:$L$109,iTABUF!$C$11:$C$109,B44) -> 0 | O44: =SUMIFS(iTABUF!$M$11:$M$109,iTABUF!$C$11:$C$109,B44) -> 0 | P44: =iUI!H44 -> 326 | Q44: =iUI!I44 -> 14 | R44: =iUI!K44 -> A/2
A45: 35 | B45: =iUI!B45 -> U35 | C45: UF36 | D45: =IF(iUI!D45<>"",iUI!D45,"") -> C18 | E45: =IF(iUI!E45<>"",iUI!E45,"") -> Condomino18 | F45: =SUMIFS(iTABUF!$D$11:$D$109,iTABUF!$C$11:$C$109,B45) -> 31.844 | G45: =SUMIFS(iTABUF!$E$11:$E$109,iTABUF!$C$11:$C$109,B45) -> 0 | H45: =SUMIFS(iTABUF!$F$11:$F$109,iTABUF!$C$11:$C$109,B45) -> 96 | I45: =SUMIFS(iTABUF!$G$11:$G$109,iTABUF!$C$11:$C$109,B45) -> 0 | J45: =SUMIFS(iTABUF!$H$11:$H$109,iTABUF!$C$11:$C$109,B45) -> 27.778 | K45: =SUMIFS(iTABUF!$I$11:$I$109,iTABUF!$C$11:$C$109,B45) -> 0 | L45: =SUMIFS(iTABUF!$J$11:$J$109,iTABUF!$C$11:$C$109,B45) -> 0 | M45: =SUMIFS(iTABUF!$K$11:$K$109,iTABUF!$C$11:$C$109,B45) -> 0 | N45: =SUMIFS(iTABUF!$L$11:$L$109,iTABUF!$C$11:$C$109,B45) -> 0 | O45: =SUMIFS(iTABUF!$M$11:$M$109,iTABUF!$C$11:$C$109,B45) -> 0 | P45: =iUI!H45 -> 326 | Q45: =iUI!I45 -> 15 | R45: =iUI!K45 -> A/2
A46: 36 | B46: =iUI!B46 -> U36 | C46: UF37 | D46: =IF(iUI!D46<>"",iUI!D46,"") -> C14 | E46: =IF(iUI!E46<>"",iUI!E46,"") -> Condomino14 | F46: =SUMIFS(iTABUF!$D$11:$D$109,iTABUF!$C$11:$C$109,B46) -> 29.873 | G46: =SUMIFS(iTABUF!$E$11:$E$109,iTABUF!$C$11:$C$109,B46) -> 0 | H46: =SUMIFS(iTABUF!$F$11:$F$109,iTABUF!$C$11:$C$109,B46) -> 115 | I46: =SUMIFS(iTABUF!$G$11:$G$109,iTABUF!$C$11:$C$109,B46) -> 0 | J46: =SUMIFS(iTABUF!$H$11:$H$109,iTABUF!$C$11:$C$109,B46) -> 27.778 | K46: =SUMIFS(iTABUF!$I$11:$I$109,iTABUF!$C$11:$C$109,B46) -> 0 | L46: =SUMIFS(iTABUF!$J$11:$J$109,iTABUF!$C$11:$C$109,B46) -> 0 | M46: =SUMIFS(iTABUF!$K$11:$K$109,iTABUF!$C$11:$C$109,B46) -> 0 | N46: =SUMIFS(iTABUF!$L$11:$L$109,iTABUF!$C$11:$C$109,B46) -> 0 | O46: =SUMIFS(iTABUF!$M$11:$M$109,iTABUF!$C$11:$C$109,B46) -> 0 | P46: =iUI!H46 -> 326 | Q46: =iUI!I46 -> 16 | R46: =iUI!K46 -> A/2
A47: 37 | B47: =iUI!B47 -> U37 | C47: UF38 | D47: =IF(iUI!D47<>"",iUI!D47,"") -> C02 | E47: =IF(iUI!E47<>"",iUI!E47,"") -> Condomino02 | F47: =SUMIFS(iTABUF!$D$11:$D$109,iTABUF!$C$11:$C$109,B47) -> 30.2851 | G47: =SUMIFS(iTABUF!$E$11:$E$109,iTABUF!$C$11:$C$109,B47) -> 0 | H47: =SUMIFS(iTABUF!$F$11:$F$109,iTABUF!$C$11:$C$109,B47) -> 116 | I47: =SUMIFS(iTABUF!$G$11:$G$109,iTABUF!$C$11:$C$109,B47) -> 0 | J47: =SUMIFS(iTABUF!$H$11:$H$109,iTABUF!$C$11:$C$109,B47) -> 27.778 | K47: =SUMIFS(iTABUF!$I$11:$I$109,iTABUF!$C$11:$C$109,B47) -> 0 | L47: =SUMIFS(iTABUF!$J$11:$J$109,iTABUF!$C$11:$C$109,B47) -> 0 | M47: =SUMIFS(iTABUF!$K$11:$K$109,iTABUF!$C$11:$C$109,B47) -> 0 | N47: =SUMIFS(iTABUF!$L$11:$L$109,iTABUF!$C$11:$C$109,B47) -> 0 | O47: =SUMIFS(iTABUF!$M$11:$M$109,iTABUF!$C$11:$C$109,B47) -> 0 | P47: =iUI!H47 -> 326 | Q47: =iUI!I47 -> 17 | R47: =iUI!K47 -> A/3
A48: 38 | B48: =iUI!B48 -> U38 | C48: UF39 | D48: =IF(iUI!D48<>"",iUI!D48,"") -> C16 | E48: =IF(iUI!E48<>"",iUI!E48,"") -> Condomino16 | F48: =SUMIFS(iTABUF!$D$11:$D$109,iTABUF!$C$11:$C$109,B48) -> 39.7411 | G48: =SUMIFS(iTABUF!$E$11:$E$109,iTABUF!$C$11:$C$109,B48) -> 0 | H48: =SUMIFS(iTABUF!$F$11:$F$109,iTABUF!$C$11:$C$109,B48) -> 167 | I48: =SUMIFS(iTABUF!$G$11:$G$109,iTABUF!$C$11:$C$109,B48) -> 0 | J48: =SUMIFS(iTABUF!$H$11:$H$109,iTABUF!$C$11:$C$109,B48) -> 27.778 | K48: =SUMIFS(iTABUF!$I$11:$I$109,iTABUF!$C$11:$C$109,B48) -> 0 | L48: =SUMIFS(iTABUF!$J$11:$J$109,iTABUF!$C$11:$C$109,B48) -> 0 | M48: =SUMIFS(iTABUF!$K$11:$K$109,iTABUF!$C$11:$C$109,B48) -> 0 | N48: =SUMIFS(iTABUF!$L$11:$L$109,iTABUF!$C$11:$C$109,B48) -> 0 | O48: =SUMIFS(iTABUF!$M$11:$M$109,iTABUF!$C$11:$C$109,B48) -> 0 | P48: =iUI!H48 -> 326 | Q48: =iUI!I48 -> 83 | R48: =iUI!K48 -> A/2
A49: 39 | B49: =iUI!B49 -> U39 | C49: UF40 | D49: =IF(iUI!D49<>"",iUI!D49,"") -> C12 | E49: =IF(iUI!E49<>"",iUI!E49,"") -> Condomino12 | F49: =SUMIFS(iTABUF!$D$11:$D$109,iTABUF!$C$11:$C$109,B49) -> 29.0891 | G49: =SUMIFS(iTABUF!$E$11:$E$109,iTABUF!$C$11:$C$109,B49) -> 0 | H49: =SUMIFS(iTABUF!$F$11:$F$109,iTABUF!$C$11:$C$109,B49) -> 137 | I49: =SUMIFS(iTABUF!$G$11:$G$109,iTABUF!$C$11:$C$109,B49) -> 0 | J49: =SUMIFS(iTABUF!$H$11:$H$109,iTABUF!$C$11:$C$109,B49) -> 27.778 | K49: =SUMIFS(iTABUF!$I$11:$I$109,iTABUF!$C$11:$C$109,B49) -> 0 | L49: =SUMIFS(iTABUF!$J$11:$J$109,iTABUF!$C$11:$C$109,B49) -> 0 | M49: =SUMIFS(iTABUF!$K$11:$K$109,iTABUF!$C$11:$C$109,B49) -> 0 | N49: =SUMIFS(iTABUF!$L$11:$L$109,iTABUF!$C$11:$C$109,B49) -> 0 | O49: =SUMIFS(iTABUF!$M$11:$M$109,iTABUF!$C$11:$C$109,B49) -> 0 | P49: =iUI!H49 -> 326 | Q49: =iUI!I49 -> 81 | R49: =iUI!K49 -> A/2
A50: 40 | B50: =iUI!B50 -> U40 | C50: UF41 | D50: =IF(iUI!D50<>"",iUI!D50,"") -> C06 | E50: =IF(iUI!E50<>"",iUI!E50,"") -> Condomino06 | F50: =SUMIFS(iTABUF!$D$11:$D$109,iTABUF!$C$11:$C$109,B50) -> 36.5787 | G50: =SUMIFS(iTABUF!$E$11:$E$109,iTABUF!$C$11:$C$109,B50) -> 0 | H50: =SUMIFS(iTABUF!$F$11:$F$109,iTABUF!$C$11:$C$109,B50) -> 0 | I50: =SUMIFS(iTABUF!$G$11:$G$109,iTABUF!$C$11:$C$109,B50) -> 98 | J50: =SUMIFS(iTABUF!$H$11:$H$109,iTABUF!$C$11:$C$109,B50) -> 27.778 | K50: =SUMIFS(iTABUF!$I$11:$I$109,iTABUF!$C$11:$C$109,B50) -> 0 | L50: =SUMIFS(iTABUF!$J$11:$J$109,iTABUF!$C$11:$C$109,B50) -> 0 | M50: =SUMIFS(iTABUF!$K$11:$K$109,iTABUF!$C$11:$C$109,B50) -> 0 | N50: =SUMIFS(iTABUF!$L$11:$L$109,iTABUF!$C$11:$C$109,B50) -> 0 | O50: =SUMIFS(iTABUF!$M$11:$M$109,iTABUF!$C$11:$C$109,B50) -> 0 | P50: =iUI!H50 -> 326 | Q50: =iUI!I50 -> 21 | R50: =iUI!K50 -> A/2
A51: 41 | B51: =iUI!B51 -> U41 | C51: UF42 | D51: =IF(iUI!D51<>"",iUI!D51,"") -> C07 | E51: =IF(iUI!E51<>"",iUI!E51,"") -> Condomino07 | F51: =SUMIFS(iTABUF!$D$11:$D$109,iTABUF!$C$11:$C$109,B51) -> 43.9607 | G51: =SUMIFS(iTABUF!$E$11:$E$109,iTABUF!$C$11:$C$109,B51) -> 0 | H51: =SUMIFS(iTABUF!$F$11:$F$109,iTABUF!$C$11:$C$109,B51) -> 0 | I51: =SUMIFS(iTABUF!$G$11:$G$109,iTABUF!$C$11:$C$109,B51) -> 112 | J51: =SUMIFS(iTABUF!$H$11:$H$109,iTABUF!$C$11:$C$109,B51) -> 27.778 | K51: =SUMIFS(iTABUF!$I$11:$I$109,iTABUF!$C$11:$C$109,B51) -> 0 | L51: =SUMIFS(iTABUF!$J$11:$J$109,iTABUF!$C$11:$C$109,B51) -> 0 | M51: =SUMIFS(iTABUF!$K$11:$K$109,iTABUF!$C$11:$C$109,B51) -> 0 | N51: =SUMIFS(iTABUF!$L$11:$L$109,iTABUF!$C$11:$C$109,B51) -> 0 | O51: =SUMIFS(iTABUF!$M$11:$M$109,iTABUF!$C$11:$C$109,B51) -> 0 | P51: =iUI!H51 -> 326 | Q51: =iUI!I51 -> 22 | R51: =iUI!K51 -> A/2
A52: 42 | B52: =iUI!B52 -> U42 | C52: UF43 | D52: =IF(iUI!D52<>"",iUI!D52,"") -> C17 | E52: =IF(iUI!E52<>"",iUI!E52,"") -> Condomino17 | F52: =SUMIFS(iTABUF!$D$11:$D$109,iTABUF!$C$11:$C$109,B52) -> 36.8429 | G52: =SUMIFS(iTABUF!$E$11:$E$109,iTABUF!$C$11:$C$109,B52) -> 0 | H52: =SUMIFS(iTABUF!$F$11:$F$109,iTABUF!$C$11:$C$109,B52) -> 0 | I52: =SUMIFS(iTABUF!$G$11:$G$109,iTABUF!$C$11:$C$109,B52) -> 130 | J52: =SUMIFS(iTABUF!$H$11:$H$109,iTABUF!$C$11:$C$109,B52) -> 27.778 | K52: =SUMIFS(iTABUF!$I$11:$I$109,iTABUF!$C$11:$C$109,B52) -> 0 | L52: =SUMIFS(iTABUF!$J$11:$J$109,iTABUF!$C$11:$C$109,B52) -> 0 | M52: =SUMIFS(iTABUF!$K$11:$K$109,iTABUF!$C$11:$C$109,B52) -> 0 | N52: =SUMIFS(iTABUF!$L$11:$L$109,iTABUF!$C$11:$C$109,B52) -> 0 | O52: =SUMIFS(iTABUF!$M$11:$M$109,iTABUF!$C$11:$C$109,B52) -> 0 | P52: =iUI!H52 -> 326 | Q52: =iUI!I52 -> 23 | R52: =iUI!K52 -> A/1
A53: 43 | B53: =iUI!B53 -> U43 | C53: UF44 | D53: =IF(iUI!D53<>"",iUI!D53,"") -> C01 | E53: =IF(iUI!E53<>"",iUI!E53,"") -> Condomino01 | F53: =SUMIFS(iTABUF!$D$11:$D$109,iTABUF!$C$11:$C$109,B53) -> 40.3727 | G53: =SUMIFS(iTABUF!$E$11:$E$109,iTABUF!$C$11:$C$109,B53) -> 0 | H53: =SUMIFS(iTABUF!$F$11:$F$109,iTABUF!$C$11:$C$109,B53) -> 0 | I53: =SUMIFS(iTABUF!$G$11:$G$109,iTABUF!$C$11:$C$109,B53) -> 137 | J53: =SUMIFS(iTABUF!$H$11:$H$109,iTABUF!$C$11:$C$109,B53) -> 27.778 | K53: =SUMIFS(iTABUF!$I$11:$I$109,iTABUF!$C$11:$C$109,B53) -> 0 | L53: =SUMIFS(iTABUF!$J$11:$J$109,iTABUF!$C$11:$C$109,B53) -> 0 | M53: =SUMIFS(iTABUF!$K$11:$K$109,iTABUF!$C$11:$C$109,B53) -> 0 | N53: =SUMIFS(iTABUF!$L$11:$L$109,iTABUF!$C$11:$C$109,B53) -> 0 | O53: =SUMIFS(iTABUF!$M$11:$M$109,iTABUF!$C$11:$C$109,B53) -> 0 | P53: =iUI!H53 -> 326 | Q53: =iUI!I53 -> 24 | R53: =iUI!K53 -> A/2
A54: 44 | B54: =iUI!B54 -> U44 | C54: UF45 | D54: =IF(iUI!D54<>"",iUI!D54,"") -> C10 | E54: =IF(iUI!E54<>"",iUI!E54,"") -> Condomino10 | F54: =SUMIFS(iTABUF!$D$11:$D$109,iTABUF!$C$11:$C$109,B54) -> 81.3052 | G54: =SUMIFS(iTABUF!$E$11:$E$109,iTABUF!$C$11:$C$109,B54) -> 0 | H54: =SUMIFS(iTABUF!$F$11:$F$109,iTABUF!$C$11:$C$109,B54) -> 0 | I54: =SUMIFS(iTABUF!$G$11:$G$109,iTABUF!$C$11:$C$109,B54) -> 257 | J54: =SUMIFS(iTABUF!$H$11:$H$109,iTABUF!$C$11:$C$109,B54) -> 27.778 | K54: =SUMIFS(iTABUF!$I$11:$I$109,iTABUF!$C$11:$C$109,B54) -> 0 | L54: =SUMIFS(iTABUF!$J$11:$J$109,iTABUF!$C$11:$C$109,B54) -> 0 | M54: =SUMIFS(iTABUF!$K$11:$K$109,iTABUF!$C$11:$C$109,B54) -> 0 | N54: =SUMIFS(iTABUF!$L$11:$L$109,iTABUF!$C$11:$C$109,B54) -> 0 | O54: =SUMIFS(iTABUF!$M$11:$M$109,iTABUF!$C$11:$C$109,B54) -> 0 | P54: =iUI!H54 -> 326 | Q54: =iUI!I54 -> 82 | R54: =iUI!K54 -> A/2
A55: 45 | B55: =iUI!B55 -> U45 | C55: UF46 | D55: =IF(iUI!D55<>"",iUI!D55,"") -> C08 | E55: =IF(iUI!E55<>"",iUI!E55,"") -> Eredi Condomino08 | F55: =SUMIFS(iTABUF!$D$11:$D$109,iTABUF!$C$11:$C$109,B55) -> 16.8519 | G55: =SUMIFS(iTABUF!$E$11:$E$109,iTABUF!$C$11:$C$109,B55) -> 26 | H55: =SUMIFS(iTABUF!$F$11:$F$109,iTABUF!$C$11:$C$109,B55) -> 0 | I55: =SUMIFS(iTABUF!$G$11:$G$109,iTABUF!$C$11:$C$109,B55) -> 0 | J55: =SUMIFS(iTABUF!$H$11:$H$109,iTABUF!$C$11:$C$109,B55) -> 27.774 | K55: =SUMIFS(iTABUF!$I$11:$I$109,iTABUF!$C$11:$C$109,B55) -> 0 | L55: =SUMIFS(iTABUF!$J$11:$J$109,iTABUF!$C$11:$C$109,B55) -> 0 | M55: =SUMIFS(iTABUF!$K$11:$K$109,iTABUF!$C$11:$C$109,B55) -> 0 | N55: =SUMIFS(iTABUF!$L$11:$L$109,iTABUF!$C$11:$C$109,B55) -> 0 | O55: =SUMIFS(iTABUF!$M$11:$M$109,iTABUF!$C$11:$C$109,B55) -> 0 | P55: =iUI!H55 -> 326 | Q55: =iUI!I55 -> 73 | R55: =iUI!K55 -> C/2
A56: 46 | B56: =iUI!B56 -> U46 | C56: UF47 | D56: =IF(iUI!D56<>"",iUI!D56,"") -> C12 | E56: =IF(iUI!E56<>"",iUI!E56,"") -> Condomino12 | F56: =SUMIFS(iTABUF!$D$11:$D$109,iTABUF!$C$11:$C$109,B56) -> 12.6538 | G56: =SUMIFS(iTABUF!$E$11:$E$109,iTABUF!$C$11:$C$109,B56) -> 0 | H56: =SUMIFS(iTABUF!$F$11:$F$109,iTABUF!$C$11:$C$109,B56) -> 24 | I56: =SUMIFS(iTABUF!$G$11:$G$109,iTABUF!$C$11:$C$109,B56) -> 0 | J56: =SUMIFS(iTABUF!$H$11:$H$109,iTABUF!$C$11:$C$109,B56) -> 0 | K56: =SUMIFS(iTABUF!$I$11:$I$109,iTABUF!$C$11:$C$109,B56) -> 0 | L56: =SUMIFS(iTABUF!$J$11:$J$109,iTABUF!$C$11:$C$109,B56) -> 0 | M56: =SUMIFS(iTABUF!$K$11:$K$109,iTABUF!$C$11:$C$109,B56) -> 0 | N56: =SUMIFS(iTABUF!$L$11:$L$109,iTABUF!$C$11:$C$109,B56) -> 0 | O56: =SUMIFS(iTABUF!$M$11:$M$109,iTABUF!$C$11:$C$109,B56) -> 0 | P56: =iUI!H56 -> 326 | Q56: =iUI!I56 -> 78 | R56: =iUI!K56 -> C/2
A57: 47 | B57: =iUI!B57 -> U47 | D57: =IF(iUI!D57<>"",iUI!D57,"") ->  | E57: =IF(iUI!E57<>"",iUI!E57,"") ->  | F57: =SUMIFS(iTABUF!$D$11:$D$109,iTABUF!$C$11:$C$109,B57) -> 0 | G57: =SUMIFS(iTABUF!$E$11:$E$109,iTABUF!$C$11:$C$109,B57) -> 0 | H57: =SUMIFS(iTABUF!$F$11:$F$109,iTABUF!$C$11:$C$109,B57) -> 0 | I57: =SUMIFS(iTABUF!$G$11:$G$109,iTABUF!$C$11:$C$109,B57) -> 0 | J57: =SUMIFS(iTABUF!$H$11:$H$109,iTABUF!$C$11:$C$109,B57) -> 0 | K57: =SUMIFS(iTABUF!$I$11:$I$109,iTABUF!$C$11:$C$109,B57) -> 0 | L57: =SUMIFS(iTABUF!$J$11:$J$109,iTABUF!$C$11:$C$109,B57) -> 0 | M57: =SUMIFS(iTABUF!$K$11:$K$109,iTABUF!$C$11:$C$109,B57) -> 0 | N57: =SUMIFS(iTABUF!$L$11:$L$109,iTABUF!$C$11:$C$109,B57) -> 0 | O57: =SUMIFS(iTABUF!$M$11:$M$109,iTABUF!$C$11:$C$109,B57) -> 0 | P57: =iUI!H57 -> 0 | Q57: =iUI!I57 -> 0 | R57: =iUI!K57 -> 0
A58: 48 | B58: =iUI!B58 -> U48 | D58: =IF(iUI!D58<>"",iUI!D58,"") ->  | E58: =IF(iUI!E58<>"",iUI!E58,"") ->  | F58: =SUMIFS(iTABUF!$D$11:$D$109,iTABUF!$C$11:$C$109,B58) -> 0 | G58: =SUMIFS(iTABUF!$E$11:$E$109,iTABUF!$C$11:$C$109,B58) -> 0 | H58: =SUMIFS(iTABUF!$F$11:$F$109,iTABUF!$C$11:$C$109,B58) -> 0 | I58: =SUMIFS(iTABUF!$G$11:$G$109,iTABUF!$C$11:$C$109,B58) -> 0 | J58: =SUMIFS(iTABUF!$H$11:$H$109,iTABUF!$C$11:$C$109,B58) -> 0 | K58: =SUMIFS(iTABUF!$I$11:$I$109,iTABUF!$C$11:$C$109,B58) -> 0 | L58: =SUMIFS(iTABUF!$J$11:$J$109,iTABUF!$C$11:$C$109,B58) -> 0 | M58: =SUMIFS(iTABUF!$K$11:$K$109,iTABUF!$C$11:$C$109,B58) -> 0 | N58: =SUMIFS(iTABUF!$L$11:$L$109,iTABUF!$C$11:$C$109,B58) -> 0 | O58: =SUMIFS(iTABUF!$M$11:$M$109,iTABUF!$C$11:$C$109,B58) -> 0 | P58: =iUI!H58 -> 0 | Q58: =iUI!I58 -> 0 | R58: =iUI!K58 -> 0
A59: 49 | B59: =iUI!B59 -> U49 | D59: =IF(iUI!D59<>"",iUI!D59,"") ->  | E59: =IF(iUI!E59<>"",iUI!E59,"") ->  | F59: =SUMIFS(iTABUF!$D$11:$D$109,iTABUF!$C$11:$C$109,B59) -> 0 | G59: =SUMIFS(iTABUF!$E$11:$E$109,iTABUF!$C$11:$C$109,B59) -> 0 | H59: =SUMIFS(iTABUF!$F$11:$F$109,iTABUF!$C$11:$C$109,B59) -> 0 | I59: =SUMIFS(iTABUF!$G$11:$G$109,iTABUF!$C$11:$C$109,B59) -> 0 | J59: =SUMIFS(iTABUF!$H$11:$H$109,iTABUF!$C$11:$C$109,B59) -> 0 | K59: =SUMIFS(iTABUF!$I$11:$I$109,iTABUF!$C$11:$C$109,B59) -> 0 | L59: =SUMIFS(iTABUF!$J$11:$J$109,iTABUF!$C$11:$C$109,B59) -> 0 | M59: =SUMIFS(iTABUF!$K$11:$K$109,iTABUF!$C$11:$C$109,B59) -> 0 | N59: =SUMIFS(iTABUF!$L$11:$L$109,iTABUF!$C$11:$C$109,B59) -> 0 | O59: =SUMIFS(iTABUF!$M$11:$M$109,iTABUF!$C$11:$C$109,B59) -> 0 | P59: =iUI!H59 -> 0 | Q59: =iUI!I59 -> 0 | R59: =iUI!K59 -> 0
A60: 50 | B60: =iUI!B60 -> U50 | D60: =IF(iUI!D60<>"",iUI!D60,"") ->  | E60: =IF(iUI!E60<>"",iUI!E60,"") ->  | F60: =SUMIFS(iTABUF!$D$11:$D$109,iTABUF!$C$11:$C$109,B60) -> 0 | G60: =SUMIFS(iTABUF!$E$11:$E$109,iTABUF!$C$11:$C$109,B60) -> 0 | H60: =SUMIFS(iTABUF!$F$11:$F$109,iTABUF!$C$11:$C$109,B60) -> 0 | I60: =SUMIFS(iTABUF!$G$11:$G$109,iTABUF!$C$11:$C$109,B60) -> 0 | J60: =SUMIFS(iTABUF!$H$11:$H$109,iTABUF!$C$11:$C$109,B60) -> 0 | K60: =SUMIFS(iTABUF!$I$11:$I$109,iTABUF!$C$11:$C$109,B60) -> 0 | L60: =SUMIFS(iTABUF!$J$11:$J$109,iTABUF!$C$11:$C$109,B60) -> 0 | M60: =SUMIFS(iTABUF!$K$11:$K$109,iTABUF!$C$11:$C$109,B60) -> 0 | N60: =SUMIFS(iTABUF!$L$11:$L$109,iTABUF!$C$11:$C$109,B60) -> 0 | O60: =SUMIFS(iTABUF!$M$11:$M$109,iTABUF!$C$11:$C$109,B60) -> 0 | P60: =iUI!H60 -> 0 | Q60: =iUI!I60 -> 0 | R60: =iUI!K60 -> 0
A61: 51 | B61: =iUI!B61 -> U51 | D61: =IF(iUI!D61<>"",iUI!D61,"") ->  | E61: =IF(iUI!E61<>"",iUI!E61,"") ->  | F61: =SUMIFS(iTABUF!$D$11:$D$109,iTABUF!$C$11:$C$109,B61) -> 0 | G61: =SUMIFS(iTABUF!$E$11:$E$109,iTABUF!$C$11:$C$109,B61) -> 0 | H61: =SUMIFS(iTABUF!$F$11:$F$109,iTABUF!$C$11:$C$109,B61) -> 0 | I61: =SUMIFS(iTABUF!$G$11:$G$109,iTABUF!$C$11:$C$109,B61) -> 0 | J61: =SUMIFS(iTABUF!$H$11:$H$109,iTABUF!$C$11:$C$109,B61) -> 0 | K61: =SUMIFS(iTABUF!$I$11:$I$109,iTABUF!$C$11:$C$109,B61) -> 0 | L61: =SUMIFS(iTABUF!$J$11:$J$109,iTABUF!$C$11:$C$109,B61) -> 0 | M61: =SUMIFS(iTABUF!$K$11:$K$109,iTABUF!$C$11:$C$109,B61) -> 0 | N61: =SUMIFS(iTABUF!$L$11:$L$109,iTABUF!$C$11:$C$109,B61) -> 0 | O61: =SUMIFS(iTABUF!$M$11:$M$109,iTABUF!$C$11:$C$109,B61) -> 0 | P61: =iUI!H61 -> 0 | Q61: =iUI!I61 -> 0 | R61: =iUI!K61 -> 0
A62: 52 | B62: =iUI!B62 -> U52 | D62: =IF(iUI!D62<>"",iUI!D62,"") ->  | E62: =IF(iUI!E62<>"",iUI!E62,"") ->  | F62: =SUMIFS(iTABUF!$D$11:$D$109,iTABUF!$C$11:$C$109,B62) -> 0 | G62: =SUMIFS(iTABUF!$E$11:$E$109,iTABUF!$C$11:$C$109,B62) -> 0 | H62: =SUMIFS(iTABUF!$F$11:$F$109,iTABUF!$C$11:$C$109,B62) -> 0 | I62: =SUMIFS(iTABUF!$G$11:$G$109,iTABUF!$C$11:$C$109,B62) -> 0 | J62: =SUMIFS(iTABUF!$H$11:$H$109,iTABUF!$C$11:$C$109,B62) -> 0 | K62: =SUMIFS(iTABUF!$I$11:$I$109,iTABUF!$C$11:$C$109,B62) -> 0 | L62: =SUMIFS(iTABUF!$J$11:$J$109,iTABUF!$C$11:$C$109,B62) -> 0 | M62: =SUMIFS(iTABUF!$K$11:$K$109,iTABUF!$C$11:$C$109,B62) -> 0 | N62: =SUMIFS(iTABUF!$L$11:$L$109,iTABUF!$C$11:$C$109,B62) -> 0 | O62: =SUMIFS(iTABUF!$M$11:$M$109,iTABUF!$C$11:$C$109,B62) -> 0 | P62: =iUI!H62 -> 0 | Q62: =iUI!I62 -> 0 | R62: =iUI!K62 -> 0
A63: 53 | B63: =iUI!B63 -> U53 | D63: =IF(iUI!D63<>"",iUI!D63,"") ->  | E63: =IF(iUI!E63<>"",iUI!E63,"") ->  | F63: =SUMIFS(iTABUF!$D$11:$D$109,iTABUF!$C$11:$C$109,B63) -> 0 | G63: =SUMIFS(iTABUF!$E$11:$E$109,iTABUF!$C$11:$C$109,B63) -> 0 | H63: =SUMIFS(iTABUF!$F$11:$F$109,iTABUF!$C$11:$C$109,B63) -> 0 | I63: =SUMIFS(iTABUF!$G$11:$G$109,iTABUF!$C$11:$C$109,B63) -> 0 | J63: =SUMIFS(iTABUF!$H$11:$H$109,iTABUF!$C$11:$C$109,B63) -> 0 | K63: =SUMIFS(iTABUF!$I$11:$I$109,iTABUF!$C$11:$C$109,B63) -> 0 | L63: =SUMIFS(iTABUF!$J$11:$J$109,iTABUF!$C$11:$C$109,B63) -> 0 | M63: =SUMIFS(iTABUF!$K$11:$K$109,iTABUF!$C$11:$C$109,B63) -> 0 | N63: =SUMIFS(iTABUF!$L$11:$L$109,iTABUF!$C$11:$C$109,B63) -> 0 | O63: =SUMIFS(iTABUF!$M$11:$M$109,iTABUF!$C$11:$C$109,B63) -> 0 | P63: =iUI!H63 -> 0 | Q63: =iUI!I63 -> 0 | R63: =iUI!K63 -> 0
A64: 54 | B64: =iUI!B64 -> U54 | D64: =IF(iUI!D64<>"",iUI!D64,"") ->  | E64: =IF(iUI!E64<>"",iUI!E64,"") ->  | F64: =SUMIFS(iTABUF!$D$11:$D$109,iTABUF!$C$11:$C$109,B64) -> 0 | G64: =SUMIFS(iTABUF!$E$11:$E$109,iTABUF!$C$11:$C$109,B64) -> 0 | H64: =SUMIFS(iTABUF!$F$11:$F$109,iTABUF!$C$11:$C$109,B64) -> 0 | I64: =SUMIFS(iTABUF!$G$11:$G$109,iTABUF!$C$11:$C$109,B64) -> 0 | J64: =SUMIFS(iTABUF!$H$11:$H$109,iTABUF!$C$11:$C$109,B64) -> 0 | K64: =SUMIFS(iTABUF!$I$11:$I$109,iTABUF!$C$11:$C$109,B64) -> 0 | L64: =SUMIFS(iTABUF!$J$11:$J$109,iTABUF!$C$11:$C$109,B64) -> 0 | M64: =SUMIFS(iTABUF!$K$11:$K$109,iTABUF!$C$11:$C$109,B64) -> 0 | N64: =SUMIFS(iTABUF!$L$11:$L$109,iTABUF!$C$11:$C$109,B64) -> 0 | O64: =SUMIFS(iTABUF!$M$11:$M$109,iTABUF!$C$11:$C$109,B64) -> 0 | P64: =iUI!H64 -> 0 | Q64: =iUI!I64 -> 0 | R64: =iUI!K64 -> 0
A65: 55 | B65: =iUI!B65 -> U55 | D65: =IF(iUI!D65<>"",iUI!D65,"") ->  | E65: =IF(iUI!E65<>"",iUI!E65,"") ->  | F65: =SUMIFS(iTABUF!$D$11:$D$109,iTABUF!$C$11:$C$109,B65) -> 0 | G65: =SUMIFS(iTABUF!$E$11:$E$109,iTABUF!$C$11:$C$109,B65) -> 0 | H65: =SUMIFS(iTABUF!$F$11:$F$109,iTABUF!$C$11:$C$109,B65) -> 0 | I65: =SUMIFS(iTABUF!$G$11:$G$109,iTABUF!$C$11:$C$109,B65) -> 0 | J65: =SUMIFS(iTABUF!$H$11:$H$109,iTABUF!$C$11:$C$109,B65) -> 0 | K65: =SUMIFS(iTABUF!$I$11:$I$109,iTABUF!$C$11:$C$109,B65) -> 0 | L65: =SUMIFS(iTABUF!$J$11:$J$109,iTABUF!$C$11:$C$109,B65) -> 0 | M65: =SUMIFS(iTABUF!$K$11:$K$109,iTABUF!$C$11:$C$109,B65) -> 0 | N65: =SUMIFS(iTABUF!$L$11:$L$109,iTABUF!$C$11:$C$109,B65) -> 0 | O65: =SUMIFS(iTABUF!$M$11:$M$109,iTABUF!$C$11:$C$109,B65) -> 0 | P65: =iUI!H65 -> 0 | Q65: =iUI!I65 -> 0 | R65: =iUI!K65 -> 0
A66: 56 | B66: =iUI!B66 -> U56 | D66: =IF(iUI!D66<>"",iUI!D66,"") ->  | E66: =IF(iUI!E66<>"",iUI!E66,"") ->  | F66: =SUMIFS(iTABUF!$D$11:$D$109,iTABUF!$C$11:$C$109,B66) -> 0 | G66: =SUMIFS(iTABUF!$E$11:$E$109,iTABUF!$C$11:$C$109,B66) -> 0 | H66: =SUMIFS(iTABUF!$F$11:$F$109,iTABUF!$C$11:$C$109,B66) -> 0 | I66: =SUMIFS(iTABUF!$G$11:$G$109,iTABUF!$C$11:$C$109,B66) -> 0 | J66: =SUMIFS(iTABUF!$H$11:$H$109,iTABUF!$C$11:$C$109,B66) -> 0 | K66: =SUMIFS(iTABUF!$I$11:$I$109,iTABUF!$C$11:$C$109,B66) -> 0 | L66: =SUMIFS(iTABUF!$J$11:$J$109,iTABUF!$C$11:$C$109,B66) -> 0 | M66: =SUMIFS(iTABUF!$K$11:$K$109,iTABUF!$C$11:$C$109,B66) -> 0 | N66: =SUMIFS(iTABUF!$L$11:$L$109,iTABUF!$C$11:$C$109,B66) -> 0 | O66: =SUMIFS(iTABUF!$M$11:$M$109,iTABUF!$C$11:$C$109,B66) -> 0 | P66: =iUI!H66 -> 0 | Q66: =iUI!I66 -> 0 | R66: =iUI!K66 -> 0
A67: 57 | B67: =iUI!B67 -> U57 | D67: =IF(iUI!D67<>"",iUI!D67,"") ->  | E67: =IF(iUI!E67<>"",iUI!E67,"") ->  | F67: =SUMIFS(iTABUF!$D$11:$D$109,iTABUF!$C$11:$C$109,B67) -> 0 | G67: =SUMIFS(iTABUF!$E$11:$E$109,iTABUF!$C$11:$C$109,B67) -> 0 | H67: =SUMIFS(iTABUF!$F$11:$F$109,iTABUF!$C$11:$C$109,B67) -> 0 | I67: =SUMIFS(iTABUF!$G$11:$G$109,iTABUF!$C$11:$C$109,B67) -> 0 | J67: =SUMIFS(iTABUF!$H$11:$H$109,iTABUF!$C$11:$C$109,B67) -> 0 | K67: =SUMIFS(iTABUF!$I$11:$I$109,iTABUF!$C$11:$C$109,B67) -> 0 | L67: =SUMIFS(iTABUF!$J$11:$J$109,iTABUF!$C$11:$C$109,B67) -> 0 | M67: =SUMIFS(iTABUF!$K$11:$K$109,iTABUF!$C$11:$C$109,B67) -> 0 | N67: =SUMIFS(iTABUF!$L$11:$L$109,iTABUF!$C$11:$C$109,B67) -> 0 | O67: =SUMIFS(iTABUF!$M$11:$M$109,iTABUF!$C$11:$C$109,B67) -> 0 | P67: =iUI!H67 -> 0 | Q67: =iUI!I67 -> 0 | R67: =iUI!K67 -> 0
A68: 58 | B68: =iUI!B68 -> U58 | D68: =IF(iUI!D68<>"",iUI!D68,"") ->  | E68: =IF(iUI!E68<>"",iUI!E68,"") ->  | F68: =SUMIFS(iTABUF!$D$11:$D$109,iTABUF!$C$11:$C$109,B68) -> 0 | G68: =SUMIFS(iTABUF!$E$11:$E$109,iTABUF!$C$11:$C$109,B68) -> 0 | H68: =SUMIFS(iTABUF!$F$11:$F$109,iTABUF!$C$11:$C$109,B68) -> 0 | I68: =SUMIFS(iTABUF!$G$11:$G$109,iTABUF!$C$11:$C$109,B68) -> 0 | J68: =SUMIFS(iTABUF!$H$11:$H$109,iTABUF!$C$11:$C$109,B68) -> 0 | K68: =SUMIFS(iTABUF!$I$11:$I$109,iTABUF!$C$11:$C$109,B68) -> 0 | L68: =SUMIFS(iTABUF!$J$11:$J$109,iTABUF!$C$11:$C$109,B68) -> 0 | M68: =SUMIFS(iTABUF!$K$11:$K$109,iTABUF!$C$11:$C$109,B68) -> 0 | N68: =SUMIFS(iTABUF!$L$11:$L$109,iTABUF!$C$11:$C$109,B68) -> 0 | O68: =SUMIFS(iTABUF!$M$11:$M$109,iTABUF!$C$11:$C$109,B68) -> 0 | P68: =iUI!H68 -> 0 | Q68: =iUI!I68 -> 0 | R68: =iUI!K68 -> 0
A69: 59 | B69: =iUI!B69 -> U59 | D69: =IF(iUI!D69<>"",iUI!D69,"") ->  | E69: =IF(iUI!E69<>"",iUI!E69,"") ->  | F69: =SUMIFS(iTABUF!$D$11:$D$109,iTABUF!$C$11:$C$109,B69) -> 0 | G69: =SUMIFS(iTABUF!$E$11:$E$109,iTABUF!$C$11:$C$109,B69) -> 0 | H69: =SUMIFS(iTABUF!$F$11:$F$109,iTABUF!$C$11:$C$109,B69) -> 0 | I69: =SUMIFS(iTABUF!$G$11:$G$109,iTABUF!$C$11:$C$109,B69) -> 0 | J69: =SUMIFS(iTABUF!$H$11:$H$109,iTABUF!$C$11:$C$109,B69) -> 0 | K69: =SUMIFS(iTABUF!$I$11:$I$109,iTABUF!$C$11:$C$109,B69) -> 0 | L69: =SUMIFS(iTABUF!$J$11:$J$109,iTABUF!$C$11:$C$109,B69) -> 0 | M69: =SUMIFS(iTABUF!$K$11:$K$109,iTABUF!$C$11:$C$109,B69) -> 0 | N69: =SUMIFS(iTABUF!$L$11:$L$109,iTABUF!$C$11:$C$109,B69) -> 0 | O69: =SUMIFS(iTABUF!$M$11:$M$109,iTABUF!$C$11:$C$109,B69) -> 0 | P69: =iUI!H69 -> 0 | Q69: =iUI!I69 -> 0 | R69: =iUI!K69 -> 0
A70: 60 | B70: =iUI!B70 -> U60 | D70: =IF(iUI!D70<>"",iUI!D70,"") ->  | E70: =IF(iUI!E70<>"",iUI!E70,"") ->  | F70: =SUMIFS(iTABUF!$D$11:$D$109,iTABUF!$C$11:$C$109,B70) -> 0 | G70: =SUMIFS(iTABUF!$E$11:$E$109,iTABUF!$C$11:$C$109,B70) -> 0 | H70: =SUMIFS(iTABUF!$F$11:$F$109,iTABUF!$C$11:$C$109,B70) -> 0 | I70: =SUMIFS(iTABUF!$G$11:$G$109,iTABUF!$C$11:$C$109,B70) -> 0 | J70: =SUMIFS(iTABUF!$H$11:$H$109,iTABUF!$C$11:$C$109,B70) -> 0 | K70: =SUMIFS(iTABUF!$I$11:$I$109,iTABUF!$C$11:$C$109,B70) -> 0 | L70: =SUMIFS(iTABUF!$J$11:$J$109,iTABUF!$C$11:$C$109,B70) -> 0 | M70: =SUMIFS(iTABUF!$K$11:$K$109,iTABUF!$C$11:$C$109,B70) -> 0 | N70: =SUMIFS(iTABUF!$L$11:$L$109,iTABUF!$C$11:$C$109,B70) -> 0 | O70: =SUMIFS(iTABUF!$M$11:$M$109,iTABUF!$C$11:$C$109,B70) -> 0 | P70: =iUI!H70 -> 0 | Q70: =iUI!I70 -> 0 | R70: =iUI!K70 -> 0
A71: 61 | B71: =iUI!B71 -> U61 | D71: =IF(iUI!D71<>"",iUI!D71,"") ->  | E71: =IF(iUI!E71<>"",iUI!E71,"") ->  | F71: =SUMIFS(iTABUF!$D$11:$D$109,iTABUF!$C$11:$C$109,B71) -> 0 | G71: =SUMIFS(iTABUF!$E$11:$E$109,iTABUF!$C$11:$C$109,B71) -> 0 | H71: =SUMIFS(iTABUF!$F$11:$F$109,iTABUF!$C$11:$C$109,B71) -> 0 | I71: =SUMIFS(iTABUF!$G$11:$G$109,iTABUF!$C$11:$C$109,B71) -> 0 | J71: =SUMIFS(iTABUF!$H$11:$H$109,iTABUF!$C$11:$C$109,B71) -> 0 | K71: =SUMIFS(iTABUF!$I$11:$I$109,iTABUF!$C$11:$C$109,B71) -> 0 | L71: =SUMIFS(iTABUF!$J$11:$J$109,iTABUF!$C$11:$C$109,B71) -> 0 | M71: =SUMIFS(iTABUF!$K$11:$K$109,iTABUF!$C$11:$C$109,B71) -> 0 | N71: =SUMIFS(iTABUF!$L$11:$L$109,iTABUF!$C$11:$C$109,B71) -> 0 | O71: =SUMIFS(iTABUF!$M$11:$M$109,iTABUF!$C$11:$C$109,B71) -> 0 | P71: =iUI!H71 -> 0 | Q71: =iUI!I71 -> 0 | R71: =iUI!K71 -> 0
A72: 62 | B72: =iUI!B72 -> U62 | D72: =IF(iUI!D72<>"",iUI!D72,"") ->  | E72: =IF(iUI!E72<>"",iUI!E72,"") ->  | F72: =SUMIFS(iTABUF!$D$11:$D$109,iTABUF!$C$11:$C$109,B72) -> 0 | G72: =SUMIFS(iTABUF!$E$11:$E$109,iTABUF!$C$11:$C$109,B72) -> 0 | H72: =SUMIFS(iTABUF!$F$11:$F$109,iTABUF!$C$11:$C$109,B72) -> 0 | I72: =SUMIFS(iTABUF!$G$11:$G$109,iTABUF!$C$11:$C$109,B72) -> 0 | J72: =SUMIFS(iTABUF!$H$11:$H$109,iTABUF!$C$11:$C$109,B72) -> 0 | K72: =SUMIFS(iTABUF!$I$11:$I$109,iTABUF!$C$11:$C$109,B72) -> 0 | L72: =SUMIFS(iTABUF!$J$11:$J$109,iTABUF!$C$11:$C$109,B72) -> 0 | M72: =SUMIFS(iTABUF!$K$11:$K$109,iTABUF!$C$11:$C$109,B72) -> 0 | N72: =SUMIFS(iTABUF!$L$11:$L$109,iTABUF!$C$11:$C$109,B72) -> 0 | O72: =SUMIFS(iTABUF!$M$11:$M$109,iTABUF!$C$11:$C$109,B72) -> 0 | P72: =iUI!H72 -> 0 | Q72: =iUI!I72 -> 0 | R72: =iUI!K72 -> 0
A73: 63 | B73: =iUI!B73 -> U63 | D73: =IF(iUI!D73<>"",iUI!D73,"") ->  | E73: =IF(iUI!E73<>"",iUI!E73,"") ->  | F73: =SUMIFS(iTABUF!$D$11:$D$109,iTABUF!$C$11:$C$109,B73) -> 0 | G73: =SUMIFS(iTABUF!$E$11:$E$109,iTABUF!$C$11:$C$109,B73) -> 0 | H73: =SUMIFS(iTABUF!$F$11:$F$109,iTABUF!$C$11:$C$109,B73) -> 0 | I73: =SUMIFS(iTABUF!$G$11:$G$109,iTABUF!$C$11:$C$109,B73) -> 0 | J73: =SUMIFS(iTABUF!$H$11:$H$109,iTABUF!$C$11:$C$109,B73) -> 0 | K73: =SUMIFS(iTABUF!$I$11:$I$109,iTABUF!$C$11:$C$109,B73) -> 0 | L73: =SUMIFS(iTABUF!$J$11:$J$109,iTABUF!$C$11:$C$109,B73) -> 0 | M73: =SUMIFS(iTABUF!$K$11:$K$109,iTABUF!$C$11:$C$109,B73) -> 0 | N73: =SUMIFS(iTABUF!$L$11:$L$109,iTABUF!$C$11:$C$109,B73) -> 0 | O73: =SUMIFS(iTABUF!$M$11:$M$109,iTABUF!$C$11:$C$109,B73) -> 0 | P73: =iUI!H73 -> 0 | Q73: =iUI!I73 -> 0 | R73: =iUI!K73 -> 0
A74: 64 | B74: =iUI!B74 -> U64 | D74: =IF(iUI!D74<>"",iUI!D74,"") ->  | E74: =IF(iUI!E74<>"",iUI!E74,"") ->  | F74: =SUMIFS(iTABUF!$D$11:$D$109,iTABUF!$C$11:$C$109,B74) -> 0 | G74: =SUMIFS(iTABUF!$E$11:$E$109,iTABUF!$C$11:$C$109,B74) -> 0 | H74: =SUMIFS(iTABUF!$F$11:$F$109,iTABUF!$C$11:$C$109,B74) -> 0 | I74: =SUMIFS(iTABUF!$G$11:$G$109,iTABUF!$C$11:$C$109,B74) -> 0 | J74: =SUMIFS(iTABUF!$H$11:$H$109,iTABUF!$C$11:$C$109,B74) -> 0 | K74: =SUMIFS(iTABUF!$I$11:$I$109,iTABUF!$C$11:$C$109,B74) -> 0 | L74: =SUMIFS(iTABUF!$J$11:$J$109,iTABUF!$C$11:$C$109,B74) -> 0 | M74: =SUMIFS(iTABUF!$K$11:$K$109,iTABUF!$C$11:$C$109,B74) -> 0 | N74: =SUMIFS(iTABUF!$L$11:$L$109,iTABUF!$C$11:$C$109,B74) -> 0 | O74: =SUMIFS(iTABUF!$M$11:$M$109,iTABUF!$C$11:$C$109,B74) -> 0 | P74: =iUI!H74 -> 0 | Q74: =iUI!I74 -> 0 | R74: =iUI!K74 -> 0
A75: 65 | B75: =iUI!B75 -> U65 | D75: =IF(iUI!D75<>"",iUI!D75,"") ->  | E75: =IF(iUI!E75<>"",iUI!E75,"") ->  | F75: =SUMIFS(iTABUF!$D$11:$D$109,iTABUF!$C$11:$C$109,B75) -> 0 | G75: =SUMIFS(iTABUF!$E$11:$E$109,iTABUF!$C$11:$C$109,B75) -> 0 | H75: =SUMIFS(iTABUF!$F$11:$F$109,iTABUF!$C$11:$C$109,B75) -> 0 | I75: =SUMIFS(iTABUF!$G$11:$G$109,iTABUF!$C$11:$C$109,B75) -> 0 | J75: =SUMIFS(iTABUF!$H$11:$H$109,iTABUF!$C$11:$C$109,B75) -> 0 | K75: =SUMIFS(iTABUF!$I$11:$I$109,iTABUF!$C$11:$C$109,B75) -> 0 | L75: =SUMIFS(iTABUF!$J$11:$J$109,iTABUF!$C$11:$C$109,B75) -> 0 | M75: =SUMIFS(iTABUF!$K$11:$K$109,iTABUF!$C$11:$C$109,B75) -> 0 | N75: =SUMIFS(iTABUF!$L$11:$L$109,iTABUF!$C$11:$C$109,B75) -> 0 | O75: =SUMIFS(iTABUF!$M$11:$M$109,iTABUF!$C$11:$C$109,B75) -> 0 | P75: =iUI!H75 -> 0 | Q75: =iUI!I75 -> 0 | R75: =iUI!K75 -> 0
A76: 66 | B76: =iUI!B76 -> U66 | D76: =IF(iUI!D76<>"",iUI!D76,"") ->  | E76: =IF(iUI!E76<>"",iUI!E76,"") ->  | F76: =SUMIFS(iTABUF!$D$11:$D$109,iTABUF!$C$11:$C$109,B76) -> 0 | G76: =SUMIFS(iTABUF!$E$11:$E$109,iTABUF!$C$11:$C$109,B76) -> 0 | H76: =SUMIFS(iTABUF!$F$11:$F$109,iTABUF!$C$11:$C$109,B76) -> 0 | I76: =SUMIFS(iTABUF!$G$11:$G$109,iTABUF!$C$11:$C$109,B76) -> 0 | J76: =SUMIFS(iTABUF!$H$11:$H$109,iTABUF!$C$11:$C$109,B76) -> 0 | K76: =SUMIFS(iTABUF!$I$11:$I$109,iTABUF!$C$11:$C$109,B76) -> 0 | L76: =SUMIFS(iTABUF!$J$11:$J$109,iTABUF!$C$11:$C$109,B76) -> 0 | M76: =SUMIFS(iTABUF!$K$11:$K$109,iTABUF!$C$11:$C$109,B76) -> 0 | N76: =SUMIFS(iTABUF!$L$11:$L$109,iTABUF!$C$11:$C$109,B76) -> 0 | O76: =SUMIFS(iTABUF!$M$11:$M$109,iTABUF!$C$11:$C$109,B76) -> 0 | P76: =iUI!H76 -> 0 | Q76: =iUI!I76 -> 0 | R76: =iUI!K76 -> 0
A77: 67 | B77: =iUI!B77 -> U67 | D77: =IF(iUI!D77<>"",iUI!D77,"") ->  | E77: =IF(iUI!E77<>"",iUI!E77,"") ->  | F77: =SUMIFS(iTABUF!$D$11:$D$109,iTABUF!$C$11:$C$109,B77) -> 0 | G77: =SUMIFS(iTABUF!$E$11:$E$109,iTABUF!$C$11:$C$109,B77) -> 0 | H77: =SUMIFS(iTABUF!$F$11:$F$109,iTABUF!$C$11:$C$109,B77) -> 0 | I77: =SUMIFS(iTABUF!$G$11:$G$109,iTABUF!$C$11:$C$109,B77) -> 0 | J77: =SUMIFS(iTABUF!$H$11:$H$109,iTABUF!$C$11:$C$109,B77) -> 0 | K77: =SUMIFS(iTABUF!$I$11:$I$109,iTABUF!$C$11:$C$109,B77) -> 0 | L77: =SUMIFS(iTABUF!$J$11:$J$109,iTABUF!$C$11:$C$109,B77) -> 0 | M77: =SUMIFS(iTABUF!$K$11:$K$109,iTABUF!$C$11:$C$109,B77) -> 0 | N77: =SUMIFS(iTABUF!$L$11:$L$109,iTABUF!$C$11:$C$109,B77) -> 0 | O77: =SUMIFS(iTABUF!$M$11:$M$109,iTABUF!$C$11:$C$109,B77) -> 0 | P77: =iUI!H77 -> 0 | Q77: =iUI!I77 -> 0 | R77: =iUI!K77 -> 0
A78: 68 | B78: =iUI!B78 -> U68 | D78: =IF(iUI!D78<>"",iUI!D78,"") ->  | E78: =IF(iUI!E78<>"",iUI!E78,"") ->  | F78: =SUMIFS(iTABUF!$D$11:$D$109,iTABUF!$C$11:$C$109,B78) -> 0 | G78: =SUMIFS(iTABUF!$E$11:$E$109,iTABUF!$C$11:$C$109,B78) -> 0 | H78: =SUMIFS(iTABUF!$F$11:$F$109,iTABUF!$C$11:$C$109,B78) -> 0 | I78: =SUMIFS(iTABUF!$G$11:$G$109,iTABUF!$C$11:$C$109,B78) -> 0 | J78: =SUMIFS(iTABUF!$H$11:$H$109,iTABUF!$C$11:$C$109,B78) -> 0 | K78: =SUMIFS(iTABUF!$I$11:$I$109,iTABUF!$C$11:$C$109,B78) -> 0 | L78: =SUMIFS(iTABUF!$J$11:$J$109,iTABUF!$C$11:$C$109,B78) -> 0 | M78: =SUMIFS(iTABUF!$K$11:$K$109,iTABUF!$C$11:$C$109,B78) -> 0 | N78: =SUMIFS(iTABUF!$L$11:$L$109,iTABUF!$C$11:$C$109,B78) -> 0 | O78: =SUMIFS(iTABUF!$M$11:$M$109,iTABUF!$C$11:$C$109,B78) -> 0 | P78: =iUI!H78 -> 0 | Q78: =iUI!I78 -> 0 | R78: =iUI!K78 -> 0
A79: 69 | B79: =iUI!B79 -> U69 | D79: =IF(iUI!D79<>"",iUI!D79,"") ->  | E79: =IF(iUI!E79<>"",iUI!E79,"") ->  | F79: =SUMIFS(iTABUF!$D$11:$D$109,iTABUF!$C$11:$C$109,B79) -> 0 | G79: =SUMIFS(iTABUF!$E$11:$E$109,iTABUF!$C$11:$C$109,B79) -> 0 | H79: =SUMIFS(iTABUF!$F$11:$F$109,iTABUF!$C$11:$C$109,B79) -> 0 | I79: =SUMIFS(iTABUF!$G$11:$G$109,iTABUF!$C$11:$C$109,B79) -> 0 | J79: =SUMIFS(iTABUF!$H$11:$H$109,iTABUF!$C$11:$C$109,B79) -> 0 | K79: =SUMIFS(iTABUF!$I$11:$I$109,iTABUF!$C$11:$C$109,B79) -> 0 | L79: =SUMIFS(iTABUF!$J$11:$J$109,iTABUF!$C$11:$C$109,B79) -> 0 | M79: =SUMIFS(iTABUF!$K$11:$K$109,iTABUF!$C$11:$C$109,B79) -> 0 | N79: =SUMIFS(iTABUF!$L$11:$L$109,iTABUF!$C$11:$C$109,B79) -> 0 | O79: =SUMIFS(iTABUF!$M$11:$M$109,iTABUF!$C$11:$C$109,B79) -> 0 | P79: =iUI!H79 -> 0 | Q79: =iUI!I79 -> 0 | R79: =iUI!K79 -> 0
A80: 70 | B80: =iUI!B80 -> U70 | D80: =IF(iUI!D80<>"",iUI!D80,"") ->  | E80: =IF(iUI!E80<>"",iUI!E80,"") ->  | F80: =SUMIFS(iTABUF!$D$11:$D$109,iTABUF!$C$11:$C$109,B80) -> 0 | G80: =SUMIFS(iTABUF!$E$11:$E$109,iTABUF!$C$11:$C$109,B80) -> 0 | H80: =SUMIFS(iTABUF!$F$11:$F$109,iTABUF!$C$11:$C$109,B80) -> 0 | I80: =SUMIFS(iTABUF!$G$11:$G$109,iTABUF!$C$11:$C$109,B80) -> 0 | J80: =SUMIFS(iTABUF!$H$11:$H$109,iTABUF!$C$11:$C$109,B80) -> 0 | K80: =SUMIFS(iTABUF!$I$11:$I$109,iTABUF!$C$11:$C$109,B80) -> 0 | L80: =SUMIFS(iTABUF!$J$11:$J$109,iTABUF!$C$11:$C$109,B80) -> 0 | M80: =SUMIFS(iTABUF!$K$11:$K$109,iTABUF!$C$11:$C$109,B80) -> 0 | N80: =SUMIFS(iTABUF!$L$11:$L$109,iTABUF!$C$11:$C$109,B80) -> 0 | O80: =SUMIFS(iTABUF!$M$11:$M$109,iTABUF!$C$11:$C$109,B80) -> 0 | P80: =iUI!H80 -> 0 | Q80: =iUI!I80 -> 0 | R80: =iUI!K80 -> 0
A81: 71 | B81: =iUI!B81 -> U71 | D81: =IF(iUI!D81<>"",iUI!D81,"") ->  | E81: =IF(iUI!E81<>"",iUI!E81,"") ->  | F81: =SUMIFS(iTABUF!$D$11:$D$109,iTABUF!$C$11:$C$109,B81) -> 0 | G81: =SUMIFS(iTABUF!$E$11:$E$109,iTABUF!$C$11:$C$109,B81) -> 0 | H81: =SUMIFS(iTABUF!$F$11:$F$109,iTABUF!$C$11:$C$109,B81) -> 0 | I81: =SUMIFS(iTABUF!$G$11:$G$109,iTABUF!$C$11:$C$109,B81) -> 0 | J81: =SUMIFS(iTABUF!$H$11:$H$109,iTABUF!$C$11:$C$109,B81) -> 0 | K81: =SUMIFS(iTABUF!$I$11:$I$109,iTABUF!$C$11:$C$109,B81) -> 0 | L81: =SUMIFS(iTABUF!$J$11:$J$109,iTABUF!$C$11:$C$109,B81) -> 0 | M81: =SUMIFS(iTABUF!$K$11:$K$109,iTABUF!$C$11:$C$109,B81) -> 0 | N81: =SUMIFS(iTABUF!$L$11:$L$109,iTABUF!$C$11:$C$109,B81) -> 0 | O81: =SUMIFS(iTABUF!$M$11:$M$109,iTABUF!$C$11:$C$109,B81) -> 0 | P81: =iUI!H81 -> 0 | Q81: =iUI!I81 -> 0 | R81: =iUI!K81 -> 0
A82: 72 | B82: =iUI!B82 -> U72 | D82: =IF(iUI!D82<>"",iUI!D82,"") ->  | E82: =IF(iUI!E82<>"",iUI!E82,"") ->  | F82: =SUMIFS(iTABUF!$D$11:$D$109,iTABUF!$C$11:$C$109,B82) -> 0 | G82: =SUMIFS(iTABUF!$E$11:$E$109,iTABUF!$C$11:$C$109,B82) -> 0 | H82: =SUMIFS(iTABUF!$F$11:$F$109,iTABUF!$C$11:$C$109,B82) -> 0 | I82: =SUMIFS(iTABUF!$G$11:$G$109,iTABUF!$C$11:$C$109,B82) -> 0 | J82: =SUMIFS(iTABUF!$H$11:$H$109,iTABUF!$C$11:$C$109,B82) -> 0 | K82: =SUMIFS(iTABUF!$I$11:$I$109,iTABUF!$C$11:$C$109,B82) -> 0 | L82: =SUMIFS(iTABUF!$J$11:$J$109,iTABUF!$C$11:$C$109,B82) -> 0 | M82: =SUMIFS(iTABUF!$K$11:$K$109,iTABUF!$C$11:$C$109,B82) -> 0 | N82: =SUMIFS(iTABUF!$L$11:$L$109,iTABUF!$C$11:$C$109,B82) -> 0 | O82: =SUMIFS(iTABUF!$M$11:$M$109,iTABUF!$C$11:$C$109,B82) -> 0 | P82: =iUI!H82 -> 0 | Q82: =iUI!I82 -> 0 | R82: =iUI!K82 -> 0
A83: 73 | B83: =iUI!B83 -> U73 | D83: =IF(iUI!D83<>"",iUI!D83,"") ->  | E83: =IF(iUI!E83<>"",iUI!E83,"") ->  | F83: =SUMIFS(iTABUF!$D$11:$D$109,iTABUF!$C$11:$C$109,B83) -> 0 | G83: =SUMIFS(iTABUF!$E$11:$E$109,iTABUF!$C$11:$C$109,B83) -> 0 | H83: =SUMIFS(iTABUF!$F$11:$F$109,iTABUF!$C$11:$C$109,B83) -> 0 | I83: =SUMIFS(iTABUF!$G$11:$G$109,iTABUF!$C$11:$C$109,B83) -> 0 | J83: =SUMIFS(iTABUF!$H$11:$H$109,iTABUF!$C$11:$C$109,B83) -> 0 | K83: =SUMIFS(iTABUF!$I$11:$I$109,iTABUF!$C$11:$C$109,B83) -> 0 | L83: =SUMIFS(iTABUF!$J$11:$J$109,iTABUF!$C$11:$C$109,B83) -> 0 | M83: =SUMIFS(iTABUF!$K$11:$K$109,iTABUF!$C$11:$C$109,B83) -> 0 | N83: =SUMIFS(iTABUF!$L$11:$L$109,iTABUF!$C$11:$C$109,B83) -> 0 | O83: =SUMIFS(iTABUF!$M$11:$M$109,iTABUF!$C$11:$C$109,B83) -> 0 | P83: =iUI!H83 -> 0 | Q83: =iUI!I83 -> 0 | R83: =iUI!K83 -> 0
A84: 74 | B84: =iUI!B84 -> U74 | D84: =IF(iUI!D84<>"",iUI!D84,"") ->  | E84: =IF(iUI!E84<>"",iUI!E84,"") ->  | F84: =SUMIFS(iTABUF!$D$11:$D$109,iTABUF!$C$11:$C$109,B84) -> 0 | G84: =SUMIFS(iTABUF!$E$11:$E$109,iTABUF!$C$11:$C$109,B84) -> 0 | H84: =SUMIFS(iTABUF!$F$11:$F$109,iTABUF!$C$11:$C$109,B84) -> 0 | I84: =SUMIFS(iTABUF!$G$11:$G$109,iTABUF!$C$11:$C$109,B84) -> 0 | J84: =SUMIFS(iTABUF!$H$11:$H$109,iTABUF!$C$11:$C$109,B84) -> 0 | K84: =SUMIFS(iTABUF!$I$11:$I$109,iTABUF!$C$11:$C$109,B84) -> 0 | L84: =SUMIFS(iTABUF!$J$11:$J$109,iTABUF!$C$11:$C$109,B84) -> 0 | M84: =SUMIFS(iTABUF!$K$11:$K$109,iTABUF!$C$11:$C$109,B84) -> 0 | N84: =SUMIFS(iTABUF!$L$11:$L$109,iTABUF!$C$11:$C$109,B84) -> 0 | O84: =SUMIFS(iTABUF!$M$11:$M$109,iTABUF!$C$11:$C$109,B84) -> 0 | P84: =iUI!H84 -> 0 | Q84: =iUI!I84 -> 0 | R84: =iUI!K84 -> 0
A85: 75 | B85: =iUI!B85 -> U75 | D85: =IF(iUI!D85<>"",iUI!D85,"") ->  | E85: =IF(iUI!E85<>"",iUI!E85,"") ->  | F85: =SUMIFS(iTABUF!$D$11:$D$109,iTABUF!$C$11:$C$109,B85) -> 0 | G85: =SUMIFS(iTABUF!$E$11:$E$109,iTABUF!$C$11:$C$109,B85) -> 0 | H85: =SUMIFS(iTABUF!$F$11:$F$109,iTABUF!$C$11:$C$109,B85) -> 0 | I85: =SUMIFS(iTABUF!$G$11:$G$109,iTABUF!$C$11:$C$109,B85) -> 0 | J85: =SUMIFS(iTABUF!$H$11:$H$109,iTABUF!$C$11:$C$109,B85) -> 0 | K85: =SUMIFS(iTABUF!$I$11:$I$109,iTABUF!$C$11:$C$109,B85) -> 0 | L85: =SUMIFS(iTABUF!$J$11:$J$109,iTABUF!$C$11:$C$109,B85) -> 0 | M85: =SUMIFS(iTABUF!$K$11:$K$109,iTABUF!$C$11:$C$109,B85) -> 0 | N85: =SUMIFS(iTABUF!$L$11:$L$109,iTABUF!$C$11:$C$109,B85) -> 0 | O85: =SUMIFS(iTABUF!$M$11:$M$109,iTABUF!$C$11:$C$109,B85) -> 0 | P85: =iUI!H85 -> 0 | Q85: =iUI!I85 -> 0 | R85: =iUI!K85 -> 0
A86: 76 | B86: =iUI!B86 -> U76 | D86: =IF(iUI!D86<>"",iUI!D86,"") ->  | E86: =IF(iUI!E86<>"",iUI!E86,"") ->  | F86: =SUMIFS(iTABUF!$D$11:$D$109,iTABUF!$C$11:$C$109,B86) -> 0 | G86: =SUMIFS(iTABUF!$E$11:$E$109,iTABUF!$C$11:$C$109,B86) -> 0 | H86: =SUMIFS(iTABUF!$F$11:$F$109,iTABUF!$C$11:$C$109,B86) -> 0 | I86: =SUMIFS(iTABUF!$G$11:$G$109,iTABUF!$C$11:$C$109,B86) -> 0 | J86: =SUMIFS(iTABUF!$H$11:$H$109,iTABUF!$C$11:$C$109,B86) -> 0 | K86: =SUMIFS(iTABUF!$I$11:$I$109,iTABUF!$C$11:$C$109,B86) -> 0 | L86: =SUMIFS(iTABUF!$J$11:$J$109,iTABUF!$C$11:$C$109,B86) -> 0 | M86: =SUMIFS(iTABUF!$K$11:$K$109,iTABUF!$C$11:$C$109,B86) -> 0 | N86: =SUMIFS(iTABUF!$L$11:$L$109,iTABUF!$C$11:$C$109,B86) -> 0 | O86: =SUMIFS(iTABUF!$M$11:$M$109,iTABUF!$C$11:$C$109,B86) -> 0 | P86: =iUI!H86 -> 0 | Q86: =iUI!I86 -> 0 | R86: =iUI!K86 -> 0
A87: 77 | B87: =iUI!B87 -> U77 | D87: =IF(iUI!D87<>"",iUI!D87,"") ->  | E87: =IF(iUI!E87<>"",iUI!E87,"") ->  | F87: =SUMIFS(iTABUF!$D$11:$D$109,iTABUF!$C$11:$C$109,B87) -> 0 | G87: =SUMIFS(iTABUF!$E$11:$E$109,iTABUF!$C$11:$C$109,B87) -> 0 | H87: =SUMIFS(iTABUF!$F$11:$F$109,iTABUF!$C$11:$C$109,B87) -> 0 | I87: =SUMIFS(iTABUF!$G$11:$G$109,iTABUF!$C$11:$C$109,B87) -> 0 | J87: =SUMIFS(iTABUF!$H$11:$H$109,iTABUF!$C$11:$C$109,B87) -> 0 | K87: =SUMIFS(iTABUF!$I$11:$I$109,iTABUF!$C$11:$C$109,B87) -> 0 | L87: =SUMIFS(iTABUF!$J$11:$J$109,iTABUF!$C$11:$C$109,B87) -> 0 | M87: =SUMIFS(iTABUF!$K$11:$K$109,iTABUF!$C$11:$C$109,B87) -> 0 | N87: =SUMIFS(iTABUF!$L$11:$L$109,iTABUF!$C$11:$C$109,B87) -> 0 | O87: =SUMIFS(iTABUF!$M$11:$M$109,iTABUF!$C$11:$C$109,B87) -> 0 | P87: =iUI!H87 -> 0 | Q87: =iUI!I87 -> 0 | R87: =iUI!K87 -> 0
A88: 78 | B88: =iUI!B88 -> U78 | D88: =IF(iUI!D88<>"",iUI!D88,"") ->  | E88: =IF(iUI!E88<>"",iUI!E88,"") ->  | F88: =SUMIFS(iTABUF!$D$11:$D$109,iTABUF!$C$11:$C$109,B88) -> 0 | G88: =SUMIFS(iTABUF!$E$11:$E$109,iTABUF!$C$11:$C$109,B88) -> 0 | H88: =SUMIFS(iTABUF!$F$11:$F$109,iTABUF!$C$11:$C$109,B88) -> 0 | I88: =SUMIFS(iTABUF!$G$11:$G$109,iTABUF!$C$11:$C$109,B88) -> 0 | J88: =SUMIFS(iTABUF!$H$11:$H$109,iTABUF!$C$11:$C$109,B88) -> 0 | K88: =SUMIFS(iTABUF!$I$11:$I$109,iTABUF!$C$11:$C$109,B88) -> 0 | L88: =SUMIFS(iTABUF!$J$11:$J$109,iTABUF!$C$11:$C$109,B88) -> 0 | M88: =SUMIFS(iTABUF!$K$11:$K$109,iTABUF!$C$11:$C$109,B88) -> 0 | N88: =SUMIFS(iTABUF!$L$11:$L$109,iTABUF!$C$11:$C$109,B88) -> 0 | O88: =SUMIFS(iTABUF!$M$11:$M$109,iTABUF!$C$11:$C$109,B88) -> 0 | P88: =iUI!H88 -> 0 | Q88: =iUI!I88 -> 0 | R88: =iUI!K88 -> 0
A89: 79 | B89: =iUI!B89 -> U79 | D89: =IF(iUI!D89<>"",iUI!D89,"") ->  | E89: =IF(iUI!E89<>"",iUI!E89,"") ->  | F89: =SUMIFS(iTABUF!$D$11:$D$109,iTABUF!$C$11:$C$109,B89) -> 0 | G89: =SUMIFS(iTABUF!$E$11:$E$109,iTABUF!$C$11:$C$109,B89) -> 0 | H89: =SUMIFS(iTABUF!$F$11:$F$109,iTABUF!$C$11:$C$109,B89) -> 0 | I89: =SUMIFS(iTABUF!$G$11:$G$109,iTABUF!$C$11:$C$109,B89) -> 0 | J89: =SUMIFS(iTABUF!$H$11:$H$109,iTABUF!$C$11:$C$109,B89) -> 0 | K89: =SUMIFS(iTABUF!$I$11:$I$109,iTABUF!$C$11:$C$109,B89) -> 0 | L89: =SUMIFS(iTABUF!$J$11:$J$109,iTABUF!$C$11:$C$109,B89) -> 0 | M89: =SUMIFS(iTABUF!$K$11:$K$109,iTABUF!$C$11:$C$109,B89) -> 0 | N89: =SUMIFS(iTABUF!$L$11:$L$109,iTABUF!$C$11:$C$109,B89) -> 0 | O89: =SUMIFS(iTABUF!$M$11:$M$109,iTABUF!$C$11:$C$109,B89) -> 0 | P89: =iUI!H89 -> 0 | Q89: =iUI!I89 -> 0 | R89: =iUI!K89 -> 0
A90: 80 | B90: =iUI!B90 -> U80 | D90: =IF(iUI!D90<>"",iUI!D90,"") ->  | E90: =IF(iUI!E90<>"",iUI!E90,"") ->  | F90: =SUMIFS(iTABUF!$D$11:$D$109,iTABUF!$C$11:$C$109,B90) -> 0 | G90: =SUMIFS(iTABUF!$E$11:$E$109,iTABUF!$C$11:$C$109,B90) -> 0 | H90: =SUMIFS(iTABUF!$F$11:$F$109,iTABUF!$C$11:$C$109,B90) -> 0 | I90: =SUMIFS(iTABUF!$G$11:$G$109,iTABUF!$C$11:$C$109,B90) -> 0 | J90: =SUMIFS(iTABUF!$H$11:$H$109,iTABUF!$C$11:$C$109,B90) -> 0 | K90: =SUMIFS(iTABUF!$I$11:$I$109,iTABUF!$C$11:$C$109,B90) -> 0 | L90: =SUMIFS(iTABUF!$J$11:$J$109,iTABUF!$C$11:$C$109,B90) -> 0 | M90: =SUMIFS(iTABUF!$K$11:$K$109,iTABUF!$C$11:$C$109,B90) -> 0 | N90: =SUMIFS(iTABUF!$L$11:$L$109,iTABUF!$C$11:$C$109,B90) -> 0 | O90: =SUMIFS(iTABUF!$M$11:$M$109,iTABUF!$C$11:$C$109,B90) -> 0 | P90: =iUI!H90 -> 0 | Q90: =iUI!I90 -> 0 | R90: =iUI!K90 -> 0
A91: 81 | B91: =iUI!B91 -> U81 | D91: =IF(iUI!D91<>"",iUI!D91,"") ->  | E91: =IF(iUI!E91<>"",iUI!E91,"") ->  | F91: =SUMIFS(iTABUF!$D$11:$D$109,iTABUF!$C$11:$C$109,B91) -> 0 | G91: =SUMIFS(iTABUF!$E$11:$E$109,iTABUF!$C$11:$C$109,B91) -> 0 | H91: =SUMIFS(iTABUF!$F$11:$F$109,iTABUF!$C$11:$C$109,B91) -> 0 | I91: =SUMIFS(iTABUF!$G$11:$G$109,iTABUF!$C$11:$C$109,B91) -> 0 | J91: =SUMIFS(iTABUF!$H$11:$H$109,iTABUF!$C$11:$C$109,B91) -> 0 | K91: =SUMIFS(iTABUF!$I$11:$I$109,iTABUF!$C$11:$C$109,B91) -> 0 | L91: =SUMIFS(iTABUF!$J$11:$J$109,iTABUF!$C$11:$C$109,B91) -> 0 | M91: =SUMIFS(iTABUF!$K$11:$K$109,iTABUF!$C$11:$C$109,B91) -> 0 | N91: =SUMIFS(iTABUF!$L$11:$L$109,iTABUF!$C$11:$C$109,B91) -> 0 | O91: =SUMIFS(iTABUF!$M$11:$M$109,iTABUF!$C$11:$C$109,B91) -> 0 | P91: =iUI!H91 -> 0 | Q91: =iUI!I91 -> 0 | R91: =iUI!K91 -> 0
A92: 82 | B92: =iUI!B92 -> U82 | D92: =IF(iUI!D92<>"",iUI!D92,"") ->  | E92: =IF(iUI!E92<>"",iUI!E92,"") ->  | F92: =SUMIFS(iTABUF!$D$11:$D$109,iTABUF!$C$11:$C$109,B92) -> 0 | G92: =SUMIFS(iTABUF!$E$11:$E$109,iTABUF!$C$11:$C$109,B92) -> 0 | H92: =SUMIFS(iTABUF!$F$11:$F$109,iTABUF!$C$11:$C$109,B92) -> 0 | I92: =SUMIFS(iTABUF!$G$11:$G$109,iTABUF!$C$11:$C$109,B92) -> 0 | J92: =SUMIFS(iTABUF!$H$11:$H$109,iTABUF!$C$11:$C$109,B92) -> 0 | K92: =SUMIFS(iTABUF!$I$11:$I$109,iTABUF!$C$11:$C$109,B92) -> 0 | L92: =SUMIFS(iTABUF!$J$11:$J$109,iTABUF!$C$11:$C$109,B92) -> 0 | M92: =SUMIFS(iTABUF!$K$11:$K$109,iTABUF!$C$11:$C$109,B92) -> 0 | N92: =SUMIFS(iTABUF!$L$11:$L$109,iTABUF!$C$11:$C$109,B92) -> 0 | O92: =SUMIFS(iTABUF!$M$11:$M$109,iTABUF!$C$11:$C$109,B92) -> 0 | P92: =iUI!H92 -> 0 | Q92: =iUI!I92 -> 0 | R92: =iUI!K92 -> 0
A93: 83 | B93: =iUI!B93 -> U83 | D93: =IF(iUI!D93<>"",iUI!D93,"") ->  | E93: =IF(iUI!E93<>"",iUI!E93,"") ->  | F93: =SUMIFS(iTABUF!$D$11:$D$109,iTABUF!$C$11:$C$109,B93) -> 0 | G93: =SUMIFS(iTABUF!$E$11:$E$109,iTABUF!$C$11:$C$109,B93) -> 0 | H93: =SUMIFS(iTABUF!$F$11:$F$109,iTABUF!$C$11:$C$109,B93) -> 0 | I93: =SUMIFS(iTABUF!$G$11:$G$109,iTABUF!$C$11:$C$109,B93) -> 0 | J93: =SUMIFS(iTABUF!$H$11:$H$109,iTABUF!$C$11:$C$109,B93) -> 0 | K93: =SUMIFS(iTABUF!$I$11:$I$109,iTABUF!$C$11:$C$109,B93) -> 0 | L93: =SUMIFS(iTABUF!$J$11:$J$109,iTABUF!$C$11:$C$109,B93) -> 0 | M93: =SUMIFS(iTABUF!$K$11:$K$109,iTABUF!$C$11:$C$109,B93) -> 0 | N93: =SUMIFS(iTABUF!$L$11:$L$109,iTABUF!$C$11:$C$109,B93) -> 0 | O93: =SUMIFS(iTABUF!$M$11:$M$109,iTABUF!$C$11:$C$109,B93) -> 0 | P93: =iUI!H93 -> 0 | Q93: =iUI!I93 -> 0 | R93: =iUI!K93 -> 0
A94: 84 | B94: =iUI!B94 -> U84 | D94: =IF(iUI!D94<>"",iUI!D94,"") ->  | E94: =IF(iUI!E94<>"",iUI!E94,"") ->  | F94: =SUMIFS(iTABUF!$D$11:$D$109,iTABUF!$C$11:$C$109,B94) -> 0 | G94: =SUMIFS(iTABUF!$E$11:$E$109,iTABUF!$C$11:$C$109,B94) -> 0 | H94: =SUMIFS(iTABUF!$F$11:$F$109,iTABUF!$C$11:$C$109,B94) -> 0 | I94: =SUMIFS(iTABUF!$G$11:$G$109,iTABUF!$C$11:$C$109,B94) -> 0 | J94: =SUMIFS(iTABUF!$H$11:$H$109,iTABUF!$C$11:$C$109,B94) -> 0 | K94: =SUMIFS(iTABUF!$I$11:$I$109,iTABUF!$C$11:$C$109,B94) -> 0 | L94: =SUMIFS(iTABUF!$J$11:$J$109,iTABUF!$C$11:$C$109,B94) -> 0 | M94: =SUMIFS(iTABUF!$K$11:$K$109,iTABUF!$C$11:$C$109,B94) -> 0 | N94: =SUMIFS(iTABUF!$L$11:$L$109,iTABUF!$C$11:$C$109,B94) -> 0 | O94: =SUMIFS(iTABUF!$M$11:$M$109,iTABUF!$C$11:$C$109,B94) -> 0 | P94: =iUI!H94 -> 0 | Q94: =iUI!I94 -> 0 | R94: =iUI!K94 -> 0
A95: 85 | B95: =iUI!B95 -> U85 | D95: =IF(iUI!D95<>"",iUI!D95,"") ->  | E95: =IF(iUI!E95<>"",iUI!E95,"") ->  | F95: =SUMIFS(iTABUF!$D$11:$D$109,iTABUF!$C$11:$C$109,B95) -> 0 | G95: =SUMIFS(iTABUF!$E$11:$E$109,iTABUF!$C$11:$C$109,B95) -> 0 | H95: =SUMIFS(iTABUF!$F$11:$F$109,iTABUF!$C$11:$C$109,B95) -> 0 | I95: =SUMIFS(iTABUF!$G$11:$G$109,iTABUF!$C$11:$C$109,B95) -> 0 | J95: =SUMIFS(iTABUF!$H$11:$H$109,iTABUF!$C$11:$C$109,B95) -> 0 | K95: =SUMIFS(iTABUF!$I$11:$I$109,iTABUF!$C$11:$C$109,B95) -> 0 | L95: =SUMIFS(iTABUF!$J$11:$J$109,iTABUF!$C$11:$C$109,B95) -> 0 | M95: =SUMIFS(iTABUF!$K$11:$K$109,iTABUF!$C$11:$C$109,B95) -> 0 | N95: =SUMIFS(iTABUF!$L$11:$L$109,iTABUF!$C$11:$C$109,B95) -> 0 | O95: =SUMIFS(iTABUF!$M$11:$M$109,iTABUF!$C$11:$C$109,B95) -> 0 | P95: =iUI!H95 -> 0 | Q95: =iUI!I95 -> 0 | R95: =iUI!K95 -> 0
A96: 86 | B96: =iUI!B96 -> U86 | D96: =IF(iUI!D96<>"",iUI!D96,"") ->  | E96: =IF(iUI!E96<>"",iUI!E96,"") ->  | F96: =SUMIFS(iTABUF!$D$11:$D$109,iTABUF!$C$11:$C$109,B96) -> 0 | G96: =SUMIFS(iTABUF!$E$11:$E$109,iTABUF!$C$11:$C$109,B96) -> 0 | H96: =SUMIFS(iTABUF!$F$11:$F$109,iTABUF!$C$11:$C$109,B96) -> 0 | I96: =SUMIFS(iTABUF!$G$11:$G$109,iTABUF!$C$11:$C$109,B96) -> 0 | J96: =SUMIFS(iTABUF!$H$11:$H$109,iTABUF!$C$11:$C$109,B96) -> 0 | K96: =SUMIFS(iTABUF!$I$11:$I$109,iTABUF!$C$11:$C$109,B96) -> 0 | L96: =SUMIFS(iTABUF!$J$11:$J$109,iTABUF!$C$11:$C$109,B96) -> 0 | M96: =SUMIFS(iTABUF!$K$11:$K$109,iTABUF!$C$11:$C$109,B96) -> 0 | N96: =SUMIFS(iTABUF!$L$11:$L$109,iTABUF!$C$11:$C$109,B96) -> 0 | O96: =SUMIFS(iTABUF!$M$11:$M$109,iTABUF!$C$11:$C$109,B96) -> 0 | P96: =iUI!H96 -> 0 | Q96: =iUI!I96 -> 0 | R96: =iUI!K96 -> 0
A97: 87 | B97: =iUI!B97 -> U87 | D97: =IF(iUI!D97<>"",iUI!D97,"") ->  | E97: =IF(iUI!E97<>"",iUI!E97,"") ->  | F97: =SUMIFS(iTABUF!$D$11:$D$109,iTABUF!$C$11:$C$109,B97) -> 0 | G97: =SUMIFS(iTABUF!$E$11:$E$109,iTABUF!$C$11:$C$109,B97) -> 0 | H97: =SUMIFS(iTABUF!$F$11:$F$109,iTABUF!$C$11:$C$109,B97) -> 0 | I97: =SUMIFS(iTABUF!$G$11:$G$109,iTABUF!$C$11:$C$109,B97) -> 0 | J97: =SUMIFS(iTABUF!$H$11:$H$109,iTABUF!$C$11:$C$109,B97) -> 0 | K97: =SUMIFS(iTABUF!$I$11:$I$109,iTABUF!$C$11:$C$109,B97) -> 0 | L97: =SUMIFS(iTABUF!$J$11:$J$109,iTABUF!$C$11:$C$109,B97) -> 0 | M97: =SUMIFS(iTABUF!$K$11:$K$109,iTABUF!$C$11:$C$109,B97) -> 0 | N97: =SUMIFS(iTABUF!$L$11:$L$109,iTABUF!$C$11:$C$109,B97) -> 0 | O97: =SUMIFS(iTABUF!$M$11:$M$109,iTABUF!$C$11:$C$109,B97) -> 0 | P97: =iUI!H97 -> 0 | Q97: =iUI!I97 -> 0 | R97: =iUI!K97 -> 0
A98: 88 | B98: =iUI!B98 -> U88 | D98: =IF(iUI!D98<>"",iUI!D98,"") ->  | E98: =IF(iUI!E98<>"",iUI!E98,"") ->  | F98: =SUMIFS(iTABUF!$D$11:$D$109,iTABUF!$C$11:$C$109,B98) -> 0 | G98: =SUMIFS(iTABUF!$E$11:$E$109,iTABUF!$C$11:$C$109,B98) -> 0 | H98: =SUMIFS(iTABUF!$F$11:$F$109,iTABUF!$C$11:$C$109,B98) -> 0 | I98: =SUMIFS(iTABUF!$G$11:$G$109,iTABUF!$C$11:$C$109,B98) -> 0 | J98: =SUMIFS(iTABUF!$H$11:$H$109,iTABUF!$C$11:$C$109,B98) -> 0 | K98: =SUMIFS(iTABUF!$I$11:$I$109,iTABUF!$C$11:$C$109,B98) -> 0 | L98: =SUMIFS(iTABUF!$J$11:$J$109,iTABUF!$C$11:$C$109,B98) -> 0 | M98: =SUMIFS(iTABUF!$K$11:$K$109,iTABUF!$C$11:$C$109,B98) -> 0 | N98: =SUMIFS(iTABUF!$L$11:$L$109,iTABUF!$C$11:$C$109,B98) -> 0 | O98: =SUMIFS(iTABUF!$M$11:$M$109,iTABUF!$C$11:$C$109,B98) -> 0 | P98: =iUI!H98 -> 0 | Q98: =iUI!I98 -> 0 | R98: =iUI!K98 -> 0
A99: 89 | B99: =iUI!B99 -> U89 | D99: =IF(iUI!D99<>"",iUI!D99,"") ->  | E99: =IF(iUI!E99<>"",iUI!E99,"") ->  | F99: =SUMIFS(iTABUF!$D$11:$D$109,iTABUF!$C$11:$C$109,B99) -> 0 | G99: =SUMIFS(iTABUF!$E$11:$E$109,iTABUF!$C$11:$C$109,B99) -> 0 | H99: =SUMIFS(iTABUF!$F$11:$F$109,iTABUF!$C$11:$C$109,B99) -> 0 | I99: =SUMIFS(iTABUF!$G$11:$G$109,iTABUF!$C$11:$C$109,B99) -> 0 | J99: =SUMIFS(iTABUF!$H$11:$H$109,iTABUF!$C$11:$C$109,B99) -> 0 | K99: =SUMIFS(iTABUF!$I$11:$I$109,iTABUF!$C$11:$C$109,B99) -> 0 | L99: =SUMIFS(iTABUF!$J$11:$J$109,iTABUF!$C$11:$C$109,B99) -> 0 | M99: =SUMIFS(iTABUF!$K$11:$K$109,iTABUF!$C$11:$C$109,B99) -> 0 | N99: =SUMIFS(iTABUF!$L$11:$L$109,iTABUF!$C$11:$C$109,B99) -> 0 | O99: =SUMIFS(iTABUF!$M$11:$M$109,iTABUF!$C$11:$C$109,B99) -> 0 | P99: =iUI!H99 -> 0 | Q99: =iUI!I99 -> 0 | R99: =iUI!K99 -> 0
A100: 90 | B100: =iUI!B100 -> U90 | D100: =IF(iUI!D100<>"",iUI!D100,"") ->  | E100: =IF(iUI!E100<>"",iUI!E100,"") ->  | F100: =SUMIFS(iTABUF!$D$11:$D$109,iTABUF!$C$11:$C$109,B100) -> 0 | G100: =SUMIFS(iTABUF!$E$11:$E$109,iTABUF!$C$11:$C$109,B100) -> 0 | H100: =SUMIFS(iTABUF!$F$11:$F$109,iTABUF!$C$11:$C$109,B100) -> 0 | I100: =SUMIFS(iTABUF!$G$11:$G$109,iTABUF!$C$11:$C$109,B100) -> 0 | J100: =SUMIFS(iTABUF!$H$11:$H$109,iTABUF!$C$11:$C$109,B100) -> 0 | K100: =SUMIFS(iTABUF!$I$11:$I$109,iTABUF!$C$11:$C$109,B100) -> 0 | L100: =SUMIFS(iTABUF!$J$11:$J$109,iTABUF!$C$11:$C$109,B100) -> 0 | M100: =SUMIFS(iTABUF!$K$11:$K$109,iTABUF!$C$11:$C$109,B100) -> 0 | N100: =SUMIFS(iTABUF!$L$11:$L$109,iTABUF!$C$11:$C$109,B100) -> 0 | O100: =SUMIFS(iTABUF!$M$11:$M$109,iTABUF!$C$11:$C$109,B100) -> 0 | P100: =iUI!H100 -> 0 | Q100: =iUI!I100 -> 0 | R100: =iUI!K100 -> 0
A101: 91 | B101: =iUI!B101 -> U91 | D101: =IF(iUI!D101<>"",iUI!D101,"") ->  | E101: =IF(iUI!E101<>"",iUI!E101,"") ->  | F101: =SUMIFS(iTABUF!$D$11:$D$109,iTABUF!$C$11:$C$109,B101) -> 0 | G101: =SUMIFS(iTABUF!$E$11:$E$109,iTABUF!$C$11:$C$109,B101) -> 0 | H101: =SUMIFS(iTABUF!$F$11:$F$109,iTABUF!$C$11:$C$109,B101) -> 0 | I101: =SUMIFS(iTABUF!$G$11:$G$109,iTABUF!$C$11:$C$109,B101) -> 0 | J101: =SUMIFS(iTABUF!$H$11:$H$109,iTABUF!$C$11:$C$109,B101) -> 0 | K101: =SUMIFS(iTABUF!$I$11:$I$109,iTABUF!$C$11:$C$109,B101) -> 0 | L101: =SUMIFS(iTABUF!$J$11:$J$109,iTABUF!$C$11:$C$109,B101) -> 0 | M101: =SUMIFS(iTABUF!$K$11:$K$109,iTABUF!$C$11:$C$109,B101) -> 0 | N101: =SUMIFS(iTABUF!$L$11:$L$109,iTABUF!$C$11:$C$109,B101) -> 0 | O101: =SUMIFS(iTABUF!$M$11:$M$109,iTABUF!$C$11:$C$109,B101) -> 0 | P101: =iUI!H101 -> 0 | Q101: =iUI!I101 -> 0 | R101: =iUI!K101 -> 0
A102: 92 | B102: =iUI!B102 -> U92 | D102: =IF(iUI!D102<>"",iUI!D102,"") ->  | E102: =IF(iUI!E102<>"",iUI!E102,"") ->  | F102: =SUMIFS(iTABUF!$D$11:$D$109,iTABUF!$C$11:$C$109,B102) -> 0 | G102: =SUMIFS(iTABUF!$E$11:$E$109,iTABUF!$C$11:$C$109,B102) -> 0 | H102: =SUMIFS(iTABUF!$F$11:$F$109,iTABUF!$C$11:$C$109,B102) -> 0 | I102: =SUMIFS(iTABUF!$G$11:$G$109,iTABUF!$C$11:$C$109,B102) -> 0 | J102: =SUMIFS(iTABUF!$H$11:$H$109,iTABUF!$C$11:$C$109,B102) -> 0 | K102: =SUMIFS(iTABUF!$I$11:$I$109,iTABUF!$C$11:$C$109,B102) -> 0 | L102: =SUMIFS(iTABUF!$J$11:$J$109,iTABUF!$C$11:$C$109,B102) -> 0 | M102: =SUMIFS(iTABUF!$K$11:$K$109,iTABUF!$C$11:$C$109,B102) -> 0 | N102: =SUMIFS(iTABUF!$L$11:$L$109,iTABUF!$C$11:$C$109,B102) -> 0 | O102: =SUMIFS(iTABUF!$M$11:$M$109,iTABUF!$C$11:$C$109,B102) -> 0 | P102: =iUI!H102 -> 0 | Q102: =iUI!I102 -> 0 | R102: =iUI!K102 -> 0
A103: 93 | B103: =iUI!B103 -> U93 | D103: =IF(iUI!D103<>"",iUI!D103,"") ->  | E103: =IF(iUI!E103<>"",iUI!E103,"") ->  | F103: =SUMIFS(iTABUF!$D$11:$D$109,iTABUF!$C$11:$C$109,B103) -> 0 | G103: =SUMIFS(iTABUF!$E$11:$E$109,iTABUF!$C$11:$C$109,B103) -> 0 | H103: =SUMIFS(iTABUF!$F$11:$F$109,iTABUF!$C$11:$C$109,B103) -> 0 | I103: =SUMIFS(iTABUF!$G$11:$G$109,iTABUF!$C$11:$C$109,B103) -> 0 | J103: =SUMIFS(iTABUF!$H$11:$H$109,iTABUF!$C$11:$C$109,B103) -> 0 | K103: =SUMIFS(iTABUF!$I$11:$I$109,iTABUF!$C$11:$C$109,B103) -> 0 | L103: =SUMIFS(iTABUF!$J$11:$J$109,iTABUF!$C$11:$C$109,B103) -> 0 | M103: =SUMIFS(iTABUF!$K$11:$K$109,iTABUF!$C$11:$C$109,B103) -> 0 | N103: =SUMIFS(iTABUF!$L$11:$L$109,iTABUF!$C$11:$C$109,B103) -> 0 | O103: =SUMIFS(iTABUF!$M$11:$M$109,iTABUF!$C$11:$C$109,B103) -> 0 | P103: =iUI!H103 -> 0 | Q103: =iUI!I103 -> 0 | R103: =iUI!K103 -> 0
A104: 94 | B104: =iUI!B104 -> U94 | D104: =IF(iUI!D104<>"",iUI!D104,"") ->  | E104: =IF(iUI!E104<>"",iUI!E104,"") ->  | F104: =SUMIFS(iTABUF!$D$11:$D$109,iTABUF!$C$11:$C$109,B104) -> 0 | G104: =SUMIFS(iTABUF!$E$11:$E$109,iTABUF!$C$11:$C$109,B104) -> 0 | H104: =SUMIFS(iTABUF!$F$11:$F$109,iTABUF!$C$11:$C$109,B104) -> 0 | I104: =SUMIFS(iTABUF!$G$11:$G$109,iTABUF!$C$11:$C$109,B104) -> 0 | J104: =SUMIFS(iTABUF!$H$11:$H$109,iTABUF!$C$11:$C$109,B104) -> 0 | K104: =SUMIFS(iTABUF!$I$11:$I$109,iTABUF!$C$11:$C$109,B104) -> 0 | L104: =SUMIFS(iTABUF!$J$11:$J$109,iTABUF!$C$11:$C$109,B104) -> 0 | M104: =SUMIFS(iTABUF!$K$11:$K$109,iTABUF!$C$11:$C$109,B104) -> 0 | N104: =SUMIFS(iTABUF!$L$11:$L$109,iTABUF!$C$11:$C$109,B104) -> 0 | O104: =SUMIFS(iTABUF!$M$11:$M$109,iTABUF!$C$11:$C$109,B104) -> 0 | P104: =iUI!H104 -> 0 | Q104: =iUI!I104 -> 0 | R104: =iUI!K104 -> 0
A105: 95 | B105: =iUI!B105 -> U95 | D105: =IF(iUI!D105<>"",iUI!D105,"") ->  | E105: =IF(iUI!E105<>"",iUI!E105,"") ->  | F105: =SUMIFS(iTABUF!$D$11:$D$109,iTABUF!$C$11:$C$109,B105) -> 0 | G105: =SUMIFS(iTABUF!$E$11:$E$109,iTABUF!$C$11:$C$109,B105) -> 0 | H105: =SUMIFS(iTABUF!$F$11:$F$109,iTABUF!$C$11:$C$109,B105) -> 0 | I105: =SUMIFS(iTABUF!$G$11:$G$109,iTABUF!$C$11:$C$109,B105) -> 0 | J105: =SUMIFS(iTABUF!$H$11:$H$109,iTABUF!$C$11:$C$109,B105) -> 0 | K105: =SUMIFS(iTABUF!$I$11:$I$109,iTABUF!$C$11:$C$109,B105) -> 0 | L105: =SUMIFS(iTABUF!$J$11:$J$109,iTABUF!$C$11:$C$109,B105) -> 0 | M105: =SUMIFS(iTABUF!$K$11:$K$109,iTABUF!$C$11:$C$109,B105) -> 0 | N105: =SUMIFS(iTABUF!$L$11:$L$109,iTABUF!$C$11:$C$109,B105) -> 0 | O105: =SUMIFS(iTABUF!$M$11:$M$109,iTABUF!$C$11:$C$109,B105) -> 0 | P105: =iUI!H105 -> 0 | Q105: =iUI!I105 -> 0 | R105: =iUI!K105 -> 0
A106: 96 | B106: =iUI!B106 -> U96 | D106: =IF(iUI!D106<>"",iUI!D106,"") ->  | E106: =IF(iUI!E106<>"",iUI!E106,"") ->  | F106: =SUMIFS(iTABUF!$D$11:$D$109,iTABUF!$C$11:$C$109,B106) -> 0 | G106: =SUMIFS(iTABUF!$E$11:$E$109,iTABUF!$C$11:$C$109,B106) -> 0 | H106: =SUMIFS(iTABUF!$F$11:$F$109,iTABUF!$C$11:$C$109,B106) -> 0 | I106: =SUMIFS(iTABUF!$G$11:$G$109,iTABUF!$C$11:$C$109,B106) -> 0 | J106: =SUMIFS(iTABUF!$H$11:$H$109,iTABUF!$C$11:$C$109,B106) -> 0 | K106: =SUMIFS(iTABUF!$I$11:$I$109,iTABUF!$C$11:$C$109,B106) -> 0 | L106: =SUMIFS(iTABUF!$J$11:$J$109,iTABUF!$C$11:$C$109,B106) -> 0 | M106: =SUMIFS(iTABUF!$K$11:$K$109,iTABUF!$C$11:$C$109,B106) -> 0 | N106: =SUMIFS(iTABUF!$L$11:$L$109,iTABUF!$C$11:$C$109,B106) -> 0 | O106: =SUMIFS(iTABUF!$M$11:$M$109,iTABUF!$C$11:$C$109,B106) -> 0 | P106: =iUI!H106 -> 0 | Q106: =iUI!I106 -> 0 | R106: =iUI!K106 -> 0
A107: 97 | B107: =iUI!B107 -> U97 | D107: =IF(iUI!D107<>"",iUI!D107,"") ->  | E107: =IF(iUI!E107<>"",iUI!E107,"") ->  | F107: =SUMIFS(iTABUF!$D$11:$D$109,iTABUF!$C$11:$C$109,B107) -> 0 | G107: =SUMIFS(iTABUF!$E$11:$E$109,iTABUF!$C$11:$C$109,B107) -> 0 | H107: =SUMIFS(iTABUF!$F$11:$F$109,iTABUF!$C$11:$C$109,B107) -> 0 | I107: =SUMIFS(iTABUF!$G$11:$G$109,iTABUF!$C$11:$C$109,B107) -> 0 | J107: =SUMIFS(iTABUF!$H$11:$H$109,iTABUF!$C$11:$C$109,B107) -> 0 | K107: =SUMIFS(iTABUF!$I$11:$I$109,iTABUF!$C$11:$C$109,B107) -> 0 | L107: =SUMIFS(iTABUF!$J$11:$J$109,iTABUF!$C$11:$C$109,B107) -> 0 | M107: =SUMIFS(iTABUF!$K$11:$K$109,iTABUF!$C$11:$C$109,B107) -> 0 | N107: =SUMIFS(iTABUF!$L$11:$L$109,iTABUF!$C$11:$C$109,B107) -> 0 | O107: =SUMIFS(iTABUF!$M$11:$M$109,iTABUF!$C$11:$C$109,B107) -> 0 | P107: =iUI!H107 -> 0 | Q107: =iUI!I107 -> 0 | R107: =iUI!K107 -> 0
A108: 98 | B108: =iUI!B108 -> U98 | D108: =IF(iUI!D108<>"",iUI!D108,"") ->  | E108: =IF(iUI!E108<>"",iUI!E108,"") ->  | F108: =SUMIFS(iTABUF!$D$11:$D$109,iTABUF!$C$11:$C$109,B108) -> 0 | G108: =SUMIFS(iTABUF!$E$11:$E$109,iTABUF!$C$11:$C$109,B108) -> 0 | H108: =SUMIFS(iTABUF!$F$11:$F$109,iTABUF!$C$11:$C$109,B108) -> 0 | I108: =SUMIFS(iTABUF!$G$11:$G$109,iTABUF!$C$11:$C$109,B108) -> 0 | J108: =SUMIFS(iTABUF!$H$11:$H$109,iTABUF!$C$11:$C$109,B108) -> 0 | K108: =SUMIFS(iTABUF!$I$11:$I$109,iTABUF!$C$11:$C$109,B108) -> 0 | L108: =SUMIFS(iTABUF!$J$11:$J$109,iTABUF!$C$11:$C$109,B108) -> 0 | M108: =SUMIFS(iTABUF!$K$11:$K$109,iTABUF!$C$11:$C$109,B108) -> 0 | N108: =SUMIFS(iTABUF!$L$11:$L$109,iTABUF!$C$11:$C$109,B108) -> 0 | O108: =SUMIFS(iTABUF!$M$11:$M$109,iTABUF!$C$11:$C$109,B108) -> 0 | P108: =iUI!H108 -> 0 | Q108: =iUI!I108 -> 0 | R108: =iUI!K108 -> 0
A109: 99 | B109: =iUI!B109 -> U99 | D109: =IF(iUI!D109<>"",iUI!D109,"") ->  | E109: =IF(iUI!E109<>"",iUI!E109,"") ->  | F109: =SUMIFS(iTABUF!$D$11:$D$109,iTABUF!$C$11:$C$109,B109) -> 0 | G109: =SUMIFS(iTABUF!$E$11:$E$109,iTABUF!$C$11:$C$109,B109) -> 0 | H109: =SUMIFS(iTABUF!$F$11:$F$109,iTABUF!$C$11:$C$109,B109) -> 0 | I109: =SUMIFS(iTABUF!$G$11:$G$109,iTABUF!$C$11:$C$109,B109) -> 0 | J109: =SUMIFS(iTABUF!$H$11:$H$109,iTABUF!$C$11:$C$109,B109) -> 0 | K109: =SUMIFS(iTABUF!$I$11:$I$109,iTABUF!$C$11:$C$109,B109) -> 0 | L109: =SUMIFS(iTABUF!$J$11:$J$109,iTABUF!$C$11:$C$109,B109) -> 0 | M109: =SUMIFS(iTABUF!$K$11:$K$109,iTABUF!$C$11:$C$109,B109) -> 0 | N109: =SUMIFS(iTABUF!$L$11:$L$109,iTABUF!$C$11:$C$109,B109) -> 0 | O109: =SUMIFS(iTABUF!$M$11:$M$109,iTABUF!$C$11:$C$109,B109) -> 0 | P109: =iUI!H109 -> 0 | Q109: =iUI!I109 -> 0 | R109: =iUI!K109 -> 0
E110: TOTALI | F110: =SUM(F11:F109) -> 1000 | G110: 1000 | H110: 1000 | I110: 1000 | J110: 1000 | K110: 1000 | L110: 0 | M110: 0 | N110: 0 | O110: 0
A111: 0 | T111: 0

Sheet cTABCO (hidden)
A1: Possono essere variati solo i valori delle celle senza sfondo colorato. | N1: 0
A6: ='iP1'!A5 -> Condominio "PROTOTIPO"
A7: TABELLE MILLESIMALI per CONDOMINI
A9: n. Cond. | B9: Codice Condòmino | C9: CONDOMINO | D9: Tabella A | E9: Tabella B | F9: Tabella C | G9: Tabella D | H9: Tabella E | I9: Tabella F | J9: Tabella G | K9: Tabella H | L9: Tabella I | M9: Tabella J
D10: GENERALE | E10: Scala A-38 | F10: Scala B-30 | G10: Scala C-22 | H10: PORTICO | I10: TUNNEL
A11: =iCONDOMINI!A11 -> 1 | B11: =IF(iCONDOMINI!B11<>"",iCONDOMINI!B11,"") -> C01 | C11: =IF(iCONDOMINI!C11<>"",iCONDOMINI!C11,"") -> Condomino01 | D11: =IF(B11<>"",SUMIFS(cTABUI!$F$11:$F$109,cTABUI!$D$11:$D$109,B11),0) -> 41.9883 | E11: =IF(B11<>"",SUMIFS(cTABUI!$G$11:$G$109,cTABUI!$D$11:$D$109,B11),0) -> 0 | F11: =IF(B11<>"",SUMIFS(cTABUI!$H$11:$H$109,cTABUI!$D$11:$D$109,B11),0) -> 0 | G11: =IF(B11<>"",SUMIFS(cTABUI!$I$11:$I$109,cTABUI!$D$11:$D$109,B11),0) -> 174 | H11: =IF(B11<>"",SUMIFS(cTABUI!$J$11:$J$109,cTABUI!$D$11:$D$109,B11),0) -> 27.778 | I11: =IF(B11<>"",SUMIFS(cTABUI!$K$11:$K$109,cTABUI!$D$11:$D$109,B11),0) -> 25 | J11: =IF(B11<>"",SUMIFS(cTABUI!$L$11:$L$109,cTABUI!$D$11:$D$109,B11),0) -> 0 | K11: =IF(B11<>"",SUMIFS(cTABUI!$M$11:$M$109,cTABUI!$D$11:$D$109,B11),0) -> 0 | L11: =IF(B11<>"",SUMIFS(cTABUI!$N$11:$N$109,cTABUI!$D$11:$D$109,B11),0) -> 0 | M11: =IF(B11<>"",SUMIFS(cTABUI!$O$11:$O$109,cTABUI!$D$11:$D$109,B11),0) -> 0
A12: =iCONDOMINI!A12 -> 2 | B12: =IF(iCONDOMINI!B12<>"",iCONDOMINI!B12,"") -> C02 | C12: =IF(iCONDOMINI!C12<>"",iCONDOMINI!C12,"") -> Condomino02 | D12: =IF(B12<>"",SUMIFS(cTABUI!$F$11:$F$109,cTABUI!$D$11:$D$109,B12),0) -> 31.9514 | E12: =IF(B12<>"",SUMIFS(cTABUI!$G$11:$G$109,cTABUI!$D$11:$D$109,B12),0) -> 0 | F12: =IF(B12<>"",SUMIFS(cTABUI!$H$11:$H$109,cTABUI!$D$11:$D$109,B12),0) -> 144 | G12: =IF(B12<>"",SUMIFS(cTABUI!$I$11:$I$109,cTABUI!$D$11:$D$109,B12),0) -> 0 | H12: =IF(B12<>"",SUMIFS(cTABUI!$J$11:$J$109,cTABUI!$D$11:$D$109,B12),0) -> 27.778 | I12: =IF(B12<>"",SUMIFS(cTABUI!$K$11:$K$109,cTABUI!$D$11:$D$109,B12),0) -> 25 | J12: =IF(B12<>"",SUMIFS(cTABUI!$L$11:$L$109,cTABUI!$D$11:$D$109,B12),0) -> 0 | K12: =IF(B12<>"",SUMIFS(cTABUI!$M$11:$M$109,cTABUI!$D$11:$D$109,B12),0) -> 0 | L12: =IF(B12<>"",SUMIFS(cTABUI!$N$11:$N$109,cTABUI!$D$11:$D$109,B12),0) -> 0 | M12: =IF(B12<>"",SUMIFS(cTABUI!$O$11:$O$109,cTABUI!$D$11:$D$109,B12),0) -> 0
A13: =iCONDOMINI!A13 -> 3 | B13: =IF(iCONDOMINI!B13<>"",iCONDOMINI!B13,"") -> C03 | C13: =IF(iCONDOMINI!C13<>"",iCONDOMINI!C13,"") -> Condomino03 | D13: =IF(B13<>"",SUMIFS(cTABUI!$F$11:$F$109,cTABUI!$D$11:$D$109,B13),0) -> 6.6245 | E13: =IF(B13<>"",SUMIFS(cTABUI!$G$11:$G$109,cTABUI!$D$11:$D$109,B13),0) -> 0 | F13: =IF(B13<>"",SUMIFS(cTABUI!$H$11:$H$109,cTABUI!$D$11:$D$109,B13),0) -> 31 | G13: =IF(B13<>"",SUMIFS(cTABUI!$I$11:$I$109,cTABUI!$D$11:$D$109,B13),0) -> 39 | H13: =IF(B13<>"",SUMIFS(cTABUI!$J$11:$J$109,cTABUI!$D$11:$D$109,B13),0) -> 0 | I13: =IF(B13<>"",SUMIFS(cTABUI!$K$11:$K$109,cTABUI!$D$11:$D$109,B13),0) -> 149 | J13: =IF(B13<>"",SUMIFS(cTABUI!$L$11:$L$109,cTABUI!$D$11:$D$109,B13),0) -> 0 | K13: =IF(B13<>"",SUMIFS(cTABUI!$M$11:$M$109,cTABUI!$D$11:$D$109,B13),0) -> 0 | L13: =IF(B13<>"",SUMIFS(cTABUI!$N$11:$N$109,cTABUI!$D$11:$D$109,B13),0) -> 0 | M13: =IF(B13<>"",SUMIFS(cTABUI!$O$11:$O$109,cTABUI!$D$11:$D$109,B13),0) -> 0
A14: =iCONDOMINI!A14 -> 4 | B14: =IF(iCONDOMINI!B14<>"",iCONDOMINI!B14,"") -> C04 | C14: =IF(iCONDOMINI!C14<>"",iCONDOMINI!C14,"") -> Condomino04 S.r.l. | D14: =IF(B14<>"",SUMIFS(cTABUI!$F$11:$F$109,cTABUI!$D$11:$D$109,B14),0) -> 56.286 | E14: =IF(B14<>"",SUMIFS(cTABUI!$G$11:$G$109,cTABUI!$D$11:$D$109,B14),0) -> 30 | F14: =IF(B14<>"",SUMIFS(cTABUI!$H$11:$H$109,cTABUI!$D$11:$D$109,B14),0) -> 32 | G14: =IF(B14<>"",SUMIFS(cTABUI!$I$11:$I$109,cTABUI!$D$11:$D$109,B14),0) -> 0 | H14: =IF(B14<>"",SUMIFS(cTABUI!$J$11:$J$109,cTABUI!$D$11:$D$109,B14),0) -> 100 | I14: =IF(B14<>"",SUMIFS(cTABUI!$K$11:$K$109,cTABUI!$D$11:$D$109,B14),0) -> 179 | J14: =IF(B14<>"",SUMIFS(cTABUI!$L$11:$L$109,cTABUI!$D$11:$D$109,B14),0) -> 0 | K14: =IF(B14<>"",SUMIFS(cTABUI!$M$11:$M$109,cTABUI!$D$11:$D$109,B14),0) -> 0 | L14: =IF(B14<>"",SUMIFS(cTABUI!$N$11:$N$109,cTABUI!$D$11:$D$109,B14),0) -> 0 | M14: =IF(B14<>"",SUMIFS(cTABUI!$O$11:$O$109,cTABUI!$D$11:$D$109,B14),0) -> 0
A15: =iCONDOMINI!A15 -> 5 | B15: =IF(iCONDOMINI!B15<>"",iCONDOMINI!B15,"") -> C05 | C15: =IF(iCONDOMINI!C15<>"",iCONDOMINI!C15,"") -> Condomino05 | D15: =IF(B15<>"",SUMIFS(cTABUI!$F$11:$F$109,cTABUI!$D$11:$D$109,B15),0) -> 44.8297 | E15: =IF(B15<>"",SUMIFS(cTABUI!$G$11:$G$109,cTABUI!$D$11:$D$109,B15),0) -> 133 | F15: =IF(B15<>"",SUMIFS(cTABUI!$H$11:$H$109,cTABUI!$D$11:$D$109,B15),0) -> 0 | G15: =IF(B15<>"",SUMIFS(cTABUI!$I$11:$I$109,cTABUI!$D$11:$D$109,B15),0) -> 0 | H15: =IF(B15<>"",SUMIFS(cTABUI!$J$11:$J$109,cTABUI!$D$11:$D$109,B15),0) -> 27.778 | I15: =IF(B15<>"",SUMIFS(cTABUI!$K$11:$K$109,cTABUI!$D$11:$D$109,B15),0) -> 25 | J15: =IF(B15<>"",SUMIFS(cTABUI!$L$11:$L$109,cTABUI!$D$11:$D$109,B15),0) -> 0 | K15: =IF(B15<>"",SUMIFS(cTABUI!$M$11:$M$109,cTABUI!$D$11:$D$109,B15),0) -> 0 | L15: =IF(B15<>"",SUMIFS(cTABUI!$N$11:$N$109,cTABUI!$D$11:$D$109,B15),0) -> 0 | M15: =IF(B15<>"",SUMIFS(cTABUI!$O$11:$O$109,cTABUI!$D$11:$D$109,B15),0) -> 0
A16: =iCONDOMINI!A16 -> 6 | B16: =IF(iCONDOMINI!B16<>"",iCONDOMINI!B16,"") -> C06 | C16: =IF(iCONDOMINI!C16<>"",iCONDOMINI!C16,"") -> Condomino06 | D16: =IF(B16<>"",SUMIFS(cTABUI!$F$11:$F$109,cTABUI!$D$11:$D$109,B16),0) -> 38.1644 | E16: =IF(B16<>"",SUMIFS(cTABUI!$G$11:$G$109,cTABUI!$D$11:$D$109,B16),0) -> 0 | F16: =IF(B16<>"",SUMIFS(cTABUI!$H$11:$H$109,cTABUI!$D$11:$D$109,B16),0) -> 0 | G16: =IF(B16<>"",SUMIFS(cTABUI!$I$11:$I$109,cTABUI!$D$11:$D$109,B16),0) -> 135 | H16: =IF(B16<>"",SUMIFS(cTABUI!$J$11:$J$109,cTABUI!$D$11:$D$109,B16),0) -> 27.778 | I16: =IF(B16<>"",SUMIFS(cTABUI!$K$11:$K$109,cTABUI!$D$11:$D$109,B16),0) -> 25 | J16: =IF(B16<>"",SUMIFS(cTABUI!$L$11:$L$109,cTABUI!$D$11:$D$109,B16),0) -> 0 | K16: =IF(B16<>"",SUMIFS(cTABUI!$M$11:$M$109,cTABUI!$D$11:$D$109,B16),0) -> 0 | L16: =IF(B16<>"",SUMIFS(cTABUI!$N$11:$N$109,cTABUI!$D$11:$D$109,B16),0) -> 0 | M16: =IF(B16<>"",SUMIFS(cTABUI!$O$11:$O$109,cTABUI!$D$11:$D$109,B16),0) -> 0
A17: =iCONDOMINI!A17 -> 7 | B17: =IF(iCONDOMINI!B17<>"",iCONDOMINI!B17,"") -> C07 | C17: =IF(iCONDOMINI!C17<>"",iCONDOMINI!C17,"") -> Condomino07 | D17: =IF(B17<>"",SUMIFS(cTABUI!$F$11:$F$109,cTABUI!$D$11:$D$109,B17),0) -> 45.4688 | E17: =IF(B17<>"",SUMIFS(cTABUI!$G$11:$G$109,cTABUI!$D$11:$D$109,B17),0) -> 0 | F17: =IF(B17<>"",SUMIFS(cTABUI!$H$11:$H$109,cTABUI!$D$11:$D$109,B17),0) -> 0 | G17: =IF(B17<>"",SUMIFS(cTABUI!$I$11:$I$109,cTABUI!$D$11:$D$109,B17),0) -> 149 | H17: =IF(B17<>"",SUMIFS(cTABUI!$J$11:$J$109,cTABUI!$D$11:$D$109,B17),0) -> 27.778 | I17: =IF(B17<>"",SUMIFS(cTABUI!$K$11:$K$109,cTABUI!$D$11:$D$109,B17),0) -> 25 | J17: =IF(B17<>"",SUMIFS(cTABUI!$L$11:$L$109,cTABUI!$D$11:$D$109,B17),0) -> 0 | K17: =IF(B17<>"",SUMIFS(cTABUI!$M$11:$M$109,cTABUI!$D$11:$D$109,B17),0) -> 0 | L17: =IF(B17<>"",SUMIFS(cTABUI!$N$11:$N$109,cTABUI!$D$11:$D$109,B17),0) -> 0 | M17: =IF(B17<>"",SUMIFS(cTABUI!$O$11:$O$109,cTABUI!$D$11:$D$109,B17),0) -> 0
A18: =iCONDOMINI!A18 -> 8 | B18: =IF(iCONDOMINI!B18<>"",iCONDOMINI!B18,"") -> C08 | C18: =IF(iCONDOMINI!C18<>"",iCONDOMINI!C18,"") -> Eredi Condomino08 | D18: =IF(B18<>"",SUMIFS(cTABUI!$F$11:$F$109,cTABUI!$D$11:$D$109,B18),0) -> 16.8519 | E18: =IF(B18<>"",SUMIFS(cTABUI!$G$11:$G$109,cTABUI!$D$11:$D$109,B18),0) -> 26 | F18: =IF(B18<>"",SUMIFS(cTABUI!$H$11:$H$109,cTABUI!$D$11:$D$109,B18),0) -> 0 | G18: =IF(B18<>"",SUMIFS(cTABUI!$I$11:$I$109,cTABUI!$D$11:$D$109,B18),0) -> 0 | H18: =IF(B18<>"",SUMIFS(cTABUI!$J$11:$J$109,cTABUI!$D$11:$D$109,B18),0) -> 27.774 | I18: =IF(B18<>"",SUMIFS(cTABUI!$K$11:$K$109,cTABUI!$D$11:$D$109,B18),0) -> 0 | J18: =IF(B18<>"",SUMIFS(cTABUI!$L$11:$L$109,cTABUI!$D$11:$D$109,B18),0) -> 0 | K18: =IF(B18<>"",SUMIFS(cTABUI!$M$11:$M$109,cTABUI!$D$11:$D$109,B18),0) -> 0 | L18: =IF(B18<>"",SUMIFS(cTABUI!$N$11:$N$109,cTABUI!$D$11:$D$109,B18),0) -> 0 | M18: =IF(B18<>"",SUMIFS(cTABUI!$O$11:$O$109,cTABUI!$D$11:$D$109,B18),0) -> 0
A19: =iCONDOMINI!A19 -> 9 | B19: =IF(iCONDOMINI!B19<>"",iCONDOMINI!B19,"") -> C09 | C19: =IF(iCONDOMINI!C19<>"",iCONDOMINI!C19,"") -> Condomino09 S.r.l. | D19: =IF(B19<>"",SUMIFS(cTABUI!$F$11:$F$109,cTABUI!$D$11:$D$109,B19),0) -> 51.6737 | E19: =IF(B19<>"",SUMIFS(cTABUI!$G$11:$G$109,cTABUI!$D$11:$D$109,B19),0) -> 30 | F19: =IF(B19<>"",SUMIFS(cTABUI!$H$11:$H$109,cTABUI!$D$11:$D$109,B19),0) -> 28 | G19: =IF(B19<>"",SUMIFS(cTABUI!$I$11:$I$109,cTABUI!$D$11:$D$109,B19),0) -> 0 | H19: =IF(B19<>"",SUMIFS(cTABUI!$J$11:$J$109,cTABUI!$D$11:$D$109,B19),0) -> 100 | I19: =IF(B19<>"",SUMIFS(cTABUI!$K$11:$K$109,cTABUI!$D$11:$D$109,B19),0) -> 110 | J19: =IF(B19<>"",SUMIFS(cTABUI!$L$11:$L$109,cTABUI!$D$11:$D$109,B19),0) -> 0 | K19: =IF(B19<>"",SUMIFS(cTABUI!$M$11:$M$109,cTABUI!$D$11:$D$109,B19),0) -> 0 | L19: =IF(B19<>"",SUMIFS(cTABUI!$N$11:$N$109,cTABUI!$D$11:$D$109,B19),0) -> 0 | M19: =IF(B19<>"",SUMIFS(cTABUI!$O$11:$O$109,cTABUI!$D$11:$D$109,B19),0) -> 0
A20: =iCONDOMINI!A20 -> 10 | B20: =IF(iCONDOMINI!B20<>"",iCONDOMINI!B20,"") -> C10 | C20: =IF(iCONDOMINI!C20<>"",iCONDOMINI!C20,"") -> Condomino10 | D20: =IF(B20<>"",SUMIFS(cTABUI!$F$11:$F$109,cTABUI!$D$11:$D$109,B20),0) -> 87.4539 | E20: =IF(B20<>"",SUMIFS(cTABUI!$G$11:$G$109,cTABUI!$D$11:$D$109,B20),0) -> 0 | F20: =IF(B20<>"",SUMIFS(cTABUI!$H$11:$H$109,cTABUI!$D$11:$D$109,B20),0) -> 0 | G20: =IF(B20<>"",SUMIFS(cTABUI!$I$11:$I$109,cTABUI!$D$11:$D$109,B20),0) -> 296 | H20: =IF(B20<>"",SUMIFS(cTABUI!$J$11:$J$109,cTABUI!$D$11:$D$109,B20),0) -> 27.778 | I20: =IF(B20<>"",SUMIFS(cTABUI!$K$11:$K$109,cTABUI!$D$11:$D$109,B20),0) -> 102 | J20: =IF(B20<>"",SUMIFS(cTABUI!$L$11:$L$109,cTABUI!$D$11:$D$109,B20),0) -> 0 | K20: =IF(B20<>"",SUMIFS(cTABUI!$M$11:$M$109,cTABUI!$D$11:$D$109,B20),0) -> 0 | L20: =IF(B20<>"",SUMIFS(cTABUI!$N$11:$N$109,cTABUI!$D$11:$D$109,B20),0) -> 0 | M20: =IF(B20<>"",SUMIFS(cTABUI!$O$11:$O$109,cTABUI!$D$11:$D$109,B20),0) -> 0
A21: =iCONDOMINI!A21 -> 11 | B21: =IF(iCONDOMINI!B21<>"",iCONDOMINI!B21,"") -> C11 | C21: =IF(iCONDOMINI!C21<>"",iCONDOMINI!C21,"") -> Condomino11 | D21: =IF(B21<>"",SUMIFS(cTABUI!$F$11:$F$109,cTABUI!$D$11:$D$109,B21),0) -> 37.7269 | E21: =IF(B21<>"",SUMIFS(cTABUI!$G$11:$G$109,cTABUI!$D$11:$D$109,B21),0) -> 145 | F21: =IF(B21<>"",SUMIFS(cTABUI!$H$11:$H$109,cTABUI!$D$11:$D$109,B21),0) -> 0 | G21: =IF(B21<>"",SUMIFS(cTABUI!$I$11:$I$109,cTABUI!$D$11:$D$109,B21),0) -> 0 | H21: =IF(B21<>"",SUMIFS(cTABUI!$J$11:$J$109,cTABUI!$D$11:$D$109,B21),0) -> 27.778 | I21: =IF(B21<>"",SUMIFS(cTABUI!$K$11:$K$109,cTABUI!$D$11:$D$109,B21),0) -> 25 | J21: =IF(B21<>"",SUMIFS(cTABUI!$L$11:$L$109,cTABUI!$D$11:$D$109,B21),0) -> 0 | K21: =IF(B21<>"",SUMIFS(cTABUI!$M$11:$M$109,cTABUI!$D$11:$D$109,B21),0) -> 0 | L21: =IF(B21<>"",SUMIFS(cTABUI!$N$11:$N$109,cTABUI!$D$11:$D$109,B21),0) -> 0 | M21: =IF(B21<>"",SUMIFS(cTABUI!$O$11:$O$109,cTABUI!$D$11:$D$109,B21),0) -> 0
A22: =iCONDOMINI!A22 -> 12 | B22: =IF(iCONDOMINI!B22<>"",iCONDOMINI!B22,"") -> C12 | C22: =IF(iCONDOMINI!C22<>"",iCONDOMINI!C22,"") -> Condomino12 | D22: =IF(B22<>"",SUMIFS(cTABUI!$F$11:$F$109,cTABUI!$D$11:$D$109,B22),0) -> 43.2808 | E22: =IF(B22<>"",SUMIFS(cTABUI!$G$11:$G$109,cTABUI!$D$11:$D$109,B22),0) -> 0 | F22: =IF(B22<>"",SUMIFS(cTABUI!$H$11:$H$109,cTABUI!$D$11:$D$109,B22),0) -> 189 | G22: =IF(B22<>"",SUMIFS(cTABUI!$I$11:$I$109,cTABUI!$D$11:$D$109,B22),0) -> 0 | H22: =IF(B22<>"",SUMIFS(cTABUI!$J$11:$J$109,cTABUI!$D$11:$D$109,B22),0) -> 27.778 | I22: =IF(B22<>"",SUMIFS(cTABUI!$K$11:$K$109,cTABUI!$D$11:$D$109,B22),0) -> 25 | J22: =IF(B22<>"",SUMIFS(cTABUI!$L$11:$L$109,cTABUI!$D$11:$D$109,B22),0) -> 0 | K22: =IF(B22<>"",SUMIFS(cTABUI!$M$11:$M$109,cTABUI!$D$11:$D$109,B22),0) -> 0 | L22: =IF(B22<>"",SUMIFS(cTABUI!$N$11:$N$109,cTABUI!$D$11:$D$109,B22),0) -> 0 | M22: =IF(B22<>"",SUMIFS(cTABUI!$O$11:$O$109,cTABUI!$D$11:$D$109,B22),0) -> 0
A23: =iCONDOMINI!A23 -> 13 | B23: =IF(iCONDOMINI!B23<>"",iCONDOMINI!B23,"") -> C13 | C23: =IF(iCONDOMINI!C23<>"",iCONDOMINI!C23,"") -> Condomino13 | D23: =IF(B23<>"",SUMIFS(cTABUI!$F$11:$F$109,cTABUI!$D$11:$D$109,B23),0) -> 64.1842 | E23: =IF(B23<>"",SUMIFS(cTABUI!$G$11:$G$109,cTABUI!$D$11:$D$109,B23),0) -> 126 | F23: =IF(B23<>"",SUMIFS(cTABUI!$H$11:$H$109,cTABUI!$D$11:$D$109,B23),0) -> 0 | G23: =IF(B23<>"",SUMIFS(cTABUI!$I$11:$I$109,cTABUI!$D$11:$D$109,B23),0) -> 0 | H23: =IF(B23<>"",SUMIFS(cTABUI!$J$11:$J$109,cTABUI!$D$11:$D$109,B23),0) -> 127.778 | I23: =IF(B23<>"",SUMIFS(cTABUI!$K$11:$K$109,cTABUI!$D$11:$D$109,B23),0) -> 25 | J23: =IF(B23<>"",SUMIFS(cTABUI!$L$11:$L$109,cTABUI!$D$11:$D$109,B23),0) -> 0 | K23: =IF(B23<>"",SUMIFS(cTABUI!$M$11:$M$109,cTABUI!$D$11:$D$109,B23),0) -> 0 | L23: =IF(B23<>"",SUMIFS(cTABUI!$N$11:$N$109,cTABUI!$D$11:$D$109,B23),0) -> 0 | M23: =IF(B23<>"",SUMIFS(cTABUI!$O$11:$O$109,cTABUI!$D$11:$D$109,B23),0) -> 0
A24: =iCONDOMINI!A24 -> 14 | B24: =IF(iCONDOMINI!B24<>"",iCONDOMINI!B24,"") -> C14 | C24: =IF(iCONDOMINI!C24<>"",iCONDOMINI!C24,"") -> Condomino14 | D24: =IF(B24<>"",SUMIFS(cTABUI!$F$11:$F$109,cTABUI!$D$11:$D$109,B24),0) -> 29.873 | E24: =IF(B24<>"",SUMIFS(cTABUI!$G$11:$G$109,cTABUI!$D$11:$D$109,B24),0) -> 0 | F24: =IF(B24<>"",SUMIFS(cTABUI!$H$11:$H$109,cTABUI!$D$11:$D$109,B24),0) -> 115 | G24: =IF(B24<>"",SUMIFS(cTABUI!$I$11:$I$109,cTABUI!$D$11:$D$109,B24),0) -> 0 | H24: =IF(B24<>"",SUMIFS(cTABUI!$J$11:$J$109,cTABUI!$D$11:$D$109,B24),0) -> 27.778 | I24: =IF(B24<>"",SUMIFS(cTABUI!$K$11:$K$109,cTABUI!$D$11:$D$109,B24),0) -> 0 | J24: =IF(B24<>"",SUMIFS(cTABUI!$L$11:$L$109,cTABUI!$D$11:$D$109,B24),0) -> 0 | K24: =IF(B24<>"",SUMIFS(cTABUI!$M$11:$M$109,cTABUI!$D$11:$D$109,B24),0) -> 0 | L24: =IF(B24<>"",SUMIFS(cTABUI!$N$11:$N$109,cTABUI!$D$11:$D$109,B24),0) -> 0 | M24: =IF(B24<>"",SUMIFS(cTABUI!$O$11:$O$109,cTABUI!$D$11:$D$109,B24),0) -> 0
